Workbook

Sheet Introduction
B3: This conversion are done by the following formulas: | L3: Definition in worksheets:
L4: 1.grid_local - means UTM-Grid coordinates using Ain El Abd Datum (International 1924 Ellipsoid)
B5: International 1924 Ellipsoid | L5: 2.geo_local - means Geographic coordinates using Ain El Abd Datum (International 1924 Ellipsoid)
B6: Semi-major axis= | D6: 6378388.000m | L6: 3.grid_WGS84 - means UTM-Grid coordinates using WGS-84 Datum (WGS-84 Ellipsoid)
B7: 1/flattening= | D7: 297 | L7: 4.geo_WGS84 - means Geographic coordinates using WGS-84 Datum (WGS84 Ellipsoid)
B9: WGS 84 Ellipsoid
B10: Semi-major axis= | D10: 6378137.000m
B11: 1/flattening= | D11: 298.2572236
B13: Geodetic Datum Transformation Parameters (Local to WGS-84)
B14: Datum | D14: Ellipsoid | F14: dX | G14: dY | H14: dZ
B15: Ain el Abd 1970 | D15: International 1924 | F15: -143 | G15: -236 | H15: 7
B17: 1. The Geographic Coordinates conversion between Local and WGS-84 is using Molodensky method.
B18: 2. Geographic to UTM-Grid Coordinates (vice-versa) is using Redfean's method.
B21: The process of this calculations are using Visual Basic Program.
B22: To see the Visual Basic code of the functions -
B23: Menu=Tools, Macro, Visual Basic Editor,
B24: then view the code in "Module 1".
B26: Direct links to worksheet
B27: Map Projection Category | I27: Plane Coordinate System Category | P27: Miscellaneous
B28: 1.grid_local-grid_WGS84 | I28: Forward | P28: R.C. Jubail transformation
B29: 2.grid_local-geo_local | I29: Inverse | P29: diff angle conversion
B30: 3.grid_local-geo_WGS84 | I30: Parabolic curve | P30: adjustment(profile)
B31: 4.grid_wgs84-grid_local | I31: Topo BS zero azimuth | P31: Stationing(profile)
B32: 5.grid_WGS84-geo_WGS84 | I32: Transit rule | P32: UTM projection map
B33: 6.grid_WGS84-geo_local | I33: Area by coordinates | P33: Datum transformation parameters
B34: 7.geo_local-grid_local | I34: Area by azimuth and distance | P34: Formulas
B35: 8.geo_local-grid_WGS84 | I35: Reference Line (or) Line and offset
B36: 9.geo_local-geo-WGS84 | I36: Multi-coordinates transformation | P36: AutoCAD Progarms
B37: 10.geo_wgs84-grid_wgs84 | I37: Coordinates transformation | O37: → | P37: Plot Points To AutoCAD
B38: 11.geo_WGS84-grid_local | I38: Spiral eastment | O38: → | P38: Import AutoCAD Coordinates to Excel
B39: 12.geo_WGS84-geo_local | I39: Triangle solver | O39: → | P39: Draw ERROR X Y to AutoCAD (Ref.Line)
B40: 13.local grid zone transformation | I40: Right triangle solver
B41: 14.WGS84 grid zone transformation | I41: Compass rule
B42: 15.Area by Coordinates | I42: Compass rule or Bowditch method
B43: 16.Local Convergence_SF_HF_CF | I43: Curve coordinates computation
B44: 17.Grid and Ground Dist. | I44: Super elevation
B45: 18.Geocentric (ITRF) - Geocentric (Ain El Abd KSA) | I45: Spiral offset
B46: 19.Geocentric (Ain El Abd KSA) - Geocentric (ITRF) | I46: Embankment
B47: 20.Geocentric (ITRF) - Geographic (ITRF)
B48: 21.Geographic (ITRF) - Geocentric (ITRF)
B49: 22.Geocentric (Ain El Abd KSA) - Geographic (Ain El Abd KSA)
B50: 23.Geographic (Ain El Abd KSA) - Geocentric (Ain El Abd KSA)
B51: 24.Grid (ITRF) - Geographic (ITRF)
B52: 25.Geographic (ITRF) - Grid (ITRF)

Sheet Import AutoCAD Coordinates
A1: Back to Introduction
M21: ← Press This Button Then Select Object on Your CAD Drawing.

Sheet Draw Points To AutoCAD
A1: Back to Introduction | B1: Draw Points To AutoCAD
B2: TEXT | C2: X | D2: Y | E2: Z | F2: COLOR
B3: RP1 | C3: 1000 | D3: 1000 | E3: 10 | F3: 2
B4: RP2 | C4: 1000.0009 | D4: 1097.4563 | E4: 10.0843 | F4: 2
B5: RP3 | C5: 999.608 | D5: 1049.6983 | E5: 10.0576 | F5: 2
B6: RP4 | C6: 989.3175 | D6: 1028.1705 | E6: 9.7023 | F6: 2
B7: CW | C7: 991.1956 | D7: 1002.5543 | E7: 10.5055 | F7: 2
B8: CW*BL | C8: 987.9632 | D8: 1001.6026 | E8: 10.2877 | F8: 2
B9: R | C9: 1002.568 | D9: 990.2849 | E9: 9.9011 | F9: 2
B10: PP | C10: 1004.3026 | D10: 989.5653 | E10: 9.9921 | F10: 2
B11: F | C11: 1004.6743 | D11: 989.7665 | E11: 10.0016 | F11: 2
B12: R | C12: 996.0081 | D12: 987.4881 | E12: 9.7908 | F12: 2
B13: R | C13: 1000.2842 | D13: 971.793 | E13: 9.8352 | F13: 2
B14: R | C14: 1007.1808 | D14: 973.9816 | E14: 9.9 | F14: 2
B15: R | C15: 1009.7867 | D15: 970.8033 | E15: 9.889 | F15: 2
B16: F | C16: 1008.3292 | D16: 974.9833 | E16: 9.9967 | F16: 2
B17: F | C17: 1008.633 | D17: 975.2444 | E17: 9.9552 | F17: 2
B18: F | C18: 1007.9376 | D18: 1006.4963 | E18: 10.1261 | F18: 2
B19: F*G | C19: 1001.7385 | D19: 1030.1105 | E19: 10.0484 | F19: 2
B20: F*G | C20: 1003.4678 | D20: 1024.0039 | E20: 10.023 | F20: 2
B21: CW | C21: 986.2986 | D21: 1020.1941 | E21: 9.9199 | F21: 2
B22: PIPE200F | C22: 990.1497 | D22: 1006.7392 | E22: 10.2038 | F22: 2
B23: PIPE150F | C23: 990.2676 | D23: 1007.8869 | E23: 9.9966 | F23: 2
B24: PIPE200S | C24: 990.0278 | D24: 1009.0216 | E24: 10.2695 | F24: 2
B25: PIPE200S | C25: 986.2245 | D25: 1021.7237 | E25: 10.3002 | F25: 2
B26: PIPE150F | C26: 986.0735 | D26: 1021.4031 | E26: 10.2386 | F26: 2
B27: CABLE | C27: 990.4431 | D27: 1009.2966 | E27: 10.111 | F27: 2
B28: PC | C28: 992.1632 | D28: 1024.2101 | E28: 9.7265 | F28: 2
B29: PC | C29: 982.7064 | D29: 1029.7382 | E29: 9.6994 | F29: 2
B30: PC | C30: 990.1086 | D30: 1031.9809 | E30: 9.7077 | F30: 2
B31: PIER | C31: 987.4167 | D31: 1025.4545 | E31: 9.7182 | F31: 2
B32: PIER | C32: 985.613 | D32: 1026.5833 | E32: 9.7254 | F32: 2
B33: PIER | C33: 988.611 | D33: 1027.387 | E33: 9.7022 | F33: 2
B34: F | C34: 1007.2028 | D34: 1036.5338 | E34: 9.9138 | F34: 2
B35: F | C35: 1004.8175 | D35: 1037.3647 | E35: 9.9137 | F35: 2
B36: F | C36: 1002.3974 | D36: 1043.2145 | E36: 9.8306 | F36: 2
B37: RW | C37: 999.5444 | D37: 1034.7488 | E37: 9.915 | F37: 2
B38: RW | C38: 999.1556 | D38: 1034.4483 | E38: 9.9874 | F38: 2
B39: RW | C39: 992.3036 | D39: 1056.7251 | E39: 8.1317 | F39: 2
B40: RW | C40: 982.3276 | D40: 1043.2366 | E40: 9.7934 | F40: 2
B41: RW | C41: 982.6921 | D41: 1043.2569 | E41: 9.5332 | F41: 2
B42: BL | C42: 971.7386 | D42: 1045.3533 | E42: 11.4971 | F42: 2
B43: BL | C43: 979.3008 | D43: 1032.306 | E43: 10.9409 | F43: 2
B44: PIPE200S | C44: 1007.6499 | D44: 1009.4288 | E44: 9.9856 | F44: 2
B45: G | C45: 1007.063 | D45: 1012.5138 | E45: 10.0389 | F45: 2
B46: G | C46: 1006.0865 | D46: 1015.2154 | E46: 10.0434 | F46: 2
B47: PIPE200S | C47: 1001.6026 | D47: 1030.3674 | E47: 10.1588 | F47: 2
B48: LP | C48: 1028.0546 | D48: 1038.2858 | E48: 9.8546 | F48: 2
B49: F | C49: 1024.9971 | D49: 1041.4759 | E49: 10.0836 | F49: 2
B50: G | C50: 1015.3621 | D50: 1038.7477 | E50: 10.0668 | F50: 2
B51: STRUC | C51: 1019.9838 | D51: 1043.881 | E51: 10.0294 | F51: 2
B52: STRUC | C52: 1009.9195 | D52: 1041.1295 | E52: 10.0129 | F52: 2
B53: STRUC | C53: 1004.6702 | D53: 1059.7275 | E53: 10.0821 | F53: 2
B54: P | C54: 1004.8475 | D54: 1041.0119 | E54: 9.9943 | F54: 2
B55: P | C55: 1000.4952 | D55: 1057.1343 | E55: 10.3165 | F55: 2
B56: CHAMBER | C56: 1015.5715 | D56: 1036.0669 | E56: 10.0319 | F56: 2
B57: CHAMBER | C57: 1015.0472 | D57: 1038.0833 | E57: 10.034 | F57: 2
B58: CHAMBER | C58: 1012.9818 | D58: 1037.5275 | E58: 10.0365 | F58: 2
B59: PIPE200S | C59: 1003.2902 | D59: 1030.7863 | E59: 10.2387 | F59: 2
B60: CH | C60: 992.3599 | D60: 1031.5161 | E60: 10.041 | F60: 2
B61: CH | C61: 992.732 | D61: 1029.76 | E61: 10.0452 | F61: 2
B62: BL | C62: 1010.6822 | D62: 1010.8973 | E62: 9.8788 | F62: 2
B63: TANK | C63: 1011.9049 | D63: 1007.6907 | E63: 9.8637 | F63: 2
B64: BL | C64: 1008.2077 | D64: 1020.0435 | E64: 10.0757 | F64: 2
B65: BL | C65: 1017.7691 | D65: 1024.6104 | E65: 10.0098 | F65: 2
B66: BL | C66: 1029.6234 | D66: 1029.0924 | E66: 10.1053 | F66: 2
B67: BL | C67: 1038.0643 | D67: 1031.4735 | E67: 9.9874 | F67: 2
B68: TANK | C68: 1042.5399 | D68: 1031.9733 | E68: 9.9194 | F68: 2
B69: TANK | C69: 1065.3219 | D69: 1038.1887 | E69: 9.9228 | F69: 2

Sheet ERROR X Y
A1: Back to Introduction | B1: Draw Error XY To AutoCAD (With Ref.Line)
B2: DESIGN | G2: AS-BUILT | K2: Bearing Of Ref. Line
B3: TEXT | C3: X | D3: Y | E3: Z | G3: X | H3: Y | I3: Z | K3: (DEG.MMSS)
B4: P11-01U | C4: 232990.979 | D4: 2703858.925 | E4: 32.4716 | G4: 232990.9829 | H4: 2703858.931 | I4: 32.4694 | K4: 44.2158
C5: 232986.539 | D5: 2703862.961 | E5: 32.4695 | G5: 232986.5409 | H5: 2703862.964 | I5: 32.4694 | K5: 44.2158
C6: 232982.099 | D6: 2703866.996 | E6: 32.4717 | G6: 232982.0952 | H6: 2703866.994 | I6: 32.4694 | K6: 44.2158
B7: P11-02U | C7: 232992.9981 | D7: 2703861.152 | E7: 32.4022 | G7: 232992.9981 | H7: 2703861.152 | I7: 32.4022 | K7: 44.2158
C8: 232988.5561 | D8: 2703865.186 | E8: 32.4022 | G8: 232988.5561 | H8: 2703865.186 | I8: 32.4022 | K8: 44.2158
C9: 232984.1141 | D9: 2703869.219 | E9: 32.4022 | G9: 232984.1104 | H9: 2703869.215 | I9: 32.4022 | K9: 44.2158
B10: P11-03U | C10: 232995.0101 | D10: 2703863.373 | E10: 32.3297 | G10: 232995.0132 | H10: 2703863.374 | I10: 32.3331 | K10: 44.2158
C11: 232990.5693 | D11: 2703867.408 | E11: 32.3306 | G11: 232990.5712 | H11: 2703867.407 | I11: 32.3331 | K11: 44.2158
C12: 232986.1285 | D12: 2703871.442 | E12: 32.3315 | G12: 232986.1255 | H12: 2703871.436 | I12: 32.3331 | K12: 44.2158
B13: P11-03U | C13: 232997.0297 | D13: 2703865.595 | E13: 32.2603 | G13: 232997.0282 | H13: 2703865.595 | I13: 32.2621 | K13: 44.2158
C14: 232992.5896 | D14: 2703869.63 | E14: 32.2594 | G14: 232992.5863 | H14: 2703869.628 | I14: 32.2621 | K14: 44.2158
C15: 232988.1495 | D15: 2703873.666 | E15: 32.2586 | G15: 232988.1406 | H15: 2703873.658 | I15: 32.2621 | K15: 44.2158
B16: P11-04U | C16: 232999.0535 | D16: 2703867.82 | E16: 32.1892 | G16: 232999.0433 | H16: 2703867.816 | I16: 32.1892 | K16: 44.2158
C17: 232994.6121 | D17: 2703871.854 | E17: 32.1892 | G17: 232994.6014 | H17: 2703871.85 | I17: 32.1892 | K17: 44.2158
C18: 232990.1707 | D18: 2703875.888 | E18: 32.1891 | G18: 232990.1556 | H18: 2703875.879 | I18: 32.1892 | K18: 44.2158

Sheet 1.grid_local-grid_WGS84
A1: Back to Introduction
B3: Note: This worksheet can be expand as much as you want. | H3: User's Input
B4: Just highlight the last row and drag it downward.
B5: *Be sure to Fill-up the required zone.
B6: Zone = | C6: 39
B7: l0 = | C7: =-177+(6*(C6-1))-3 -> 48 | D7: to | E7: =-177+(6*(C6-1))+3 -> 54 | G7: Central Meridians of the zone = | J7: =-177+(6*(C6-1)) -> 51
B9: UTM-Grid (Ain El Abd) | G9: UTM-Grid (WGS-84)
B10: pt.no | C10: northing (m) | D10: easting (m) | E10: elev. (m) | G10: pt.no | H10: northing (m) | I10: easting (m) | J10: elev. (m)
B11: 1 | C11: 3305692.566 | D11: 620723.944 | E11: 120 | G11: =IF(B11="","",B11) -> 1 | H11: =IF(D11="","",LNorth_to_WNorth(C11,D11,E11,$J$7)) -> 3305708.02 | I11: =IF(D11="","",LEast_to_WEast(C11,D11,E11,$J$7)) -> 620686.6716 | J11: =IF(E11="","",LH_to_WH(C11,D11,E11,$J$7)) -> 114.1547996
B12: 2 | C12: 3305692.566 | D12: 500000 | G12: =IF(B12="","",B12) -> 2 | H12: =IF(D12="","",LNorth_to_WNorth(C12,D12,E12,$J$7)) -> 3305708.01 | I12: =IF(D12="","",LEast_to_WEast(C12,D12,E12,$J$7)) -> 499962.629 | J12: =IF(E12="","",LH_to_WH(C12,D12,E12,$J$7)) -> 

Sheet 2.grid_local-geo_local
A1: Back to Introduction
B3: Note: This worksheet can be expand as much as you want. | H3: User's Input
B4: Just highlight the last row and drag it downward.
B5: *Be sure to Fill-up the required zone. | G5: Geographic Latitude & Longitude Format = (Degrees-Minutes-Seconds)
B6: Zone = | C6: 38
B7: l0 = | C7: =-177+(6*(C6-1))-3 -> 42 | D7: to | E7: =-177+(6*(C6-1))+3 -> 48 | G7: Central Meridians of the zone = | J7: =-177+(6*(C6-1)) -> 45
B9: UTM-Grid (Ain El Abd) | G9: Geographic (Ain El Abd)
B10: pt.no | C10: northing (m) | D10: easting (m) | E10: elev. (m) | G10: pt.no | H10: latitude | I10: longitude | J10: Elev.
B11: 1 | C11: 2842468.569 | D11: 334148.019 | G11: =IF(B11="","",B11) -> 1 | H11: =IF(D11="","",LNorth_to_LLat(C11,D11,$J$7)) -> 25-41-25.258949 | I11: =IF(D11="","",LEast_to_LLon(C11,D11,$J$7)) -> 43-20-50.244314 | J11: =IF(E11="","",E11) -> 
B12: 2 | C12: 2843867.528 | D12: 334158.689 | G12: =IF(B12="","",B12) -> 2 | H12: =IF(D12="","",LNorth_to_LLat(C12,D12,$J$7)) -> 25-42-10.721984 | I12: =IF(D12="","",LEast_to_LLon(C12,D12,$J$7)) -> 43-20-49.999265 | J12: =IF(E12="","",E12) -> 
B13: 3 | C13: 2843938.742 | D13: 333605.224 | G13: 3 | H13: 25-42-12.810608 | I13: 43-20-30.116758
B14: 4 | C14: 2842676.153 | D14: 332534.709 | G14: 4 | H14: 25-41-31.345359 | I14: 43-19-52.294004

Sheet 3.grid_local-geo_WGS84
A1: Back to Introduction
B3: Note: This worksheet can be expand as much as you want. | H3: User's Input
B4: Just highlight the last row and drag it downward.
B5: *Be sure to Fill-up the required zone. | G5: Geographic Latitude & Longitude Format = (Degrees-Minutes-Seconds)
B6: Zone = | C6: 39
B7: l0 = | C7: =-177+(6*(C6-1))-3 -> 48 | D7: to | E7: =-177+(6*(C6-1))+3 -> 54 | G7: Central Meridians of the zone = | J7: =-177+(6*(C6-1)) -> 51
B9: UTM-Grid (Ain El Abd) | G9: Geographic (WGS-84)
B10: pt.no | C10: northing (m) | D10: easting (m) | E10: elev. (m) | G10: pt.no | H10: latitude | I10: longitude | J10: Elev.
B11: 1 | C11: 2842468.569 | D11: 334148.019 | G11: =IF(B11="","",B11) -> 1 | H11: =IF(D11="","",LNorth_to_WLat(C11, D11, E11, $J$7)) -> 25-41-26.983535 | I11: =IF(D11="","",LEast_to_WLon(C11, D11, E11, $J$7)) -> 49-20-48.621264 | J11: =IF(E11="","",LH2_to_WH2(C11, D11, E11, $J$7)) -> 
B12: 2 | C12: 2843867.528 | D12: 334158.689 | G12: =IF(B12="","",B12) -> 2 | H12: =IF(D12="","",LNorth_to_WLat(C12, D12, E12, $J$7)) -> 25-42-12.447483 | I12: =IF(D12="","",LEast_to_WLon(C12, D12, E12, $J$7)) -> 49-20-48.376033 | J12: =IF(E12="","",LH2_to_WH2(C12, D12, E12, $J$7)) -> 
B13: 3 | C13: 2843938.742 | D13: 333605.224 | G13: 3 | H13: 25-42-14.536088 | I13: 49-20-28.492577
B14: 4 | C14: 2842676.153 | D14: 332534.709 | G14: 4 | H14: 25-41-33.069888 | I14: 49-19-50.668189

Sheet 4.grid_wgs84-grid_local
A1: Back to Introduction
B3: Note: This worksheet can be expand as much as you want. | H3: User's Input
B4: Just highlight the last row and drag it downward.
B5: *Be sure to Fill-up the required zone.
B6: Zone = | C6: 39
B7: l0 = | C7: =-177+(6*(C6-1))-3 -> 48 | D7: to | E7: =-177+(6*(C6-1))+3 -> 54 | G7: Central Meridians of the zone = | J7: =-177+(6*(C6-1)) -> 51
B9: UTM-Grid (WGS-84) | G9: UTM-Grid (Ain El Abd)
B10: pt.no | C10: northing (m) | D10: easting (m) | E10: elev. (m) | G10: pt.no | H10: northing (m) | I10: easting (m) | J10: elev. (m)
B11: 1 | C11: 3305708.02 | D11: 620686.672 | E11: 114.155 | G11: =IF(B11="","",B11) -> 1 | H11: =IF(D11="","",WNorth_to_LNorth(C11,D11,E11,$J$7)) -> 3305692.564 | I11: =IF(D11="","",WEast_to_LEast(C11,D11,E11,$J$7)) -> 620723.9462 | J11: =IF(E11="","",WH_to_LH(C11,D11,E11,$J$7)) -> 119.9994043
G12: =IF(B12="","",B12) ->  | H12: =IF(D12="","",WNorth_to_LNorth(C12,D12,E12,$J$7)) ->  | I12: =IF(D12="","",WEast_to_LEast(C12,D12,E12,$J$7)) ->  | J12: =IF(E12="","",WH_to_LH(C12,D12,E12,$J$7)) -> 
B14: 1 | C14: 2842468.569 | D14: 334148.019 | G14: 1 | H14: 2842453.643 | I14: 334185.6381
B15: 2 | C15: 2843867.528 | D15: 334158.689 | G15: 2 | H15: 2843852.6 | I15: 334196.3078
B16: 3 | C16: 2843938.742 | D16: 333605.224 | G16: 3 | H16: 2843923.814 | I16: 333642.8436
B17: 4 | C17: 2842676.153 | D17: 332534.709 | G17: 4 | H17: 2842661.227 | I17: 332572.3305

Sheet 5.grid_WGS84-geo_WGS84
A1: Back to Introduction
B3: Note: This worksheet can be expand as much as you want. | H3: User's Input
B4: Just highlight the last row and drag it downward.
B5: *Be sure to Fill-up the required zone. | G5: Geographic Latitude & Longitude Format = (Degrees-Minutes-Seconds)
B6: Zone = | C6: 37
B7: l0 = | C7: =-177+(6*(C6-1))-3 -> 36 | D7: to | E7: =-177+(6*(C6-1))+3 -> 42 | G7: Central Meridians of the zone = | J7: =-177+(6*(C6-1)) -> 39
B9: UTM-Grid (WGS-84) | G9: Geographic (WGS-84)
B10: pt.no | C10: northing (m) | D10: easting (m) | E10: elev. (m) | G10: pt.no | H10: latitude | I10: longitude | J10: Elev.
B11: 1 | C11: 3305692.566 | D11: 620723.944 | E11: 120 | G11: =IF(B11="","",B11) -> 1 | H11: =IF(D11="","",WNorth_to_WLat(C11, D11, $J$7)) -> 29-52-33.313898 | I11: =IF(D11="","",WEast_to_WLon(C11, D11, $J$7)) -> 40-15-0.364594 | J11: =IF(E11="","",E11) -> 120
B12: 2 | C12: 3305692.566 | D12: 500001 | E12: 0 | G12: =IF(B12="","",B12) -> 2 | H12: =IF(D12="","",WNorth_to_WLat(C12, D12, $J$7)) -> 29-52-54.629886 | I12: =IF(D12="","",WEast_to_WLon(C12, D12, $J$7)) -> 39-0-0.037282 | J12: =IF(E12="","",E12) -> 0

Sheet 6.grid_WGS84-geo_local
A1: Back to Introduction
B3: Note: This worksheet can be expand as much as you want. | H3: User's Input
B4: Just highlight the last row and drag it downward.
B5: *Be sure to Fill-up the required zone. | G5: Geographic Latitude & Longitude Format = (Degrees-Minutes-Seconds)
B6: Zone = | C6: 37
B7: l0 = | C7: =-177+(6*(C6-1))-3 -> 36 | D7: to | E7: =-177+(6*(C6-1))+3 -> 42 | G7: Central Meridians of the zone = | J7: =-177+(6*(C6-1)) -> 39
B9: UTM-Grid (WGS-84) | G9: Geographic (Ain El Abd)
B10: pt.no | C10: northing (m) | D10: easting (m) | E10: elev. (m) | G10: pt.no | H10: latitude | I10: longitude | J10: Elev.
B11: 1 | C11: 3305692.566 | D11: 620723.944 | E11: 120 | G11: =IF(B11="","",B11) -> 1 | H11: =IF(D11="","",WNorth_to_LLat(C11, D11, E11, $J$7)) -> 29-52-31.443516 | I11: =IF(D11="","",WEast_to_LLon(C11, D11, E11, $J$7)) -> 40-15-3.633504 | J11: =IF(E11="","",WH2_to_LH2(C11, D11, E11, $J$7)) -> 114.9866621
B12: 2 | C12: 3305692.566 | D12: 500001 | E12: 0 | G12: =IF(B12="","",B12) -> 2 | H12: =IF(D12="","",WNorth_to_LLat(C12, D12, E12, $J$7)) -> 29-52-52.791005 | I12: =IF(D12="","",WEast_to_LLon(C12, D12, E12, $J$7)) -> 39-0-3.518371 | J12: =IF(E12="","",WH2_to_LH2(C12, D12, E12, $J$7)) -> -6.732725729

Sheet 7.geo_local-grid_local
A1: Back to Introduction
B3: Note: This worksheet can be expand as much as you want. | H3: User's Input
B4: Just highlight the last row and drag it downward.
B5: *Be sure to Fill-up the required zone.
B6: Zone = | C6: 37
B7: l0 = | C7: =-177+(6*(C6-1))-3 -> 36 | D7: to | E7: =-177+(6*(C6-1))+3 -> 42 | G7: Central Meridians of the zone = | J7: =-177+(6*(C6-1)) -> 39
A8: Input this format dd-mm-ss (sample 29-01-00) or minutes must be 2-digits
B9: Geographic (Ain El Abd) | G9: UTM-Grid (Ain El Abd)
B10: pt.no | C10: latitude | D10: longitude | E10: Elev. | G10: pt.no | H10: northing (m) | I10: easting (m) | J10: elev. (m)
B11: 1 | C11: 29-52-31.756126 | D11: 40-15-0.152258 | E11: 120 | G11: =IF(B11="","",B11) -> 1 | H11: =IF(D11="","",LLat_to_LNorth(C11, D11, $J$7)) -> 3305692.566 | I11: =IF(D11="","",LLon_to_LEast(C11, D11,$J$7)) -> 620723.944 | J11: =IF(E11="","",E11) -> 120
B12: 2 | C12: 29-52-53.070374 | D12: 39-00-00.93728 | E12: 0 | G12: =IF(B12="","",B12) -> 2 | H12: =IF(D12="","",LLat_to_LNorth(C12, D12, $J$7)) -> 3305692.566 | I12: =IF(D12="","",LLon_to_LEast(C12, D12,$J$7)) -> 500025.1416 | J12: =IF(E12="","",E12) -> 0

Sheet 8.geo_local-grid_WGS84
A1: Back to Introduction
B3: Note: This worksheet can be expand as much as you want. | H3: User's Input
B4: Just highlight the last row and drag it downward.
B5: *Be sure to Fill-up the required zone.
B6: Zone = | C6: 37
B7: l0 = | C7: =-177+(6*(C6-1))-3 -> 36 | D7: to | E7: =-177+(6*(C6-1))+3 -> 42 | G7: Central Meridians of the zone = | J7: =-177+(6*(C6-1)) -> 39
A8: Input this format dd-mm-ss (sample 29-01-00) or minutes must be 2-digits
B9: Geographic (Ain El Abd) | G9: UTM-Grid (WGS-84)
B10: pt.no | C10: latitude | D10: longitude | E10: Elev. | G10: pt.no | H10: northing (m) | I10: easting (m) | J10: elev. (m)
B11: 1 | C11: 29-52-31.756126 | D11: 40-15-0.152258 | E11: 120 | G11: =IF(B11="","",B11) -> 1 | H11: =IF(D11="","",LLat_to_WNorth(C11,D11,E11,$J$7)) -> 3305701.173 | I11: =IF(D11="","",LLon_to_WEast(C11,D11,E11,$J$7)) -> 620630.4464 | J11: =IF(E11="","",LH3_to_WH3(C11,D11,E11,$J$7)) -> 125.0129812
B12: 2 | C12: 29-52-53.070374 | D12: 39-00-00.93728 | E12: 0 | G12: =IF(B12="","",B12) -> 2 | H12: =IF(D12="","",LLat_to_WNorth(C12,D12,E12,$J$7)) -> 3305701.164 | I12: =IF(D12="","",LLon_to_WEast(C12,D12,E12,$J$7)) -> 499931.7698 | J12: =IF(E12="","",LH3_to_WH3(C12,D12,E12,$J$7)) -> 6.731944212

Sheet 9.geo_local-geo-WGS84
A1: Back to Introduction
B3: Note: This worksheet can be expand as much as you want. | H3: User's Input
B4: Just highlight the last row and drag it downward.
B5: *Be sure to Fill-up the required zone. | G5: Geographic Latitude & Longitude Format = (Degrees-Minutes-Seconds)
B6: Zone = | C6: 37
B7: l0 = | C7: =-177+(6*(C6-1))-3 -> 36 | D7: to | E7: =-177+(6*(C6-1))+3 -> 42 | G7: Central Meridians of the zone = | J7: =-177+(6*(C6-1)) -> 39
A8: Input this format dd-mm-ss (sample 29-01-00) or minutes must be 2-digits
B9: Geographic (Ain El Abd) | G9: Geographic (WGS-84)
B10: pt.no | C10: latitude | D10: longitude | E10: Elev. | G10: pt.no | H10: latitude | I10: longitude | J10: Elev.
B11: 1 | C11: 29-52-31.756126 | D11: 40-15-0.152258 | E11: 120 | G11: =IF(B11="","",B11) -> 1 | H11: =IF(D11="","",LLat_to_WLat(C11, D11, E11)) -> 29-52-33.626475 | I11: =IF(D11="","",LLon_to_WLon(C11, D11, E11)) -> 40-14-56.883353 | J11: =IF(E11="","",LH1_to_WH1(C11, D11, E11)) -> 125.0129812
G12: =IF(B12="","",B12) ->  | H12: =IF(D12="","",LLat_to_WLat(C12, D12, E12)) ->  | I12: =IF(D12="","",LLon_to_WLon(C12, D12, E12)) ->  | J12: =IF(E12="","",LH1_to_WH1(C12, D12, E12)) -> 

Sheet 10.geo_wgs84-grid_wgs84
A1: Back to Introduction
B3: Note: This worksheet can be expand as much as you want. | H3: User's Input
B4: Just highlight the last row and drag it downward.
B5: *Be sure to Fill-up the required zone.
B6: Zone = | C6: 37
B7: l0 = | C7: =-177+(6*(C6-1))-3 -> 36 | D7: to | E7: =-177+(6*(C6-1))+3 -> 42 | G7: Central Meridians of the zone = | J7: =-177+(6*(C6-1)) -> 39
A8: Input this format dd-mm-ss (sample 29-01-00) or minutes must be 2-digits
B9: Geographic (WGS-84) | G9: UTM-Grid (WGS-84)
B10: pt.no | C10: latitude | D10: longitude | E10: Elev. | G10: pt.no | H10: northing (m) | I10: easting (m) | J10: elev. (m)
B11: 1 | C11: 29-52-31.756126 | D11: 40-15-0.152258 | E11: 120 | G11: =IF(B11="","",B11) -> 1 | H11: =IF(D11="","",WLat_to_WNorth(C11,D11,$J$7)) -> 3305644.551 | I11: =IF(D11="","",WLon_to_WEast(C11,D11,$J$7)) -> 620718.7688 | J11: =IF(E11="","",E11) -> 120
B12: 2 | C12: 29-52-53.070374 | D12: 39-00-00.93728 | E12: 0 | G12: =IF(B12="","",B12) -> 2 | H12: =IF(D12="","",WLat_to_WNorth(C12,D12,$J$7)) -> 3305644.565 | I12: =IF(D12="","",WLon_to_WEast(C12,D12,$J$7)) -> 500025.1405 | J12: =IF(E12="","",E12) -> 0

Sheet 11.geo_WGS84-grid_local
A1: Back to Introduction
B3: Note: This worksheet can be expand as much as you want. | H3: User's Input
B4: Just highlight the last row and drag it downward.
B5: *Be sure to Fill-up the required zone.
B6: Zone = | C6: 37
B7: l0 = | C7: =-177+(6*(C6-1))-3 -> 36 | D7: to | E7: =-177+(6*(C6-1))+3 -> 42 | G7: Central Meridians of the zone = | J7: =-177+(6*(C6-1)) -> 39
A8: Input this format dd-mm-ss (sample 29-01-00) or minutes must be 2-digits
B9: Geographic (WGS-84) | G9: UTM-Grid (Ain El Abd)
B10: pt.no | C10: latitude | D10: longitude | E10: Elev. | G10: pt.no | H10: northing (m) | I10: easting (m) | J10: elev. (m)
B11: 1 | C11: 29-52-53.070373 | D11: 39-00-00.93727 | E11: 100 | G11: =IF(B11="","",B11) -> 1 | H11: =IF(D11="","",WLat_to_LNorth(C11, D11, E11, $J$7)) -> 3305635.967 | I11: =IF(D11="","",WLon_to_LEast(C11, D11, E11, $J$7)) -> 500118.5155 | J11: =IF(E11="","",WH3_to_LH3(C11, D11, E11, $J$7)) -> 93.26805578
B12: 2 | C12: 29-52-53.070374 | D12: 39-00-00.93728 | E12: 0 | G12: =IF(B12="","",B12) -> 2 | H12: =IF(D12="","",WLat_to_LNorth(C12, D12, E12, $J$7)) -> 3305635.966 | I12: =IF(D12="","",WLon_to_LEast(C12, D12, E12, $J$7)) -> 500118.5173 | J12: =IF(E12="","",WH3_to_LH3(C12, D12, E12, $J$7)) -> -6.731944212
H14: =IF(D14="","",WLat_to_LNorth(C14, D14, E14, $J$7)) -> 

Sheet 12.geo_WGS84-geo_local
A1: Back to Introduction
B3: Note: This worksheet can be expand as much as you want. | H3: User's Input
B4: Just highlight the last row and drag it downward.
G5: Geographic Latitude & Longitude Format = (Degrees-Minutes-Seconds)
A8: Input this format dd-mm-ss (sample 29-01-00) or minutes must be 2-digits
B9: Geographic (Ain El Abd) | G9: Geographic (WGS-84)
B10: pt.no | C10: latitude | D10: longitude | E10: Elev. | G10: pt.no | H10: latitude | I10: longitude | J10: Elev.
B11: 1 | C11: 29-52-31.756126 | D11: 40-15-02.152258 | E11: 120 | G11: =IF(B11="","",B11) -> 1 | H11: =IF(D11="","",WLat_to_LLat(C11, D11, E11)) -> 29-52-29.885764 | I11: =IF(D11="","",WLon_to_LLon(C11, D11, E11)) -> 40-15-5.421069 | J11: =IF(E11="","",WH1_to_LH1(C11, D11, E11)) -> 114.9877563
B12: 2 | C12: 29-52-53.070374 | D12: 39-00-00.93728 | E12: 0 | G12: =IF(B12="","",B12) -> 2 | H12: =IF(D12="","",WLat_to_LLat(C12, D12, E12)) -> 29-52-51.231517 | I12: =IF(D12="","",WLon_to_LLon(C12, D12, E12)) -> 39-0-4.418312 | J12: =IF(E12="","",WH1_to_LH1(C12, D12, E12)) -> -6.731944212

Sheet local grid zone transformation
A1: Back to Introduction
B3: Note: This worksheet can be expand as much as you want. | H3: User's Input
B4: Just highlight the last row and drag it downward.
B5: *Be sure to Fill-up the required zone.
B6: Zone = | C6: 39 | G6: Zone = | H6: 38
B7: l0 = | C7: =-177+(6*(C6-1))-3 -> 48 | D7: to | E7: =-177+(6*(C6-1))+3 -> 54 | G7: l0 = | H7: =-177+(6*(H6-1))-3 -> 42 | I7: to | J7: =-177+(6*(H6-1))+3 -> 48
B8: Central Meridians of the zone = | E8: =-177+(6*(C6-1)) -> 51 | G8: Central Meridians of the zone = | J8: =-177+(6*(H6-1)) -> 45
B10: Original UTM-Grid (Ain El Abd) | G10: Transform UTM-Grid (Ain El Abd)
B11: pt.no | C11: northing (m) | D11: easting (m) | G11: pt.no | H11: northing (m) | I11: easting (m)
B12: 1 | C12: 3305692.566 | D12: 620723.944 | G12: =IF(B12="","",B12) -> 1 | H12: =IF(D12="","",z1North_to_z2North(C12, D12, $E$8, $J$8)) -> 3327206.64 | I12: =IF(D12="","",z1East_to_z2East(C12, D12, $E$8, $J$8)) -> 1201098.719 | J12: =IF(E12="","",LH_to_WH(C12,D12,E12,$J$7)) -> 
B13: 2 | C13: 3305692.566 | D13: 500000 | G13: =IF(B13="","",B13) -> 2 | H13: =IF(D13="","",z1North_to_z2North(C13, D13, $E$8, $J$8)) -> 3320855.842 | I13: =IF(D13="","",z1East_to_z2East(C13, D13, $E$8, $J$8)) -> 1079934.808 | J13: =IF(E13="","",LH_to_WH(C13,D13,E13,$J$7)) -> 

Sheet WGS84 grid zone transformation
A1: Back to Introduction
B3: Note: This worksheet can be expand as much as you want. | H3: User's Input
B4: Just highlight the last row and drag it downward.
B5: *Be sure to Fill-up the required zone.
B6: Zone = | C6: 39 | G6: Zone = | H6: 38
B7: l0 = | C7: =-177+(6*(C6-1))-3 -> 48 | D7: to | E7: =-177+(6*(C6-1))+3 -> 54 | G7: l0 = | H7: =-177+(6*(H6-1))-3 -> 42 | I7: to | J7: =-177+(6*(H6-1))+3 -> 48
B8: Central Meridians of the zone = | E8: =-177+(6*(C6-1)) -> 51 | G8: Central Meridians of the zone = | J8: =-177+(6*(H6-1)) -> 45
B10: Original UTM-Grid (WGS-84) | G10: Transform UTM-Grid (WGS-84)
B11: pt.no | C11: northing (m) | D11: easting (m) | G11: pt.no | H11: northing (m) | I11: easting (m)
B12: 1 | C12: 3305692.566 | D12: 620723.944 | G12: =IF(B12="","",B12) -> 1 | H12: =IF(D12="","",Wz1North_to_Wz2North(C12, D12, $E$8, $J$8)) -> 3327206.202 | I12: =IF(D12="","",Wz1East_to_Wz2East(C12, D12, $E$8, $J$8)) -> 1201071.303 | J12: =IF(E12="","",LH_to_WH(C12,D12,E12,$J$7)) -> 
B13: 2 | C13: 3305692.566 | D13: 500000 | G13: =IF(B13="","",B13) -> 2 | H13: =IF(D13="","",Wz1North_to_Wz2North(C13, D13, $E$8, $J$8)) -> 3320855.323 | I13: =IF(D13="","",Wz1East_to_Wz2East(C13, D13, $E$8, $J$8)) -> 1079907.409 | J13: =IF(E13="","",LH_to_WH(C13,D13,E13,$J$7)) -> 
C15: 3083948.622 | D15: 164156.932 | H15: 3081973.309 | I15: 755132.8118

Sheet Area by Coordinates
A1: Back to Introduction
A3: Note: The first coordinates must be repeated to the last
B4: This coordinates must based on UTM Ain El Abd Local Datum
F5: User's Input
H7: Elevation is important for ground area computation
J8: Area (sq.m) | N8: Area by Coordinates | W8: combine factor
D9: Area by Coordinates | I9: ground | J9: =(SQRT(R12)/W9)^2 -> 226.7765701 | V9: average | W9: =AVERAGE(X:X) -> 1.002693806
D10: UTM-Grid (Ain El Abd) | O10: Partial | Q10: Double | U10: UTM-Grid (Ain El Abd)
D11: pt.no | E11: northing (m) | F11: easting (m) | G11: elev. (m) | N11: Pt No. | O11: Area | Q11: Area | R11: Area (sq.m) | U11: pt.no | V11: scale factor | W11: height factor | X11: combine factor
D12: 1 | E12: 0 | F12: 0 | G12: 0 | N12: =IF(D12="","",D12) -> 1 | P12: grid | Q12: =ABS(SUM(O13:O106)) -> 456 | R12: =Q12/2 -> 228 | U12: =IF(D12="","",D12) -> 1 | V12: =IF(F12="","",North_East_to_SF(E12, F12)) -> 1.002696147 | W12: =IF(G12="","",6371221/(6371221+G12)) -> 1 | X12: =IF(W12="","",V12*W12) -> 1.002696147
D13: 2 | E13: 18 | F13: 0 | G13: 0 | N13: 2 | O13: =IF(F13="","",(E12*F13)-(E13*F12)) -> 0 | P13: ground | R13: =(SQRT(R12)/W9)^2 -> 226.7765701 | U13: 2 | V13: 1.002696147 | W13: 1 | X13: =IF(W13="","",V13*W13) -> 1.002696147
D14: 3 | E14: 18 | F14: 10 | G14: 100 | J14: combine factor | N14: 3 | O14: 180 | U14: 3 | V14: 1.002696023 | W14: 0.9999843047 | X14: 1.002680285
D15: 4 | E15: 8 | F15: 10 | G15: 0 | I15: average | J15: =AVERAGE(X:X) -> 1.002693806 | N15: 4 | O15: 100 | U15: 4 | V15: 1.002696023 | W15: 1 | X15: 1.002696023
D16: 5 | E16: 8 | F16: 16 | G16: 0 | N16: 5 | O16: 48 | U16: 5 | V16: 1.002695948 | W16: 1 | X16: 1.002695948
D17: 6 | E17: 0 | F17: 16 | G17: 0 | N17: 6 | O17: 128 | U17: 6 | V17: 1.002695948 | W17: 1 | X17: 1.002695948
D18: 1 | E18: 0 | F18: 0 | G18: 0 | N18: 1 | O18: 0 | U18: 1 | V18: 1.002696147 | W18: 1 | X18: 1.002696147
N19: =IF(D19="","",D19) ->  | O19: =IF(F19="","",(E18*F19)-(E19*F18)) ->  | U19: =IF(D19="","",D19) ->  | V19: =IF(F19="","",North_East_to_SF(E19, F19)) ->  | W19: =IF(G19="","",6371221/(6371221+G19)) ->  | X19: =IF(W19="","",V19*W19) -> 
N83: =IF(D83="","",D83) ->  | O83: =IF(F83="","",(E82*F83)-(E83*F82)) ->  | U83: =IF(D83="","",D83) ->  | V83: =IF(F83="","",North_East_to_SF(E83, F83)) ->  | W83: =IF(G83="","",6371221/(6371221+G83)) ->  | X83: =IF(W83="","",V83*W83) -> 
N147: =IF(D147="","",D147) ->  | O147: =IF(F147="","",(E146*F147)-(E147*F146)) ->  | U147: =IF(D147="","",D147) ->  | V147: =IF(F147="","",North_East_to_SF(E147, F147)) ->  | W147: =IF(G147="","",6371221/(6371221+G147)) ->  | X147: =IF(W147="","",V147*W147) -> 
N211: =IF(D211="","",D211) ->  | O211: =IF(F211="","",(E210*F211)-(E211*F210)) ->  | U211: =IF(D211="","",D211) ->  | V211: =IF(F211="","",North_East_to_SF(E211, F211)) ->  | W211: =IF(G211="","",6371221/(6371221+G211)) ->  | X211: =IF(W211="","",V211*W211) -> 
N275: =IF(D275="","",D275) ->  | O275: =IF(F275="","",(E274*F275)-(E275*F274)) ->  | U275: =IF(D275="","",D275) ->  | V275: =IF(F275="","",North_East_to_SF(E275, F275)) ->  | W275: =IF(G275="","",6371221/(6371221+G275)) ->  | X275: =IF(W275="","",V275*W275) -> 
N339: =IF(D339="","",D339) ->  | O339: =IF(F339="","",(E338*F339)-(E339*F338)) ->  | U339: =IF(D339="","",D339) ->  | V339: =IF(F339="","",North_East_to_SF(E339, F339)) ->  | W339: =IF(G339="","",6371221/(6371221+G339)) ->  | X339: =IF(W339="","",V339*W339) -> 

Sheet local CONVERGENCE_SF_HF_CF
A1: Back to Introduction
B3: Note: This worksheet can be expand as much as you want.
B4: Just highlight the last row and drag it downward.
F5: User's Input | I5: combine factor
H6: average | I6: =AVERAGE(J:J) -> 0.9995839003
B7: UTM-Grid (Ain El Abd) | G7: UTM-Grid (Ain El Abd)
B8: pt.no | C8: northing (m) | D8: easting (m) | E8: elev. (m) | G8: pt.no | H8: scale factor | I8: height factor | J8: combine factor
B9: BM=01 | C9: 2634318.849 | D9: 477092.629 | E9: 196.35 | G9: =IF(B9="","",B9) -> BM=01 | H9: =IF(D9="","",North_East_to_SF(C9, D9)) -> 0.9996064811 | I9: =IF(E9="","",6371221/(6371221+E9)) -> 0.9999691827 | J9: =IF(I9="","",H9*I9) -> 0.9995756759
B10: BM=02 | C10: 2634174.457 | D10: 476754.266 | E10: 169.51 | G10: =IF(B10="","",B10) -> BM=02 | H10: =IF(D10="","",North_East_to_SF(C10, D10)) -> 0.999606674 | I10: =IF(E10="","",6371221/(6371221+E10)) -> 0.9999733951 | J10: =IF(I10="","",H10*I10) -> 0.9995800796
B11: BM=03 | C11: 2634035.56 | D11: 476901.473 | E11: 169.789 | G11: BM=03 | H11: 0.9996065897 | I11: 0.9999733513 | J11: 0.9995799516
B12: BM=04 | C12: 2633600.416 | D12: 477058.859 | E12: 141.584 | G12: BM=04 | H12: 0.9996065002 | I12: 0.9999777781 | J12: 0.9995842871
B13: BM=05 | C13: 2633531.222 | D13: 477062.002 | E13: 143.311 | G13: BM=05 | H13: 0.9996064985 | I13: 0.999977507 | J13: 0.9995840143
B14: BM=06 | C14: 2633380.886 | D14: 477073.787 | E14: 146.613 | G14: BM=06 | H14: 0.9996064918 | I14: 0.9999769888 | J14: 0.9995834896
B15: BM=07 | C15: 2633144.209 | D15: 477095.629 | E15: 170.13 | G15: BM=07 | H15: 0.9996064794 | I15: 0.9999732978 | J15: 0.9995797878
B16: BM=08 | C16: 2632619.829 | D16: 477354.686 | E16: 130.339 | G16: BM=08 | H16: 0.9996063337 | I16: 0.999979543 | J16: 0.9995858847
B17: BM=09 | C17: 2632565.302 | D17: 477081.486 | E17: 129.12 | G17: BM=09 | H17: 0.9996064874 | I17: 0.9999797343 | J17: 0.9995862297
B18: BM=10 | C18: 2632395.914 | D18: 477342.187 | E18: 181.769 | G18: BM=10 | H18: 0.9996063407 | I18: 0.9999714711 | J18: 0.999577823
B19: BM=11 | C19: 2631907.399 | D19: 477342.061 | E19: 121.256 | G19: BM=11 | H19: 0.9996063408 | I19: 0.9999809685 | J19: 0.9995873168
B20: BM=12 | C20: 2631617.043 | D20: 477688.523 | E20: 119.111 | G20: BM=12 | H20: 0.9996061483 | I20: 0.9999813052 | J20: 0.9995874609
B21: BM=13 | C21: 2631543.932 | D21: 477617.267 | E21: 119.043 | G21: BM=13 | H21: 0.9996061877 | I21: 0.9999813159 | J21: 0.9995875109
B22: BM=14 | C22: 2631530.012 | D22: 477692.203 | E22: 118.961 | G22: BM=14 | H22: 0.9996061463 | I22: 0.9999813287 | J22: 0.9995874824
B23: BM=15 | C23: 2631467.284 | D23: 477532.002 | E23: 118.474 | G23: BM=15 | H23: 0.9996062349 | I23: 0.9999814052 | J23: 0.9995876474
B24: BM=16 | C24: 2631292.987 | D24: 477610.748 | E24: 117.457 | G24: BM=16 | H24: 0.9996061913 | I24: 0.9999815648 | J24: 0.9995877633

Sheet Grid and Ground Dist.
A1: Back to Introduction
K2: User's Input
B3: Note: This worksheet refers from International 1924 Ellipsoid
B5: Line. No | C5: Northing-1 | D5: Easting-1 | E5: Elev.1 | F5: Northing-2 | G5: Easting-2 | H5: Elev.2 | J5: Line. No | K5: Azimuth | L5: UTM Grid Dist | M5: Ground Dist
B6: BM-01_BM-02 | C6: 2634318.849 | D6: 477092.629 | E6: 196.35 | F6: 2634174.457 | G6: 476754.266 | H6: 169.51 | J6: =IF(B6="","",B6) -> BM-01_BM-02 | K6: =IF(G6="","",Azimuth(C6, D6, F6, G6)) -> 246-53-24.96 | L6: =IF(G6="","",SQRT((F6-C6)^2+(G6-D6)^2)) -> 367.8839075 | M6: =IF(H6="","",Ground_Dist(C6,D6, E6, F6, G6, H6, L6)) -> 368.0470366
B7: BM-02_BM-03 | C7: 2634174.457 | D7: 476754.266 | E7: 169.51 | F7: 2634035.56 | G7: 476901.473 | H7: 169.789 | J7: =IF(B7="","",B7) -> BM-02_BM-03 | K7: =IF(G7="","",Azimuth(C7, D7, F7, G7)) -> 133-20-10.64 | L7: =IF(G7="","",SQRT((F7-C7)^2+(G7-D7)^2)) -> 202.3913967 | M7: =IF(H7="","",Ground_Dist(C7,D7, E7, F7, G7, H7, L7)) -> 202.4803987
B8: BM-03_BM-04 | C8: 2634035.56 | D8: 476901.473 | E8: 169.789 | F8: 2633600.416 | G8: 477058.859 | H8: 141.584 | J8: BM-03_BM-04 | K8: 160-6-56.13 | L8: 462.7317298 | M8: 462.9334965
B9: BM-04_BM-05 | C9: 2633600.416 | D9: 477058.859 | E9: 141.584 | F9: 2633531.222 | G9: 477062.002 | H9: 143.311 | J9: BM-04_BM-05 | K9: 177-23-57.27 | L9: 69.26534548 | M9: 69.2953008
B10: BM-05_BM-06 | C10: 2633531.222 | D10: 477062.002 | E10: 143.311 | F10: 2633380.886 | G10: 477073.787 | H10: 146.613 | J10: BM-05_BM-06 | K10: 175-31-3.68 | L10: 150.7972119 | M10: 150.8625314
B18: 5044-10525 | C18: 2978617.743 | D18: 349136.815 | E18: 20.896 | F18: 2978587.069 | G18: 600000 | H18: 14 | J18: 5044-10525 | K18: 90-0-25.22 | L18: 250863.1869 | M18: 250946.5083
B19: 10525-023 | C19: 2978587.069 | D19: 348625.456 | E19: 14 | F19: 2979355.121 | G19: 348483.3482 | H19: 24.0141 | J19: 10525-023 | K19: 349-31-2.88 | L19: 781.0877292 | M19: 781.1830695
B20: 023-5044 | C20: 2988794.12 | D20: 350226.1865 | E20: 18.14 | F20: 3033585.989 | G20: 296212.66 | H20: 12.867 | J20: 023-5044 | K20: 309-40-4.6 | L20: 70169.59896 | M20: 70170.68341
C21: 3042897.62 | D21: 307877.25 | E21: 8 | F21: 3041192.204 | G21: 307578.863 | H21: 4.288 | K21: 189-55-27.35 | L21: 1731.32277 | M21: 1731.228162

Sheet Forward
A1: Back to Introduction | H1: CONVERTER
H2: D-M-S to Degrees | M2: Degrees to D-M-S
H3: 0 | I3: 0 | J3: 1 | K3: =ABS(H3)+(ABS(I3)/60)+ABS(J3)/3600 -> 0.0002777777778 | M3: 233.130102 | N3: =TRUNC(M3) -> 233 | O3: =TRUNC((M3-(N3))*60) -> 7 | P3: =(M3-(N3)-(O3/60))*3600 -> 48.3672
H4: 185 | I4: 12 | J4: 57 | K4: =ABS(H4)+(ABS(I4)/60)+ABS(J4)/3600 -> 185.2158333 | M4: 306.869898 | N4: =TRUNC(M4) -> 306 | O4: =TRUNC((M4-(N4))*60) -> 52 | P4: =(M4-(N4)-(O4/60))*3600 -> 11.6328
A7: Note: Azimuth input DD.DDDD | Q7: Note: Azimuth input DD-MM-SS
A9: FORWARD | Q9: FORWARD
A10: GIVEN | F10: REQUIRED | H10: AZIMUTH | Q10: GIVEN | X10: REQUIRED
A11: PT. No | B11: NORTHING-1 | C11: EASTING-1 | D11: AZIMUTH | E11: DISTANCE | F11: NORTHING-2 | G11: EASTING-2 | H11: DD-MM-SS | Q11: PT. No | R11: NORTHING-1 | S11: EASTING-1 | T11: AZIMUTH | W11: DISTANCE | X11: NORTHING-2 | Y11: EASTING-2
A12: 1 | B12: 10 | C12: 10 | D12: 233.1301024 | E12: 5 | F12: =B12+(E12*COS((D12*PI()/180))) -> 7.000000003 | G12: =C12+(E12*SIN((D12*PI()/180))) -> 5.999999998 | H12: =TRUNC(D12) -> 233 | I12: =(TRUNC((D12-(H12))*60)) -> 7 | J12: =(D12-(H12)-(I12/60))*3600 -> 48.36864 | Q12: 1 | R12: 10 | S12: 10 | T12: 233 | U12: 7 | V12: 48.37 | W12: 5 | X12: =R12+(W12*COS(((ABS(T12)+(ABS(U12)/60)+ABS(V12)/3600)*PI()/180))) -> 7.00000003 | Y12: =R12+(W12*SIN(((ABS(T12)+(ABS(U12)/60)+ABS(V12)/3600)*PI()/180))) -> 5.999999978
A13: 2 | B13: 10 | C13: 10 | D13: 306.8698976 | E13: 5 | F13: 13 | G13: =C13+(E13*SIN((D13*PI()/180))) -> 5.999999998 | H13: =TRUNC(D13) -> 306 | I13: =(TRUNC((D13-(H13))*60)) -> 52 | J13: =(D13-(H13)-(I13/60))*3600 -> 11.63136 | Q13: 2 | R13: 10 | S13: 10 | T13: 306 | U13: 52 | V13: 11.63 | W13: 5 | X13: =R13+(W13*COS(((ABS(T13)+(ABS(U13)/60)+ABS(V13)/3600)*PI()/180))) -> 12.99999997 | Y13: =R13+(W13*SIN(((ABS(T13)+(ABS(U13)/60)+ABS(V13)/3600)*PI()/180))) -> 5.999999978
A14: 3 | B14: 10 | C14: 10 | D14: 306.8698976 | E14: 5 | F14: 13 | G14: 5.999999998 | H14: =TRUNC(D14) -> 306 | I14: =(TRUNC((D14-(H14))*60)) -> 52 | J14: =(D14-(H14)-(I14/60))*3600 -> 11.63136 | Q14: 3 | R14: 10 | S14: 10 | T14: 306 | U14: 52 | V14: 11.63 | W14: 5 | X14: 12.99999997 | Y14: 5.999999978
A15: 4 | B15: 10 | C15: 10 | D15: 306.8698976 | E15: 5 | F15: 13 | G15: 5.999999998 | H15: 306 | I15: 52 | J15: 11.63136 | Q15: 4 | R15: 10 | S15: 10 | T15: 306 | U15: 52 | V15: 11.63 | W15: 5 | X15: 12.99999997 | Y15: 5.999999978
A16: 5 | B16: 10 | C16: 10 | D16: 306.8698976 | E16: 5 | F16: 13 | G16: 5.999999998 | H16: 306 | I16: 52 | J16: 11.63136 | Q16: 5 | R16: 10 | S16: 10 | T16: 306 | U16: 52 | V16: 11.63 | W16: 5 | X16: 12.99999997 | Y16: 5.999999978
A17: 6 | B17: 10 | C17: 10 | D17: 306.8698976 | E17: 5 | F17: 13 | G17: 5.999999998 | H17: 306 | I17: 52 | J17: 11.63136 | Q17: 6 | R17: 10 | S17: 10 | T17: 306 | U17: 52 | V17: 11.63 | W17: 5 | X17: 12.99999997 | Y17: 5.999999978
A18: 7 | B18: 10 | C18: 10 | D18: 306.8698976 | E18: 5 | F18: 13 | G18: 5.999999998 | H18: 306 | I18: 52 | J18: 11.63136 | Q18: 7 | R18: 10 | S18: 10 | T18: 306 | U18: 52 | V18: 11.63 | W18: 5 | X18: 12.99999997 | Y18: 5.999999978
A19: 8 | B19: 10 | C19: 10 | D19: 306.8698976 | E19: 5 | F19: 13 | G19: 5.999999998 | H19: 306 | I19: 52 | J19: 11.63136 | Q19: 8 | R19: 10 | S19: 10 | T19: 306 | U19: 52 | V19: 11.63 | W19: 5 | X19: 12.99999997 | Y19: 5.999999978
A20: 9 | B20: 10 | C20: 10 | D20: 306.8698976 | E20: 5 | F20: 13 | G20: 5.999999998 | H20: 306 | I20: 52 | J20: 11.63136 | Q20: 9 | R20: 10 | S20: 10 | T20: 306 | U20: 52 | V20: 11.63 | W20: 5 | X20: 12.99999997 | Y20: 5.999999978
A21: 10 | B21: 10 | C21: 10 | D21: 306.8698976 | E21: 5 | F21: 13 | G21: 5.999999998 | H21: 306 | I21: 52 | J21: 11.63136 | Q21: 10 | R21: 10 | S21: 10 | T21: 306 | U21: 52 | V21: 11.63 | W21: 5 | X21: 12.99999997 | Y21: 5.999999978
A22: 11 | B22: 10 | C22: 10 | D22: 306.8698976 | E22: 5 | F22: 13 | G22: 5.999999998 | H22: 306 | I22: 52 | J22: 11.63136 | Q22: 11 | R22: 10 | S22: 10 | T22: 306 | U22: 52 | V22: 11.63 | W22: 5 | X22: 12.99999997 | Y22: 5.999999978
A23: 12 | B23: 10 | C23: 10 | D23: 306.8698976 | E23: 5 | F23: 13 | G23: 5.999999998 | H23: 306 | I23: 52 | J23: 11.63136 | Q23: 12 | R23: 10 | S23: 10 | T23: 306 | U23: 52 | V23: 11.63 | W23: 5 | X23: 12.99999997 | Y23: 5.999999978
A24: 13 | B24: 10 | C24: 10 | D24: 306.8698976 | E24: 5 | F24: 13 | G24: 5.999999998 | H24: 306 | I24: 52 | J24: 11.63136 | Q24: 13 | R24: 10 | S24: 10 | T24: 306 | U24: 52 | V24: 11.63 | W24: 5 | X24: 12.99999997 | Y24: 5.999999978
A25: 14 | B25: 10 | C25: 10 | D25: 306.8698976 | E25: 5 | F25: 13 | G25: 5.999999998 | H25: 306 | I25: 52 | J25: 11.63136 | Q25: 14 | R25: 10 | S25: 10 | T25: 306 | U25: 52 | V25: 11.63 | W25: 5 | X25: 12.99999997 | Y25: 5.999999978
A26: 15 | B26: 10 | C26: 10 | D26: 306.8698976 | E26: 5 | F26: =B26+(E26*COS((D26*PI()/180))) -> 13 | G26: 5.999999998 | H26: 306 | I26: 52 | J26: 11.63136 | Q26: 15 | R26: 10 | S26: 10 | T26: 306 | U26: 52 | V26: 11.63 | W26: 5 | X26: 12.99999997 | Y26: 5.999999978

Sheet Inverse
A1: Back to Introduction | H1: CONVERTER
H2: D-M-S to Degrees | M2: Degrees to D-M-S
H3: 12 | I3: 39 | J3: 15 | K3: =ABS(H3)+(ABS(I3)/60)+ABS(J3)/3600 -> 12.65416667 | M3: 12.6541667 | N3: =TRUNC(M3) -> 12 | O3: =TRUNC((M3-(N3))*60) -> 39 | P3: =(M3-(N3)-(O3/60))*3600 -> 15.00012
H4: 185 | I4: 12 | J4: 57 | K4: =ABS(H4)+(ABS(I4)/60)+ABS(J4)/3600 -> 185.2158333 | M4: 12.3451256 | N4: =TRUNC(M4) -> 12 | O4: =TRUNC((M4-(N4))*60) -> 20 | P4: =(M4-(N4)-(O4/60))*3600 -> 42.45216
A9: INVERSE
A10: GIVEN | F10: REQUIRED | H10: AZIMUTH
A11: PT. No | B11: NORTHING-1 | C11: EASTING-1 | D11: NORTHING-2 | E11: EASTING-2 | F11: AZIMUTH | G11: DISTANCE | H11: DD-MM-SS
A12: 3001 | B12: 3041488 | C12: 771296 | D12: 3050272.66 | E12: 769420.66 | F12: =IF(AND(D12-B12=0,E12-C12>0),90,IF(AND(D12-B12=0,E12-C12<0),270,IF(AND(D12-B12>0,E12-C12>=0),DEGREES(ATAN((E12-C12)/(D12-B12))),IF(AND(D12-B12>0,E12-C12<0),360+(DEGREES(ATAN((E12-C12)/(D12-B12)))),180+(DEGREES(ATAN((E12-C12)/(D12-B12)))))))) -> 347.949445 | G12: =SQRT((D12-B12)^2+(E12-C12)^2) -> 8982.602709 | H12: =TRUNC(F12) -> 347 | I12: =(TRUNC((F12-(H12))*60)) -> 56 | J12: =(F12-(H12)-(I12/60))*3600 -> 58.00203629
A13: 3002 | B13: 3041488 | C13: 771296 | D13: 3050824.4 | E13: 768378.75 | F13: =IF(AND(D13-B13=0,E13-C13>0),90,IF(AND(D13-B13=0,E13-C13<0),270,IF(AND(D13-B13>0,E13-C13>=0),DEGREES(ATAN((E13-C13)/(D13-B13))),IF(AND(D13-B13>0,E13-C13<0),360+(DEGREES(ATAN((E13-C13)/(D13-B13)))),180+(DEGREES(ATAN((E13-C13)/(D13-B13)))))))) -> 342.648072 | G13: =SQRT((D13-B13)^2+(E13-C13)^2) -> 9781.549597 | H13: =TRUNC(F13) -> 342 | I13: =(TRUNC((F13-(H13))*60)) -> 38 | J13: =(F13-(H13)-(I13/60))*3600 -> 53.05902566
A14: 3003 | B14: 3041488 | C14: 771296 | D14: 3050873.97 | E14: 767513.85 | F14: =IF(AND(D14-B14=0,E14-C14>0),90,IF(AND(D14-B14=0,E14-C14<0),270,IF(AND(D14-B14>0,E14-C14>=0),DEGREES(ATAN((E14-C14)/(D14-B14))),IF(AND(D14-B14>0,E14-C14<0),360+(DEGREES(ATAN((E14-C14)/(D14-B14)))),180+(DEGREES(ATAN((E14-C14)/(D14-B14)))))))) -> 338.0526444 | G14: =SQRT((D14-B14)^2+(E14-C14)^2) -> 10119.34244 | H14: =TRUNC(F14) -> 338 | I14: =(TRUNC((F14-(H14))*60)) -> 3 | J14: =(F14-(H14)-(I14/60))*3600 -> 9.519804076
A15: 3004 | B15: 3041488 | C15: 771296 | D15: 3050815.21 | E15: 766196 | F15: 331.3307215 | G15: 10630.46783 | H15: 331 | I15: 19 | J15: 50.59756135
A16: 3005 | B16: 3041488 | C16: 771296 | D16: 3050657.3 | E16: 765525.78 | F16: 327.8178845 | G16: 10833.81287 | H16: 327 | I16: 49 | J16: 4.384273942
A17: 3006 | B17: 3041488 | C17: 771296 | D17: 3050862.48 | E17: 764477.63 | F17: 323.9703626 | G17: 11591.85251 | H17: 323 | I17: 58 | J17: 13.30549722
A18: 3007 | B18: 3041488 | C18: 771296 | D18: 3050760.04 | E18: 762903.83 | F18: 317.8515969 | G18: 12505.9683 | H18: 317 | I18: 51 | J18: 5.748736134
A19: 3008 | B19: 3041488 | C19: 771296 | D19: 3050796.02 | E19: 762074.89 | F19: 315.2687411 | G19: 13102.2176 | H19: 315 | I19: 16 | J19: 7.468135299
A20: 3009 | B20: 3041488 | C20: 771296 | D20: 3050094.04 | E20: 762103.91 | F20: 313.1140679 | G20: 12591.99917 | H20: 313 | I20: 6 | J20: 50.64457875
A21: 3010 | B21: 3041488 | C21: 771296 | D21: 3050093.26 | E21: 763418.26 | F21: 317.5272577 | G21: 11666.5885 | H21: 317 | I21: 31 | J21: 38.12771352
A22: 45 | B22: 3041488 | C22: 771296 | D22: 3062054.54 | E22: 771110.7 | F22: 359.4837916 | G22: 20567.37474 | H22: 359 | I22: 29 | J22: 1.64976508
A23: 46 | B23: 3041488 | C23: 771296 | D23: 3061186.55 | E23: 764329.47 | F23: 340.523503 | G23: 20894.1478 | H23: 340 | I23: 31 | J23: 24.61081894
A24: 47 | B24: 3041488 | C24: 771296 | D24: 3064275.34 | E24: 768979.68 | F24: 354.1958528 | G24: 22904.76375 | H24: 354 | I24: 11 | J24: 45.07025051
A25: 48 | B25: 3041488 | C25: 771296 | D25: 3066997.66 | E25: 777834.85 | F25: 14.37699311 | G25: 26334.37511 | H25: 14 | I25: 22 | J25: 37.175183
A26: 49 | B26: 3041488 | C26: 771296 | D26: 3068327.52 | E26: 781669.17 | F26: 21.13095156 | G26: 28774.33735 | H26: 21 | I26: 7 | J26: 51.42561816
A27: 50 | B27: 3041488 | C27: 771296 | D27: 3070510.75 | E27: 784784.56 | F27: 24.92703382 | G27: 32004.08206 | H27: 24 | I27: 55 | J27: 37.32173999
A28: 43 | B28: 3041488 | C28: 771296 | D28: 2997296.13 | E28: 771874.01 | F28: 179.2506394 | G28: 44195.6499 | H28: 179 | I28: 15 | J28: 2.30192414
A29: 44 | B29: 2703858.925 | C29: 232990.979 | D29: 2703867.82 | E29: 232999.0535 | F29: =IF(AND(E29-C29=0,D29-B29>0),90,IF(AND(E29-C29=0,D29-B29<0),270,IF(AND(E29-C29>0,D29-B29>=0),DEGREES(ATAN((D29-B29)/(E29-C29))),IF(AND(E29-C29>0,D29-B29<0),360+(DEGREES(ATAN((D29-B29)/(E29-C29)))),180+(DEGREES(ATAN((D29-B29)/(E29-C29)))))))) -> 47.76881951 | G29: =SQRT((E29-C29)^2+(D29-B29)^2) -> 12.01341472 | H29: 47 | I29: 46 | J29: 7.750231769

Sheet Parabolic Curve
A1: Back to Introduction
H4: VERTICAL PARABOLIC INFORMATION
H5: Parabolic Vertical Intersection (PVI) station
H6: Parabolic Vertical Intersection (PVI) elevation
H7: Length of Vertical Curve
H8: Grade Slope-1
H9: Grade Slope-2

Sheet Topo BS zero Azimuth
A1: Back to Introduction
A2: Angles input values are DD.dddd
A3: Fixed Coordinates
A4: Points No. | B4: Northing | C4: Easting
A5: Occ. Pt. | B5: 100 | C5: 100 | D5: azimuth | E5: distance | J5: Note: Data input are ground distances and the output are grid values vice versa
A6: BS Pt. | B6: 100 | C6: 90 | D6: =IF(AND(B6-B5>0,C6-C5>0),DEGREES(ATAN((C6-C5)/(B6-B5))),IF(AND(B6-B5>0,C6-C5=0),0,IF(AND(B6-B5=0,C6-C5>0),90,IF(AND(B6-B5=0,C6-C5<0),270,IF(AND(B6-B5>0,C6-C5<0),360+(DEGREES(ATAN((C6-C5)/(B6-B5)))),180+(DEGREES(ATAN((C6-C5)/(B6-B5))))))))) -> 270 | E6: =SQRT((B6-B5)^2+(C6-C5)^2) -> 10 | J6: Angles value are Degrees in decimal
E7: Horizontal angles data must clockwise value, zero reading from back sight
A8: Note: Data input are ground values and the output also are ground values | O8: Combine Factor = | P8: 0.99983254
A9: If data input are grid values and the output also are grid values
A10: Angles value are Degrees in decimal
A11: LOCAL COORDINATES | J11: LOCAL COORDINATES
A12: Pt No | B12: Hor. Angle | C12: Slope Distance | D12: Zenith Angle | E12: Northing | F12: Easting | G12: Azimuth | H12: hor. Dist. | J12: Pt No | K12: Hor. Angle | L12: Slope Distance | M12: Zenith Angle | N12: Northing | O12: Easting | P12: Azimuth | Q12: hor. Dist.
A13: Occ.Pt to 1 | B13: 0 | C13: 10 | D13: 90 | E13: =$B$5+(H13*COS((G13*PI()/180))) -> 100 | F13: =$C$5+(H13*SIN((G13*PI()/180))) -> 90 | G13: =IF($D$6+B13>360,$D$6+B13-360,$D$6+B13) -> 270 | H13: =C13*SIN((D13*PI()/180)) -> 10 | J13: Occ.Pt to 1 | K13: 90.08059028 | L13: 1135.84 | M13: 90.010556 | N13: =$B$5+(Q13*COS((P13*PI()/180))) -> 1235.64865 | O13: =$C$5+(Q13*SIN((P13*PI()/180))) -> 101.5973655 | P13: =IF($D$6+K13>360,$D$6+K13-360,$D$6+K13) -> 0.08059027778 | Q13: =L13*$P$8*SIN((M13*PI()/180)) -> 1135.649773
A14: 1 to 2 | B14: 90 | C14: 10 | D14: 90 | E14: =$B$5+(H14*COS((G14*PI()/180))) -> 110 | F14: =$C$5+(H14*SIN((G14*PI()/180))) -> 100 | G14: =IF($D$6+B14>360,$D$6+B14-360,$D$6+B14) -> 360 | H14: =C14*SIN((D14*PI()/180)) -> 10 | J14: 1 to 2 | K14: 181.5102431 | L14: 650.8492 | M14: 89.869444 | N14: =$B$5+(Q14*COS((P14*PI()/180))) -> 750.4877049 | O14: =$C$5+(Q14*SIN((P14*PI()/180))) -> 118.0656155 | P14: =IF(P13-180+K14<0,360+P13-180+K14,IF(P13-180+K14>360,P13-180+K14-360,P13-180+K14)) -> 1.590833333 | Q14: =L14*$P$8*SIN((M14*PI()/180)) -> 650.7385194
A15: 2 to 3 | B15: 90 | C15: 10 | D15: 90 | E15: =$B$5+(H15*COS((G15*PI()/180))) -> 110 | F15: =$C$5+(H15*SIN((G15*PI()/180))) -> 100 | G15: =IF($D$6+B15>360,$D$6+B15-360,$D$6+B15) -> 360 | H15: =C15*SIN((D15*PI()/180)) -> 10 | J15: 2 to 3 | K15: 167.9886458 | L15: 980.355 | M15: 89.919722 | N15: =$B$5+(Q15*COS((P15*PI()/180))) -> 1064.023355 | O15: =$C$5+(Q15*SIN((P15*PI()/180))) -> -77.2883193 | P15: =IF(P14-180+K15<0,360+P14-180+K15,IF(P14-180+K15>360,P14-180+K15-360,P14-180+K15)) -> 349.5794792 | Q15: =L15*$P$8*SIN((M15*PI()/180)) -> 980.1898676
A16: 3 to 4 | B16: 90 | C16: 10 | D16: 90 | E16: =$B$5+(H16*COS((G16*PI()/180))) -> 110 | F16: =$C$5+(H16*SIN((G16*PI()/180))) -> 100 | G16: =IF($D$6+B16>360,$D$6+B16-360,$D$6+B16) -> 360 | H16: =C16*SIN((D16*PI()/180)) -> 10 | J16: 3 to 4 | M16: 92 | N16: =$B$5+(Q16*COS((P16*PI()/180))) -> 100 | O16: =$C$5+(Q16*SIN((P16*PI()/180))) -> 100 | P16: =IF(P15-180+K16<0,360+P15-180+K16,IF(P15-180+K16>360,P15-180+K16-360,P15-180+K16)) -> 169.5794792 | Q16: =L16*$P$8*SIN((M16*PI()/180)) -> 0
T17: CONVERTER
T18: D-M-S to Degrees | Y18: Degrees to D-M-S
T19: 12 | U19: 39 | V19: 15 | W19: =ABS(T19)+(ABS(U19)/60)+ABS(V19)/3600 -> 12.65416667 | Y19: 233.130102 | Z19: =TRUNC(Y19) -> 233 | AA19: =TRUNC((Y19-(Z19))*60) -> 7 | AB19: =(Y19-(Z19)-(AA19/60))*3600 -> 48.3672
T20: 185 | U20: 12 | V20: 57 | W20: =ABS(T20)+(ABS(U20)/60)+ABS(V20)/3600 -> 185.2158333 | Y20: 306.869898 | Z20: =TRUNC(Y20) -> 306 | AA20: =TRUNC((Y20-(Z20))*60) -> 52 | AB20: =(Y20-(Z20)-(AA20/60))*3600 -> 11.6328
T21: 90 | U21: 4 | V21: 50.125 | W21: =ABS(T21)+(ABS(U21)/60)+ABS(V21)/3600 -> 90.08059028
T22: 181 | U22: 30 | V22: 36.875 | W22: 181.5102431
T23: 167 | U23: 59 | V23: 19.125 | W23: 167.9886458
W25: 0
T26: 90 | U26: 0 | V26: 38 | W26: 90.01055556
T27: 89 | U27: 52 | V27: 10 | W27: 89.86944444
T28: 89 | U28: 55 | V28: 11 | W28: 89.91972222
E43: =$B$9+((SQRT(C43^2+D43^2))*COS(((IF(AND($D$9-$B$9=0,$E$9-$C$9>0),90,IF(AND($D$9-$B$9=0,$E$9-$C$9<0),270,IF(AND($D$9-$B$9>0,$E$9-$C$9>=0),DEGREES(ATAN(($E$9-$C$9)/($D$9-$B$9))),IF(AND($D$9-$B$9>0,$E$9-$C$9<0),360+(DEGREES(ATAN(($E$9-$C$9)/($D$9-$B$9)))),180+(DEGREES(ATAN(($E$9-$C$9)/($D$9-$B$9)))))))))+(IF(AND(C43=0,D43>0),90,IF(AND(C43=0,D43<0),270,IF(AND(C43>0,D43>=0),DEGREES(ATAN((D43)/(C43))),IF(AND(C43>0,D43<0),360+(DEGREES(ATAN((D43)/(C43)))),180+(DEGREES(ATAN((D43)/(C43))))))))))*PI()/180)) -> 

Sheet Transit Rule
A1: Back to Introduction
A2: Traverse Adjustment Program | E2: Transit Rules
C3: Azimuth | R3: Adjusted | S3: Adjusted
J4: Corrections to | L4: Corrected | M4: Corrected | Q4: Adjusted | R4: Azimuth | S4: Azimuth | W4: Area Calculations
A5: Sta | B5: Dist | C5: Deg | D5: Min | E5: Sec | F5: Latitude | G5: Departure | H5: Abs Lat | I5: Abs Dep | J5: Latitude | K5: Departure | L5: Latitude | M5: Departure | N5: Northing | O5: Easting | P5: Sta | Q5: Distance | R5: DD.DDDD | S5: Deg | T5: Min | U5: Sec | W5: DMD | X5: 2A | Z5: Coordinates
A6: 1 | N6: 7139.137 | O6: 7881.057 | P6: 1 | Z6: =N6 -> 7139.137 | AA6: =O6 -> 7881.057
B7: 400.852 | C7: 199 | D7: 19 | E7: 34 | F7: =B7*COS((ABS(C7)+(ABS(D7)/60)+ABS(E7)/3600)*0.01745329252) -> -378.264082 | G7: =B7*SIN((ABS(C7)+(ABS(D7)/60)+ABS(E7)/3600)*0.01745329252) -> -132.6597535 | H7: =ABS(F7) -> 378.264082 | I7: =ABS(G7) -> 132.6597535 | J7: =$F$27*H7/$H$27 -> 0.07764219854 | K7: =$G$27*I7/$I$27 -> -2.193925181e-05 | L7: =F7+J7 -> -378.1864398 | M7: =G7+K7 -> -132.6597754 | Q7: =SQRT(L7^2+M7^2) -> 400.778741 | R7: =IF(AND(L7>0,M7>0),DEGREES(ATAN(M7/L7)),IF(AND(L7>0,M7<0),360+(DEGREES(ATAN(M7/L7))),180+(DEGREES(ATAN(M7/L7))))) -> 199.3297875 | S7: =TRUNC(R7) -> 199 | T7: =TRUNC((R7-(S7))*60) -> 19 | U7: =(R7-(S7)-(T7/60))*3600 -> 47.23497924 | W7: =M7 -> -132.6597754 | X7: =W7*L7 -> 50170.12816
A8: 2 | N8: =N6+L7 -> 6760.95056 | O8: =O6+M7 -> 7748.397225 | P8: 2 | Z8: =N8 -> 6760.95056 | AA8: 7748.397225 | AB8: =(Z6*AA8)-(Z8*AA6) -> 2033432.578
B9: 525.36 | C9: 117 | D9: 23 | E9: 34 | F9: =B9*COS((ABS(C9)+(ABS(D9)/60)+ABS(E9)/3600)*0.01745329252) -> -241.7117637 | G9: =B9*SIN((ABS(C9)+(ABS(D9)/60)+ABS(E9)/3600)*0.01745329252) -> 466.4531626 | H9: =ABS(F9) -> 241.7117637 | I9: 466.4531626 | J9: =$F$27*H9/$H$27 -> 0.04961357327 | K9: =$G$27*I9/$I$27 -> -7.714195996e-05 | L9: =F9+J9 -> -241.6621501 | M9: 466.4530854 | Q9: =SQRT(L9^2+M9^2) -> 525.3371067 | R9: =IF(AND(L9>0,M9>0),DEGREES(ATAN(M9/L9)),IF(AND(L9>0,M9<0),360+(DEGREES(ATAN(M9/L9))),180+(DEGREES(ATAN(M9/L9))))) -> 117.3879773 | S9: =TRUNC(R9) -> 117 | T9: =TRUNC((R9-(S9))*60) -> 23 | U9: =(R9-(S9)-(T9/60))*3600 -> 16.71821851 | W9: =W7+M7+M9 -> 201.1335346 | X9: =W9*L9 -> -48606.36244
A10: 3 | N10: =N8+L9 -> 6519.28841 | O10: =O8+M9 -> 8214.85031 | P10: 3 | Z10: 6519.28841 | AA10: 8214.85031 | AB10: =(Z8*AA10)-(Z10*AA8) -> 5026160.583
B11: 514.888 | C11: 47 | D11: 39 | E11: 55 | F11: 346.7567912 | G11: 380.6171046 | H11: 346.7567912 | I11: 380.6171046 | J11: =$F$27*H11/$H$27 -> 0.07117503593 | K11: =$G$27*I11/$I$27 -> -6.294640448e-05 | L11: 346.8279662 | M11: 380.6170416 | Q11: 514.9358897 | R11: =IF(AND(L11>0,M11>0),DEGREES(ATAN(M11/L11)),IF(AND(L11>0,M11<0),360+(DEGREES(ATAN(M11/L11))),180+(DEGREES(ATAN(M11/L11))))) -> 47.65941879 | S11: 47 | T11: 39 | U11: 33.90765036 | W11: =W9+M9+M11 -> 1048.203662 | X11: 363546.3442
A12: 4 | N12: =N10+L11 -> 6866.116376 | O12: =O10+M11 -> 8595.467352 | P12: 4 | Z12: 6866.116376 | AA12: 8595.467352 | AB12: -367787.5576
B13: 542.458 | C13: 329 | D13: 19 | E13: 55 | F13: 466.5880795 | G13: -276.6879936 | H13: 466.5880795 | I13: 276.6879936 | J13: =$F$27*H13/$H$27 -> 0.09577151527 | K13: =$G$27*I13/$I$27 -> -4.575862239e-05 | L13: 466.683851 | M13: -276.6880394 | Q13: 542.5404021 | R13: =IF(AND(L13>0,M13>0),DEGREES(ATAN(M13/L13)),IF(AND(L13>0,M13<0),360+(DEGREES(ATAN(M13/L13))),180+(DEGREES(ATAN(M13/L13))))) -> 329.3370991 | S13: 329 | T13: 20 | U13: 13.55682346 | W13: =W11+M11+M13 -> 1152.132664 | X13: 537681.7085
A14: 5 | N14: =N12+L13 -> 7332.800227 | O14: =O12+M13 -> 8318.779312 | P14: 5 | Z14: 7332.800227 | AA14: 8318.779312 | AB14: -5911138.083
B15: 478.667 | C15: 246 | D15: 7 | E15: 46 | F15: -193.7029867 | G15: -437.7228002 | H15: 193.7029867 | I15: 437.7228002 | J15: =$F$27*H15/$H$27 -> 0.03975932811 | K15: =$G$27*I15/$I$27 -> -7.239053658e-05 | L15: -193.6632273 | M15: -437.7228726 | Q15: 478.6509781 | R15: =IF(AND(L15>0,M15>0),DEGREES(ATAN(M15/L15)),IF(AND(L15>0,M15<0),360+(DEGREES(ATAN(M15/L15))),180+(DEGREES(ATAN(M15/L15))))) -> 246.1338001 | S15: 246 | T15: 8 | U15: 1.68053066 | W15: =W13+M13+M15 -> 437.7217519 | X15: -84770.60715
A16: 1 | N16: =N14+L15 -> 7139.137 | O16: =O14+M15 -> 7881.05644 | P16: 1 | Z16: 7139.137 | AA16: =O16 -> 7881.05644 | AB16: -1598692.731
AC18: `
W26: Double Area | X26: =ABS(SUM(X7:X25)) -> 818021.2113 | Z26: Double Area | AB26: =ABS(SUM(AB8:AB25)) -> 818025.2117
A27: Sum | B27: =SUM(B7:B26) -> 2462.225 | F27: =ABS(SUM(F7:F26)) -> 0.3339616511 | G27: =SUM(G7:G26) -> -0.0002801767752 | H27: 1627.023703 | I27: 1694.140815 | J27: 0.3339616511 | K27: -0.0002801767752 | L27: 0 | M27: -0.0005603535503 | W27: Area | X27: =X26/2 -> 409010.6056 | AA27: Area | AB27: =AB26/2 -> 409012.6058
A30: Linear Error = | C30: =SQRT(F27^2+G27^2) -> 0.3339617686
H31: Data input | X31: difference
B33: Accuracy Ratio
B34: 1/ | C34: =B27/C30 -> 7372.775063

Sheet Area by Plane Coordinates
A1: Back to Introduction
A2: Note: The first coordinates must be repeated to the last
D7: Area by Coordinates
G9: Partial | I9: Double
D10: Point No. | E10: Northing | F10: Easting | G10: Area | I10: Area | J10: Area (sq.m)
D11: 1 | E11: 6232.977 | F11: 4559.527 | I11: =ABS(SUM(G12:G105)) -> 385770.2843 | J11: =I11/2 -> 192885.1421
D12: 2 | E12: 5853.027449 | F12: 4253.872337 | G12: =(E11*F12)-(E12*F11) -> -172748.2496
D13: 3 | E13: 5573.028178 | F13: 4504.352472 | G13: =(E12*F13)-(E13*F12) -> 2657148.261
D14: 4 | E14: 5759.626065 | F14: 4805.6632 | G14: =(E13*F14)-(E14*F13) -> 838710.5254
D15: 5 | E15: 6103.759158 | F15: 4661.498628 | G15: =(E14*F15)-(E15*F14) -> -2484121.774
D16: 1 | E16: 6232.977 | F16: 4559.527 | G16: =(E15*F16)-(E16*F15) -> -1224759.048

Sheet Area by Azimuth and Distance
A1: Back to Introduction
B2: Lat | C2: Dep | N2: Lat | O2: Dep
A3: Error | B3: =SUM(D11:D51) -> 193.6632271 | C3: =SUM(E11:E61) -> 437.722312 | M3: Error | N3: =SUM(R11:R53) -> 193.6629902 | O3: =SUM(S11:S134) -> 437.7226246
A6: Note: Azimuth input by decimal ( DD.DDDD) | M6: Note: Azimuth input by decimal ( DD-MM-SS)
A8: Area computation by Azimuth and Distance | M8: Area computation by Azimuth and Distance
I9: Double | N9: Azimuth | W9: Double
A10: Line | B10: Azimuth | C10: Distance | D10: Latitude | E10: Departure | F10: DMD Method | I10: Area | J10: Area (sq.m) | M10: Line | N10: Deg | O10: Min | P10: Sec | Q10: Distance | R10: Latitude | S10: Departure | T10: DMD Method | W10: Area | X10: Area (sq.m)
A11: 1 to 2 | B11: 199.3297875 | C11: 400.778741 | D11: =C11*COS(B11*0.01745329252) -> -378.1864398 | E11: =C11*SIN(B11*0.01745329252) -> -132.6597754 | F11: =E11 -> -132.6597754 | G11: =F11*D11 -> 50170.12818 | I11: =ABS(SUM(G11:G34)) -> 902791.8179 | J11: =I11/2 -> 451395.909 | M11: 1 to 2 | N11: 199 | O11: 19 | P11: 47.23 | Q11: 400.7787 | R11: =Q11*COS((ABS(N11)+(ABS(O11)/60)+ABS(P11)/3600)*0.01745329252) -> -378.1864043 | S11: =Q11*SIN((ABS(N11)+(ABS(O11)/60)+ABS(P11)/3600)*0.01745329252) -> -132.6597527 | T11: =S11 -> -132.6597527 | U11: =T11*R11 -> 50170.11487 | W11: =ABS(SUM(U11:U18)) -> 902791.7078 | X11: =W11/2 -> 451395.8539 | Z11: CONVERTER
A12: 2 to 3 | B12: 117.3879773 | C12: 525.3371067 | D12: =C12*COS(B12*0.01745329252) -> -241.6621503 | E12: =C12*SIN(B12*0.01745329252) -> 466.4530853 | F12: =F11+E11+E12 -> 201.1335344 | G12: =F12*D12 -> -48606.36242 | M12: 2 to 3 | N12: 117 | O12: 23 | P12: 16.72 | Q12: 525.3371 | R12: =Q12*COS((ABS(N12)+(ABS(O12)/60)+ABS(P12)/3600)*0.01745329252) -> -241.6621511 | S12: =Q12*SIN((ABS(N12)+(ABS(O12)/60)+ABS(P12)/3600)*0.01745329252) -> 466.4530774 | T12: =T11+S11+S12 -> 201.1335719 | U12: =T12*R12 -> -48606.37165 | Z12: D-M-S to Degrees | AE12: Degrees to D-M-S
A13: 3 to 4 | B13: 47.65941879 | C13: 514.9358897 | D13: =C13*COS(B13*0.01745329252) -> 346.8279662 | E13: =C13*SIN(B13*0.01745329252) -> 380.6170416 | F13: =F12+E12+E13 -> 1048.203661 | G13: =F13*D13 -> 363546.344 | M13: 3 to 4 | N13: 47 | O13: 39 | P13: 33.91 | Q13: 514.936 | R13: =Q13*COS((ABS(N13)+(ABS(O13)/60)+ABS(P13)/3600)*0.01745329252) -> 346.8280361 | S13: =Q13*SIN((ABS(N13)+(ABS(O13)/60)+ABS(P13)/3600)*0.01745329252) -> 380.6171271 | T13: =T12+S12+S13 -> 1048.203776 | U13: =T13*R13 -> 363546.4573 | Z13: 233 | AA13: 7 | AB13: 48.37 | AC13: =ABS(Z13)+(ABS(AA13)/60)+ABS(AB13)/3600 -> 233.1301028 | AE13: 233.130102 | AF13: =TRUNC(AE13) -> 233 | AG13: =TRUNC((AE13-(AF13))*60) -> 7 | AH13: =(AE13-(AF13)-(AG13/60))*3600 -> 48.3672
A14: 4 to 1 | B14: 329.3370991 | C14: 542.5404021 | D14: =C14*COS(B14*0.01745329252) -> 466.6838509 | E14: =C14*SIN(B14*0.01745329252) -> -276.6880395 | F14: =F13+E13+E14 -> 1152.132663 | G14: =F14*D14 -> 537681.7081 | M14: 4 to 1 | N14: 329 | O14: 20 | P14: 13.56 | Q14: 542.54 | R14: =Q14*COS((ABS(N14)+(ABS(O14)/60)+ABS(P14)/3600)*0.01745329252) -> 466.6835094 | S14: =Q14*SIN((ABS(N14)+(ABS(O14)/60)+ABS(P14)/3600)*0.01745329252) -> -276.6878271 | T14: =T13+S13+S14 -> 1152.133076 | U14: =T14*R14 -> 537681.5073 | Z14: 185 | AA14: 12 | AB14: 57 | AC14: =ABS(Z14)+(ABS(AA14)/60)+ABS(AB14)/3600 -> 185.2158333 | AE14: 306.869898 | AF14: =TRUNC(AE14) -> 306 | AG14: =TRUNC((AE14-(AF14))*60) -> 52 | AH14: =(AE14-(AF14)-(AG14/60))*3600 -> 11.6328

Sheet Line and Offset
A1: Back to Introduction
C2: REFERENCE LINE (OR) LINE & OFFSET PROGRAM
C4: Reference Line Fixed
C5: Line No | D5: Northing 1 | E5: Easting 1 | F5: Northing 2 | G5: Easting 2
C6: 1 to 2 | D6: 100 | E6: 100 | F6: 50 | G6: 100
C9: GIVEN | F9: REQUIRED | J9: GIVEN | M9: REQUIRED
C10: Point No. | D10: Line | E10: Offset | F10: Northing | G10: Easting | J10: Point No. | K10: Northing | L10: Easting | M10: Line | N10: Offset
C11: 1 | D11: 70 | E11: 60 | F11: =IF(D11<>"",$D$6+((SQRT(D11^2+E11^2))*COS(((IF(AND($F$6-$D$6=0,$G$6-$E$6>0),90,IF(AND($F$6-$D$6=0,$G$6-$E$6<0),270,IF(AND($F$6-$D$6>0,$G$6-$E$6>=0),DEGREES(ATAN(($G$6-$E$6)/($F$6-$D$6))),IF(AND($F$6-$D$6>0,$G$6-$E$6<0),360+(DEGREES(ATAN(($G$6-$E$6)/($F$6-$D$6)))),180+(DEGREES(ATAN(($G$6-$E$6)/($F$6-$D$6)))))))))+(IF(AND(D11=0,E11>0),90,IF(AND(D11=0,E11<0),270,IF(AND(D11>0,E11>=0),DEGREES(ATAN((E11)/(D11))),IF(AND(D11>0,E11<0),360+(DEGREES(ATAN((E11)/(D11)))),180+(DEGREES(ATAN((E11)/(D11))))))))))*PI()/180)),"") -> 30 | G11: =IF(E11<>"",$E$6+((SQRT(D11^2+E11^2))*SIN(((IF(AND($F$6-$D$6=0,$G$6-$E$6>0),90,IF(AND($F$6-$D$6=0,$G$6-$E$6<0),270,IF(AND($F$6-$D$6>0,$G$6-$E$6>=0),DEGREES(ATAN(($G$6-$E$6)/($F$6-$D$6))),IF(AND($F$6-$D$6>0,$G$6-$E$6<0),360+(DEGREES(ATAN(($G$6-$E$6)/($F$6-$D$6)))),180+(DEGREES(ATAN(($G$6-$E$6)/($F$6-$D$6)))))))))+(IF(AND(D11=0,E11>0),90,IF(AND(D11=0,E11<0),270,IF(AND(D11>0,E11>=0),DEGREES(ATAN((E11)/(D11))),IF(AND(D11>0,E11<0),360+(DEGREES(ATAN((E11)/(D11)))),180+(DEGREES(ATAN((E11)/(D11))))))))))*PI()/180)),"") -> 40 | J11: 1 | K11: 70 | L11: 60 | M11: =IF(K11<>"",(SQRT((L11-$E$6)^2+(K11-$D$6)^2)*COS((IF(AND(K11-$D$6=0,L11-$E$6>0),90,IF(AND(K11-$D$6=0,L11-$E$6<0),270,IF(AND(K11-$D$6>0,L11-$E$6>=0),DEGREES(ATAN((L11-$E$6)/(K11-$D$6))),IF(AND(K11-$D$6>0,L11-$E$6<0),360+(DEGREES(ATAN((L11-$E$6)/(K11-$D$6)))),180+(DEGREES(ATAN((L11-$E$6)/(K11-$D$6))))))))-(IF(AND($F$6-$D$6=0,$G$6-$E$6>0),90,IF(AND($F$6-$D$6=0,$G$6-$E$6<0),270,IF(AND($F$6-$D$6>0,$G$6-$E$6>=0),DEGREES(ATAN(($G$6-$E$6)/($F$6-$D$6))),IF(AND($F$6-$D$6>0,$G$6-$E$6<0),360+(DEGREES(ATAN(($G$6-$E$6)/($F$6-$D$6)))),180+(DEGREES(ATAN(($G$6-$E$6)/($F$6-$D$6))))))))))*PI()/180)),"") -> 30 | N11: =IF(L11<>"",(SQRT((L11-$E$6)^2+(K11-$D$6)^2)*SIN((IF(AND(K11-$D$6=0,L11-$E$6>0),90,IF(AND(K11-$D$6=0,L11-$E$6<0),270,IF(AND(K11-$D$6>0,L11-$E$6>=0),DEGREES(ATAN((L11-$E$6)/(K11-$D$6))),IF(AND(K11-$D$6>0,L11-$E$6<0),360+(DEGREES(ATAN((L11-$E$6)/(K11-$D$6)))),180+(DEGREES(ATAN((L11-$E$6)/(K11-$D$6))))))))-(IF(AND($F$6-$D$6=0,$G$6-$E$6>0),90,IF(AND($F$6-$D$6=0,$G$6-$E$6<0),270,IF(AND($F$6-$D$6>0,$G$6-$E$6>=0),DEGREES(ATAN(($G$6-$E$6)/($F$6-$D$6))),IF(AND($F$6-$D$6>0,$G$6-$E$6<0),360+(DEGREES(ATAN(($G$6-$E$6)/($F$6-$D$6)))),180+(DEGREES(ATAN(($G$6-$E$6)/($F$6-$D$6))))))))))*PI()/180)),"") -> 40
C12: 2 | D12: -30 | E12: 40 | F12: =IF(D12<>"",$D$6+((SQRT(D12^2+E12^2))*COS(((IF(AND($F$6-$D$6=0,$G$6-$E$6>0),90,IF(AND($F$6-$D$6=0,$G$6-$E$6<0),270,IF(AND($F$6-$D$6>0,$G$6-$E$6>=0),DEGREES(ATAN(($G$6-$E$6)/($F$6-$D$6))),IF(AND($F$6-$D$6>0,$G$6-$E$6<0),360+(DEGREES(ATAN(($G$6-$E$6)/($F$6-$D$6)))),180+(DEGREES(ATAN(($G$6-$E$6)/($F$6-$D$6)))))))))+(IF(AND(D12=0,E12>0),90,IF(AND(D12=0,E12<0),270,IF(AND(D12>0,E12>=0),DEGREES(ATAN((E12)/(D12))),IF(AND(D12>0,E12<0),360+(DEGREES(ATAN((E12)/(D12)))),180+(DEGREES(ATAN((E12)/(D12))))))))))*PI()/180)),"") -> 130 | G12: =IF(E12<>"",$E$6+((SQRT(D12^2+E12^2))*SIN(((IF(AND($F$6-$D$6=0,$G$6-$E$6>0),90,IF(AND($F$6-$D$6=0,$G$6-$E$6<0),270,IF(AND($F$6-$D$6>0,$G$6-$E$6>=0),DEGREES(ATAN(($G$6-$E$6)/($F$6-$D$6))),IF(AND($F$6-$D$6>0,$G$6-$E$6<0),360+(DEGREES(ATAN(($G$6-$E$6)/($F$6-$D$6)))),180+(DEGREES(ATAN(($G$6-$E$6)/($F$6-$D$6)))))))))+(IF(AND(D12=0,E12>0),90,IF(AND(D12=0,E12<0),270,IF(AND(D12>0,E12>=0),DEGREES(ATAN((E12)/(D12))),IF(AND(D12>0,E12<0),360+(DEGREES(ATAN((E12)/(D12)))),180+(DEGREES(ATAN((E12)/(D12))))))))))*PI()/180)),"") -> 60 | J12: 2 | K12: 130 | L12: 60 | M12: =IF(K12<>"",(SQRT((L12-$E$6)^2+(K12-$D$6)^2)*COS((IF(AND(K12-$D$6=0,L12-$E$6>0),90,IF(AND(K12-$D$6=0,L12-$E$6<0),270,IF(AND(K12-$D$6>0,L12-$E$6>=0),DEGREES(ATAN((L12-$E$6)/(K12-$D$6))),IF(AND(K12-$D$6>0,L12-$E$6<0),360+(DEGREES(ATAN((L12-$E$6)/(K12-$D$6)))),180+(DEGREES(ATAN((L12-$E$6)/(K12-$D$6))))))))-(IF(AND($F$6-$D$6=0,$G$6-$E$6>0),90,IF(AND($F$6-$D$6=0,$G$6-$E$6<0),270,IF(AND($F$6-$D$6>0,$G$6-$E$6>=0),DEGREES(ATAN(($G$6-$E$6)/($F$6-$D$6))),IF(AND($F$6-$D$6>0,$G$6-$E$6<0),360+(DEGREES(ATAN(($G$6-$E$6)/($F$6-$D$6)))),180+(DEGREES(ATAN(($G$6-$E$6)/($F$6-$D$6))))))))))*PI()/180)),"") -> -30 | N12: =IF(L12<>"",(SQRT((L12-$E$6)^2+(K12-$D$6)^2)*SIN((IF(AND(K12-$D$6=0,L12-$E$6>0),90,IF(AND(K12-$D$6=0,L12-$E$6<0),270,IF(AND(K12-$D$6>0,L12-$E$6>=0),DEGREES(ATAN((L12-$E$6)/(K12-$D$6))),IF(AND(K12-$D$6>0,L12-$E$6<0),360+(DEGREES(ATAN((L12-$E$6)/(K12-$D$6)))),180+(DEGREES(ATAN((L12-$E$6)/(K12-$D$6))))))))-(IF(AND($F$6-$D$6=0,$G$6-$E$6>0),90,IF(AND($F$6-$D$6=0,$G$6-$E$6<0),270,IF(AND($F$6-$D$6>0,$G$6-$E$6>=0),DEGREES(ATAN(($G$6-$E$6)/($F$6-$D$6))),IF(AND($F$6-$D$6>0,$G$6-$E$6<0),360+(DEGREES(ATAN(($G$6-$E$6)/($F$6-$D$6)))),180+(DEGREES(ATAN(($G$6-$E$6)/($F$6-$D$6))))))))))*PI()/180)),"") -> 40
C13: 3 | D13: -30 | E13: -40 | F13: 130 | G13: 140 | J13: 3 | K13: 130 | L13: 140 | M13: -30 | N13: -40
C14: 4 | D14: 30 | E14: -40 | F14: 70 | G14: 140 | J14: 4 | K14: 70 | L14: 140 | M14: 30 | N14: -40
C15: 5 | D15: 0 | E15: 40 | F15: 100 | G15: 60 | J15: 5 | K15: 100 | L15: 60 | M15: 2.45029691e-15 | N15: 40
C16: 6 | D16: 30 | E16: 0 | F16: 70 | G16: 100 | J16: 6 | K16: 70 | L16: 100 | M16: 30 | N16: 0
C17: 7 | D17: 0 | E17: 5 | F17: 100 | G17: 95 | J17: 7 | K17: 100 | L17: 95 | M17: 3.062871137e-16 | N17: 5
C18: 8 | D18: -30 | E18: 0 | F18: 130 | G18: 100 | J18: 8 | K18: 130 | L18: 100 | M18: -30 | N18: -3.675445365e-15
C19: 9 | D19: -30 | E19: 0 | F19: 130 | G19: 100 | J19: 9 | K19: 130 | L19: 100 | M19: -30 | N19: -3.675445365e-15
C20: 10 | D20: 30 | E20: 40 | F20: 70 | G20: 60 | J20: 10 | K20: 130 | L20: 100 | M20: -30 | N20: -3.675445365e-15
C21: 11 | D21: -30 | E21: 40 | F21: 130 | G21: 60 | J21: 11 | K21: 70 | L21: 60 | M21: 30 | N21: 40
C22: 12 | D22: -30 | E22: -40 | F22: 130 | G22: 140 | J22: 12 | K22: 130 | L22: 60 | M22: -30 | N22: 40
C23: 13 | D23: 30 | E23: -40 | F23: 70 | G23: 140 | J23: 13 | K23: 130 | L23: 140 | M23: -30 | N23: -40
C24: 14 | D24: 0 | E24: 40 | F24: 100 | G24: 60 | J24: 14 | K24: 70 | L24: 140 | M24: 30 | N24: -40
C25: 15 | D25: 30 | E25: 0 | F25: 70 | G25: 100 | J25: 15 | K25: 100 | L25: 60 | M25: 2.45029691e-15 | N25: 40
C26: 16 | D26: 0 | E26: 5 | F26: 100 | G26: 95 | J26: 16 | K26: 70 | L26: 100 | M26: 30 | N26: 0
C27: 17 | D27: -30 | E27: 0 | F27: 130 | G27: 100 | J27: 17 | K27: 100 | L27: 95 | M27: 3.062871137e-16 | N27: 5
C28: 18 | D28: -30 | E28: 0 | F28: 130 | G28: 100 | J28: 18 | K28: 130 | L28: 100 | M28: -30 | N28: -3.675445365e-15
C29: 19 | D29: -30 | E29: 0 | F29: 130 | G29: 100 | J29: 19 | K29: 130 | L29: 100 | M29: -30 | N29: -3.675445365e-15
C30: 20 | D30: -30 | E30: 0 | F30: 130 | G30: 100 | J30: 20 | K30: 130 | L30: 100 | M30: -30 | N30: -3.675445365e-15

Sheet multi-coordinate transformation
A1: Back to Introduction
B2: Note: Automatic computation of COMBINE FACTOR as per given references
C4: Present Location on Reference Line | M4: Present Location on Reference Line
C5: GIVEN | H5: COMPUTED | M5: GIVEN | R5: COMPUTED
C6: Line Name | D6: Northing A | E6: Easting A | F6: Northing B | G6: Easting B | H6: AZIMUTH | I6: DISTANCE | M6: Line Name | N6: Northing A | O6: Easting A | P6: AZIMUTH | Q6: DISTANCE | R6: Northing B | S6: Easting B
C7: A to B | D7: 67102.52 | E7: 75145.838 | F7: 67089.581 | G7: 75148.586 | H7: =IF(AND(F7-D7=0,G7-E7>0),90,IF(AND(F7-D7=0,G7-E7<0),270,IF(AND(F7-D7>0,G7-E7>=0),DEGREES(ATAN((G7-E7)/(F7-D7))),IF(AND(F7-D7>0,G7-E7<0),360+(DEGREES(ATAN((G7-E7)/(F7-D7)))),180+(DEGREES(ATAN((G7-E7)/(F7-D7)))))))) -> 168.009615 | I7: =SQRT((F7-D7)^2+(G7-E7)^2) -> 13.22759332 | M7: A to B | N7: 84.052 | O7: 1261.881 | P7: 39.316286 | Q7: 561.519 | R7: =N7+(Q7*COS((P7*PI()/180))) -> 518.4768701 | S7: =O7+(Q7*SIN((P7*PI()/180))) -> 1617.659891
C9: Proposed Location on Reference Line | M9: Proposed Location on Reference Line
C10: GIVEN | H10: COMPUTED | M10: GIVEN | R10: COMPUTED
C11: Line Name | D11: Northing A | E11: Easting A | F11: Northing B | G11: Easting B | H11: AZIMUTH | I11: DISTANCE | M11: Line Name | N11: Northing A | O11: Easting A | P11: AZIMUTH | Q11: DISTANCE | R11: Northing B | S11: Easting B
C12: A to B | D12: 3014163.07 | E12: 349777.371 | F12: 3014155.312 | G12: 349788.082 | H12: =IF(AND(F12-D12=0,G12-E12>0),90,IF(AND(F12-D12=0,G12-E12<0),270,IF(AND(F12-D12>0,G12-E12>=0),DEGREES(ATAN((G12-E12)/(F12-D12))),IF(AND(F12-D12>0,G12-E12<0),360+(DEGREES(ATAN((G12-E12)/(F12-D12)))),180+(DEGREES(ATAN((G12-E12)/(F12-D12)))))))) -> 125.9158938 | I12: =SQRT((F12-D12)^2+(G12-E12)^2) -> 13.22543326 | M12: A to B | N12: -5.829 | O12: 1661.664 | P12: 61.004081 | Q12: 421.139 | R12: =N12+(Q12*COS((P12*PI()/180))) -> 198.3170027 | S12: =O12+(Q12*SIN((P12*PI()/180))) -> 2030.01501
C14: GIVEN | F14: REQUIRED | M14: GIVEN | P14: REQUIRED
C15: Present Location | F15: Location | M15: Present Location | P15: Location
C16: Point No. | D16: Northing | E16: Easting | F16: Northing | G16: Easting | M16: Point No. | N16: Northing | O16: Easting | P16: Northing | Q16: Easting
C17: 100 | D17: 70563.631 | E17: 77332.95 | F17: =IF(D17<>"",$D$12+(SQRT((E17-$E$7)^2+(D17-$D$7)^2)*SQRT(($F$12-$D$12)^2+($G$12-$E$12)^2)/SQRT(($F$7-$D$7)^2+($G$7-$E$7)^2)*COS((IF(AND(D17-$D$7=0,E17-$E$7>0),90,IF(AND(D17-$D$7=0,E17-$E$7<0),270,IF(AND(D17-$D$7>0,E17-$E$7>=0),DEGREES(ATAN((E17-$E$7)/(D17-$D$7))),IF(AND(D17-$D$7>0,E17-$E$7<0),360+(DEGREES(ATAN((E17-$E$7)/(D17-$D$7)))),180+(DEGREES(ATAN((E17-$E$7)/(D17-$D$7))))))))-(IF(AND($F$7-$D$7=0,$G$7-$E$7>0),90,IF(AND($F$7-$D$7=0,$G$7-$E$7<0),270,IF(AND($F$7-$D$7>0,$G$7-$E$7>=0),DEGREES(ATAN(($G$7-$E$7)/($F$7-$D$7))),IF(AND($F$7-$D$7>0,$G$7-$E$7<0),360+(DEGREES(ATAN(($G$7-$E$7)/($F$7-$D$7)))),180+(DEGREES(ATAN(($G$7-$E$7)/($F$7-$D$7)))))))))+(IF(AND($F$12-$D$12=0,$G$12-$E$12>0),90,IF(AND($F$12-$D$12=0,$G$12-$E$12<0),270,IF(AND($F$12-$D$12>0,$G$12-$E$12>=0),DEGREES(ATAN(($G$12-$E$12)/($F$12-$D$12))),IF(AND($F$12-$D$12>0,$G$12-$E$12),360+(DEGREES(ATAN(($G$12-$E$12)/($F$12-$D$12)))),180+(DEGREES(ATAN(($G$12-$E$12)/($F$12-$D$12))))))))))*PI()/180)),"") -> 3018196.846 | G17: =IF(E17<>"",$E$12+(SQRT((E17-$E$7)^2+(D17-$D$7)^2)*SQRT(($F$12-$D$12)^2+($G$12-$E$12)^2)/SQRT(($F$7-$D$7)^2+($G$7-$E$7)^2)*SIN((IF(AND(D17-$D$7=0,E17-$E$7>0),90,IF(AND(D17-$D$7=0,E17-$E$7<0),270,IF(AND(D17-$D$7>0,E17-$E$7>=0),DEGREES(ATAN((E17-$E$7)/(D17-$D$7))),IF(AND(D17-$D$7>0,E17-$E$7<0),360+(DEGREES(ATAN((E17-$E$7)/(D17-$D$7)))),180+(DEGREES(ATAN((E17-$E$7)/(D17-$D$7))))))))-(IF(AND($F$7-$D$7=0,$G$7-$E$7>0),90,IF(AND($F$7-$D$7=0,$G$7-$E$7<0),270,IF(AND($F$7-$D$7>0,$G$7-$E$7>=0),DEGREES(ATAN(($G$7-$E$7)/($F$7-$D$7))),IF(AND($F$7-$D$7>0,$G$7-$E$7<0),360+(DEGREES(ATAN(($G$7-$E$7)/($F$7-$D$7)))),180+(DEGREES(ATAN(($G$7-$E$7)/($F$7-$D$7)))))))))+(IF(AND($F$12-$D$12=0,$G$12-$E$12>0),90,IF(AND($F$12-$D$12=0,$G$12-$E$12<0),270,IF(AND($F$12-$D$12>0,$G$12-$E$12>=0),DEGREES(ATAN(($G$12-$E$12)/($F$12-$D$12))),IF(AND($F$12-$D$12>0,$G$12-$E$12),360+(DEGREES(ATAN(($G$12-$E$12)/($F$12-$D$12)))),180+(DEGREES(ATAN(($G$12-$E$12)/($F$12-$D$12))))))))))*PI()/180)),"") -> 349080.2903 | M17: 100 | N17: 128.993 | O17: 1591.445 | P17: =IF(N17<>"",$N$12+(SQRT((O17-$O$7)^2+(N17-$N$7)^2)*$Q$12/$Q$7*COS((IF(AND(N17-$N$7=0,O17-$O$7>0),90,IF(AND(N17-$N$7=0,O17-$O$7<0),270,IF(AND(N17-$N$7>0,O17-$O$7>=0),DEGREES(ATAN((O17-$O$7)/(N17-$N$7))),IF(AND(N17-$N$7>0,O17-$O$7<0),360+(DEGREES(ATAN((O17-$O$7)/(N17-$N$7)))),180+(DEGREES(ATAN((O17-$O$7)/(N17-$N$7))))))))-$P$7+$P$12)*PI()/180)),"") -> -65.85169248 | Q17: =IF(O17<>"",$O$12+(SQRT((O17-$O$7)^2+(N17-$N$7)^2)*$Q$12/$Q$7*SIN((IF(AND(N17-$N$7=0,O17-$O$7>0),90,IF(AND(N17-$N$7=0,O17-$O$7<0),270,IF(AND(N17-$N$7>0,O17-$O$7>=0),DEGREES(ATAN((O17-$O$7)/(N17-$N$7))),IF(AND(N17-$N$7>0,O17-$O$7<0),360+(DEGREES(ATAN((O17-$O$7)/(N17-$N$7)))),180+(DEGREES(ATAN((O17-$O$7)/(N17-$N$7))))))))-$P$7+$P$12)*PI()/180)),"") -> 1903.795725
C18: 101 | D18: 372.42 | E18: 1273.116 | F18: =IF(D18<>"",$D$12+(SQRT((E18-$E$7)^2+(D18-$D$7)^2)*SQRT(($F$12-$D$12)^2+($G$12-$E$12)^2)/SQRT(($F$7-$D$7)^2+($G$7-$E$7)^2)*COS((IF(AND(D18-$D$7=0,E18-$E$7>0),90,IF(AND(D18-$D$7=0,E18-$E$7<0),270,IF(AND(D18-$D$7>0,E18-$E$7>=0),DEGREES(ATAN((E18-$E$7)/(D18-$D$7))),IF(AND(D18-$D$7>0,E18-$E$7<0),360+(DEGREES(ATAN((E18-$E$7)/(D18-$D$7)))),180+(DEGREES(ATAN((E18-$E$7)/(D18-$D$7))))))))-(IF(AND($F$7-$D$7=0,$G$7-$E$7>0),90,IF(AND($F$7-$D$7=0,$G$7-$E$7<0),270,IF(AND($F$7-$D$7>0,$G$7-$E$7>=0),DEGREES(ATAN(($G$7-$E$7)/($F$7-$D$7))),IF(AND($F$7-$D$7>0,$G$7-$E$7<0),360+(DEGREES(ATAN(($G$7-$E$7)/($F$7-$D$7)))),180+(DEGREES(ATAN(($G$7-$E$7)/($F$7-$D$7)))))))))+(IF(AND($F$12-$D$12=0,$G$12-$E$12>0),90,IF(AND($F$12-$D$12=0,$G$12-$E$12<0),270,IF(AND($F$12-$D$12>0,$G$12-$E$12>=0),DEGREES(ATAN(($G$12-$E$12)/($F$12-$D$12))),IF(AND($F$12-$D$12>0,$G$12-$E$12),360+(DEGREES(ATAN(($G$12-$E$12)/($F$12-$D$12)))),180+(DEGREES(ATAN(($G$12-$E$12)/($F$12-$D$12))))))))))*PI()/180)),"") -> 2915141.986 | G18: =IF(E18<>"",$E$12+(SQRT((E18-$E$7)^2+(D18-$D$7)^2)*SQRT(($F$12-$D$12)^2+($G$12-$E$12)^2)/SQRT(($F$7-$D$7)^2+($G$7-$E$7)^2)*SIN((IF(AND(D18-$D$7=0,E18-$E$7>0),90,IF(AND(D18-$D$7=0,E18-$E$7<0),270,IF(AND(D18-$D$7>0,E18-$E$7>=0),DEGREES(ATAN((E18-$E$7)/(D18-$D$7))),IF(AND(D18-$D$7>0,E18-$E$7<0),360+(DEGREES(ATAN((E18-$E$7)/(D18-$D$7)))),180+(DEGREES(ATAN((E18-$E$7)/(D18-$D$7))))))))-(IF(AND($F$7-$D$7=0,$G$7-$E$7>0),90,IF(AND($F$7-$D$7=0,$G$7-$E$7<0),270,IF(AND($F$7-$D$7>0,$G$7-$E$7>=0),DEGREES(ATAN(($G$7-$E$7)/($F$7-$D$7))),IF(AND($F$7-$D$7>0,$G$7-$E$7<0),360+(DEGREES(ATAN(($G$7-$E$7)/($F$7-$D$7)))),180+(DEGREES(ATAN(($G$7-$E$7)/($F$7-$D$7)))))))))+(IF(AND($F$12-$D$12=0,$G$12-$E$12>0),90,IF(AND($F$12-$D$12=0,$G$12-$E$12<0),270,IF(AND($F$12-$D$12>0,$G$12-$E$12>=0),DEGREES(ATAN(($G$12-$E$12)/($F$12-$D$12))),IF(AND($F$12-$D$12>0,$G$12-$E$12),360+(DEGREES(ATAN(($G$12-$E$12)/($F$12-$D$12)))),180+(DEGREES(ATAN(($G$12-$E$12)/($F$12-$D$12))))))))))*PI()/180)),"") -> 339694.0249 | M18: 101 | N18: 372.42 | O18: 1273.116 | P18: =IF(N18<>"",$N$12+(SQRT((O18-$O$7)^2+(N18-$N$7)^2)*$Q$12/$Q$7*COS((IF(AND(N18-$N$7=0,O18-$O$7>0),90,IF(AND(N18-$N$7=0,O18-$O$7<0),270,IF(AND(N18-$N$7>0,O18-$O$7>=0),DEGREES(ATAN((O18-$O$7)/(N18-$N$7))),IF(AND(N18-$N$7>0,O18-$O$7<0),360+(DEGREES(ATAN((O18-$O$7)/(N18-$N$7)))),180+(DEGREES(ATAN((O18-$O$7)/(N18-$N$7))))))))-$P$7+$P$12)*PI()/180)),"") -> 192.0230777 | Q18: =IF(O18<>"",$O$12+(SQRT((O18-$O$7)^2+(N18-$N$7)^2)*$Q$12/$Q$7*SIN((IF(AND(N18-$N$7=0,O18-$O$7>0),90,IF(AND(N18-$N$7=0,O18-$O$7<0),270,IF(AND(N18-$N$7>0,O18-$O$7>=0),DEGREES(ATAN((O18-$O$7)/(N18-$N$7))),IF(AND(N18-$N$7>0,O18-$O$7<0),360+(DEGREES(ATAN((O18-$O$7)/(N18-$N$7)))),180+(DEGREES(ATAN((O18-$O$7)/(N18-$N$7))))))))-$P$7+$P$12)*PI()/180)),"") -> 1749.418257
C19: 102 | D19: 230.109 | E19: 1130.805 | F19: 2914941.02 | G19: 339683.8223 | M19: 102 | N19: 230.109 | O19: 1130.805 | P19: 132.2885171 | Q19: 1610.797448
C20: 103 | D20: 57.837 | E20: 1097.1 | F20: 2914790.616 | G20: 339774.2785 | M20: 103 | N20: 57.837 | O20: 1097.1 | P20: 21.57249681 | Q20: 1539.561004
C21: 104 | H21: S.factor= | I21: =I12/I7 -> 0.9998367008 | M21: 104 | R21: S.factor= | S21: =Q12/Q7 -> 0.7499995548
C22: 105 | M22: 105
C23: 106 | M23: 106
C24: 107 | M24: 107
C25: 108 | M25: 108
C26: 109 | M26: 109
C27: 110 | M27: 110
C28: 111 | M28: 111
C29: 112 | M29: 112
C30: 113 | M30: 113
C31: 114 | M31: 114
H34: Data Input
B37: Note: Inputing the value of COMBINE FACTOR is a must to get the correct result
C39: Scale Factor= | E39: 0.9 | M39: Scale Factor= | O39: 1
C41: Present Location on Reference Line | M41: Present Location on Reference Line
C42: GIVEN | H42: COMPUTED | M42: GIVEN | R42: COMPUTED
C43: Line Name | D43: Northing A | E43: Easting A | F43: Northing B | G43: Easting B | H43: AZIMUTH | I43: DISTANCE | M43: Line Name | N43: Northing A | O43: Easting A | P43: AZIMUTH | Q43: DISTANCE | R43: Northing B | S43: Easting B
C44: A to B | D44: 100 | E44: 170 | F44: 100 | G44: 142.796 | H44: =IF(AND(F44-D44=0,G44-E44>0),90,IF(AND(F44-D44=0,G44-E44<0),270,IF(AND(F44-D44>0,G44-E44>=0),DEGREES(ATAN((G44-E44)/(F44-D44))),IF(AND(F44-D44>0,G44-E44<0),360+(DEGREES(ATAN((G44-E44)/(F44-D44)))),180+(DEGREES(ATAN((G44-E44)/(F44-D44)))))))) -> 270 | I44: =SQRT((F44-D44)^2+(G44-E44)^2) -> 27.204 | M44: A to B | N44: 100 | O44: 170 | P44: 270 | Q44: 27.204 | R44: =N44+(Q44*COS((P44*PI()/180))) -> 100 | S44: =O44+(Q44*SIN((P44*PI()/180))) -> 142.796
C46: Proposed Location on Reference Line | M46: Proposed Location on Reference Line
C47: GIVEN | H47: COMPUTED | M47: GIVEN | R47: COMPUTED
C48: Line Name | D48: Northing A | E48: Easting A | F48: Northing B | G48: Easting B | H48: AZIMUTH | I48: DISTANCE | M48: Line Name | N48: Northing A | O48: Easting A | P48: AZIMUTH | Q48: DISTANCE | R48: Northing B | S48: Easting B
C49: A to B | D49: 100 | E49: 170 | F49: 100 | G49: 142.796 | H49: =IF(AND(F49-D49=0,G49-E49>0),90,IF(AND(F49-D49=0,G49-E49<0),270,IF(AND(F49-D49>0,G49-E49>=0),DEGREES(ATAN((G49-E49)/(F49-D49))),IF(AND(F49-D49>0,G49-E49<0),360+(DEGREES(ATAN((G49-E49)/(F49-D49)))),180+(DEGREES(ATAN((G49-E49)/(F49-D49)))))))) -> 270 | I49: =SQRT((F49-D49)^2+(G49-E49)^2) -> 27.204 | M49: A to B | N49: 100 | O49: 170 | P49: 270 | Q49: 27.204 | R49: =N49+(Q49*COS((P49*PI()/180))) -> 100 | S49: =O49+(Q49*SIN((P49*PI()/180))) -> 142.796
C51: GIVEN | F51: REQUIRED | M51: GIVEN | P51: REQUIRED
C52: Present Location | F52: Location | M52: Present Location | P52: Location
C53: Point No. | D53: Northing | E53: Easting | F53: Northing | G53: Easting | M53: Point No. | N53: Northing | O53: Easting | P53: Northing | Q53: Easting
C54: 100 | D54: 140 | E54: 170 | F54: =IF(D54<>"",$D$49+(SQRT((E54-$E$44)^2+(D54-$D$44)^2)*$E$39*COS((IF(AND(D54-$D$44=0,E54-$E$44>0),90,IF(AND(D54-$D$44=0,E54-$E$44<0),270,IF(AND(D54-$D$44>0,E54-$E$44>=0),DEGREES(ATAN((E54-$E$44)/(D54-$D$44))),IF(AND(D54-$D$44>0,E54-$E$44<0),360+(DEGREES(ATAN((E54-$E$44)/(D54-$D$44)))),180+(DEGREES(ATAN((E54-$E$44)/(D54-$D$44))))))))-(IF(AND($F$44-$D$44=0,$G$44-$E$44>0),90,IF(AND($F$44-$D$44=0,$G$44-$E$44<0),270,IF(AND($F$44-$D$44>0,$G$44-$E$44>=0),DEGREES(ATAN(($G$44-$E$44)/($F$44-$D$44))),IF(AND($F$44-$D$44>0,$G$44-$E$44<0),360+(DEGREES(ATAN(($G$44-$E$44)/($F$44-$D$44)))),180+(DEGREES(ATAN(($G$44-$E$44)/($F$44-$D$44)))))))))+(IF(AND($F$49-$D$49=0,$G$49-$E$49>0),90,IF(AND($F$49-$D$49=0,$G$49-$E$49<0),270,IF(AND($F$49-$D$49>0,$G$49-$E$49>=0),DEGREES(ATAN(($G$49-$E$49)/($F$49-$D$49))),IF(AND($F$49-$D$49>0,$G$49-$E$49),360+(DEGREES(ATAN(($G$49-$E$49)/($F$49-$D$49)))),180+(DEGREES(ATAN(($G$49-$E$49)/($F$49-$D$49))))))))))*PI()/180)),"") -> 136 | G54: =IF(E54<>"",$E$49+(SQRT((E54-$E$44)^2+(D54-$D$44)^2)*$E$39*SIN((IF(AND(D54-$D$44=0,E54-$E$44>0),90,IF(AND(D54-$D$44=0,E54-$E$44<0),270,IF(AND(D54-$D$44>0,E54-$E$44>=0),DEGREES(ATAN((E54-$E$44)/(D54-$D$44))),IF(AND(D54-$D$44>0,E54-$E$44<0),360+(DEGREES(ATAN((E54-$E$44)/(D54-$D$44)))),180+(DEGREES(ATAN((E54-$E$44)/(D54-$D$44))))))))-(IF(AND($F$44-$D$44=0,$G$44-$E$44>0),90,IF(AND($F$44-$D$44=0,$G$44-$E$44<0),270,IF(AND($F$44-$D$44>0,$G$44-$E$44>=0),DEGREES(ATAN(($G$44-$E$44)/($F$44-$D$44))),IF(AND($F$44-$D$44>0,$G$44-$E$44<0),360+(DEGREES(ATAN(($G$44-$E$44)/($F$44-$D$44)))),180+(DEGREES(ATAN(($G$44-$E$44)/($F$44-$D$44)))))))))+(IF(AND($F$49-$D$49=0,$G$49-$E$49>0),90,IF(AND($F$49-$D$49=0,$G$49-$E$49<0),270,IF(AND($F$49-$D$49>0,$G$49-$E$49>=0),DEGREES(ATAN(($G$49-$E$49)/($F$49-$D$49))),IF(AND($F$49-$D$49>0,$G$49-$E$49),360+(DEGREES(ATAN(($G$49-$E$49)/($F$49-$D$49)))),180+(DEGREES(ATAN(($G$49-$E$49)/($F$49-$D$49))))))))))*PI()/180)),"") -> 170 | M54: 100 | N54: 140 | O54: 170 | P54: =IF(N54<>"",$N$49+(SQRT((O54-$O$44)^2+(N54-$N$44)^2)*$O$39*COS((IF(AND(N54-$N$44=0,O54-$O$44>0),90,IF(AND(N54-$N$44=0,O54-$O$44<0),270,IF(AND(N54-$N$44>0,O54-$O$44>=0),DEGREES(ATAN((O54-$O$44)/(N54-$N$44))),IF(AND(N54-$N$44>0,O54-$O$44<0),360+(DEGREES(ATAN((O54-$O$44)/(N54-$N$44)))),180+(DEGREES(ATAN((O54-$O$44)/(N54-$N$44))))))))-$P$44+$P$49)*PI()/180)),"") -> 140 | Q54: =IF(O54<>"",$O$49+(SQRT((O54-$O$44)^2+(N54-$N$44)^2)*$O$39*SIN((IF(AND(N54-$N$44=0,O54-$O$44>0),90,IF(AND(N54-$N$44=0,O54-$O$44<0),270,IF(AND(N54-$N$44>0,O54-$O$44>=0),DEGREES(ATAN((O54-$O$44)/(N54-$N$44))),IF(AND(N54-$N$44>0,O54-$O$44<0),360+(DEGREES(ATAN((O54-$O$44)/(N54-$N$44)))),180+(DEGREES(ATAN((O54-$O$44)/(N54-$N$44))))))))-$P$44+$P$49)*PI()/180)),"") -> 170
C55: 101 | D55: 140 | E55: 230 | F55: =IF(D55<>"",$D$49+(SQRT((E55-$E$44)^2+(D55-$D$44)^2)*$E$39*COS((IF(AND(D55-$D$44=0,E55-$E$44>0),90,IF(AND(D55-$D$44=0,E55-$E$44<0),270,IF(AND(D55-$D$44>0,E55-$E$44>=0),DEGREES(ATAN((E55-$E$44)/(D55-$D$44))),IF(AND(D55-$D$44>0,E55-$E$44<0),360+(DEGREES(ATAN((E55-$E$44)/(D55-$D$44)))),180+(DEGREES(ATAN((E55-$E$44)/(D55-$D$44))))))))-(IF(AND($F$44-$D$44=0,$G$44-$E$44>0),90,IF(AND($F$44-$D$44=0,$G$44-$E$44<0),270,IF(AND($F$44-$D$44>0,$G$44-$E$44>=0),DEGREES(ATAN(($G$44-$E$44)/($F$44-$D$44))),IF(AND($F$44-$D$44>0,$G$44-$E$44<0),360+(DEGREES(ATAN(($G$44-$E$44)/($F$44-$D$44)))),180+(DEGREES(ATAN(($G$44-$E$44)/($F$44-$D$44)))))))))+(IF(AND($F$49-$D$49=0,$G$49-$E$49>0),90,IF(AND($F$49-$D$49=0,$G$49-$E$49<0),270,IF(AND($F$49-$D$49>0,$G$49-$E$49>=0),DEGREES(ATAN(($G$49-$E$49)/($F$49-$D$49))),IF(AND($F$49-$D$49>0,$G$49-$E$49),360+(DEGREES(ATAN(($G$49-$E$49)/($F$49-$D$49)))),180+(DEGREES(ATAN(($G$49-$E$49)/($F$49-$D$49))))))))))*PI()/180)),"") -> 136 | G55: =IF(E55<>"",$E$49+(SQRT((E55-$E$44)^2+(D55-$D$44)^2)*$E$39*SIN((IF(AND(D55-$D$44=0,E55-$E$44>0),90,IF(AND(D55-$D$44=0,E55-$E$44<0),270,IF(AND(D55-$D$44>0,E55-$E$44>=0),DEGREES(ATAN((E55-$E$44)/(D55-$D$44))),IF(AND(D55-$D$44>0,E55-$E$44<0),360+(DEGREES(ATAN((E55-$E$44)/(D55-$D$44)))),180+(DEGREES(ATAN((E55-$E$44)/(D55-$D$44))))))))-(IF(AND($F$44-$D$44=0,$G$44-$E$44>0),90,IF(AND($F$44-$D$44=0,$G$44-$E$44<0),270,IF(AND($F$44-$D$44>0,$G$44-$E$44>=0),DEGREES(ATAN(($G$44-$E$44)/($F$44-$D$44))),IF(AND($F$44-$D$44>0,$G$44-$E$44<0),360+(DEGREES(ATAN(($G$44-$E$44)/($F$44-$D$44)))),180+(DEGREES(ATAN(($G$44-$E$44)/($F$44-$D$44)))))))))+(IF(AND($F$49-$D$49=0,$G$49-$E$49>0),90,IF(AND($F$49-$D$49=0,$G$49-$E$49<0),270,IF(AND($F$49-$D$49>0,$G$49-$E$49>=0),DEGREES(ATAN(($G$49-$E$49)/($F$49-$D$49))),IF(AND($F$49-$D$49>0,$G$49-$E$49),360+(DEGREES(ATAN(($G$49-$E$49)/($F$49-$D$49)))),180+(DEGREES(ATAN(($G$49-$E$49)/($F$49-$D$49))))))))))*PI()/180)),"") -> 224 | M55: 101 | N55: 140 | O55: 230 | P55: =IF(N55<>"",$N$49+(SQRT((O55-$O$44)^2+(N55-$N$44)^2)*$O$39*COS((IF(AND(N55-$N$44=0,O55-$O$44>0),90,IF(AND(N55-$N$44=0,O55-$O$44<0),270,IF(AND(N55-$N$44>0,O55-$O$44>=0),DEGREES(ATAN((O55-$O$44)/(N55-$N$44))),IF(AND(N55-$N$44>0,O55-$O$44<0),360+(DEGREES(ATAN((O55-$O$44)/(N55-$N$44)))),180+(DEGREES(ATAN((O55-$O$44)/(N55-$N$44))))))))-$P$44+$P$49)*PI()/180)),"") -> 140 | Q55: =IF(O55<>"",$O$49+(SQRT((O55-$O$44)^2+(N55-$N$44)^2)*$O$39*SIN((IF(AND(N55-$N$44=0,O55-$O$44>0),90,IF(AND(N55-$N$44=0,O55-$O$44<0),270,IF(AND(N55-$N$44>0,O55-$O$44>=0),DEGREES(ATAN((O55-$O$44)/(N55-$N$44))),IF(AND(N55-$N$44>0,O55-$O$44<0),360+(DEGREES(ATAN((O55-$O$44)/(N55-$N$44)))),180+(DEGREES(ATAN((O55-$O$44)/(N55-$N$44))))))))-$P$44+$P$49)*PI()/180)),"") -> 230
C56: 102 | D56: 60 | E56: 230 | F56: 64 | G56: 224 | M56: 102 | N56: 60 | O56: 230 | P56: 60 | Q56: 230
C57: 103 | D57: 60 | E57: 170 | F57: 64 | G57: 170 | M57: 103 | N57: 60 | O57: 170 | P57: 60 | Q57: 170
C58: 104 | M58: 104
C59: 105 | M59: 105
C60: 106 | M60: 106
C61: 107 | M61: 107
C62: 108 | M62: 108
C63: 109 | M63: 109
C64: 110 | M64: 110
C65: 111 | M65: 111
C66: 112 | M66: 112
C67: 113 | M67: 113
C68: 114 | M68: 114

Sheet coordinates transformation
A1: Back to Introduction
B2: Co-ordinate Transformation | L2: Instructions:
C4: Bearing: | D4: 106.1895016 | E4: deg | H4: Bearing: | I4: 64.09749747 | J4: deg | L4: 1. Enter the co-ordinates of 2 points in two different co-ordinate systems into the top boxes.
C5: Baselength: | D5: 4339.828824 | E5: m | H5: Baselength: | I5: 4339.09514 | J5: m | L5: 2. Enter the co-ordinates of other points into the boxes on the left hand side.
C6: Scale Factor: | D6: 0.9998309416 | H6: Base Error: | I6: 733.684391 | J6: mm | L6: 3. Note: | M6: Data Input
C7: Scale Error: | D7: 169.0583709 | E7: mm/Km | H7: Alpha: | I7: 0.7419439421
C8: Northing Origin: | D8: 2914013.314 | E8: m | H8: Beta | I8: 0.6702097422
C9: Easting Origin: | D9: 338996.1596 | E9: m | H9: Rotation: | I9: -42.09200408 | J9: deg
B11: Original Co-ordinates (m) | G11: Transformed Co-ordinates (m)
B12: No | C12: Northing | D12: Easting | E12: Elevation | G12: No | H12: Northing | I12: Easting | J12: Elevation
B13: 2024 | C13: 40970.134 | D13: 66590.716 | G13: 2024 | H13: 2989040.603 | I13: 360944.155
B14: 3115 | C14: 39760.124 | D14: 70758.448 | G14: 3115 | H14: 2990936.098 | I14: 364847.339
B16: 1 | C16: 38369.072 | D16: 68883.429 | G16: 1 | H16: 2988647.359 | I16: 364388.4766
B17: 13 | C17: 39607.028 | D17: 69914.641 | G17: 13 | H17: 2990256.982 | I17: 364323.8879
B18: 3 | C18: 200 | D18: 500 | G18: 3 | H18: 2914496.807 | I18: 339233.0896
B19: 4 | C19: 100 | D19: 400 | G19: 4 | H19: 2914355.592 | I19: 339225.9162
B20: 5 | C20: 150 | D20: 400 | G20: 5 | H20: 2914392.689 | I20: 339192.4057
B21: 6 | C21: 200 | D21: 400 | G21: 6 | H21: 2914429.786 | I21: 339158.8952
B22: 7 | C22: 100 | D22: 300 | G22: 7 | H22: 2914288.571 | I22: 339151.7218
B23: 8 | C23: 150 | D23: 300 | G23: 8 | H23: 2914325.668 | I23: 339118.2113
B24: 9 | C24: 200 | D24: 300 | G24: 9 | H24: 2914362.765 | I24: 339084.7008

Sheet R.C. Jubail transformation
A1: Back to Introduction
B4: Line Name | C4: LAT | D4: DEP | E4: ROTATION | F4: SCALE FACOR | I4: Line Name | J4: LAT | K4: DEP | L4: ROTATION | M4: SCALE FACOR
B5: A to B | C5: 2914013.306 | D5: 338996.274 | E5: 42.09208204 | F5: 0.999830629 | I5: A to B | J5: -1935487.883 | K5: -2205265.232 | L5: -42.09208204 | M5: 1.000169398 | T5: JUBAIL ROYAL COMMISSION COORDINATES CONVERSION
B6: Given | E6: Transform | I6: Given | L6: Transform | T6: DATA:
B7: R.C. Coordinates | E7: U.T.M. Coordinates | I7: U.T.M. Coordinates | L7: R.C.Coordinates | T7: FROM JUBAIL ROYAL COMMISSION COORDINATES TO UTM (ZONE 39_ AIN EL ABD DATUM - SAUDI ARABIA)
B8: Point No. | C8: Northing | D8: Easting | E8: Northing | F8: Easting | I8: Point No. | J8: Northing | K8: Easting | L8: Northing | M8: Easting | T8: LATITUDE | V8: 2914013.306
B9: 1 | C9: 67102.52 | D9: 75145.838 | E9: =$C$5+(SQRT(C9^2+D9^2)*$F$5*COS((IF(AND(C9=0,D9>0),90,IF(AND(C9=0,D9<0),270,IF(AND(C9>0,D9>=0),DEGREES(ATAN(D9/C9)),IF(AND(C9>0,D9<0),360+(DEGREES(ATAN(D9/C9))),180+(DEGREES(ATAN(D9/C9)))))))-$E$5)*PI()/180)) -> 3014163.07 | F9: =$D$5+(SQRT(C9^2+D9^2)*$F$5*SIN((IF(AND(C9=0,D9>0),90,IF(AND(C9=0,D9<0),270,IF(AND(C9>0,D9>=0),DEGREES(ATAN(D9/C9)),IF(AND(C9>0,D9<0),360+(DEGREES(ATAN(D9/C9))),180+(DEGREES(ATAN(D9/C9)))))))-$E$5)*PI()/180)) -> 349777.371 | I9: 1 | J9: 2989040.603 | K9: 360944.155 | L9: =$J$5+(SQRT(J9^2+K9^2)*$M$5*COS((IF(AND(J9=0,K9>0),90,IF(AND(J9=0,K9<0),270,IF(AND(J9>0,K9>=0),DEGREES(ATAN(K9/J9)),IF(AND(J9>0,K9<0),360+(DEGREES(ATAN(K9/J9))),180+(DEGREES(ATAN(K9/J9)))))))-$L$5)*PI()/180)) -> 40970.13761 | M9: =$K$5+(SQRT(J9^2+K9^2)*$M$5*SIN((IF(AND(J9=0,K9>0),90,IF(AND(J9=0,K9<0),270,IF(AND(J9>0,K9>=0),DEGREES(ATAN(K9/J9)),IF(AND(J9>0,K9<0),360+(DEGREES(ATAN(K9/J9))),180+(DEGREES(ATAN(K9/J9)))))))-$L$5)*PI()/180)) -> 66590.7114 | T9: DEPARTURE | V9: 338996.274
B10: 2 | C10: 67089.581 | D10: 75148.586 | E10: =$C$5+(SQRT(C10^2+D10^2)*$F$5*COS((IF(AND(C10=0,D10>0),90,IF(AND(C10=0,D10<0),270,IF(AND(C10>0,D10>=0),DEGREES(ATAN(D10/C10)),IF(AND(C10>0,D10<0),360+(DEGREES(ATAN(D10/C10))),180+(DEGREES(ATAN(D10/C10)))))))-$E$5)*PI()/180)) -> 3014155.312 | F10: =$D$5+(SQRT(C10^2+D10^2)*$F$5*SIN((IF(AND(C10=0,D10>0),90,IF(AND(C10=0,D10<0),270,IF(AND(C10>0,D10>=0),DEGREES(ATAN(D10/C10)),IF(AND(C10>0,D10<0),360+(DEGREES(ATAN(D10/C10))),180+(DEGREES(ATAN(D10/C10)))))))-$E$5)*PI()/180)) -> 349788.0817 | I10: 2 | J10: 2990936.098 | K10: 364847.339 | L10: =$J$5+(SQRT(J10^2+K10^2)*$M$5*COS((IF(AND(J10=0,K10>0),90,IF(AND(J10=0,K10<0),270,IF(AND(J10>0,K10>=0),DEGREES(ATAN(K10/J10)),IF(AND(J10>0,K10<0),360+(DEGREES(ATAN(K10/J10))),180+(DEGREES(ATAN(K10/J10)))))))-$L$5)*PI()/180)) -> 39760.12156 | M10: =$K$5+(SQRT(J10^2+K10^2)*$M$5*SIN((IF(AND(J10=0,K10>0),90,IF(AND(J10=0,K10<0),270,IF(AND(J10>0,K10>=0),DEGREES(ATAN(K10/J10)),IF(AND(J10>0,K10<0),360+(DEGREES(ATAN(K10/J10))),180+(DEGREES(ATAN(K10/J10)))))))-$L$5)*PI()/180)) -> 70758.44305 | T10: ROTATION | V10: 42.09208204
B11: 3 | C11: 70563.631 | D11: 77332.95 | E11: 3018196.842 | F11: 349080.4099 | I11: 3 | J11: 2990255.735 | K11: 365363.083 | L11: 38909.38591 | M11: 70685.0843 | T11: SCALE FACTOR | V11: 0.999830629
B12: 4 | C12: 39818.319 | D12: 69984.388 | E12: 2990460.496 | F12: 364234.0295 | I12: 4 | J12: 2990460.494 | K12: 364234.031 | L12: 39818.3158 | M12: 69984.3866
B13: 5 | C13: 40958.841 | D13: 69476.082 | E13: 2990966.026 | F13: 363092.5057 | I13: 5 | J13: 2990966.026 | K13: 363092.508 | L13: 40958.83868 | M13: 69476.08254 | T13: FROM UTM (ZONE 39_ AIN EL ABD DATUM - SAUDI ARABIA) TO JUBAIL ROYAL COMMISSION COORDINATES
B14: 6 | C14: 40990.273 | D14: 68882.918 | E14: 2990591.802 | F14: 362631.3458 | I14: 6 | J14: 2990591.804 | K14: 362631.348 | L14: 40990.2723 | M14: 68882.91976 | T14: LATITUDE | V14: -1935487.883
B15: 7 | C15: 40926.28 | D15: 68045.598 | E15: 2989983.142 | F15: 362052.9911 | I15: 7 | J15: 2989983.146 | K15: 362052.992 | L15: 40926.2815 | M15: 68045.60007 | T15: DEPARTURE | V15: -2205265.232
B16: 8 | I16: 8 | J16: 2989983.142 | K16: 362052.991 | L16: 40926.2792 | M16: 68045.59665 | T16: ROTATION | V16: -42.09208204
B17: 9 | I17: 9 | T17: SCALE FACTOR | V17: 1.000169398
B18: 10 | I18: 10
B19: 11 | I19: 11
B20: 12 | I20: 12
B21: 13 | I21: 13
B22: 14 | I22: 14
B23: 15 | I23: 15

Sheet Right triangle solver
A1: Back to Introduction
B6: Right Triangle Solver
B7: Enter ONLY TWO known pieces of information
H8: Degrees
E9: a | F9: b | G9: c | H9: Y | I9: Z
B10: a= | C10: 3 | E10: =IF(OR(C11="",C12=""),"",SQRT((C12*C12)-(C11*C11))) ->  | F10: =IF(OR(C10="",C12=""),"",SQRT((C12*C12)-(C10*C10))) -> 4 | G10: =IF(OR(C10="",C11=""),"",SQRT((C10*C10)+(C11*C11))) ->  | H10: =IF(OR(C10="",C11=""),"",ATAN(SUM(C11/C10))*180/PI()) ->  | I10: =IF(OR(C10="",C11=""),"",SUM(90-H10)) -> 
B11: b= | E11: =IF(OR(C12="",C15=""),"",SUM(C12*COS((C15)/180*PI()))) ->  | F11: =IF(OR(C12="",C15=""),"",SUM(C12*SIN((C15)/180*PI()))) ->  | G11: =IF(OR(C11="",C15=""),"",SUM(C11/SIN((C15)/180*PI()))) ->  | H11: =IF(OR(C10="",C12=""),"",SUM(90-I11)) -> 53.13010235 | I11: =IF(OR(C10="",C12=""),"",ASIN(SUM(C10/C12))*180/PI()) -> 36.86989765
B12: c= | C12: 5 | E12: =IF(OR(C12="",C16=""),"",SUM(C12*SIN((C16)/180*PI()))) ->  | F12: =IF(OR(C12="",C16=""),"",SUM(C12*COS((C16)/180*PI()))) ->  | G12: =IF(OR(C11="",C16=""),"",SUM(C11/COS((C16)/180*PI()))) ->  | H12: =IF(OR(C11="",C12=""),"",ASIN(SUM(C11/C12))*180/PI()) ->  | I12: =IF(OR(C11="",C12=""),"",SUM(90-H12)) -> 
E13: =IF(OR(C11="",C15=""),"",SUM(C11*TAN((90-C15)/180*PI()))) ->  | F13: =IF(OR(C10="",C15=""),"",SUM(C10*TAN((C15)/180*PI()))) ->  | G13: =IF(OR(C10="",C15=""),"",SUM(C10/COS((C15)/180*PI()))) ->  | H13: =IF(OR(C12="",C16=""),"",SUM(90-C16)) ->  | I13: =IF(OR(C12="",C15=""),"",SUM(90-C15)) -> 
B14: X= | C14: 90 | E14: =IF(OR(C11="",C16=""),"",SUM(C11*TAN((C16)/180*PI()))) ->  | F14: =IF(OR(C10="",C16=""),"",SUM(C10*TAN((90-C16)/180*PI()))) ->  | G14: =IF(OR(C10="",C16=""),"",SUM(C10/SIN((C16)/180*PI()))) ->  | H14: =IF(OR(C11="",C16=""),"",SUM(90-C16)) ->  | I14: =IF(OR(C11="",C15=""),"",SUM(90-C15)) -> 
B15: Y= | D15: =IF(OR(C15="",C16=""),"","This will not work with 2 angles entered") ->  | H15: =IF(OR(C10="",C16=""),"",SUM(90-C16)) ->  | I15: =IF(OR(C10="",C15=""),"",SUM(90-C15)) -> 
B16: Z=
E17: Degree Converter
E18: Degrees entered as a decimal will be converted to Deg, Min, Sec
E19: =IF(G19="","",+G19) -> 6 | F19: Degrees | G19: 6 | H19: =IF(G19+G20+G21="","",TRUNC(E19)) -> 6 | I19: Degrees
B20: Y | E20: =IF(G20="","",G20/60) -> 0.4166666667 | F20: Minutes | G20: 25 | H20: =IF(G19+G20+G21="","",TRUNC((E22-H19)*60)) -> 25 | I20: Minutes
E21: =IF(G21="","",G21/3600) -> 0.0008333333333 | F21: Seconds | G21: 3 | H21: =IF(G19+G20+G21="","",((E22-H19)*60-H20)*60) -> 3 | I21: Seconds
D22: c | E22: =IF(G19+G20+G21="","",SUM(E19+E20+E21)) -> 6.4175 | F22: Angle as a decimal
B23: a | F23: NOTE: | G23: The Degree Converter above has
G24: no influence on the Right Triangle
E25: Z | G25: calculations.
B26: X | D26: b

Sheet triangle solver
A1: Back to Introduction
B6: Triangle Solver
B7: Enter ONLY 3-known pieces of information except 3-angles
H8: Degrees
E9: a | F9: b | G9: c | H9: A | I9: B | J9: C
B10: a= | C10: 322.418 | E10: =IF(OR(C11="",C12="",C14=""),"",SQRT(C11^2+C12^2-(2*C11*C12*COS(C14*PI()/180)))) -> 322.4180072 | I10: =IF(OR(C11="",C12="",C14=""),"",DEGREES(ACOS((E10^2+C12^2-C11^2)/2/E10/C12))) -> 59.36581346 | J10: =IF(OR(C11="",C12="",C14=""),"",DEGREES(ACOS((E10^2+C11^2-C12^2)/2/E10/C11))) -> 98.92231754
B11: b= | C11: 749.909 | E11: =IF(OR(C11="",C12="",C15=""),"",SQRT(C11^2+C12^2-(2*C11*C12*COS(H11*PI()/180)))) -> 555.0324462 | H11: =IF(OR(C11="",C12="",C15=""),"",180-J11-C15) -> 39.55649383 | J11: =IF(OR(C11="",C12="",C15=""),"",DEGREES(ASIN(SIN(C15*PI()/180)*C12/C11))) -> 81.07769056
B12: c= | C12: 860.9971 | E12: =IF(OR(C11="",C12="",C16=""),"",SQRT(C11^2+C12^2-(2*C11*C12*COS(H12*PI()/180)))) -> 322.4180276 | H12: =IF(OR(C11="",C12="",C16=""),"",180-I12-C16) -> 21.71187058 | I12: =IF(OR(C11="",C12="",C16=""),"",IF(C10^2+C12^2<C11^2,180-(DEGREES(ASIN(SIN(C16*PI()/180)*C11/C12))),DEGREES(ASIN(SIN(C16*PI()/180)*C11/C12)))) -> 59.36581403
E13: =IF(OR(C11="",C14="",C15=""),"",SIN(C14*PI()/180)*C11/SIN(C15*PI()/180)) -> 322.418 | G13: =IF(OR(C11="",C14="",C15=""),"",SQRT(E13^2+C11^2-(2*C11*E13*COS(J13*PI()/180)))) -> 860.997086 | J13: =IF(OR(C11="",C14="",C15=""),"",180-C14-C15) -> 98.92231539 | L13: CONVERTER
B14: A= | C14: 21.711869 | E14: =IF(OR(C11="",C14="",C16=""),"",SIN(C14*PI()/180)*C11/SIN(I14*PI()/180)) -> 322.418 | G14: =IF(OR(C11="",C14="",C16=""),"",SQRT(E14^2+C11^2-(2*C11*E14*COS(C16*PI()/180)))) -> 860.997086 | I14: =IF(OR(C11="",C14="",C16=""),"",180-C14-C16) -> 59.36581561 | L14: D-M-S to Degrees | Q14: Degrees to D-M-S
B15: B= | C15: 59.36581561 | E15: =IF(OR(C12="",C14="",C15=""),"",SIN(C14*PI()/180)*C12/SIN(J15*PI()/180)) -> 322.4180053 | F15: =IF(OR(C12="",C14="",C15=""),"",SQRT(E15^2+C12^2-(2*E15*C12*COS(C15*PI()/180)))) -> 749.9090122 | J15: =IF(OR(C12="",C14="",C15=""),"",180-C14-C15) -> 98.92231539 | L15: 6 | M15: 25 | N15: 3 | O15: =ABS(L15)+(ABS(M15)/60)+ABS(N15)/3600 -> 6.4175 | Q15: 233.130102 | R15: =TRUNC(Q15) -> 233 | S15: =TRUNC((Q15-(R15))*60) -> 7 | T15: =(Q15-(R15)-(S15/60))*3600 -> 48.3672
B16: C= | C16: 98.92231539 | E16: =IF(OR(C12="",C14="",C16=""),"",SIN(C14*PI()/180)*C12/SIN(C16*PI()/180)) -> 322.4180053 | F16: =IF(OR(C12="",C14="",C16=""),"",SQRT(E16^2+C12^2-(2*E16*C12*COS(C15*PI()/180)))) -> 749.9090122 | I16: =IF(OR(C12="",C14="",C16=""),"",180-C14-C16) -> 59.36581561 | L16: 185 | M16: 12 | N16: 57 | O16: =ABS(L16)+(ABS(M16)/60)+ABS(N16)/3600 -> 185.2158333 | Q16: 306.869898 | R16: =TRUNC(Q16) -> 306 | S16: =TRUNC((Q16-(R16))*60) -> 52 | T16: =(Q16-(R16)-(S16/60))*3600 -> 11.6328
E17: =IF(OR(C11="",C15="",C16=""),"",SIN(H17*PI()/180)*C11/SIN(C15*PI()/180)) -> 322.418 | G17: =IF(OR(C11="",C15="",C16=""),"",SQRT(E17^2+C11^2-(2*C11*E17*COS(C16*PI()/180)))) -> 860.997086 | H17: =IF(OR(C11="",C15="",C16=""),"",180-C15-C16) -> 21.711869
F18: =IF(OR(C10="",C12="",C14=""),"",SQRT(C10^2+C12^2-(2*C10*C12*COS(I18*PI()/180)))) -> 849.919924 | I18: =IF(OR(C10="",C12="",C14=""),"",180-J18-C14) -> 77.21044044 | J18: =IF(OR(C10="",C12="",C14=""),"",DEGREES(ASIN(SIN(C14*PI()/180)*C12/C10))) -> 81.07769056
F19: =IF(OR(C10="",C12="",C15=""),"",SQRT(C10^2+C12^2-(2*C10*C12*COS(C15*PI()/180)))) -> 749.909013 | H19: =IF(OR(C10="",C12="",C15=""),"",DEGREES(ACOS((F19^2+C12^2-C10^2)/2/C12/F19))) -> 21.7118686 | J19: =IF(OR(C10="",C12="",C15=""),"",180-H19-C15) -> 98.92231579
F20: =IF(OR(C10="",C12="",C16=""),"",SQRT(C10^2+C12^2-(2*C10*C12*COS(I20*PI()/180)))) -> 749.9090151 | H20: =IF(OR(C10="",C12="",C16=""),"",DEGREES(ASIN(SIN(C16*PI()/180)*C10/C12))) -> 21.71186863 | I20: =IF(OR(C10="",C12="",C16=""),"",180-H20-C16) -> 59.36581598
F21: =IF(OR(C10="",C14="",C15=""),"",SIN(C15*PI()/180)*C10/SIN(C14*PI()/180)) -> 749.909 | G21: =IF(OR(C10="",C14="",C15=""),"",SQRT(C10^2+F21^2-(2*C10*F21*COS(J21*PI()/180)))) -> 860.997086 | J21: =IF(OR(C10="",C14="",C15=""),"",180-C14-C15) -> 98.92231539
F22: =IF(OR(C10="",C14="",C16=""),"",SQRT(C10^2+G22^2-(2*C10*G22*COS(I22*PI()/180)))) -> 749.909 | G22: =IF(OR(C10="",C14="",C16=""),"",SIN(C16*PI()/180)*C10/SIN(C14*PI()/180)) -> 860.997086 | I22: =IF(OR(C10="",C14="",C16=""),"",180-C14-C16) -> 59.36581561
F23: =IF(OR(C10="",C14="",C16=""),"",SQRT(C10^2+G22^2-(2*C10*G22*COS(I22*PI()/180)))) -> 749.909 | G23: =IF(OR(C10="",C14="",C16=""),"",SQRT(C10^2+F23^2-(2*C10*F23*COS(C16*PI()/180)))) -> 860.997086 | H23: =IF(OR(C10="",C15="",C16=""),"",180-C15-C16) -> 21.711869
G24: =IF(OR(C10="",C11="",C14=""),"",SQRT(C10^2+C11^2-(2*C10*C11*COS(J24*PI()/180)))) -> 860.997086 | I24: =IF(OR(C10="",C11="",C14=""),"",DEGREES(ASIN(SIN(C14*PI()/180)*C11/C10))) -> 59.36581561 | J24: =IF(OR(C10="",C11="",C14=""),"",180-C14-I24) -> 98.92231539
G25: =IF(OR(C10="",C11="",C15=""),"",SQRT(C10^2+C11^2-(2*C10*C11*COS(J25*PI()/180)))) -> 860.997086 | H25: =IF(OR(C10="",C11="",C15=""),"",DEGREES(ASIN(SIN(C15*PI()/180)*C10/C11))) -> 21.711869 | J25: =IF(OR(C10="",C11="",C15=""),"",180-H25-C15) -> 98.92231539
G26: =IF(OR(C10="",C11="",C16=""),"",SQRT(C10^2+C11^2-(2*C10*C11*COS(C16*PI()/180)))) -> 860.997086 | H26: =IF(OR(C10="",C11="",C16=""),"",DEGREES(ACOS((C11^2+G26^2-C10^2)/2/C11/G26))) -> 21.711869 | I26: =IF(OR(C10="",C11="",C16=""),"",180-H26-C16) -> 59.36581561
H27: =IF(OR(C10="",C11="",C12=""),"",DEGREES(ACOS((C11^2+C12^2-C10^2)/2/C11/C12))) -> 21.71186845 | I27: =IF(OR(C10="",C11="",C12=""),"",DEGREES(ACOS((C10^2+C12^2-C11^2)/2/C10/C12))) -> 59.36581326 | J27: =IF(OR(C10="",C11="",C12=""),"",180-H27-I27) -> 98.92231829
E28: =IF(OR(C12="",C15="",C16=""),"",SIN(H28*PI()/180)*C12/SIN(C16*PI()/180)) -> 322.4180053 | F28: =IF(OR(C12="",C15="",C16=""),"",SQRT(E28^2+C12^2-(2*E28*C12*COS(C15*PI()/180)))) -> 749.9090122 | H28: =IF(OR(C12="",C15="",C16=""),"",180-C15-C16) -> 21.711869
E33: Degree Converter
E34: Degrees entered as a decimal will be converted to Deg, Min, Sec
E35: =IF(G35="","",+G35) -> 6 | F35: Degrees | G35: 6 | H35: =IF(G35+G36+G37="","",TRUNC(E35)) -> 6 | I35: Degrees
B36: B | E36: =IF(G36="","",G36/60) -> 0.4166666667 | F36: Minutes | G36: 25 | H36: =IF(G35+G36+G37="","",TRUNC((E38-H35)*60)) -> 25 | I36: Minutes
E37: =IF(G37="","",G37/3600) -> 0.0008333333333 | F37: Seconds | G37: 3 | H37: =IF(G35+G36+G37="","",((E38-H35)*60-H36)*60) -> 3 | I37: Seconds
D38: c | E38: =IF(G35+G36+G37="","",SUM(E35+E36+E37)) -> 6.4175 | F38: Angle as a decimal
B39: a | F39: NOTE: | G39: Figure out the shape of triangle because
G40: in arc sine, no values greater than
E41: A | G41: 90 degrees.
C42: C | D42: b | G42: 180 - the value

Sheet compass rule or bowditch method
A1: Back to Introduction
A2: Bowditch Traverse Computation (Compass Rule) | N2: Start Station Co-ordinates: | V2: Closing Station Co-ordinates: | X2: Closing Station Co-ordinates | AF2: All Angles must be Clockwise & External | AV2: All angle must be Clockwise
N3: Station No | Q3: Easting (m) | R3: Northing (m) | V3: Station | Y3: Easting (m) | Z3: Northing (m) | AJ3: 2nd Forward
N4: 1 | Q4: 100 | R4: 200 | V4: 4 | Y4: 200 | Z4: 200 | AJ4: Distance | BC4: 2nd Station
AH5: 2nd HA | AO5: Closed Traverse Example | BC5: 2nd HA | BF5: Loop Traverse Example
N6: Back Azimuth: | U6: Forward Azimuth:
A7: Enter Station ID, Hz Angle and Forward Distances | N7: Deg | O7: Min | P7: Sec | Q7: Degrees | V7: Deg | W7: Min | X7: Sec | Y7: Degrees
A8: Do not enter Forward Distance from final Fixed point | N8: 90 | O8: 0 | P8: 0 | Q8: =IF(N8<>"",N8+O8/60+P8/3600,"") -> 90 | V8: 270 | W8: 0 | X8: 0 | Y8: =IF(V8<>"",V8+W8/60+X8/3600,"") -> 270 | AG8: 1st | AI8: 2nd Station | AZ8: 1st Forward
A9: Refer to Sketches on the right side for further details | AG9: Forward | AZ9: Distance
AC10: Station | AG10: Distance | AQ10: Station (N-1)
A11: Station | B11: Measured HA | E11: Forward | F11: HA Degrees | G11: Meas Fwd | H11: Adj | I11: Adjusted | J11: Adjusted HA | M11: Adj Fwd | N11: Fwd Azimuth | Q11: Differences | S11: Station Co-ordinates | U11: Adjustment | Y11: Station Co-ordinates | AA11: Station | AC11: 1=Yes | BD11: 2nd Forward
A12: No | B12: Deg | C12: Min | D12: Sec | E12: HzDist (m) | G12: Bearing | H12: Sec | I12: HA Degrees | J12: Deg | K12: Min | L12: Sec | M12: Brg Deg | N12: Deg | O12: Min | P12: Sec | Q12: Easting (m) | R12: Northing (m) | S12: Easting | T12: Northing | U12: Easting (m) | V12: Northing (m) | Y12: Easting (m) | Z12: Northing (m) | AA12: No | AC12: 0=No | AR12: (N-1) HA | AW12: Back Azimuth | BD12: Distance | BF12: Final (N) HA
A13: 1 | B13: 269 | C13: 59 | D13: 56 | E13: 100.0023 | F13: =IF(A13<>"",B13+(C13/60)+(D13/3600),"") -> 269.9988889 | G13: =IF(A13<>"",IF(Q8+F13>=360,Q8+F13-360,Q8+F13),"") -> 359.9988889 | H13: =IF(A13<>"",-1*(Total_HA_Misc/Total_Stns),"") -> 4.5 | I13: =IF(A13<>"",F13-(Total_HA_Misc/Total_Stns)/3600,"") -> 270.0001389 | J13: =IF(A13<>"",INT(I13),"") -> 270 | K13: =IF(A13<>"",INT((I13-J13+0.00000001)*60),"") -> 0 | L13: =IF(A13<>"",(I13-J13-(K13/60))*3600,"") -> 0.5 | M13: =IF(A13<>"",IF(Q8+I13>=360,Q8+I13-360,Q8+I13),"") -> 0.0001388888889 | N13: =IF(A13<>"",INT(M13),"") -> 0 | O13: =IF(A13<>"",INT((M13-N13+0.00000001)*60),"") -> 0 | P13: =IF(A13<>"",((M13-N13)-(O13/60))*3600,"") -> 0.5 | Q13: =IF(E13<>"",SIN(M13*PI()/180)*E13,"") -> 0.0002424124159 | R13: =IF(E13<>"",COS(M13*PI()/180)*E13,"") -> 100.0023 | S13: =IF(E13<>"",Q13+Q4,"") -> 100.0002424 | T13: =IF(E13<>"",R13+R4,"") -> 300.0023 | U13: =IF(Q13<>"",-1*(East_Misc*E13/Total_Dist),"") -> -0.002824073569 | V13: =IF(R13<>"",-1*North_Misc*E13/Total_Dist,"") -> -0.001946540704 | Y13: =IF(U13<>"",Q4+Q13+U13,"") -> 99.99741834 | Z13: =IF(V13<>"",R4+R13+V13,"") -> 300.0003535 | AA13: =IF(A14<>"",A14,"") -> 2 | AC13: =IF(A13<>"",1,0) -> 1 | AG13: 1st HA | AW13: FIXED | AY13: 1st HA | BH13: Forward Azimuth
A14: 2 | B14: 269 | C14: 59 | D14: 51 | E14: 100.0012 | F14: =IF(A14<>"",B14+(C14/60)+(D14/3600),"") -> 269.9975 | G14: =IF(A14<>"",IF(G13+F14-180<=0,G13+F14+180,IF(G13+F14-180>=360,G13+F14-540,G13+F14-180)),G13) -> 89.99638889 | H14: 4.5 | I14: 269.99875 | J14: 269 | K14: =IF(A14<>"",INT((I14-J14+0.00000001)*60),"") -> 59 | L14: 55.5 | M14: =IF(A14<>"",IF(M13+I14-180<=0,M13+I14+180,IF(M13+I14-180>=360,M13+I14-540,M13+I14-180)),"") -> 89.99888889 | N14: =IF(A14<>"",INT(M14),"") -> 89 | O14: =IF(A14<>"",INT((M14-N14+0.00000001)*60),"") -> 59 | P14: =IF(A14<>"",((M14-N14)-(O14/60))*3600,"") -> 56 | Q14: =IF(E14<>"",SIN(M14*PI()/180)*E14,"") -> 100.0012 | R14: =IF(E14<>"",COS(M14*PI()/180)*E14,"") -> 0.001939277995 | S14: =IF(E14<>"",Q14+S13,S13) -> 200.0014424 | T14: =IF(E14<>"",R14+T13,T13) -> 300.0042393 | U14: -0.002824042505 | V14: -0.001946519293 | Y14: =IF(U14<>"",Y13+Q14+U14,"") -> 199.9957943 | Z14: =IF(V14<>"",Z13+R14+V14,"") -> 300.0003462 | AA14: =IF(A15<>"",A15,"") -> 3 | AC14: =IF(A14<>"",1,0) -> 1 | AH14: Start (1st) | BH14: FIXED
A15: 3 | B15: 269 | C15: 59 | D15: 45 | E15: 99.9984 | F15: =IF(A15<>"",B15+(C15/60)+(D15/3600),"") -> 269.9958333 | G15: =IF(A15<>"",IF(G14+F15-180<=0,G14+F15+180,IF(G14+F15-180>=360,G14+F15-540,G14+F15-180)),G14) -> 179.9922222 | H15: 4.5 | I15: 269.9970833 | J15: 269 | K15: 59 | L15: 49.5 | M15: 179.9959722 | N15: 179 | O15: =IF(A15<>"",INT((M15-N15+0.00000001)*60),"") -> 59 | P15: 45.5 | Q15: =IF(E15<>"",SIN(M15*PI()/180)*E15,"") -> 0.007029685894 | R15: =IF(E15<>"",COS(M15*PI()/180)*E15,"") -> -99.99839975 | S15: =IF(E15<>"",Q15+S14,S14) -> 200.0084721 | T15: =IF(E15<>"",R15+T14,T14) -> 200.0058395 | U15: -0.002823963432 | V15: -0.001946464791 | Y15: =IF(U15<>"",Y14+Q15+U15,"") -> 200 | Z15: 200 | AA15: 4 | AC15: 1 | AH15: Station | BF15: Closing (N) Stn | BI15: No Fwd Dist
A16: 4 | B16: 270 | C16: 0 | D16: 10 | F16: 270.0027778 | G16: 269.995 | H16: 4.5 | I16: 270.0040278 | J16: 270 | K16: 0 | L16: 14.5 | M16: 270 | N16: 270 | O16: =IF(A16<>"",INT((M16-N16+0.00000001)*60),"") -> 0 | P16: -2.046363079e-10 | S16: 200.0084721 | T16: 200.0058395 | AC16: 1 | AH16: FIXED | AI16: Back Azimuth | AQ16: (N-1) | BD16: (N-1) HA | BG16: FIXED
G17: 269.995 | O17: =IF(A17<>"",INT((M17-N17+0.00000001)*60),"") ->  | S17: 200.0084721 | T17: 200.0058395 | AC17: 0 | AI17: FIXED | AQ17: Forward | AY17: Start (1st) | BF17: (N -1)
G18: 269.995 | S18: 200.0084721 | T18: 200.0058395 | AC18: 0 | AJ18: FIXED BASELINE | AQ18: Distance | AY18: Station | BF18: Fwd Dist
G19: 269.995 | S19: 200.0084721 | T19: 200.0058395 | AC19: 0 | AY19: FIXED
G20: 269.995 | S20: 200.0084721 | T20: 200.0058395 | AC20: 0 | AL20: Forward Azimuth
G21: 269.995 | S21: 200.0084721 | T21: 200.0058395 | AC21: 0 | AL21: FIXED | BD21: Station (N-1)
G22: 269.995 | S22: 200.0084721 | T22: 200.0058395 | AC22: 0 | AF22: Bowditch Traverse Computation
G23: 269.995 | S23: 200.0084721 | T23: 200.0058395 | AC23: 0 | AL23: No Forward Distance | AO23: Closing | AP23: Final (N) HA | AV23: Bowditch Traverse Computation
G24: 269.995 | S24: 200.0084721 | T24: 200.0058395 | AC24: 0 | AO24: Station (N)
G25: 269.995 | S25: 200.0084721 | T25: 200.0058395 | AC25: 0 | AO25: FIXED
G26: 269.995 | S26: 200.0084721 | T26: 200.0058395 | AC26: 0
G27: 269.995 | S27: 200.0084721 | T27: 200.0058395 | AC27: 0
G28: 269.995 | S28: 200.0084721 | T28: 200.0058395 | AC28: 0
G29: 269.995 | S29: 200.0084721 | T29: 200.0058395 | AC29: 0
G30: 269.995 | S30: 200.0084721 | T30: 200.0058395 | AC30: 0
G31: 269.995 | S31: 200.0084721 | T31: 200.0058395 | Y31: =IF(U31<>"",Y30+Q31+U31,"") ->  | Z31: =IF(V31<>"",Z30+R31+V31,"") ->  | AC31: 0
G32: 269.995 | S32: 200.0084721 | T32: 200.0058395 | Y32: =IF(U32<>"",Y31+Q32+U32,"") ->  | Z32: =IF(V32<>"",Z31+R32+V32,"") ->  | AC32: 0
A33: ONLY ENTER DATA IN WHITE CELLS
A34: Total No | E34: Total | F34: Measured | G34: Measured | H34: Misc: | I34: Adjusted | K34: Accuracy Ratio | Q34: Total Diff: | R34: Total Diff: | U34: Misclosure: | V34: Misclosure: | Y34: Linear Error | AC34: =SUM(AC13:AC32) -> 4
A35: Stations: | E35: Distance: | F35: Total Angle: | G35: Fwd Bearing | H35: Sec | I35: Total Angle: | Q35: Easting | R35: Northing | U35: Easting | V35: Northing | Y35: Closure
A36: =AC34 -> 4 | E36: =SUM(E13:E32) -> 300.0019 | F36: =SUM(F13:F32) -> 1079.995 | G36: =G32 -> 269.995 | H36: =(G36-Y8)*3600 -> -18 | I36: =SUM(I13:I32) -> 1080 | K36: 1/ | L36: =Total_Dist/Y36 -> 29155.7939 | Q36: =SUM(Q13:Q32) -> 100.0084721 | R36: =SUM(R13:R32) -> 0.005839524788 | U36: =S32-Y4 -> 0.008472079506 | V36: =T32-Z4 -> 0.005839524788 | Y36: =SQRT(East_Misc^2+North_Misc^2) -> 0.0102896152

Sheet compass rule
A1: Back to Introduction
A2: Compass Adjustment Program | E2: Compass Rules
C3: Azimuth | P3: Adjusted | Q3: Adjusted
H4: Corrections to | J4: Corrected | K4: Corrected | O4: Adjusted | P4: Azimuth | Q4: Azimuth | U4: Area Calculations
A5: Sta | B5: Dist | C5: Deg | D5: Min | E5: Sec | F5: Latitude | G5: Departure | H5: Latitude | I5: Departure | J5: Latitude | K5: Departure | L5: Northing | M5: Easting | N5: Sta | O5: Distance | P5: DD.DDDD | Q5: Deg | R5: Min | S5: Sec | U5: DMD | V5: 2A | X5: Coordinates
A6: 1 | L6: 6232.977 | M6: 4559.527 | N6: 1 | X6: =L6 -> 6232.977 | Y6: =M6 -> 4559.527
B7: 487.685 | C7: 218 | D7: 48 | E7: 57.6 | F7: =B7*COS((ABS(C7)+(ABS(D7)/60)+ABS(E7)/3600)*0.01745329252) -> -379.9860851 | G7: =B7*SIN((ABS(C7)+(ABS(D7)/60)+ABS(E7)/3600)*0.01745329252) -> -305.6914038 | H7: =ABS(B7*$F$27/$B$27) -> 0.03653382586 | I7: =ABS(B7*$G$27/$B$27) -> 0.03674034798 | J7: =F7+H7 -> -379.9495513 | K7: =G7+I7 -> -305.6546635 | O7: =SQRT(J7^2+K7^2) -> 487.6335046 | P7: =IF(AND(J7>0,K7>0),DEGREES(ATAN(K7/J7)),IF(AND(J7>0,K7<0),360+(DEGREES(ATAN(K7/J7))),180+(DEGREES(ATAN(K7/J7))))) -> 218.8153271 | Q7: =TRUNC(P7) -> 218 | R7: =TRUNC((P7-(Q7))*60) -> 48 | S7: =(P7-(Q7)-(R7/60))*3600 -> 55.17772782 | U7: =K7 -> -305.6546635 | V7: =U7*J7 -> 116133.3522
A8: 2 | L8: =L6+J7 -> 5853.027449 | M8: =M6+K7 -> 4253.872337 | N8: 2 | X8: =L8 -> 5853.027449 | Y8: 4253.872337 | Z8: =(X6*Y8)-(X8*Y6) -> -172748.2496
B9: 375.688 | C9: 138 | D9: 11 | E9: 27.9 | F9: =B9*COS((ABS(C9)+(ABS(D9)/60)+ABS(E9)/3600)*0.01745329252) -> -280.0274141 | G9: =B9*SIN((ABS(C9)+(ABS(D9)/60)+ABS(E9)/3600)*0.01745329252) -> 250.451833 | H9: =ABS(B9*$F$27/$B$27) -> 0.02814382228 | I9: =ABS(B9*$G$27/$B$27) -> 0.02830291654 | J9: =F9+H9 -> -279.9992703 | K9: =G9+I9 -> 250.480136 | O9: =SQRT(J9^2+K9^2) -> 375.6858926 | P9: =IF(AND(J9>0,K9>0),DEGREES(ATAN(K9/J9)),IF(AND(J9>0,K9<0),360+(DEGREES(ATAN(K9/J9))),180+(DEGREES(ATAN(K9/J9))))) -> 138.1850046 | Q9: =TRUNC(P9) -> 138 | R9: =TRUNC((P9-(Q9))*60) -> 11 | S9: =(P9-(Q9)-(R9/60))*3600 -> 6.016419096 | U9: =U7+K7+K9 -> -360.829191 | V9: =U9*J9 -> 101031.9102
A10: 3 | L10: =L8+J9 -> 5573.028178 | M10: =M8+K9 -> 4504.352472 | N10: 3 | X10: 5573.028178 | Y10: 4504.352472 | Z10: =(X8*Y10)-(X10*Y8) -> 2657148.261
B11: 354.374 | C11: 58 | D11: 13 | E11: 55.1 | F11: 186.5713394 | G11: 301.2840307 | H11: 0.02654713187 | I11: 0.02669720019 | J11: =F11+H11 -> 186.5978866 | K11: =G11+I11 -> 301.3107279 | O11: 354.4106743 | P11: =IF(AND(J11>0,K11>0),DEGREES(ATAN(K11/J11)),IF(AND(J11>0,K11<0),360+(DEGREES(ATAN(K11/J11))),180+(DEGREES(ATAN(K11/J11))))) -> 58.23059574 | Q11: 58 | R11: 13 | S11: 50.14465234 | U11: =U9+K9+K11 -> 190.9616729 | V11: 35633.04459
A12: 4 | L12: =L10+J11 -> 5759.626065 | M12: =M10+K11 -> 4805.6632 | N12: 4 | X12: 5759.626065 | Y12: 4805.6632 | Z12: 838710.5254
B13: 373.095 | C13: 337 | D13: 15 | E13: 52.3 | F13: 344.1051437 | G13: -144.1926804 | H13: 0.02794957352 | I13: 0.0281075697 | J13: =F13+H13 -> 344.1330933 | K13: =G13+I13 -> -144.1645728 | O13: 373.1099167 | P13: =IF(AND(J13>0,K13>0),DEGREES(ATAN(K13/J13)),IF(AND(J13>0,K13<0),360+(DEGREES(ATAN(K13/J13))),180+(DEGREES(ATAN(K13/J13))))) -> 337.2701674 | Q13: 337 | R13: 16 | S13: 12.6027842 | U13: =U11+K11+K13 -> 348.107828 | V13: 119795.4237
A14: 5 | L14: =L12+J13 -> 6103.759158 | M14: =M12+K13 -> 4661.498628 | N14: 5 | X14: 6103.759158 | Y14: 4661.498628 | Z14: -2484121.774
B15: 164.605 | C15: 321 | D15: 42 | E15: 55.4 | F15: 129.2055107 | G15: -101.9840283 | H15: 0.01233101368 | I15: 0.01240071968 | J15: =F15+H15 -> 129.2178417 | K15: =G15+I15 -> -101.9716276 | O15: 164.606997 | P15: =IF(AND(J15>0,K15>0),DEGREES(ATAN(K15/J15)),IF(AND(J15>0,K15<0),360+(DEGREES(ATAN(K15/J15))),180+(DEGREES(ATAN(K15/J15))))) -> 321.7214363 | Q15: 321 | R15: 43 | S15: 17.1706169 | U15: =U13+K13+K15 -> 101.9716276 | V15: 13176.55363
A16: 1 | L16: =L14+J15 -> 6232.977 | M16: =M14+K15 -> 4559.527 | N16: 1 | X16: 6232.977 | Y16: =M16 -> 4559.527 | Z16: -1224759.048
AA18: `
U26: Double Area | V26: =ABS(SUM(V7:V25)) -> 385770.2843 | X26: Double Area | Z26: =ABS(SUM(Z8:Z25)) -> 385770.2843
A27: Sum | B27: =SUM(B7:B26) -> 1755.447 | F27: =ABS(SUM(F7:F26)) -> 0.1315053672 | G27: =SUM(G7:G26) -> -0.1322487541 | H27: =SUM(H7:H26) -> 0.1315053672 | I27: =SUM(I7:I26) -> 0.1322487541 | J27: =SUM(J7:J26) -> 0 | K27: =SUM(K7:K26) -> 0 | U27: Area | V27: =V26/2 -> 192885.1421 | X27: Area | Z27: =Z26/2 -> 192885.1421
A30: Linear Error = | C30: =SQRT(F27^2+G27^2) -> 0.1865030685
B33: Accuracy Ratio
B34: 1/ | C34: =B27/C30 -> 9412.429586
H36: Data Input

Sheet curve coordinates computation
A1: Back to Introduction
H4: Bearing (Degrees) | I4: Distance | K4: TP1 = Beginning of Curve
G5: TP1-TP2 | H5: =DEGREES(ATAN2(C16-C15,D16-D15))+IF(D16-D15<0,360,) -> 249.458432 | I5: =SQRT((C16-C15)^2+(D16-D15)^2) -> 1434.094806 | K5: TP2 = End of Curve
G6: RP-TP1 | H6: =IF(C17>0,DEGREES(ATAN2(C15-H19,D15-I19))+IF(D15<I19,360),DEGREES(ATAN2(C15-H19,D15-I19))+IF(D15<I19,360)) -> 25.26967548 | I6: d/2
G7: RP-TP2 | H7: =DEGREES(ATAN2(C16-H19,D16-I19))+IF(D16<I19,360) -> 293.6471885 | I7: =I5/2 -> 717.0474029
H9: Angle (Degrees)
G10: TP2-TP1-RP | H10: =DEGREES(ACOS(I7/ABS(C17))) -> 44.1887565
G11: TP1-RP-TP2 | H11: =IF(C17<0,(H6-H7)+IF(H7>H6,360),(H7-H6)+IF(H6>H7,360)) -> 91.62248701
E13: Data Input | G13: Total Arc (m) | H13: =2*PI()*ABS(C17)*(H11/360) -> 1599.114067
C14: Northing (m) | D14: Easting (m)
B15: TP1 | C15: 2921450.582 | D15: 433951.192 | G15: Angle per Chain | H15: =C21/H13*H11 -> 5.729577951
B16: TP2 | C16: 2920947.377 | D16: 432608.28
B17: Radius | C17: -1000 | G17: Whole Circle (m) | H17: =ABS(2*PI()*C17) -> 6283.185307
H18: Northing | I18: Easting
B19: Stationing at TP1 | D19: 3 | G19: Centre | H19: =IF(C17<0,COS((H5-H10)*PI()/180)*ABS(C17)+C15,COS((H10+H5)*PI()/180)*C17+C15) -> 2920546.273 | I19: =IF(C17<0,SIN((H5-H10)*PI()/180)*ABS(C17)+D15,SIN((H10+H5)*PI()/180)*C17+D15) -> 433524.3127
G20: Stationing at TP2 | I20: =D19+H13 -> 1602.114067
A21: Chain Interval | C21: 100
B22: Offset | C22: 200 | H22: If the curve is going to the left from TP1, Enter the radius as (-) negative value
H23: example: Radius = -1000
D24: Centre-Line | F24: External | H24: Internal
B25: No | C25: CL Chainage | D25: Northing (m) | E25: Easting (m) | F25: Northing (m) | G25: Easting (m) | H25: Northing (m) | I25: Easting (m)
B26: =IF(C26<>"",0,"") -> 0 | C26: =IF(D19<>"",$D$19,"") -> 3 | D26: =IF($C$17>0,IF(B26<>"",COS(((C26-$D$19)/$C$17)+$H$6*PI()/180)*$C$17+$H$19,""),IF(B26<>"",COS(-((C26-$D$19)/ABS($C$17))+$H$6*PI()/180)*ABS($C$17)+$H$19,"")) -> 2921450.582 | E26: =IF($C$17>0,IF(B26<>"",SIN(((C26-$D$19)/$C$17)+$H$6*PI()/180)*$C$17+$I$19,""),IF(B26<>"",SIN(-((C26-$D$19)/ABS($C$17))+$H$6*PI()/180)*ABS($C$17)+$I$19,"")) -> 433951.192 | F26: =IF($C$17>0,IF(B26<>"",COS(((C26-$D$19)/$C$17)+$H$6*PI()/180)*($C$17+$C$22)+$H$19,""),IF(B26<>"",COS(-((C26-$D$19)/ABS($C$17))+$H$6*PI()/180)*(ABS($C$17)+$C$22)+$H$19,"")) -> 2921631.444 | G26: =IF($C$17>0,IF(B26<>"",SIN(((C26-$D$19)/$C$17)+$H$6*PI()/180)*($C$17+$C$22)+$I$19,""),IF(B26<>"",SIN(-((C26-$D$19)/ABS($C$17))+$H$6*PI()/180)*(ABS($C$17)+$C$22)+$I$19,"")) -> 434036.5679 | H26: =IF($C$17>0,IF(B26<>"",COS(((C26-$D$19)/$C$17)+$H$6*PI()/180)*($C$17-$C$22)+$H$19,""),IF(B26<>"",COS(-((C26-$D$19)/ABS($C$17))+$H$6*PI()/180)*(ABS($C$17)-$C$22)+$H$19,"")) -> 2921269.72 | I26: =IF($C$17>0,IF(B26<>"",SIN(((C26-$D$19)/$C$17)+$H$6*PI()/180)*($C$17-$C$22)+$I$19,""),IF(B26<>"",SIN(-((C26-$D$19)/ABS($C$17))+$H$6*PI()/180)*(ABS($C$17)-$C$22)+$I$19,"")) -> 433865.8161
B27: =IF(C27<>"",B26+1,"") -> 1 | C27: =IF(C21>C26,INT(C26/C21)+C21,INT(C26/C21)*C21+C21) -> 100 | D27: =IF($C$17>0,IF(B27<>"",COS(((C27-$D$19)/$C$17)+$H$6*PI()/180)*$C$17+$H$19,""),IF(B27<>"",COS(-((C27-$D$19)/ABS($C$17))+$H$6*PI()/180)*ABS($C$17)+$H$19,"")) -> 2921487.673 | E27: =IF($C$17>0,IF(B27<>"",SIN(((C27-$D$19)/$C$17)+$H$6*PI()/180)*$C$17+$I$19,""),IF(B27<>"",SIN(-((C27-$D$19)/ABS($C$17))+$H$6*PI()/180)*ABS($C$17)+$I$19,"")) -> 433861.6049 | F27: =IF($C$17>0,IF(B27<>"",COS(((C27-$D$19)/$C$17)+$H$6*PI()/180)*($C$17+$C$22)+$H$19,""),IF(B27<>"",COS(-((C27-$D$19)/ABS($C$17))+$H$6*PI()/180)*(ABS($C$17)+$C$22)+$H$19,"")) -> 2921675.953 | G27: =IF($C$17>0,IF(B27<>"",SIN(((C27-$D$19)/$C$17)+$H$6*PI()/180)*($C$17+$C$22)+$I$19,""),IF(B27<>"",SIN(-((C27-$D$19)/ABS($C$17))+$H$6*PI()/180)*(ABS($C$17)+$C$22)+$I$19,"")) -> 433929.0633 | H27: =IF($C$17>0,IF(B27<>"",COS(((C27-$D$19)/$C$17)+$H$6*PI()/180)*($C$17-$C$22)+$H$19,""),IF(B27<>"",COS(-((C27-$D$19)/ABS($C$17))+$H$6*PI()/180)*(ABS($C$17)-$C$22)+$H$19,"")) -> 2921299.393 | I27: =IF($C$17>0,IF(B27<>"",SIN(((C27-$D$19)/$C$17)+$H$6*PI()/180)*($C$17-$C$22)+$I$19,""),IF(B27<>"",SIN(-((C27-$D$19)/ABS($C$17))+$H$6*PI()/180)*(ABS($C$17)-$C$22)+$I$19,"")) -> 433794.1464
B28: =IF(C28<>"",B27+1,"") -> 2 | C28: =IF(C27<>"",IF(C27+$C$21<$H$13+$D$19-0.0009,C27+$C$21,IF(C27<>$H$13+$D$19,$H$13+$D$19,"")),"") -> 200 | D28: 2921516.643 | E28: 433765.9366 | F28: 2921710.717 | G28: 433814.2614 | H28: 2921322.569 | I28: 433717.6119
B29: 3 | C29: =IF(C28<>"",IF(C28+$C$21<$H$13+$D$19-0.0009,C28+$C$21,IF(C28<>$H$13+$D$19,$H$13+$D$19,"")),"") -> 300 | D29: 2921535.918 | E29: 433667.8542 | F29: 2921733.847 | G29: 433696.5625 | H29: 2921337.989 | I29: 433639.1459
B30: 4 | C30: 400 | D30: 2921545.304 | E30: 433568.3375 | F30: 2921745.11 | G30: 433577.1425 | H30: 2921345.498 | I30: 433559.5325
B31: 5 | C31: 500 | D31: 2921544.708 | E31: 433468.3809 | F31: 2921744.395 | G31: 433457.1946 | H31: 2921345.021 | I31: 433479.5673
B32: 6 | C32: 600 | D32: 2921534.136 | E32: 433368.9832 | F32: 2921731.709 | G32: 433337.9173 | H32: 2921336.564 | I32: 433400.0491
B33: 7 | C33: 700 | D33: 2921513.694 | E33: 433271.1375 | F33: 2921707.178 | G33: 433220.5025 | H33: 2921320.21 | I33: 433321.7725
B34: 8 | C34: 800 | D34: 2921483.585 | E34: 433175.8214 | F34: 2921671.048 | G34: 433106.1232 | H34: 2921296.123 | I34: 433245.5197
B35: 9 | C35: 900 | D35: 2921444.112 | E35: 433083.9874 | F35: 2921623.679 | G35: 432995.9223 | H35: 2921264.544 | I35: 433172.0524
B36: 10 | C36: 1000 | D36: 2921395.667 | E36: 432996.5529 | F36: 2921565.546 | G36: 432891.001 | H36: 2921225.788 | I36: 433102.1049
B37: 11 | C37: 1100 | D37: 2921338.736 | E37: 432914.3916 | F37: 2921497.228 | G37: 432792.4074 | H37: 2921180.243 | I37: 433036.3759
B38: 12 | C38: 1200 | D38: 2921273.886 | E38: 432838.3245 | F38: 2921419.409 | G38: 432701.1269 | H38: 2921128.364 | I38: 432975.5221
B39: 13 | C39: 1300 | D39: 2921201.766 | E39: 432769.1115 | F39: 2921332.865 | G39: 432618.0713 | H39: 2921070.668 | I39: 432920.1518
B40: 14 | C40: 1400 | D40: 2921123.097 | E40: 432707.4443 | F40: 2921238.462 | G40: 432544.0706 | H40: 2921007.733 | I40: 432870.818
B41: 15 | C41: 1500 | D41: 2921038.665 | E41: 432653.9389 | F41: 2921137.143 | G41: 432479.8641 | H41: 2920940.187 | I41: 432828.0137
B42: 16 | C42: 1600 | D42: 2920949.313 | E42: 432609.13 | F42: 2921029.921 | G42: 432426.0935 | H42: 2920868.705 | I42: 432792.1665
B43: 17 | C43: 1602.114067 | D43: 2920947.377 | E43: 432608.28 | F43: 2921027.598 | G43: 432425.0735 | H43: 2920867.156 | I43: 432791.4865
D91: =IF($C$17>0,IF(B91<>"",COS(((C91-$D$19)/$C$17)+$H$6*PI()/180)*$C$17+$H$19,""),IF(B91<>"",COS(-((C91-$D$19)/ABS($C$17))+$H$6*PI()/180)*ABS($C$17)+$H$19,"")) ->  | E91: =IF($C$17>0,IF(B91<>"",SIN(((C91-$D$19)/$C$17)+$H$6*PI()/180)*$C$17+$I$19,""),IF(B91<>"",SIN(-((C91-$D$19)/ABS($C$17))+$H$6*PI()/180)*ABS($C$17)+$I$19,"")) ->  | F91: =IF($C$17>0,IF(B91<>"",COS(((C91-$D$19)/$C$17)+$H$6*PI()/180)*($C$17+$C$22)+$H$19,""),IF(B91<>"",COS(-((C91-$D$19)/ABS($C$17))+$H$6*PI()/180)*(ABS($C$17)+$C$22)+$H$19,"")) ->  | G91: =IF($C$17>0,IF(B91<>"",SIN(((C91-$D$19)/$C$17)+$H$6*PI()/180)*($C$17+$C$22)+$I$19,""),IF(B91<>"",SIN(-((C91-$D$19)/ABS($C$17))+$H$6*PI()/180)*(ABS($C$17)+$C$22)+$I$19,"")) ->  | H91: =IF($C$17>0,IF(B91<>"",COS(((C91-$D$19)/$C$17)+$H$6*PI()/180)*($C$17-$C$22)+$H$19,""),IF(B91<>"",COS(-((C91-$D$19)/ABS($C$17))+$H$6*PI()/180)*(ABS($C$17)-$C$22)+$H$19,"")) ->  | I91: =IF($C$17>0,IF(B91<>"",SIN(((C91-$D$19)/$C$17)+$H$6*PI()/180)*($C$17-$C$22)+$I$19,""),IF(B91<>"",SIN(-((C91-$D$19)/ABS($C$17))+$H$6*PI()/180)*(ABS($C$17)-$C$22)+$I$19,"")) -> 
B92: =IF(C92<>"",B91+1,"") -> 
C93: =IF(C92<>"",IF(C92+$C$21<$H$13+$D$19-0.0009,C92+$C$21,IF(C92<>$H$13+$D$19,$H$13+$D$19,"")),"") -> 
D155: =IF($C$17>0,IF(B155<>"",COS(((C155-$D$19)/$C$17)+$H$6*PI()/180)*$C$17+$H$19,""),IF(B155<>"",COS(-((C155-$D$19)/ABS($C$17))+$H$6*PI()/180)*ABS($C$17)+$H$19,"")) ->  | E155: =IF($C$17>0,IF(B155<>"",SIN(((C155-$D$19)/$C$17)+$H$6*PI()/180)*$C$17+$I$19,""),IF(B155<>"",SIN(-((C155-$D$19)/ABS($C$17))+$H$6*PI()/180)*ABS($C$17)+$I$19,"")) ->  | F155: =IF($C$17>0,IF(B155<>"",COS(((C155-$D$19)/$C$17)+$H$6*PI()/180)*($C$17+$C$22)+$H$19,""),IF(B155<>"",COS(-((C155-$D$19)/ABS($C$17))+$H$6*PI()/180)*(ABS($C$17)+$C$22)+$H$19,"")) ->  | G155: =IF($C$17>0,IF(B155<>"",SIN(((C155-$D$19)/$C$17)+$H$6*PI()/180)*($C$17+$C$22)+$I$19,""),IF(B155<>"",SIN(-((C155-$D$19)/ABS($C$17))+$H$6*PI()/180)*(ABS($C$17)+$C$22)+$I$19,"")) ->  | H155: =IF($C$17>0,IF(B155<>"",COS(((C155-$D$19)/$C$17)+$H$6*PI()/180)*($C$17-$C$22)+$H$19,""),IF(B155<>"",COS(-((C155-$D$19)/ABS($C$17))+$H$6*PI()/180)*(ABS($C$17)-$C$22)+$H$19,"")) ->  | I155: =IF($C$17>0,IF(B155<>"",SIN(((C155-$D$19)/$C$17)+$H$6*PI()/180)*($C$17-$C$22)+$I$19,""),IF(B155<>"",SIN(-((C155-$D$19)/ABS($C$17))+$H$6*PI()/180)*(ABS($C$17)-$C$22)+$I$19,"")) -> 
B156: =IF(C156<>"",B155+1,"") -> 
C157: =IF(C156<>"",IF(C156+$C$21<$H$13+$D$19-0.0009,C156+$C$21,IF(C156<>$H$13+$D$19,$H$13+$D$19,"")),"") -> 
D219: =IF($C$17>0,IF(B219<>"",COS(((C219-$D$19)/$C$17)+$H$6*PI()/180)*$C$17+$H$19,""),IF(B219<>"",COS(-((C219-$D$19)/ABS($C$17))+$H$6*PI()/180)*ABS($C$17)+$H$19,"")) ->  | E219: =IF($C$17>0,IF(B219<>"",SIN(((C219-$D$19)/$C$17)+$H$6*PI()/180)*$C$17+$I$19,""),IF(B219<>"",SIN(-((C219-$D$19)/ABS($C$17))+$H$6*PI()/180)*ABS($C$17)+$I$19,"")) ->  | F219: =IF($C$17>0,IF(B219<>"",COS(((C219-$D$19)/$C$17)+$H$6*PI()/180)*($C$17+$C$22)+$H$19,""),IF(B219<>"",COS(-((C219-$D$19)/ABS($C$17))+$H$6*PI()/180)*(ABS($C$17)+$C$22)+$H$19,"")) ->  | G219: =IF($C$17>0,IF(B219<>"",SIN(((C219-$D$19)/$C$17)+$H$6*PI()/180)*($C$17+$C$22)+$I$19,""),IF(B219<>"",SIN(-((C219-$D$19)/ABS($C$17))+$H$6*PI()/180)*(ABS($C$17)+$C$22)+$I$19,"")) ->  | H219: =IF($C$17>0,IF(B219<>"",COS(((C219-$D$19)/$C$17)+$H$6*PI()/180)*($C$17-$C$22)+$H$19,""),IF(B219<>"",COS(-((C219-$D$19)/ABS($C$17))+$H$6*PI()/180)*(ABS($C$17)-$C$22)+$H$19,"")) ->  | I219: =IF($C$17>0,IF(B219<>"",SIN(((C219-$D$19)/$C$17)+$H$6*PI()/180)*($C$17-$C$22)+$I$19,""),IF(B219<>"",SIN(-((C219-$D$19)/ABS($C$17))+$H$6*PI()/180)*(ABS($C$17)-$C$22)+$I$19,"")) -> 
B220: =IF(C220<>"",B219+1,"") -> 
C221: =IF(C220<>"",IF(C220+$C$21<$H$13+$D$19-0.0009,C220+$C$21,IF(C220<>$H$13+$D$19,$H$13+$D$19,"")),"") -> 

Sheet super elevation
A1: Back to Introduction
AG7: To us instructions
A8: Calculate Super Elevation For Any Dc And Maximum e%
C9: Standard Data Values -English
H10: Super Trans | S10: Maximum Slope for Transitions
B11: GIVEN | E11: Des Speed | F11: Running Sp | G11: f max | H11: Gradient, %
B12: Design Speed | C12: 40 | E12: 20 | F12: 20 | G12: 0.17 | H12: 0.75 | U12: English
B13: Running Speed | C13: =4.976+0.77065*C12 -> 35.802 | D13: From Regress | E13: 30 | F13: 28 | G13: 0.16 | H13: 0.67
B14: f max | C14: =0.202355-0.00139*C12 -> 0.146755 | D14: From Regress | E14: 40 | F14: 36 | G14: 0.15 | H14: 0.58
B15: e max | C15: 0.06 | E15: 50 | F15: 44 | G15: 0.14 | H15: 0.5 | R15: fmax | S15: Speed | T15: Slope% | U15: Calc | V15: Regression Equation | X15: RS
B16: CALCULATE | E16: 55 | F16: 48 | G16: 0.13 | H16: 0.47 | R16: 0.17 | S16: 20 | T16: 0.75 | U16: =0.87998-0.00716*S16 -> 0.73678 | V16: m | W16: b | X16: 20
B17: Radius Min | C17: =C12^2/(15*(C14+C15)) -> 515.908523 | E17: 60 | F17: 52 | G17: 0.12 | H17: 0.45 | R17: 0.16 | S17: 30 | T17: 0.67 | U17: =0.87998-0.00716*S17 -> 0.66518 | V17: =LINEST(T16:T22,S16:S22) -> -0.007163822526 | W17: 0.8799829352 | X17: 28
B18: Deg Curve max | C18: =5729.578/C17 -> 11.10580218 | E18: 65 | F18: 55 | G18: 0.11 | H18: 0.41 | R18: 0.15 | S18: 40 | T18: 0.58 | U18: 0.59358 | X18: 36
B19: Radius Min (RS) | C19: =C13^2/(15*(C15)) -> 1424.20356 | E19: 70 | F19: 58 | G19: 0.1 | H19: 0.4 | R19: 0.14 | S19: 50 | T19: 0.5 | U19: 0.52198 | V19: =LINEST(R16:R22,S16:S22) -> -0.001392491468 | W19: 0.2023549488 | X19: 44
B20: Deg Cur (DCRS) | C20: =5729.578/C19 -> 4.02300497 | R20: 0.12 | S20: 60 | T20: 0.45 | U20: 0.45038 | X20: 52
B21: Deg Cur (ACT) | C21: 8 | D21: Less then Deg Cur max | R21: 0.11 | S21: 65 | T21: 0.41 | U21: 0.41458 | V21: =LINEST(X16:X22,S16:S22) -> 0.7706484642 | W21: 4.976109215 | X21: 55
R22: 0.1 | S22: 70 | T22: 0.4 | U22: 0.37878 | X22: 58
B23: CALC eact
B24: offsetRS | C24: =($C$15-$C$15*$C$20/$C$18)/2 -> 0.01913269414
B25: eact DC>DCRS | C25: =IF(C21>=C20,C15-(C24*(C18-C21)^2/(C18-C20)^2),0) -> 0.05632113294
B27: eact DC<DCRS | C27: =IF(C21<=C20,(C15*C21/C20-C24*(C21^2/C20^2)),0) -> 0 | P27: EactDC<
B29: CALC Len TR
B30: Pavement width | C30: 12 | D30: Given
B31: Cross slope | C31: 0.02 | D31: Given
B32: Trans Grad | C32: =0.87998-0.00716*C12 -> 0.59358 | D32: From Regression
B34: Super runoff | C34: =C30*C25*100/C32 -> 113.860574 | D34: =$C30*$C27*100/$C32 -> 0
B35: Tangent runout | C35: =C31*C30*100/C32 -> 40.43262913 | D35: =C31*C30*100/C32 -> 40.43262913
B36: Total Trans | C36: =IF(C34>0,SUM(C34:C35),0) -> 154.2932031 | D36: =IF(D34>0,SUM(D34:D35),0) -> 0 | E36: Use Larger
B38: Note: Minimum transitions are not shown
B46: CALC Stations
B47: PC STA | C47: 1000 | D47: 1000
B48: PT Sta | C48: 2000 | D48: 2000
B49: Entering Trans
B50: Beginning Runout | C50: =IF(C34>0,C47-0.67*C34-C35,0) -> 883.2807863 | D50: =IF(D34>0,D47-0.67*D34-D35,0) -> 0 | E50: =C31 -> 0.02 | F50: Cross Slope
B51: Beginning Runoff | C51: =IF(C50>0,C50+C35,0) -> 923.7134154 | D51: =IF(D50>0,D50+D35,0) -> 0 | F51: Flat Outside Lane
B52: End Runoff | C52: =C50+C36 -> 1037.573989 | D52: =D50+D36 -> 0 | E52: =IF(C25>0,C25,C27) -> 0.05632113294 | F52: Full Super
B54: Exit Trans
B55: Beginning Runoff | C55: =IF(C50>0,C48-0.33*C34,0) -> 1962.426011 | D55: =IF(D50>0,D48-0.33*D34,0) -> 0 | E55: =E52 -> 0.05632113294 | F55: Full Super
B56: End Runoff | C56: =C55+C34 -> 2076.286585 | D56: =IF(D50>0,D55+D34,0) -> 0 | F56: Flat Out Side Lane
B57: End Rouout | C57: =C55+C36 -> 2116.719214 | D57: =IF(D50>0,D56+D35,0) -> 0 | E57: =E50 -> 0.02 | F57: Cross Slope

Sheet spiral offset
A1: Back to Introduction
B3: L.S. = | C3: 275
B4: Dc (dec.) = | C4: 10 | E4: NOTE: DO NOT EDIT HIGHLIGHTED BOLD ENTRIES
B5: Rc = | C5: =(5729.578/C4) -> 572.9578
B6: Theta s = | C6: =(C3*C4)/200 -> 13.75 | E6: Theta s (radians) = | G6: =(C6*(PI()/180)) -> 0.2399827721
B7: Xs = | C7: =(C3*(1-((G6^2)/10)+((G6^4)/216))) -> 273.4204502
B8: Ys= | C8: =(C3*((G6/3)-(G6^3)/42)) -> 21.90792599 | E8: Pavement Width (feet) = | G8: 25
B9: Long Ch.= | C9: =SQRT((C7*C7)+(C8*C8)) -> 274.2967368 | E9: Number of lanes = | G9: 2
B10: Short tan.= | C10: =(C8/SIN(G6)) -> 92.17175563 | E10: Individual lane width = | G10: =(G8/G9) -> 12.5
B11: Long tan.= | C11: =(C7-(C10*(COS(G6)))) -> 183.8901463 | E11: Offset from E.P. = | G11: 3
B12: Sta. T.S.= | C12: 500 | E12: Total Offset from C/L = | G12: =G10+G11 -> 15.5
B13: Sta. S.C.= | C13: =(C12+C3) -> 775
E14: The deflection (Phi) angle is from a line parallel with centerline tangent and at the same offset distance from centerline as the stakes to be set.
A18: STATION | B18: L | C18: Q | D18: Ø | E18: Phi, deg. | F18: min. | G18: sec. | H18: x | I18: y | J18: Chord Length | M18: Chord Length
C19: Decimal Deg. | D19: Decimal Deg. | J19: Centerline | K19: Curve Increment. | L19: Diff. Increment. | M19: Inside | N19: Outside
A20: =C12 -> 500 | B20: 0 | C20: =((B20/$C$3)*(B20/$C$3))*$C$6 -> 0 | D20: =C20/3 -> 0 | E20: =TRUNC(D20) -> 0 | F20: =TRUNC((D20-E20)*60) -> 0 | G20: =ROUND((((D20-E20)*60)-F20)*60,0) -> 0 | H20: =(B20*(1-((C20*(PI()/180)*(C20*PI()/180))/10))) -> 0 | I20: =(B20*(C20*(PI()/180)/3)) -> 0 | J20: =SQRT(((H20-H19)*(H20-H19))+((I20-I19)*(I20-I19))) -> 0 | K20: =PI()/180*(C20*$G$12*((B20/$C$3)^2)) -> 0
A21: 525 | B21: =A21-A20 -> 25 | C21: 0.1136363636 | D21: 0.03787878788 | E21: 0 | F21: 2 | G21: 16 | H21: 24.99999017 | I21: 0.01652773913 | J21: 24.99999563 | K21: =(PI()/180)*($C$6*$G$12*((B21/$C$3)^2)) -> 0.03074159478 | L21: =K21-K20 -> 0.03074159478 | M21: =J21-L21 -> 24.96925403 | N21: =J21+L21 -> 25.03073722
A22: =IF(A21+25<=$C$13,A21+25,$C$13) -> 550 | B22: =A22-A20 -> 50 | C22: 0.4545454545 | D22: 0.1515151515 | E22: 0 | F22: 9 | G22: 5 | H22: 49.99968531 | I22: 0.132221913 | J22: 24.99996285 | K22: 0.1229663791 | L22: 0.09222478434 | M22: 24.90773807 | N22: 25.09218764
A23: =IF(A22+25<=$C$13,A22+25,$C$13) -> 575 | B23: =B22+A23-A22 -> 75 | C23: 1.022727273 | D23: 0.3409090909 | E23: 0 | F23: 20 | G23: 27 | H23: 74.99761034 | I23: 0.4462489565 | J23: 24.99989738 | K23: 0.276674353 | L23: 0.1537079739 | M23: 24.8461894 | N23: 25.15360535
A24: 600 | B24: 100 | C24: 1.818181818 | D24: 0.6060606061 | E24: 0 | F24: 36 | G24: 22 | H24: 99.98993 | I24: 1.057775304 | J24: 24.99980013 | K24: 0.4918655165 | L24: 0.2151911635 | M24: 24.78460897 | N24: 25.21499129
A25: 625 | B25: 125 | C25: 2.840909091 | D25: 0.946969697 | E25: 0 | F25: 56 | G25: 49 | H25: 124.9692688 | I25: 2.065967391 | J25: 24.99967637 | K25: 0.7685398695 | L25: 0.276674353 | M25: 24.72300201 | N25: 25.27635072
A26: 650 | B26: 150 | C26: 4.090909091 | D26: 1.363636364 | E26: 1 | F26: 21 | G26: 49 | H26: 149.923531 | I26: 3.569991652 | J26: 24.99954577 | K26: 1.106697412 | L26: 0.3381575426 | M26: 24.66138822 | N26: 25.33770331
A27: 675 | B27: 175 | C27: 5.568181818 | D27: 1.856060606 | E27: 1 | F27: 51 | G27: 22 | H27: 174.8347203 | I27: 5.669014521 | J27: 24.99946499 | K27: 1.506338144 | L27: 0.3996407321 | M27: 24.59982426 | N27: 25.39910572
A28: 700 | B28: 200 | C28: 7.272727273 | D28: 2.424242424 | E28: 2 | F28: 25 | G28: 27 | H28: 199.6777601 | I28: 8.462202434 | J28: 24.99957052 | K28: 1.967462066 | L28: 0.4611239217 | M28: 24.5384466 | N28: 25.46069444
A29: 725 | B29: 225 | C29: 9.204545455 | D29: 3.068181818 | E29: 3 | F29: 4 | G29: 5 | H29: 224.4193132 | I29: 12.04872182 | J29: 25.00015145 | K29: 2.490069177 | L29: 0.5226071113 | M29: 24.47754434 | N29: 25.52275856
A30: 750 | B30: 250 | C30: 11.36363636 | D30: 3.787878788 | E30: 3 | F30: 47 | G30: 16 | H30: 249.0166018 | I30: 16.52773913 | J30: 25.001764 | K30: 3.074159478 | L30: 0.5840903008 | M30: 24.4176737 | N30: 25.5858543
A31: 775 | B31: 275 | C31: 13.75 | D31: 4.583333333 | E31: 4 | F31: 35 | G31: 0 | H31: 273.4162274 | I31: 21.99842078 | J31: 25.00540114 | K31: 3.719732968 | L31: 0.6455734904 | M31: 24.35982765 | N31: 25.65097463
A32: 775 | B32: 275 | C32: 13.75 | D32: 4.583333333 | E32: 4 | F32: 35 | G32: 0 | H32: 273.4162274 | I32: 21.99842078 | J32: 0 | K32: 3.719732968 | L32: 0 | M32: 0 | N32: 0
A33: 775 | B33: 275 | C33: 13.75 | D33: 4.583333333 | E33: 4 | F33: 35 | G33: 0 | H33: 273.4162274 | I33: 21.99842078 | J33: 0 | K33: 3.719732968 | L33: 0 | M33: 0 | N33: 0
A34: 775 | B34: 275 | C34: 13.75 | D34: 4.583333333 | E34: 4 | F34: 35 | G34: 0 | H34: 273.4162274 | I34: 21.99842078 | J34: 0 | K34: 3.719732968 | L34: 0 | M34: 0 | N34: 0
A35: 775 | B35: 275 | C35: 13.75 | D35: 4.583333333 | E35: 4 | F35: 35 | G35: 0 | H35: 273.4162274 | I35: 21.99842078 | J35: 0 | K35: 3.719732968 | L35: 0 | M35: 0 | N35: 0
A36: 775 | B36: 275 | C36: 13.75 | D36: 4.583333333 | E36: 4 | F36: 35 | G36: 0 | H36: 273.4162274 | I36: 21.99842078 | J36: 0 | K36: 3.719732968 | L36: 0 | M36: 0 | N36: 0
A37: 775 | B37: 275 | C37: 13.75 | D37: 4.583333333 | E37: 4 | F37: 35 | G37: 0 | H37: 273.4162274 | I37: 21.99842078 | J37: 0 | K37: 3.719732968 | L37: 0 | M37: 0 | N37: 0
A38: 775 | B38: 275 | C38: 13.75 | D38: 4.583333333 | E38: 4 | F38: 35 | G38: 0 | H38: 273.4162274 | I38: 21.99842078 | J38: 0 | K38: 3.719732968 | L38: 0 | M38: 0 | N38: 0
A39: 775 | B39: 275 | C39: 13.75 | D39: 4.583333333 | E39: 4 | F39: 35 | G39: 0 | H39: 273.4162274 | I39: 21.99842078 | J39: 0 | K39: 3.719732968 | L39: 0 | M39: 0 | N39: 0

Sheet embankment
A1: Back to Introduction
A2: EMBANKMENT FILL QUANTITY COMPUTATION SHEET
J3: V1.0
A4: SWCD: | C4: jlr665
A5: Field Office:
A6: Cooperator Name:
A7: Location:
A8: Program: | F8: Contract No.:
A9: Computations By: | F9: Date:
A10: Approved By: | F10: Date:
A12: Embankment Planned Settled Top Elevation | D12: 90 | E12: feet | F12: Percent Settlement Allowance | I12: 0.05
A13: Embankment Top Width | D13: 10 | E13: feet
A14: Wet Side Slope of Embankment | D14: 3 | E14: :1 | F14: Core Trench Width | I14: 10 | J14: feet
A15: Dry Side Slope of Embankment | D15: 3 | E15: :1 | F15: Core Trench Depth | I15: 1 | J15: feet
F16: Core Trench Side Slopes | I16: 3 | J16: :1
A17: Bench Mark Elevation | D17: 100 | E17: feet | F17: Core Trench Length | I17: 100 | J17: feet
A19: BM Description:
A22: Remarks:
C26: Embankment Fill Quantity | G26: =E333 -> 1481.481481 | I26: C.Y.
C27: Core Trench Excavation Quantity | G27: =(I14+(2*I16*I15))*I15*I17/27 -> 59.25925926 | I27: C.Y.
C28: Total Earthwork Quantity | G28: =SUM(G26:H27) -> 1540.740741 | I28: C.Y.
C30: Design Template (no settlement) | F30: With Settlement | H30: Distance from CL to Slope Stake
A31: Station | B31: Ground Elevation | C31: Fill Height (Ft.) | D31: End Area (S.F.) | E31: Volume (C.Y.) | F31: Fill Height (Ft.) | G31: Final Elevation | H31: Wet Slope | I31: Dry Slope
A32: 0 | B32: 80 | C32: =IF(B32="","",IF($D$12-B32<0,"No Fill",($D$12-B32))) -> 10 | D32: =IF(C32="","",IF(C32="No Fill",0,(0.5*$D$14*C32^2)+(0.5*$D$15*C32^2)+($D$13*C32))) -> 400 | F32: =IF(B32="","",IF(C32="No Fill","0",IF($I$12="",(ValueC21),(C32*($I$12+1))))) -> 10.5 | G32: =IF(B32="","",IF(C32="ERROR","ERROR",F32+B32)) -> 90.5 | H32: =IF($B32="","",IF($C32="ERROR","ERROR",$D$13/2+($F32*$D$14))) -> 36.5 | I32: =IF($B32="","",IF($C32="ERROR","ERROR",$D$13/2+($F32*$D$15))) -> 36.5
A33: 10 | B33: 80 | C33: 10 | D33: 400 | E33: =IF(D33="","",IF(D32="",0,((D32+D33)*(A33-A32))/54)) -> 148.1481481 | F33: 10.5 | G33: 90.5 | H33: 36.5 | I33: 36.5
A34: 20 | B34: 80 | C34: 10 | D34: 400 | E34: 148.1481481 | F34: 10.5 | G34: 90.5 | H34: 36.5 | I34: 36.5
A35: 30 | B35: 80 | C35: 10 | D35: 400 | E35: 148.1481481 | F35: 10.5 | G35: 90.5 | H35: 36.5 | I35: 36.5
A36: 40 | B36: 80 | C36: 10 | D36: 400 | E36: 148.1481481 | F36: 10.5 | G36: 90.5 | H36: 36.5 | I36: 36.5
A37: 50 | B37: 80 | C37: 10 | D37: 400 | E37: 148.1481481 | F37: 10.5 | G37: 90.5 | H37: 36.5 | I37: 36.5
A38: 60 | B38: 80 | C38: 10 | D38: 400 | E38: 148.1481481 | F38: 10.5 | G38: 90.5 | H38: 36.5 | I38: 36.5
A39: 70 | B39: 80 | C39: 10 | D39: 400 | E39: 148.1481481 | F39: 10.5 | G39: 90.5 | H39: 36.5 | I39: 36.5
A40: 80 | B40: 80 | C40: 10 | D40: 400 | E40: 148.1481481 | F40: 10.5 | G40: 90.5 | H40: 36.5 | I40: 36.5
A41: 90 | B41: 80 | C41: 10 | D41: 400 | E41: 148.1481481 | F41: 10.5 | G41: 90.5 | H41: 36.5 | I41: 36.5
A42: 100 | B42: 80 | C42: 10 | D42: 400 | E42: 148.1481481 | F42: 10.5 | G42: 90.5 | H42: 36.5 | I42: 36.5
C96: =IF(B96="","",IF($D$12-B96<0,"No Fill",($D$12-B96))) ->  | D96: =IF(C96="","",IF(C96="No Fill",0,(0.5*$D$14*C96^2)+(0.5*$D$15*C96^2)+($D$13*C96))) ->  | F96: =IF(B96="","",IF(C96="No Fill","0",IF($I$12="",(ValueC21),(C96*($I$12+1))))) ->  | G96: =IF(B96="","",IF(C96="ERROR","ERROR",F96+B96)) ->  | H96: =IF($B96="","",IF($C96="ERROR","ERROR",$D$13/2+($F96*$D$14))) ->  | I96: =IF($B96="","",IF($C96="ERROR","ERROR",$D$13/2+($F96*$D$15))) -> 
E97: =IF(D97="","",IF(D96="",0,((D96+D97)*(A97-A96))/54)) -> 
C160: =IF(B160="","",IF($D$12-B160<0,"No Fill",($D$12-B160))) ->  | D160: =IF(C160="","",IF(C160="No Fill",0,(0.5*$D$14*C160^2)+(0.5*$D$15*C160^2)+($D$13*C160))) ->  | F160: =IF(B160="","",IF(C160="No Fill","0",IF($I$12="",(ValueC21),(C160*($I$12+1))))) ->  | G160: =IF(B160="","",IF(C160="ERROR","ERROR",F160+B160)) ->  | H160: =IF($B160="","",IF($C160="ERROR","ERROR",$D$13/2+($F160*$D$14))) ->  | I160: =IF($B160="","",IF($C160="ERROR","ERROR",$D$13/2+($F160*$D$15))) -> 
E161: =IF(D161="","",IF(D160="",0,((D160+D161)*(A161-A160))/54)) -> 
C224: =IF(B224="","",IF($D$12-B224<0,"No Fill",($D$12-B224))) ->  | D224: =IF(C224="","",IF(C224="No Fill",0,(0.5*$D$14*C224^2)+(0.5*$D$15*C224^2)+($D$13*C224))) ->  | F224: =IF(B224="","",IF(C224="No Fill","0",IF($I$12="",(ValueC21),(C224*($I$12+1))))) ->  | G224: =IF(B224="","",IF(C224="ERROR","ERROR",F224+B224)) ->  | H224: =IF($B224="","",IF($C224="ERROR","ERROR",$D$13/2+($F224*$D$14))) ->  | I224: =IF($B224="","",IF($C224="ERROR","ERROR",$D$13/2+($F224*$D$15))) -> 
E225: =IF(D225="","",IF(D224="",0,((D224+D225)*(A225-A224))/54)) -> 
C288: =IF(B288="","",IF($D$12-B288<0,"No Fill",($D$12-B288))) ->  | D288: =IF(C288="","",IF(C288="No Fill",0,(0.5*$D$14*C288^2)+(0.5*$D$15*C288^2)+($D$13*C288))) ->  | F288: =IF(B288="","",IF(C288="No Fill","0",IF($I$12="",(ValueC21),(C288*($I$12+1))))) ->  | G288: =IF(B288="","",IF(C288="ERROR","ERROR",F288+B288)) ->  | H288: =IF($B288="","",IF($C288="ERROR","ERROR",$D$13/2+($F288*$D$14))) ->  | I288: =IF($B288="","",IF($C288="ERROR","ERROR",$D$13/2+($F288*$D$15))) -> 
E289: =IF(D289="","",IF(D288="",0,((D288+D289)*(A289-A288))/54)) -> 
C333: Total Fill Quant. (c.y.) | E333: =SUM(E32:E332) -> 1481.481481
A561: Elevations | C561: 0
A562: Rod R. | C562: 0.05
C563: 0.1
C564: 0.15
C565: 0.2
C566: 0.3
C567: 0.5

Sheet spiral eastment
A1: Back to Introduction
A2: SPIRAL EASEMENT CURVE CALCULATOR
A3: Based on the American Railway Engineering Association's
A4: Manual for Railway Engineering, Ch. 5, Pt. 3.
A6: Notation
A7: T.S. | B7: Point of change from tangent to spiral
A8: S.C. | B8: Point of change from spiral to curve
A9: P.C. | B9: Point of start of circular curve
A10: Δ | B10: Central angle of spiral
A11: A | B11: Deflection angle off tangent from TS to SC
A12: Lc | B12: Length of spiral chord from TS to SC
A13: Ls | B13: Total Length of spiral from TS to SC
A14: o | B14: Tangent Offset of PC
A15: R | B15: Radius of circular curve
A16: x | B16: Tangent distance from TS to any point on spiral
A17: xo | B17: Tangent distance from TS to PC
A18: xs | B18: Tangent distance from TS to SC
A19: y | B19: Tangent offset to any point on spiral
A20: ys | B20: Tangent offset of SC
A22: Fundamental Properties of the Spiral
A23: • The degree of curve varies proportionately from 0° (tangent) to the degree of the circular curve along the length of the spiral.
A24: • The length of the spiral is exactly twice the length of the circular curve for the same central angle, D.
A25: • The tangent offset of any point on the spiral is approximately proportional to the cube of the distance along the spiral.
A26: • The tangent offset of the point of curve, PC, is twice the offset of the spiral's midpoint.
A28: Curve Geometry
C29: Circular Curve Radius, R = | D29: 42 | E29: in.
C30: Spiral Easement Length, Ls = | D30: 24 | E30: in.
A32: Spiral Easement Properties
C33: Spiral Angle, D = | D33: =$D$30/(2*$D$29)*180/PI() -> 16.37022272 | E33: deg.
C34: P.C. Distance from T.S., xo = | D34: =$D$30/2-$D$30^3/(240*$D$29^2) -> 11.96734694 | E34: in.
C35: P.C. Offset from Tangent, o = | D35: =$D$30^2/(24*$D$29) -> 0.5714285714 | E35: in.
C36: S.C. Distance from T.S., xs = | D36: =$D$30-$D$30^3/(40*$D$29^2) -> 23.80408163 | E36: in.
C37: S.C. Offset from Tangent, ys = | D37: =$D$30^2/(6*$D$29)-$D$30^4/(336*$D$29^3) -> 2.272386506 | E37: in.
A39: Spiral Offsets from Tangent for
A40: Tenth-Points along the Spiral
B41: Length | C41: Length | D41: Offset
B42: Along | C42: Along | D42: From
A43: Tenth | B43: Spiral, | C43: Tangent, | D43: Tangent,
A44: Point | B44: L | C44: x | D44: y
B45: (in.) | C45: (in.) | D45: (in.)
A46: T.S. | B46: 0 | C46: 0 | D46: 0
A47: 1 | B47: =B46+$D$30/10 -> 2.4 | C47: =B47-B47^3/(40*$D$29^2) -> 2.399804082 | D47: =B47^3/(6*$D$29*$D$30)-B47^5/(336*$D$29^3*$D$30) -> 0.002285581008
A48: 2 | B48: =B47+$D$30/10 -> 4.8 | C48: =B48-B48^3/(40*$D$29^2) -> 4.798432653 | D48: =B48^3/(6*$D$29*$D$30)-B48^5/(336*$D$29^3*$D$30) -> 0.0182814494
A49: 3 | B49: 7.2 | C49: 7.194710204 | D49: 0.06168189921
A50: 4 | B50: 9.6 | C50: 9.587461224 | D50: 0.1461492378
A51: 5 | B51: 12 | C51: 11.9755102 | D51: 0.2852977926
A52: 6 | B52: 14.4 | C52: 14.35768163 | D52: 0.4926779175
A53: 7 | B53: 16.8 | C53: 16.7328 | D53: 0.78176
A54: 8 | B54: 19.2 | C54: 19.0996898 | D54: 1.165918467
A55: 9 | B55: 21.6 | C55: 21.45717551 | D55: 1.658415793
A56: S.C. | B56: 24 | C56: 23.80408163 | D56: 2.272386506
G57: Copyright © 2001 by Daniel N. O'Connor | H57: http://www.mostgraveconcern.com/jgl/

Sheet Adjustment(profile)
A1: Back to Introduction
C2: one straight line
C3: PI-start | E3: PI-end
C4: northing | D4: easting | E4: northing | F4: easting
C5: 3413745.399 | D5: 707305.9496 | E5: 3419047.326 | F5: 700469.9473
A7: original location coordinates | F7: shift for alignment | J7: grid dist. PI-start to PI-end
A8: pt.no | B8: northing | C8: easting | D8: elevation | F8: pt.no | G8: northing | H8: easting | I8: elevation
A9: START | B9: 3423090.73 | C9: 696076.3647 | D9: 538.7337 | F9: =IF(A9="","",A9) -> START | G9: =North_final($C$5,$D$5,$E$5,$F$5,B9,C9) ->  | H9: =East_final($C$5,$D$5,$E$5,$F$5,B9,C9) ->  | I9: =IF(D9="","",D9) -> 538.7337 | J9: =IF(G9="","",DAL_final($C$5,$D$5,$E$5,$F$5,B9,C9)) ->  | L9: START | M9: 3423090.73 | N9: 696076.3647 | O9: 538.7337
A10: 1 | B10: 3423090.385 | C10: 696076.771 | D10: 538.57 | F10: =IF(A10="","",A10) -> 1 | G10: =North_final($C$5,$D$5,$E$5,$F$5,B10,C10) ->  | H10: =East_final($C$5,$D$5,$E$5,$F$5,B10,C10) ->  | I10: =IF(D10="","",D10) -> 538.57 | J10: =IF(G10="","",DAL_final($C$5,$D$5,$E$5,$F$5,B10,C10)) ->  | L10: 1 | M10: 3423090.387 | N10: 696076.773 | O10: 538.57
A11: 2 | B11: 3423062.49 | C11: 696109.997 | D11: 539.05 | F11: 2 | I11: 539.05 | L11: 2 | M11: 3423062.509 | N11: 696110.0127 | O11: 539.05
A12: 3 | B12: 3423027.443 | C12: 696151.784 | D12: 539.72 | F12: 3 | I12: 539.72 | L12: 3 | M12: 3423027.461 | N12: 696151.7994 | O12: 539.72
A13: 4 | B13: 3422992.569 | C13: 696193.381 | D13: 540.393 | F13: 4 | I13: 540.393 | L13: 4 | M13: 3422992.579 | N13: 696193.3894 | O13: 540.393
A14: 5 | B14: 3422956.99 | C14: 696235.787 | D14: 540.997 | F14: 5 | I14: 540.997 | L14: 5 | M14: 3422957.007 | N14: 696235.8014 | O14: 540.997
A15: 6 | B15: 3422932.156 | C15: 696265.397 | D15: 541.36 | F15: 6 | I15: 541.36 | L15: 6 | M15: 3422932.173 | N15: 696265.4112 | O15: 541.36
A16: 7 | B16: 3422896.092 | C16: 696308.381 | D16: 539.458 | F16: 7 | I16: 539.458 | L16: 7 | M16: 3422896.116 | N16: 696308.4014 | O16: 539.458
A17: 8 | B17: 3422856.239 | C17: 696355.899 | D17: 538.706 | F17: 8 | I17: 538.706 | L17: 8 | M17: 3422856.263 | N17: 696355.9187 | O17: 538.706
A18: 9 | B18: 3422816.528 | C18: 696403.261 | D18: 538.625 | F18: 9 | I18: 538.625 | L18: 9 | M18: 3422816.544 | N18: 696403.2746 | O18: 538.625
A19: 10 | B19: 3422778.765 | C19: 696448.274 | D19: 538.54 | F19: 10 | I19: 538.54 | L19: 10 | M19: 3422778.787 | N19: 696448.2924 | O19: 538.54
A20: 11 | B20: 3422745.466 | C20: 696487.964 | D20: 538.882 | F20: 11 | I20: 538.882 | L20: 11 | M20: 3422745.494 | N20: 696487.9874 | O20: 538.882
A21: 12 | B21: 3422706.784 | C21: 696534.086 | D21: 539.495 | F21: 12 | I21: 539.495 | L21: 12 | M21: 3422706.811 | N21: 696534.1087 | O21: 539.495
A22: 13 | B22: 3422669.305 | C22: 696578.785 | D22: 538.473 | F22: 13 | G22: =North_final($C$5,$D$5,$E$5,$F$5,B22,C22) ->  | H22: =East_final($C$5,$D$5,$E$5,$F$5,B22,C22) ->  | I22: 538.473 | J22: =IF(G22="","",DAL_final($C$5,$D$5,$E$5,$F$5,B22,C22)) ->  | L22: 13 | M22: 3422669.326 | N22: 696578.8024 | O22: 538.473
A23: 14 | B23: 3422619.606 | C23: 696638.043 | D23: 538.521 | F23: 14 | I23: 538.521 | L23: 14 | M23: 3422619.626 | N23: 696638.0595 | O23: 538.521
A24: 15 | B24: 3422565.842 | C24: 696702.147 | D24: 538.587 | F24: 15 | I24: 538.587 | L24: 15 | M24: 3422565.861 | N24: 696702.1628 | O24: 538.587
A25: 16 | B25: 3422529.507 | C25: 696745.481 | D25: 538.504 | F25: 16 | I25: 538.504 | L25: 16 | M25: 3422529.52 | N25: 696745.4919 | O25: 538.504
A26: 17 | B26: 3422484.948 | C26: 696798.6 | D26: 538.592 | F26: 17 | I26: 538.592 | L26: 17 | M26: 3422484.965 | N26: 696798.6144 | O26: 538.592
A27: 18 | B27: 3422434.997 | C27: 696858.157 | D27: 538.704 | F27: 18 | I27: 538.704 | L27: 18 | M27: 3422435.014 | N27: 696858.1711 | O27: 538.704
A28: 19 | B28: 3422382.084 | C28: 696921.238 | D28: 538.745 | F28: 19 | I28: 538.745 | L28: 19 | M28: 3422382.104 | N28: 696921.2549 | O28: 538.745
A29: 20 | B29: 3422325.51 | C29: 696988.694 | D29: 538.652 | F29: 20 | I29: 538.652 | L29: 20 | M29: 3422325.529 | N29: 696988.7096 | O29: 538.652
A30: 21 | B30: 3422275.419 | C30: 697048.427 | D30: 538.496 | F30: 21 | I30: 538.496 | L30: 21 | M30: 3422275.433 | N30: 697048.4385 | O30: 538.496
A31: 22 | B31: 3422213.164 | C31: 697122.648 | D31: 538.487 | F31: 22 | I31: 538.487 | L31: 22 | M31: 3422213.18 | N31: 697122.6617 | O31: 538.487
A32: 23 | B32: 3422152.81 | C32: 697194.604 | D32: 537.086 | F32: 23 | I32: 537.086 | L32: 23 | M32: 3422152.828 | N32: 697194.6192 | O32: 537.086
A33: 24 | B33: 3422109.173 | C33: 697246.636 | D33: 538.68 | F33: 24 | I33: 538.68 | L33: 24 | M33: 3422109.189 | N33: 697246.6496 | O33: 538.68
A34: 25 | B34: 3422083.989 | C34: 697276.668 | D34: 538.437 | F34: 25 | I34: 538.437 | L34: 25 | M34: 3422084.003 | N34: 697276.6795 | O34: 538.437
A35: 26 | B35: 3422037.945 | C35: 697331.569 | D35: 538.424 | F35: 26 | I35: 538.424 | L35: 26 | M35: 3422037.957 | N35: 697331.5792 | O35: 538.424
A36: 27 | B36: 3422017.774 | C36: 697355.619 | D36: 540.049 | F36: 27 | I36: 540.049 | L36: 27 | M36: 3422017.786 | N36: 697355.6291 | O36: 540.049
A37: 28 | B37: 3421976.292 | C37: 697405.072 | D37: 540.809 | F37: 28 | I37: 540.809 | L37: 28 | M37: 3421976.307 | N37: 697405.0845 | O37: 540.809
A38: 29 | B38: 3421955.838 | C38: 697429.469 | D38: 538.821 | F38: 29 | I38: 538.821 | L38: 29 | M38: 3421955.848 | N38: 697429.4774 | O38: 538.821
A39: 30 | B39: 3421907.036 | C39: 697487.666 | D39: 538.08 | F39: 30 | I39: 538.08 | L39: 30 | M39: 3421907.041 | N39: 697487.67 | O39: 538.08
A40: 31 | B40: 3421875.77 | C40: 697524.941 | D40: 542.056 | F40: 31 | I40: 542.056 | L40: 31 | M40: 3421875.776 | N40: 697524.9464 | O40: 542.056
A41: 32 | B41: 3421850.474 | C41: 697555.103 | D41: 542.488 | F41: 32 | I41: 542.488 | L41: 32 | M41: 3421850.48 | N41: 697555.1077 | O41: 542.488
A42: 33 | B42: 3421827.53 | C42: 697582.457 | D42: 540.472 | F42: 33 | I42: 540.472 | L42: 33 | M42: 3421827.537 | N42: 697582.4625 | O42: 540.472
A43: 34 | B43: 3421814.247 | C43: 697598.295 | D43: 541.812 | F43: 34 | I43: 541.812 | L43: 34 | M43: 3421814.253 | N43: 697598.3002 | O43: 541.812
A44: 35 | B44: 3421802.694 | C44: 697612.072 | D44: 541.208 | F44: 35 | I44: 541.208 | L44: 35 | M44: 3421802.699 | N44: 697612.0762 | O44: 541.208
A45: 36 | B45: 3421790.234 | C45: 697626.929 | D45: 542.853 | F45: 36 | I45: 542.853 | L45: 36 | M45: 3421790.238 | N45: 697626.9327 | O45: 542.853
A46: 37 | B46: 3421763.713 | C46: 697658.549 | D46: 544.44 | F46: 37 | I46: 544.44 | L46: 37 | M46: 3421763.718 | N46: 697658.5531 | O46: 544.44
A47: 38 | B47: 3421727.912 | C47: 697701.236 | D47: 547.496 | F47: 38 | I47: 547.496 | L47: 38 | M47: 3421727.916 | N47: 697701.2394 | O47: 547.496
A48: 39 | B48: 3421691.023 | C48: 697745.219 | D48: 551.382 | F48: 39 | I48: 551.382 | L48: 39 | M48: 3421691.027 | N48: 697745.2222 | O48: 551.382
A49: 40 | B49: 3421667.967 | C49: 697772.709 | D49: 553.414 | F49: 40 | I49: 553.414 | L49: 40 | M49: 3421667.971 | N49: 697772.712 | O49: 553.414
A50: 41 | B50: 3421649.795 | C50: 697794.376 | D50: 554.205 | F50: 41 | I50: 554.205 | L50: 41 | M50: 3421649.798 | N50: 697794.3787 | O50: 554.205
A51: 42 | B51: 3421642.769 | C51: 697802.753 | D51: 554.304 | F51: 42 | I51: 554.304 | L51: 42 | M51: 3421642.772 | N51: 697802.7558 | O51: 554.304
A52: POL-1 | B52: 3421641.998 | C52: 697803.6714 | D52: 554.47 | F52: POL-1 | I52: 554.47 | L52: POL-1 | M52: 3421642.002 | N52: 697803.6744 | O52: 554.47
A53: 43 | B53: 3421632.608 | C53: 697814.868 | D53: 554.946 | F53: 43 | I53: 554.946 | L53: 43 | M53: 3421632.611 | N53: 697814.8707 | O53: 554.946
A54: 44 | B54: 3421613.031 | C54: 697838.21 | D54: 553.764 | F54: 44 | I54: 553.764 | L54: 44 | M54: 3421613.034 | N54: 697838.2125 | O54: 553.764
A55: 45 | B55: 3421579.514 | C55: 697878.173 | D55: 548.947 | F55: 45 | I55: 548.947 | L55: 45 | M55: 3421579.517 | N55: 697878.1752 | O55: 548.947
A56: 46 | B56: 3421554.029 | C56: 697908.557 | D56: 550.47 | F56: 46 | I56: 550.47 | L56: 46 | M56: 3421554.032 | N56: 697908.5598 | O56: 550.47
A57: 47 | B57: 3421525.88 | C57: 697942.12 | D57: 548.652 | F57: 47 | I57: 548.652 | L57: 47 | M57: 3421525.883 | N57: 697942.1224 | O57: 548.652
A58: 48 | B58: 3421494.73 | C58: 697979.258 | D58: 547.131 | F58: 48 | I58: 547.131 | L58: 48 | M58: 3421494.734 | N58: 697979.2612 | O58: 547.131
A59: 49 | B59: 3421462.946 | C59: 698017.154 | D59: 546.643 | F59: 49 | I59: 546.643 | L59: 49 | M59: 3421462.95 | N59: 698017.1571 | O59: 546.643
A60: 50 | B60: 3421434.11 | C60: 698051.532 | D60: 545.09 | F60: 50 | I60: 545.09 | L60: 50 | M60: 3421434.115 | N60: 698051.5363 | O60: 545.09
A61: 51 | B61: 3421406.857 | C61: 698084.025 | D61: 544.211 | F61: 51 | I61: 544.211 | L61: 51 | M61: 3421406.862 | N61: 698084.0296 | O61: 544.211
A62: 52 | B62: 3421385.607 | C62: 698109.362 | D62: 543.586 | F62: 52 | I62: 543.586 | L62: 52 | M62: 3421385.612 | N62: 698109.3663 | O62: 543.586
A63: 53 | B63: 3421347.715 | C63: 698154.536 | D63: 544.452 | F63: 53 | I63: 544.452 | L63: 53 | M63: 3421347.722 | N63: 698154.5421 | O63: 544.452
A64: 54 | B64: 3421320.509 | C64: 698186.973 | D64: 545.623 | F64: 54 | I64: 545.623 | L64: 54 | M64: 3421320.517 | N64: 698186.9793 | O64: 545.623
A65: 55 | B65: 3421298.479 | C65: 698213.23 | D65: 547.394 | F65: 55 | I65: 547.394 | L65: 55 | M65: 3421298.491 | N65: 698213.2401 | O65: 547.394
A66: 56 | B66: 3421265.145 | C66: 698252.977 | D66: 548.664 | F66: 56 | I66: 548.664 | L66: 56 | M66: 3421265.156 | N66: 698252.9859 | O66: 548.664
A67: 57 | B67: 3421236.542 | C67: 698287.08 | D67: 549.833 | F67: 57 | I67: 549.833 | L67: 57 | M67: 3421236.553 | N67: 698287.0889 | O67: 549.833
A68: 58 | B68: 3421207.439 | C68: 698321.767 | D68: 553.061 | F68: 58 | I68: 553.061 | L68: 58 | M68: 3421207.456 | N68: 698321.781 | O68: 553.061
A69: 59 | B69: 3421169.925 | C69: 698366.52 | D69: 559.518 | F69: 59 | I69: 559.518 | L69: 59 | M69: 3421169.929 | N69: 698366.5236 | O69: 559.518
A70: POL-2 | B70: 3421150.067 | C70: 698390.2082 | D70: 562.3849 | F70: POL-2 | I70: 562.3849 | L70: POL-2 | M70: 3421150.066 | N70: 698390.2069 | O70: 562.3849
A71: 60 | B71: 3421150.43 | C71: 698389.775 | D71: 562.277 | F71: 60 | I71: 562.277 | L71: 60 | M71: 3421150.429 | N71: 698389.774 | O71: 562.277
A72: 61 | B72: 3421146.134 | C72: 698394.897 | D72: 562.333 | F72: 61 | I72: 562.333 | L72: 61 | M72: 3421146.133 | N72: 698394.896 | O72: 562.333
A73: 62 | B73: 3421121.429 | C73: 698424.353 | D73: 559.935 | F73: 62 | I73: 559.935 | L73: 62 | M73: 3421121.428 | N73: 698424.3518 | O73: 559.935
A74: 63 | B74: 3421104.463 | C74: 698444.581 | D74: 557.759 | F74: =IF(A74="","",A74) -> 63 | I74: =IF(D74="","",D74) -> 557.759 | L74: 63 | M74: 3421104.462 | N74: 698444.58 | O74: 557.759
A75: 64 | B75: 3421083.749 | C75: 698469.277 | D75: 554.648 | F75: 64 | I75: 554.648 | L75: 64 | M75: 3421083.748 | N75: 698469.2765 | O75: 554.648
A76: 65 | B76: 3421066.337 | C76: 698490.037 | D76: 552.784 | F76: 65 | I76: 552.784 | L76: 65 | M76: 3421066.337 | N76: 698490.0366 | O76: 552.784
A77: 66 | B77: 3421047.89 | C77: 698512.031 | D77: 551.672 | F77: 66 | I77: 551.672 | L77: 66 | M77: 3421047.89 | N77: 698512.0307 | O77: 551.672
A78: 67 | B78: 3421038.76 | C78: 698522.916 | D78: 551.27 | F78: 67 | I78: 551.27 | L78: 67 | M78: 3421038.76 | N78: 698522.916 | O78: 551.27
A79: PI-1 | B79: 3421038.074 | C79: 698523.7342 | D79: 551.3522 | F79: PI-1 | I79: 551.3522 | L79: PI-1 | M79: 3421038.074 | N79: 698523.7342 | O79: 551.3522
A80: 68 | B80: 3421037.217 | C80: 698524.005 | D80: 551.207 | F80: 68 | I80: 551.207 | L80: 68 | M80: 3421037.217 | N80: 698524.0052 | O80: 551.207
A81: 69 | B81: 3420995.339 | C81: 698537.254 | D81: 550.033 | F81: 69 | I81: 550.033 | L81: 69 | M81: 3420995.338 | N81: 698537.2524 | O81: 550.033
A82: 70 | B82: 3420932.278 | C82: 698557.203 | D82: 549.594 | F82: 70 | I82: 549.594 | L82: 70 | M82: 3420932.277 | N82: 698557.2002 | O82: 549.594
A83: 71 | B83: 3420863.263 | C83: 698579.037 | D83: 549.778 | F83: 71 | I83: 549.778 | L83: 71 | M83: 3420863.261 | N83: 698579.0316 | O83: 549.778
A84: 72 | B84: 3420803.758 | C84: 698597.859 | D84: 548.063 | F84: 72 | I84: 548.063 | L84: 72 | M84: 3420803.757 | N84: 698597.8545 | O84: 548.063
A85: 73 | B85: 3420730.783 | C85: 698620.945 | D85: 547.294 | F85: 73 | I85: 547.294 | L85: 73 | M85: 3420730.781 | N85: 698620.9384 | O85: 547.294
A86: 74 | B86: 3420655.818 | C86: 698644.66 | D86: 547.152 | F86: 74 | G86: =North_final($C$5,$D$5,$E$5,$F$5,B86,C86) ->  | H86: =East_final($C$5,$D$5,$E$5,$F$5,B86,C86) ->  | I86: 547.152 | J86: =IF(G86="","",DAL_final($C$5,$D$5,$E$5,$F$5,B86,C86)) ->  | L86: 74 | M86: 3420655.815 | N86: 698644.6519 | O86: 547.152
A87: 75 | B87: 3420579.763 | C87: 698668.719 | D87: 547.375 | F87: 75 | I87: 547.375 | L87: 75 | M87: 3420579.76 | N87: 698668.71 | O87: 547.375
A88: 76 | B88: 3420502.309 | C88: 698693.219 | D88: 547.615 | F88: 76 | I88: 547.615 | L88: 76 | M88: 3420502.306 | N88: 698693.2105 | O88: 547.615
A89: 77 | B89: 3420428.376 | C89: 698716.607 | D89: 548.498 | F89: 77 | I89: 548.498 | L89: 77 | M89: 3420428.373 | N89: 698716.5975 | O89: 548.498
A90: 78 | B90: 3420357.176 | C90: 698739.131 | D90: 550.568 | F90: 78 | I90: 550.568 | L90: 78 | M90: 3420357.172 | N90: 698739.1199 | O90: 550.568
A91: 79 | B91: 3420297.718 | C91: 698757.947 | D91: 554.021 | F91: 79 | I91: 554.021 | L91: 79 | M91: 3420297.712 | N91: 698757.9287 | O91: 554.021
A92: 80 | B92: 3420248.698 | C92: 698773.459 | D92: 557.947 | F92: 80 | I92: 557.947 | L92: 80 | M92: 3420248.691 | N92: 698773.4354 | O92: 557.947
A93: 81 | B93: 3420220.701 | C93: 698782.312 | D93: 559.759 | F93: 81 | I93: 559.759 | L93: 81 | M93: 3420220.694 | N93: 698782.2913 | O93: 559.759
A94: 82 | B94: 3420175.053 | C94: 698796.748 | D94: 560.141 | F94: 82 | I94: 560.141 | L94: 82 | M94: 3420175.047 | N94: 698796.7305 | O94: 560.141
A95: 83 | B95: 3420157.266 | C95: 698802.375 | D95: 560.069 | F95: 83 | I95: 560.069 | L95: 83 | M95: 3420157.26 | N95: 698802.3571 | O95: 560.069
A96: POL-3 | B96: 3420156.835 | C96: 698802.4965 | D96: 560.1678 | F96: POL-3 | I96: 560.1678 | L96: POL-3 | M96: 3420156.833 | N96: 698802.4921 | O96: 560.1678
A97: 84 | B97: 3420155.904 | C97: 698802.794 | D97: 560.188 | F97: 84 | I97: 560.188 | L97: 84 | M97: 3420155.902 | N97: 698802.7868 | O97: 560.188
A98: 85 | B98: 3420125.035 | C98: 698812.555 | D98: 559.4 | F98: 85 | I98: 559.4 | L98: 85 | M98: 3420125.034 | N98: 698812.5511 | O98: 559.4
A99: 86 | B99: 3420066.883 | C99: 698830.947 | D99: 554.595 | F99: 86 | I99: 554.595 | L99: 86 | M99: 3420066.883 | N99: 698830.9457 | O99: 554.595
A100: 87 | B100: 3420027.615 | C100: 698843.365 | D100: 556.098 | F100: 87 | I100: 556.098 | L100: 87 | M100: 3420027.616 | N100: 698843.3669 | O100: 556.098
A101: 88 | B101: 3419985.108 | C101: 698856.811 | D101: 553.588 | F101: 88 | I101: 553.588 | L101: 88 | M101: 3419985.109 | N101: 698856.8129 | O101: 553.588
A102: 89 | B102: 3419940.578 | C102: 698870.895 | D102: 552.053 | F102: 89 | I102: 552.053 | L102: 89 | M102: 3419940.579 | N102: 698870.8986 | O102: 552.053
A103: 90 | B103: 3419896.376 | C103: 698884.876 | D103: 551.679 | F103: 90 | I103: 551.679 | L103: 90 | M103: 3419896.377 | N103: 698884.8807 | O103: 551.679
A104: 91 | B104: 3419849.056 | C104: 698899.849 | D104: 551.79 | F104: 91 | I104: 551.79 | L104: 91 | M104: 3419849.056 | N104: 698899.8496 | O104: 551.79
A105: 92 | B105: 3419787.299 | C105: 698919.385 | D105: 552.078 | F105: 92 | I105: 552.078 | L105: 92 | M105: 3419787.299 | N105: 698919.3849 | O105: 552.078
A106: 93 | B106: 3419726.22 | C106: 698938.705 | D106: 552.419 | F106: 93 | I106: 552.419 | L106: 93 | M106: 3419726.22 | N106: 698938.7056 | O106: 552.419
A107: 94 | B107: 3419663.019 | C107: 698958.697 | D107: 553.771 | F107: 94 | I107: 553.771 | L107: 94 | M107: 3419663.019 | N107: 698958.6976 | O107: 553.771
A108: 95 | B108: 3419613.732 | C108: 698974.288 | D108: 555.362 | F108: 95 | I108: 555.362 | L108: 95 | M108: 3419613.732 | N108: 698974.2883 | O108: 555.362
A109: 96 | B109: 3419565.114 | C109: 698989.667 | D109: 557.779 | F109: 96 | I109: 557.779 | L109: 96 | M109: 3419565.114 | N109: 698989.6674 | O109: 557.779
A110: 97 | B110: 3419543.158 | C110: 698996.613 | D110: 558.751 | F110: 97 | I110: 558.751 | L110: 97 | M110: 3419543.158 | N110: 698996.6127 | O110: 558.751
A111: 98 | B111: 3419533.574 | C111: 698999.644 | D111: 559.888 | F111: 98 | I111: 559.888 | L111: 98 | M111: 3419533.574 | N111: 698999.6443 | O111: 559.888
A112: PI-2 | B112: 3419532.46 | C112: 698999.9968 | D112: 559.9014 | F112: PI-2 | I112: 559.9014 | L112: PI-2 | M112: 3419532.46 | N112: 698999.9968 | O112: 559.9014
A113: 99 | B113: 3419532.176 | C113: 699000.858 | D113: 559.873 | F113: 99 | I113: 559.873 | L113: 99 | M113: 3419532.176 | N113: 699000.8578 | O113: 559.873
A114: 100 | B114: 3419521.557 | C114: 699033.035 | D114: 558.619 | F114: 100 | I114: 558.619 | L114: 100 | M114: 3419521.556 | N114: 699033.0347 | O114: 558.619
A115: 101 | B115: 3419513.453 | C115: 699057.591 | D115: 558.015 | F115: 101 | I115: 558.015 | L115: 101 | M115: 3419513.452 | N115: 699057.5906 | O115: 558.015
A116: 102 | B116: 3419506.335 | C116: 699079.163 | D116: 559.429 | F116: 102 | I116: 559.429 | L116: 102 | M116: 3419506.332 | N116: 699079.1622 | O116: 559.429
A117: 103 | B117: 3419499.707 | C117: 699099.247 | D117: 561.36 | F117: 103 | I117: 561.36 | L117: 103 | M117: 3419499.704 | N117: 699099.246 | O117: 561.36
A118: 104 | B118: 3419496.768 | C118: 699108.156 | D118: 562.367 | F118: 104 | I118: 562.367 | L118: 104 | M118: 3419496.764 | N118: 699108.1547 | O118: 562.367
A119: POL-4 | B119: 3419496.611 | C119: 699108.6312 | D119: 562.404 | F119: POL-4 | I119: 562.404 | L119: POL-4 | M119: 3419496.607 | N119: 699108.6299 | O119: 562.404
A120: 105 | B120: 3419496.459 | C120: 699109.071 | D120: 562.245 | F120: 105 | I120: 562.245 | L120: 105 | M120: 3419496.461 | N120: 699109.0717 | O120: 562.245
A121: 106 | B121: 3419486.619 | C121: 699138.909 | D121: 561.421 | F121: 106 | I121: 561.421 | L121: 106 | M121: 3419486.614 | N121: 699138.9075 | O121: 561.421
A122: 107 | B122: 3419463.889 | C122: 699207.76 | D122: 561.4 | F122: 107 | I122: 561.4 | L122: 107 | M122: 3419463.891 | N122: 699207.7605 | O122: 561.4
A123: 108 | B123: 3419457.903 | C123: 699225.916 | D123: 562.681 | F123: 108 | I123: 562.681 | L123: 108 | M123: 3419457.899 | N123: 699225.9147 | O123: 562.681
A124: 109 | B124: 3419445.176 | C124: 699264.478 | D124: 559.533 | F124: 109 | I124: 559.533 | L124: 109 | M124: 3419445.172 | N124: 699264.4768 | O124: 559.533
A125: 110 | B125: 3419435.04 | C125: 699295.19 | D125: 557.945 | F125: 110 | I125: 557.945 | L125: 110 | M125: 3419435.036 | N125: 699295.1888 | O125: 557.945
A126: 111 | B126: 3419419.506 | C126: 699342.259 | D126: 553.67 | F126: 111 | I126: 553.67 | L126: 111 | M126: 3419419.502 | N126: 699342.2577 | O126: 553.67
A127: 112 | B127: 3419401.011 | C127: 699398.299 | D127: 552.753 | F127: 112 | I127: 552.753 | L127: 112 | M127: 3419401.007 | N127: 699398.2977 | O127: 552.753
A128: 113 | B128: 3419380.98 | C128: 699458.993 | D128: 549.113 | F128: 113 | I128: 549.113 | L128: 113 | M128: 3419380.976 | N128: 699458.9916 | O128: 549.113
A129: 114 | B129: 3419360.073 | C129: 699522.34 | D129: 547.313 | F129: 114 | I129: 547.313 | L129: 114 | M129: 3419360.069 | N129: 699522.3387 | O129: 547.313
A130: 115 | B130: 3419337.561 | C130: 699590.551 | D130: 546.904 | F130: 115 | I130: 546.904 | L130: 115 | M130: 3419337.557 | N130: 699590.5497 | O130: 546.904
A131: 116 | B131: 3419313.904 | C131: 699662.232 | D131: 546.603 | F131: 116 | I131: 546.603 | L131: 116 | M131: 3419313.9 | N131: 699662.2307 | O131: 546.603
A132: 117 | B132: 3419289.549 | C132: 699736.016 | D132: 546.414 | F132: 117 | I132: 546.414 | L132: 117 | M132: 3419289.548 | N132: 699736.0158 | O132: 546.414
A133: 118 | B133: 3419265.034 | C133: 699810.297 | D133: 546.543 | F133: 118 | I133: 546.543 | L133: 118 | M133: 3419265.033 | N133: 699810.2968 | O133: 546.543
A134: 119 | B134: 3419243.45 | C134: 699875.697 | D134: 546.585 | F134: 119 | I134: 546.585 | L134: 119 | M134: 3419243.449 | N134: 699875.6967 | O134: 546.585
A135: 120 | B135: 3419218.328 | C135: 699951.809 | D135: 546.6 | F135: 120 | I135: 546.6 | L135: 120 | M135: 3419218.329 | N135: 699951.8094 | O135: 546.6
A136: 121 | B136: 3419193.602 | C136: 700026.733 | D136: 546.56 | F136: 121 | I136: 546.56 | L136: 121 | M136: 3419193.602 | N136: 700026.733 | O136: 546.56
A137: 122 | B137: 3419170.868 | C137: 700095.618 | D137: 546.734 | F137: 122 | I137: 546.734 | L137: 122 | M137: 3419170.868 | N137: 700095.6179 | O137: 546.734
A138: 123 | B138: 3419152.866 | C138: 700150.164 | D138: 547.452 | F138: =IF(A138="","",A138) -> 123 | I138: =IF(D138="","",D138) -> 547.452 | L138: 123 | M138: 3419152.866 | N138: 700150.1639 | O138: 547.452
A139: 124 | B139: 3419137.928 | C139: 700195.431 | D139: 549.255 | F139: 124 | I139: 549.255 | L139: 124 | M139: 3419137.926 | N139: 700195.4304 | O139: 549.255
A140: 125 | B140: 3419128.461 | C140: 700224.116 | D140: 551.09 | F140: 125 | I140: 551.09 | L140: 125 | M140: 3419128.459 | N140: 700224.1154 | O140: 551.09
A141: 126 | B141: 3419121.668 | C141: 700244.696 | D141: 553.167 | F141: 126 | I141: 553.167 | L141: 126 | M141: 3419121.667 | N141: 700244.6956 | O141: 553.167
A142: 127 | B142: 3419105.118 | C142: 700294.848 | D142: 554.779 | F142: 127 | I142: 554.779 | L142: 127 | M142: 3419105.115 | N142: 700294.8471 | O142: 554.779
A143: 128 | B143: 3419097.494 | C143: 700317.947 | D143: 555.689 | F143: 128 | I143: 555.689 | L143: 128 | M143: 3419097.492 | N143: 700317.9462 | O143: 555.689
A144: 129 | B144: 3419085.025 | C144: 700355.728 | D144: 555.791 | F144: 129 | I144: 555.791 | L144: 129 | M144: 3419085.023 | N144: 700355.7272 | O144: 555.791
A145: 130 | B145: 3419075.205 | C145: 700385.482 | D145: 557.287 | F145: 130 | I145: 557.287 | L145: 130 | M145: 3419075.203 | N145: 700385.4813 | O145: 557.287
A146: 131 | B146: 3419070.493 | C146: 700399.76 | D146: 557.584 | F146: 131 | I146: 557.584 | L146: 131 | M146: 3419070.491 | N146: 700399.7592 | O146: 557.584
A147: POL-5 | B147: 3419070.209 | C147: 700400.622 | D147: 557.7273 | F147: POL-5 | I147: 557.7273 | L147: POL-5 | M147: 3419070.206 | N147: 700400.6211 | O147: 557.7273
A148: 132 | B148: 3419069.966 | C148: 700401.36 | D148: 557.645 | F148: 132 | I148: 557.645 | L148: 132 | M148: 3419069.963 | N148: 700401.3589 | O148: 557.645
A149: 133 | B149: 3419064.176 | C149: 700418.902 | D149: 556.662 | F149: 133 | I149: 556.662 | L149: 133 | M149: 3419064.173 | N149: 700418.9011 | O149: 556.662
A150: 134 | B150: 3419058.36 | C150: 700436.522 | D150: 555.851 | F150: 134 | G150: =North_final($C$5,$D$5,$E$5,$F$5,B150,C150) ->  | H150: =East_final($C$5,$D$5,$E$5,$F$5,B150,C150) ->  | I150: 555.851 | J150: =IF(G150="","",DAL_final($C$5,$D$5,$E$5,$F$5,B150,C150)) ->  | L150: 134 | M150: 3419058.358 | N150: 700436.5213 | O150: 555.851
A151: 135 | B151: 3419051.888 | C151: 700456.129 | D151: 555.482 | F151: 135 | I151: 555.482 | L151: 135 | M151: 3419051.887 | N151: 700456.1286 | O151: 555.482
A152: 136 | B152: 3419047.511 | C152: 700469.395 | D152: 555.197 | F152: 136 | I152: 555.197 | L152: 136 | M152: 3419047.509 | N152: 700469.3942 | O152: 555.197
A153: PI-3 | B153: 3419047.326 | C153: 700469.9473 | D153: 555.2813 | F153: PI-3 | G153: Ref PI-end | H153: Ref PI-end | I153: 555.2813 | J153: 8651.089952 | L153: PI-3 | M153: 3419047.326 | N153: 700469.9473 | O153: 555.2813
A154: 137 | B154: 3419046.776 | C154: 700470.656 | D154: 555.17 | F154: 137 | G154: =North_final($C$5,$D$5,$E$5,$F$5,B154,C154) -> 3419046.776 | H154: 700470.6563 | I154: 555.17 | J154: 8650.192748 | L154: 137 | M154: 3419046.776 | N154: 700470.6563 | O154: 555.17
A155: 138 | B155: 3419023.124 | C155: 700501.154 | D155: 554.802 | F155: 138 | G155: 3419023.123 | H155: 700501.1533 | I155: 554.802 | J155: 8611.598122 | L155: 138 | M155: 3419023.123 | N155: 700501.1533 | O155: 554.802
A156: 139 | B156: 3419007.609 | C156: 700521.159 | D156: 555.473 | F156: 139 | G156: 3419007.608 | H156: 700521.158 | I156: 555.473 | J156: 8586.281818 | L156: 139 | M156: 3419007.608 | N156: 700521.158 | O156: 555.473
A157: 140 | B157: 3418993.33 | C157: 700539.572 | D157: 555.141 | F157: 140 | G157: 3418993.328 | H157: 700539.5701 | I157: 555.141 | J157: 8562.980994 | L157: 140 | M157: 3418993.328 | N157: 700539.5701 | O157: 555.141
A158: 141 | B158: 3418984.19 | C158: 700551.357 | D158: 556.299 | F158: 141 | G158: 3418984.187 | H158: 700551.3549 | I158: 556.299 | J158: 8548.067047 | L158: 141 | M158: 3418984.187 | N158: 700551.3549 | O158: 556.299
A159: 142 | B159: 3418963.118 | C159: 700578.528 | D159: 556.233 | F159: 142 | G159: 3418963.114 | H159: 700578.5252 | I159: 556.233 | J159: 8513.682567 | L159: 142 | M159: 3418963.114 | N159: 700578.5252 | O159: 556.233
A160: 143 | B160: 3418938.176 | C160: 700610.689 | D160: 556.695 | F160: 143 | G160: 3418938.171 | H160: 700610.6854 | I160: 556.695 | J160: 8472.983264 | L160: 143 | M160: 3418938.171 | N160: 700610.6854 | O160: 556.695
A161: 144 | B161: 3418915.2 | C161: 700640.314 | D161: 556.816 | F161: 144 | G161: 3418915.195 | H161: 700640.31 | I161: 556.816 | J161: 8435.492769 | L161: 144 | M161: 3418915.195 | N161: 700640.31 | O161: 556.816
A162: 145 | B162: 3418890.947 | C162: 700671.587 | D162: 557.279 | F162: 145 | G162: 3418890.941 | H162: 700671.582 | I162: 557.279 | J162: 8395.917417 | L162: 145 | M162: 3418890.941 | N162: 700671.582 | O162: 557.279
A163: 146 | B163: 3418866.324 | C163: 700703.332 | D163: 557.893 | F163: 146 | G163: 3418866.319 | H163: 700703.3279 | I163: 557.893 | J163: 8355.742336 | L163: 146 | M163: 3418866.319 | N163: 700703.3279 | O163: 557.893
A164: 147 | B164: 3418841.83 | C164: 700734.913 | D164: 558.492 | F164: 147 | G164: 3418841.825 | H164: 700734.909 | I164: 558.492 | J164: 8315.775905 | L164: 147 | M164: 3418841.825 | N164: 700734.909 | O164: 558.492
A165: 148 | B165: 3418816.29 | C165: 700767.844 | D165: 559.123 | F165: 148 | G165: 3418816.284 | H165: 700767.8396 | I165: 559.123 | J165: 8274.101664 | L165: 148 | M165: 3418816.284 | N165: 700767.8396 | O165: 559.123
A166: 149 | B166: 3418805.064 | C166: 700782.321 | D166: 559.009 | F166: 149 | G166: 3418805.057 | H166: 700782.3155 | I166: 559.009 | J166: 8255.782095 | L166: 149 | M166: 3418805.057 | N166: 700782.3155 | O166: 559.009
A167: POL-6 | B167: 3418804.73 | C167: 700782.7523 | D167: 559.1246 | F167: POL-6 | G167: 3418804.723 | H167: 700782.7467 | I167: 559.1246 | J167: 8255.236468 | L167: POL-6 | M167: 3418804.723 | N167: 700782.7467 | O167: 559.1246
A168: 150 | B168: 3418804.238 | C168: 700783.387 | D168: 559.042 | F168: 150 | G168: 3418804.23 | H168: 700783.3811 | I168: 559.042 | J168: 8254.433528 | L168: 150 | M168: 3418804.23 | N168: 700783.3811 | O168: 559.042
A169: 151 | B169: 3418800.301 | C169: 700788.462 | D169: 559.115 | F169: 151 | G169: 3418800.294 | H169: 700788.4566 | I169: 559.115 | J169: 8248.010477 | L169: 151 | M169: 3418800.294 | N169: 700788.4566 | O169: 559.115
A170: 152 | B170: 3418787.027 | C170: 700805.578 | D170: 558.728 | F170: 152 | G170: 3418787.019 | H170: 700805.5721 | I170: 558.728 | J170: 8226.350455 | L170: 152 | M170: 3418787.019 | N170: 700805.5721 | O170: 558.728
A171: 153 | B171: 3418763.22 | C171: 700836.275 | D171: 557.735 | F171: 153 | G171: 3418763.212 | H171: 700836.2685 | I171: 557.735 | J171: 8187.503588 | L171: 153 | M171: 3418763.212 | N171: 700836.2685 | O171: 557.735
A172: 154 | B172: 3418736.661 | C172: 700870.52 | D172: 556.491 | F172: 154 | G172: 3418736.652 | H172: 700870.513 | I172: 556.491 | J172: 8144.166531 | L172: 154 | M172: 3418736.652 | N172: 700870.513 | O172: 556.491
A173: 155 | B173: 3418707.537 | C173: 700908.073 | D173: 555.093 | F173: 155 | G173: 3418707.527 | H173: 700908.0652 | I173: 555.093 | J173: 8096.643535 | L173: 155 | M173: 3418707.527 | N173: 700908.0652 | O173: 555.093
A174: 156 | B174: 3418677.259 | C174: 700947.113 | D174: 554.297 | F174: 156 | G174: 3418677.248 | H174: 700947.1047 | I174: 554.297 | J174: 8047.238284 | L174: 156 | M174: 3418677.248 | N174: 700947.1047 | O174: 554.297
A175: 157 | B175: 3418645.632 | C175: 700987.893 | D175: 553.659 | F175: 157 | G175: 3418645.62 | H175: 700987.8839 | I175: 553.659 | J175: 7995.631351 | L175: 157 | M175: 3418645.62 | N175: 700987.8839 | O175: 553.659
A176: 158 | B176: 3418609.676 | C176: 701034.251 | D176: 553.368 | F176: 158 | G176: 3418609.665 | H176: 701034.2426 | I176: 553.368 | J176: 7936.963658 | L176: 158 | M176: 3418609.665 | N176: 701034.2426 | O176: 553.368
A177: 159 | B177: 3418571.858 | C177: 701083.014 | D177: 553.083 | F177: 159 | G177: 3418571.846 | H177: 701083.0046 | I177: 553.083 | J177: 7875.25441 | L177: 159 | M177: 3418571.846 | N177: 701083.0046 | O177: 553.083
A178: 160 | B178: 3418531.63 | C178: 701134.883 | D178: 553.489 | F178: 160 | G178: 3418531.617 | H178: 701134.8731 | I178: 553.489 | J178: 7809.613835 | L178: 160 | M178: 3418531.617 | N178: 701134.8731 | O178: 553.489
A179: 161 | B179: 3418497.935 | C179: 701178.321 | D179: 554.406 | F179: 161 | G179: 3418497.925 | H179: 701178.3135 | I179: 554.406 | J179: 7754.639179 | L179: 161 | M179: 3418497.925 | N179: 701178.3135 | O179: 554.406
A180: 162 | B180: 3418463.823 | C180: 701222.303 | D180: 554.397 | F180: 162 | G180: 3418463.813 | H180: 701222.2955 | I180: 554.397 | J180: 7698.979095 | L180: 162 | M180: 3418463.813 | N180: 701222.2955 | O180: 554.397
A181: 163 | B181: 3418427.537 | C181: 701269.088 | D181: 554.796 | F181: 163 | G181: 3418427.527 | H181: 701269.0805 | I181: 554.796 | J181: 7639.771748 | L181: 163 | M181: 3418427.527 | N181: 701269.0805 | O181: 554.796
A182: 164 | B182: 3418390.492 | C182: 701316.853 | D182: 555.067 | F182: 164 | G182: 3418390.482 | H182: 701316.8451 | I182: 555.067 | J182: 7579.324852 | L182: 164 | M182: 3418390.482 | N182: 701316.8451 | O182: 555.067
A183: 165 | B183: 3418347.999 | C183: 701371.635 | D183: 554.992 | F183: 165 | G183: 3418347.992 | H183: 701371.6293 | I183: 554.992 | J183: 7509.99432 | L183: 165 | M183: 3418347.992 | N183: 701371.6293 | O183: 554.992
A184: 166 | B184: 3418312.761 | C184: 701417.063 | D184: 554.921 | F184: 166 | G184: 3418312.757 | H184: 701417.0595 | I184: 554.921 | J184: 7452.50154 | L184: 166 | M184: 3418312.757 | N184: 701417.0595 | O184: 554.921
A185: 167 | B185: 3418290.524 | C185: 701445.734 | D185: 554.691 | F185: 167 | G185: 3418290.52 | H185: 701445.7306 | I185: 554.691 | J185: 7416.217791 | L185: 167 | M185: 3418290.52 | N185: 701445.7306 | O185: 554.691
A186: 168 | B186: 3418262.595 | C186: 701481.737 | D186: 555.718 | F186: 168 | G186: 3418262.594 | H186: 701481.7362 | I186: 555.718 | J186: 7370.651959 | L186: 168 | M186: 3418262.594 | N186: 701481.7362 | O186: 555.718
A187: 169 | B187: 3418225.154 | C187: 701530.01 | D187: 556.081 | F187: 169 | G187: 3418225.154 | H187: 701530.0097 | I187: 556.081 | J187: 7309.560953 | L187: 169 | M187: 3418225.154 | N187: 701530.0097 | O187: 556.081
A188: 170 | B188: 3418189.102 | C188: 701576.485 | D188: 555.905 | F188: 170 | G188: 3418189.106 | H188: 701576.4879 | I188: 555.905 | J188: 7250.741974 | L188: 170 | M188: 3418189.106 | N188: 701576.4879 | O188: 555.905
A189: 171 | B189: 3418107.822 | C189: 701681.324 | D189: 555.67 | F189: 171 | G189: 3418107.806 | H189: 701681.3114 | I189: 555.67 | J189: 7118.085826 | L189: 171 | M189: 3418107.806 | N189: 701681.3114 | O189: 555.67
A190: 172 | B190: 3418078.315 | C190: 701719.37 | D190: 555.688 | F190: 172 | G190: 3418078.298 | H190: 701719.3569 | I190: 555.688 | J190: 7069.93854 | L190: 172 | M190: 3418078.298 | N190: 701719.3569 | O190: 555.688
A191: 173 | B191: 3418039.839 | C191: 701768.98 | D191: 556.636 | F191: 173 | G191: 3418039.821 | H191: 701768.9664 | I191: 556.636 | J191: 7007.156738 | L191: 173 | M191: 3418039.821 | N191: 701768.9664 | O191: 556.636
A192: 174 | B192: 3418011.595 | C192: 701805.386 | D192: 556.322 | F192: 174 | G192: 3418011.582 | H192: 701805.3762 | I192: 556.322 | J192: 6961.079408 | L192: 174 | M192: 3418011.582 | N192: 701805.3762 | O192: 556.322
A193: 175 | B193: 3417981.175 | C193: 701844.608 | D193: 556.811 | F193: 175 | G193: 3417981.162 | H193: 701844.5982 | I193: 556.811 | J193: 6911.443315 | L193: 175 | M193: 3417981.162 | N193: 701844.5982 | O193: 556.811
A194: 176 | B194: 3417947.93 | C194: 701887.463 | D194: 556.329 | F194: 176 | G194: 3417947.922 | H194: 701887.4566 | I194: 556.329 | J194: 6857.205127 | L194: 176 | M194: 3417947.922 | N194: 701887.4566 | O194: 556.329
A195: 177 | B195: 3417913.916 | C195: 701931.318 | D195: 555.849 | F195: 177 | G195: 3417913.908 | H195: 701931.3119 | I195: 555.849 | J195: 6801.705459 | L195: 177 | M195: 3417913.908 | N195: 701931.3119 | O195: 555.849
A196: 178 | B196: 3417882.989 | C196: 701971.17 | D196: 555.791 | F196: 178 | G196: 3417882.993 | H196: 701971.1727 | I196: 555.791 | J196: 6751.260825 | L196: 178 | M196: 3417882.993 | N196: 701971.1727 | O196: 555.791
A197: 179 | B197: 3417858.002 | C197: 702003.435 | D197: 556.386 | F197: 179 | G197: 3417857.982 | H197: 702003.4196 | I197: 556.386 | J197: 6710.451764 | L197: 179 | M197: 3417857.982 | N197: 702003.4196 | O197: 556.386
A198: 180 | B198: 3417840.696 | C198: 702025.749 | D198: 557.033 | F198: 180 | G198: 3417840.676 | H198: 702025.7334 | I198: 557.033 | J198: 6682.213275 | L198: 180 | M198: 3417840.676 | N198: 702025.7334 | O198: 557.033
A199: 181 | B199: 3417813.111 | C199: 702061.316 | D199: 556.546 | F199: 181 | G199: 3417813.091 | H199: 702061.3002 | I199: 556.546 | J199: 6637.202791 | L199: 181 | M199: 3417813.091 | N199: 702061.3002 | O199: 556.546
A200: 182 | B200: 3417779.83 | C200: 702104.214 | D200: 555.963 | F200: 182 | G200: 3417779.816 | H200: 702104.203 | I200: 555.963 | J200: 6582.908562 | L200: 182 | M200: 3417779.816 | N200: 702104.203 | O200: 555.963
A201: 183 | B201: 3417737.875 | C201: 702158.282 | D201: 555.545 | F201: 183 | G201: 3417737.874 | H201: 702158.2809 | I201: 555.545 | J201: 6514.471946 | L201: 183 | M201: 3417737.874 | N201: 702158.2809 | O201: 555.545
... 184 more rows

Sheet Stationing(profile)
A1: Back to Introduction | D1: station start = | F1: 10000
A3: Pt. no | B3: northing | C3: easting | D3: elevation | F3: Pt. no | G3: elevation | H3: stationing
A4: START | B4: 3423090.73 | C4: 696076.3647 | D4: 538.7337 | F4: =IF(A4="","",A4) -> START | G4: =IF(D4="","",D4) -> 538.7337 | H4: =IF(F1="","",F1) -> 10000 | K4: =IF(A4="","",A4) -> START | L4: =IF(D4="","",D4) -> 538.7337 | M4: =IF(F1="","",F1) -> 10000 | O4: START | P4: 3423090.73 | Q4: 696076.3647 | R4: 538.7337
A5: 1 | B5: 3423090.387 | C5: 696076.773 | D5: 538.57 | F5: =IF(A5="","",A5) -> 1 | G5: =IF(D5="","",D5) -> 538.57 | H5: =IF(D5="","",Chainage(B4, C4, B5, C5, D4, D5, H4)) -> 10000.53295 | M5: =IF(D5="","",Chainage(P4, Q4, P5, Q5, R4, R5, M4)) -> 13194.23564 | O5: PI-1 | P5: 3421038.074 | Q5: 698523.7342 | R5: 551.3522
A6: 2 | B6: 3423062.509 | C6: 696110.0127 | D6: 539.05 | F6: 2 | G6: 539.05 | H6: =IF(D6="","",Chainage(B5, C5, B6, C6, D5, D6, H5)) -> 10043.91658 | M6: =IF(D6="","",Chainage(P5, Q5, P6, Q6, R5, R6, M5)) -> 14773.38202 | O6: PI-2 | P6: 3419532.46 | Q6: 698999.9968 | R6: 559.9014
A7: 3 | B7: 3423027.461 | C7: 696151.7994 | D7: 539.72 | F7: 3 | G7: 539.72 | H7: 10098.45565 | M7: =IF(D7="","",Chainage(P6, Q6, P7, Q7, R6, R7, M6)) -> 16321.31325 | O7: PI-3 | P7: 3419047.326 | Q7: 700469.9473 | R7: 555.2813
A8: 4 | B8: 3422992.579 | C8: 696193.3894 | D8: 540.393 | F8: 4 | G8: 540.393 | H8: 10152.73797 | M8: =IF(D8="","",Chainage(P7, Q7, P8, Q8, R7, R8, M7)) -> 24972.17191 | O8: PI-4 | P8: 3413745.399 | Q8: 707305.9496 | R8: 531.5097
A9: 5 | B9: 3422957.007 | C9: 696235.8014 | D9: 540.997 | F9: 5 | G9: 540.997 | H9: 10208.09319 | M9: =IF(D9="","",Chainage(P8, Q8, P9, Q9, R8, R9, M8)) -> 25157.90536 | O9: END | P9: 3413687.86 | Q9: 707482.5548 | R9: 529.774
A10: 6 | B10: 3422932.173 | C10: 696265.4112 | D10: 541.36 | F10: 6 | G10: 541.36 | H10: 10246.73917
A11: 7 | B11: 3422896.116 | C11: 696308.4014 | D11: 539.458 | F11: 7 | G11: 539.458 | H11: 10302.8489
A12: 8 | B12: 3422856.263 | C12: 696355.9187 | D12: 538.706 | F12: 8 | G12: 538.706 | H12: 10364.86743
A13: 9 | B13: 3422816.544 | C13: 696403.2746 | D13: 538.625 | F13: 9 | G13: 538.625 | H13: 10426.67517
A14: 10 | B14: 3422778.787 | C14: 696448.2924 | D14: 538.54 | F14: 10 | G14: 538.54 | H14: 10485.43127
A15: 11 | B15: 3422745.494 | C15: 696487.9874 | D15: 538.882 | F15: 11 | G15: 538.882 | H15: 10537.24024
A16: 12 | B16: 3422706.811 | C16: 696534.1087 | D16: 539.495 | F16: 12 | G16: 539.495 | H16: 10597.4366
A17: 13 | B17: 3422669.326 | C17: 696578.8024 | D17: 538.473 | F17: 13 | G17: 538.473 | H17: 10655.76958
A18: 14 | B18: 3422619.626 | C18: 696638.0595 | D18: 538.521 | F18: 14 | G18: 538.521 | H18: 10733.11041
A19: 15 | B19: 3422565.861 | C19: 696702.1628 | D19: 538.587 | F19: 15 | G19: 538.587 | H19: 10816.77644
A20: 16 | B20: 3422529.52 | C20: 696745.4919 | D20: 538.504 | F20: 16 | G20: 538.504 | H20: 10873.32836
A21: 17 | B21: 3422484.965 | C21: 696798.6144 | D21: 538.592 | F21: 17 | G21: 538.592 | H21: 10942.66238
A22: 18 | B22: 3422435.014 | C22: 696858.1711 | D22: 538.704 | F22: 18 | G22: 538.704 | H22: 11020.39416
A23: 19 | B23: 3422382.104 | C23: 696921.2549 | D23: 538.745 | F23: 19 | G23: 538.745 | H23: 11102.72942
A24: 20 | B24: 3422325.529 | C24: 696988.7096 | D24: 538.652 | F24: 20 | G24: 538.652 | H24: 11190.76939
A25: 21 | B25: 3422275.433 | C25: 697048.4385 | D25: 538.496 | F25: 21 | G25: 538.496 | H25: 11268.72592
A26: 22 | B26: 3422213.18 | C26: 697122.6617 | D26: 538.487 | F26: 22 | G26: 538.487 | H26: 11365.59985
A27: 23 | B27: 3422152.828 | C27: 697194.6192 | D27: 537.086 | F27: 23 | G27: 537.086 | H27: =IF(D27="","",Chainage(B26, C26, B27, C27, D26, D27, H26)) -> 11459.51669
A28: 24 | B28: 3422109.189 | C28: 697246.6496 | D28: 538.68 | F28: 24 | G28: 538.68 | H28: 11527.42521
A29: 25 | B29: 3422084.003 | C29: 697276.6795 | D29: 538.437 | F29: 25 | G29: 538.437 | H29: 11566.61923
A30: 26 | B30: 3422037.957 | C30: 697331.5792 | D30: 538.424 | F30: 26 | G30: 538.424 | H30: 11638.27272
A31: 27 | B31: 3422017.786 | C31: 697355.6291 | D31: 540.049 | F31: 27 | G31: 540.049 | H31: 11669.66192
A32: 28 | B32: 3421976.307 | C32: 697405.0845 | D32: 540.809 | F32: 28 | G32: 540.809 | H32: 11734.20956
A33: 29 | B33: 3421955.848 | C33: 697429.4774 | D33: 538.821 | F33: 29 | G33: 538.821 | H33: 11766.04648
A34: 30 | B34: 3421907.041 | C34: 697487.67 | D34: 538.08 | F34: 30 | G34: 538.08 | H34: =IF(D34="","",Chainage(B33, C33, B34, C34, D33, D34, H33)) -> 11841.99763
A35: 31 | B35: 3421875.776 | C35: 697524.9464 | D35: 542.056 | F35: 31 | G35: 542.056 | H35: 11890.64955
A36: 32 | B36: 3421850.48 | C36: 697555.1077 | D36: 542.488 | F36: 32 | G36: 542.488 | H36: 11930.01512
A37: 33 | B37: 3421827.537 | C37: 697582.4625 | D37: 540.472 | F37: 33 | G37: 540.472 | H37: 11965.71777
A38: 34 | B38: 3421814.253 | C38: 697598.3002 | D38: 541.812 | F38: 34 | G38: 541.812 | H38: 11986.38862
A39: 35 | B39: 3421802.699 | C39: 697612.0762 | D39: 541.208 | F39: 35 | G39: 541.208 | H39: 12004.36862
A40: 36 | B40: 3421790.238 | C40: 697626.9327 | D40: 542.853 | F40: 36 | G40: 542.853 | H40: 12023.75895
A41: 37 | B41: 3421763.718 | C41: 697658.5531 | D41: 544.44 | F41: 37 | G41: 544.44 | H41: 12065.02883
A42: 38 | B42: 3421727.916 | C42: 697701.2394 | D42: 547.496 | F42: 38 | G42: 547.496 | H42: 12120.74166
A43: 39 | B43: 3421691.027 | C43: 697745.2222 | D43: 551.382 | F43: 39 | G43: 551.382 | H43: 12178.14666
A44: 40 | B44: 3421667.971 | C44: 697772.712 | D44: 553.414 | F44: 40 | G44: 553.414 | H44: 12214.02552
A45: 41 | B45: 3421649.798 | C45: 697794.3787 | D45: 554.205 | F45: 41 | G45: 554.205 | H45: 12242.30429
A46: 42 | B46: 3421642.772 | C46: 697802.7558 | D46: 554.304 | F46: 42 | G46: 554.304 | H46: 12253.23773
A47: POL-1 | B47: 3421642.002 | C47: 697803.6744 | D47: 554.47 | F47: POL-1 | G47: 554.47 | H47: 12254.43673
A48: 43 | B48: 3421632.611 | C48: 697814.8707 | D48: 554.946 | F48: 43 | G48: 554.946 | H48: 12269.04981
A49: 44 | B49: 3421613.034 | C49: 697838.2125 | D49: 553.764 | F49: 44 | G49: 553.764 | H49: 12299.51483
A50: 45 | B50: 3421579.517 | C50: 697878.1752 | D50: 548.947 | F50: 45 | G50: 548.947 | H50: 12351.67281
A51: 46 | B51: 3421554.032 | C51: 697908.5598 | D51: 550.47 | F51: 46 | G51: 550.47 | H51: 12391.32991
A52: 47 | B52: 3421525.883 | C52: 697942.1224 | D52: 548.652 | F52: 47 | G52: 548.652 | H52: 12435.13465
A53: 48 | B53: 3421494.734 | C53: 697979.2612 | D53: 547.131 | F53: 48 | G53: 547.131 | H53: 12483.60702
A54: 49 | B54: 3421462.95 | C54: 698017.1571 | D54: 546.643 | F54: 49 | G54: 546.643 | H54: 12533.06755
A55: 50 | B55: 3421434.115 | C55: 698051.5363 | D55: 545.09 | F55: 50 | G55: 545.09 | H55: 12577.93818
A56: 51 | B56: 3421406.862 | C56: 698084.0296 | D56: 544.211 | F56: 51 | G56: 544.211 | H56: 12620.34725
A57: 52 | B57: 3421385.612 | C57: 698109.3663 | D57: 543.586 | F57: 52 | G57: 543.586 | H57: 12653.41583
A58: 53 | B58: 3421347.722 | C58: 698154.5421 | D58: 544.452 | F58: 53 | G58: 544.452 | H58: 12712.37775
A59: 54 | B59: 3421320.517 | C59: 698186.9793 | D59: 545.623 | F59: 54 | G59: 545.623 | H59: 12754.71369
A60: 55 | B60: 3421298.491 | C60: 698213.2401 | D60: 547.394 | F60: 55 | G60: 547.394 | H60: 12788.9884
A61: 56 | B61: 3421265.156 | C61: 698252.9859 | D61: 548.664 | F61: 56 | G61: 548.664 | H61: 12840.86317
A62: 57 | B62: 3421236.553 | C62: 698287.0889 | D62: 549.833 | F62: 57 | G62: 549.833 | H62: 12885.37333
A63: 58 | B63: 3421207.456 | C63: 698321.781 | D63: 553.061 | F63: 58 | G63: 553.061 | H63: 12930.65227
A64: 59 | B64: 3421169.929 | C64: 698366.5236 | D64: 559.518 | F64: 59 | G64: 559.518 | H64: 12989.04876
A65: POL-2 | B65: 3421150.066 | C65: 698390.2069 | D65: 562.3849 | F65: POL-2 | G65: 562.3849 | H65: 13019.95943
A66: 60 | B66: 3421150.429 | C66: 698389.774 | D66: 562.277 | F66: 60 | G66: 562.277 | H66: 13020.52449
A67: 61 | B67: 3421146.133 | C67: 698394.896 | D67: 562.333 | F67: 61 | G67: 562.333 | H67: 13027.20961
A68: 62 | B68: 3421121.428 | C68: 698424.3518 | D68: 559.935 | F68: 62 | G68: 559.935 | H68: 13065.65441
A69: 63 | B69: 3421104.462 | C69: 698444.58 | D69: 557.759 | F69: =IF(A69="","",A69) -> 63 | G69: =IF(D69="","",D69) -> 557.759 | H69: 13092.05557
A70: 64 | B70: 3421083.748 | C70: 698469.2765 | D70: 554.648 | F70: 64 | G70: 554.648 | H70: 13124.28858
A71: 65 | B71: 3421066.337 | C71: 698490.0366 | D71: 552.784 | F71: 65 | G71: 552.784 | H71: 13151.38393
A72: 66 | B72: 3421047.89 | C72: 698512.0307 | D72: 551.672 | F72: 66 | G72: 551.672 | H72: 13180.08986
A73: 67 | B73: 3421038.76 | C73: 698522.916 | D73: 551.27 | F73: 67 | G73: 551.27 | H73: 13194.29692
A74: PI-1 | B74: 3421038.074 | C74: 698523.7342 | D74: 551.3522 | F74: PI-1 | G74: 551.3522 | H74: 13195.36485
A75: 68 | B75: 3421037.217 | C75: 698524.0052 | D75: 551.207 | F75: 68 | G75: 551.207 | H75: 13196.26333
A76: 69 | B76: 3420995.338 | C76: 698537.2524 | D76: 550.033 | F76: 69 | G76: 550.033 | H76: 13240.18721
A77: 70 | B77: 3420932.277 | C77: 698557.2002 | D77: 549.594 | F77: 70 | G77: 549.594 | H77: 13306.32842
A78: 71 | B78: 3420863.261 | C78: 698579.0316 | D78: 549.778 | F78: 71 | G78: 549.778 | H78: 13378.71489
A79: 72 | B79: 3420803.757 | C79: 698597.8545 | D79: 548.063 | F79: 72 | G79: 548.063 | H79: 13441.12577
A80: 73 | B80: 3420730.781 | C80: 698620.9384 | D80: 547.294 | F80: 73 | G80: 547.294 | H80: 13517.66541
A81: 74 | B81: 3420655.815 | C81: 698644.6519 | D81: 547.152 | F81: 74 | G81: 547.152 | H81: 13596.29208
A82: 75 | B82: 3420579.76 | C82: 698668.71 | D82: 547.375 | F82: 75 | G82: 547.375 | H82: 13676.06173
A83: 76 | B83: 3420502.306 | C83: 698693.2105 | D83: 547.615 | F83: 76 | G83: 547.615 | H83: 13757.29824
A84: 77 | B84: 3420428.373 | C84: 698716.5975 | D84: 548.498 | F84: 77 | G84: 548.498 | H84: 13834.84233
A85: 78 | B85: 3420357.172 | C85: 698739.1199 | D85: 550.568 | F85: 78 | G85: 550.568 | H85: 13909.5201
A86: 79 | B86: 3420297.712 | C86: 698757.9287 | D86: 554.021 | F86: 79 | G86: 554.021 | H86: 13971.88433
A87: 80 | B87: 3420248.691 | C87: 698773.4354 | D87: 557.947 | F87: 80 | G87: 557.947 | H87: 14023.30016
A88: 81 | B88: 3420220.694 | C88: 698782.2913 | D88: 559.759 | F88: 81 | G88: 559.759 | H88: 14052.66356
A89: 82 | B89: 3420175.047 | C89: 698796.7305 | D89: 560.141 | F89: 82 | G89: 560.141 | H89: 14100.5399
A90: 83 | B90: 3420157.26 | C90: 698802.3571 | D90: 560.069 | F90: 83 | G90: 560.069 | H90: 14119.19577
A91: POL-3 | B91: 3420156.833 | C91: 698802.4921 | D91: 560.1678 | F91: POL-3 | G91: 560.1678 | H91: 14119.64353
A92: 84 | B92: 3420155.902 | C92: 698802.7868 | D92: 560.188 | F92: 84 | G92: 560.188 | H92: 14120.62072
A93: 85 | B93: 3420125.034 | C93: 698812.5511 | D93: 559.4 | F93: 85 | G93: 559.4 | H93: 14152.99625
A94: 86 | B94: 3420066.883 | C94: 698830.9457 | D94: 554.595 | F94: 86 | G94: 554.595 | H94: 14213.98744
A95: 87 | B95: 3420027.616 | C95: 698843.3669 | D95: 556.098 | F95: 87 | G95: 556.098 | H95: 14255.17219
A96: 88 | B96: 3419985.109 | C96: 698856.8129 | D96: 553.588 | F96: 88 | G96: 553.588 | H96: 14299.75515
A97: 89 | B97: 3419940.579 | C97: 698870.8986 | D97: 552.053 | F97: 89 | G97: 552.053 | H97: 14346.45932
A98: 90 | B98: 3419896.377 | C98: 698884.8807 | D98: 551.679 | F98: 90 | G98: 551.679 | H98: =IF(D98="","",Chainage(B97, C97, B98, C98, D97, D98, H97)) -> 14392.81968
A99: 91 | B99: 3419849.056 | C99: 698899.8496 | D99: 551.79 | F99: 91 | G99: 551.79 | H99: 14442.45204
A100: 92 | B100: 3419787.299 | C100: 698919.3849 | D100: 552.078 | F100: 92 | G100: 552.078 | H100: 14507.22532
A101: 93 | B101: 3419726.22 | C101: 698938.7056 | D101: 552.419 | F101: 93 | G101: 552.419 | H101: 14571.28702
A102: 94 | B102: 3419663.019 | C102: 698958.6976 | D102: 553.771 | F102: 94 | G102: 553.771 | H102: 14637.57459
A103: 95 | B103: 3419613.732 | C103: 698974.2883 | D103: 555.362 | F103: 95 | G103: 555.362 | H103: 14689.26874
A104: 96 | B104: 3419565.114 | C104: 698989.6674 | D104: 557.779 | F104: 96 | G104: 557.779 | H104: 14740.26112
A105: 97 | B105: 3419543.158 | C105: 698996.6127 | D105: 558.751 | F105: 97 | G105: 558.751 | H105: 14763.28964
A106: 98 | B106: 3419533.574 | C106: 698999.6443 | D106: 559.888 | F106: 98 | G106: 559.888 | H106: 14773.34151
A107: PI-2 | B107: 3419532.46 | C107: 698999.9968 | D107: 559.9014 | F107: PI-2 | G107: 559.9014 | H107: 14774.51032
A108: 99 | B108: 3419532.176 | C108: 699000.8578 | D108: 559.873 | F108: 99 | G108: 559.873 | H108: 14775.41705
A109: 100 | B109: 3419521.556 | C109: 699033.0347 | D109: 558.619 | F109: 100 | G109: 558.619 | H109: 14809.30101
A110: 101 | B110: 3419513.452 | C110: 699057.5906 | D110: 558.015 | F110: 101 | G110: 558.015 | H110: 14835.15969
A111: 102 | B111: 3419506.332 | C111: 699079.1622 | D111: 559.429 | F111: 102 | G111: 559.429 | H111: 14857.8757
A112: 103 | B112: 3419499.704 | C112: 699099.246 | D112: 561.36 | F112: 103 | G112: 561.36 | H112: 14879.0251
A113: 104 | B113: 3419496.764 | C113: 699108.1547 | D113: 562.367 | F113: 104 | G113: 562.367 | H113: 14888.40636
A114: POL-4 | B114: 3419496.607 | C114: 699108.6299 | D114: 562.404 | F114: POL-4 | G114: 562.404 | H114: 14888.90676
A115: 105 | B115: 3419496.461 | C115: 699109.0717 | D115: 562.245 | F115: 105 | G115: 562.245 | H115: 14889.37211
A116: 106 | B116: 3419486.614 | C116: 699138.9075 | D116: 561.421 | F116: 106 | G116: 561.421 | H116: 14920.79076
A117: 107 | B117: 3419463.891 | C117: 699207.7605 | D117: 561.4 | F117: 107 | G117: 561.4 | H117: 14993.29668
A118: 108 | B118: 3419457.899 | C118: 699225.9147 | D118: 562.681 | F118: 108 | G118: 562.681 | H118: 15012.41401
A119: 109 | B119: 3419445.172 | C119: 699264.4768 | D119: 559.533 | F119: 109 | G119: 559.533 | H119: 15053.02191
A120: 110 | B120: 3419435.036 | C120: 699295.1888 | D120: 557.945 | F120: 110 | G120: 557.945 | H120: 15085.36326
A121: 111 | B121: 3419419.502 | C121: 699342.2577 | D121: 553.67 | F121: 111 | G121: 553.67 | H121: 15134.92924
A122: 112 | B122: 3419401.007 | C122: 699398.2977 | D122: 552.753 | F122: 112 | G122: 552.753 | H122: 15193.94219
A123: 113 | B123: 3419380.976 | C123: 699458.9916 | D123: 549.113 | F123: 113 | G123: 549.113 | H123: 15257.85601
A124: 114 | B124: 3419360.069 | C124: 699522.3387 | D124: 547.313 | F124: 114 | G124: 547.313 | H124: 15324.56365
A125: 115 | B125: 3419337.557 | C125: 699590.5497 | D125: 546.904 | F125: 115 | G125: 546.904 | H125: 15396.3932
A126: 116 | B126: 3419313.9 | C126: 699662.2307 | D126: 546.603 | F126: 116 | G126: 546.603 | H126: 15471.87673
A127: 117 | B127: 3419289.548 | C127: 699736.0158 | D127: 546.414 | F127: 117 | G127: 546.414 | H127: 15549.57603
A128: 118 | B128: 3419265.033 | C128: 699810.2968 | D128: 546.543 | F128: 118 | G128: 546.543 | H128: 15627.7974
A129: 119 | B129: 3419243.449 | C129: 699875.6967 | D129: 546.585 | F129: 119 | G129: 546.585 | H129: 15696.66664
A130: 120 | B130: 3419218.329 | C130: 699951.8094 | D130: 546.6 | F130: 120 | G130: 546.6 | H130: 15776.81694
A131: 121 | B131: 3419193.602 | C131: 700026.733 | D131: 546.56 | F131: 121 | G131: 546.56 | H131: 15855.71496
A132: 122 | B132: 3419170.868 | C132: 700095.6179 | D132: 546.734 | F132: 122 | G132: 546.734 | H132: 15928.25394
A133: 123 | B133: 3419152.866 | C133: 700150.1639 | D133: 547.452 | F133: =IF(A133="","",A133) -> 123 | G133: =IF(D133="","",D133) -> 547.452 | H133: 15985.69338
A134: 124 | B134: 3419137.926 | C134: 700195.4304 | D134: 549.255 | F134: 124 | G134: 549.255 | H134: 16033.36111
A135: 125 | B135: 3419128.459 | C135: 700224.1154 | D135: 551.09 | F135: 125 | G135: 551.09 | H135: 16063.56773
A136: 126 | B136: 3419121.667 | C136: 700244.6956 | D136: 553.167 | F136: 126 | G136: 553.167 | H136: 16085.23971
A137: 127 | B137: 3419105.115 | C137: 700294.8471 | D137: 554.779 | F137: 127 | G137: 554.779 | H137: 16138.05152
A138: 128 | B138: 3419097.492 | C138: 700317.9462 | D138: 555.689 | F138: 128 | G138: 555.689 | H138: 16162.37601
A139: 129 | B139: 3419085.023 | C139: 700355.7272 | D139: 555.791 | F139: 129 | G139: 555.791 | H139: 16202.16116
A140: 130 | B140: 3419075.203 | C140: 700385.4813 | D140: 557.287 | F140: 130 | G140: 557.287 | H140: 16233.49355
A141: 131 | B141: 3419070.491 | C141: 700399.7592 | D141: 557.584 | F141: 131 | G141: 557.584 | H141: 16248.52888
A142: POL-5 | B142: 3419070.206 | C142: 700400.6211 | D142: 557.7273 | F142: POL-5 | G142: 557.7273 | H142: 16249.43645
A143: 132 | B143: 3419069.963 | C143: 700401.3589 | D143: 557.645 | F143: 132 | G143: 557.645 | H143: 16250.21342
A144: 133 | B144: 3419064.173 | C144: 700418.9011 | D144: 556.662 | F144: 133 | G144: 556.662 | H144: 16268.68613
A145: 134 | B145: 3419058.358 | C145: 700436.5213 | D145: 555.851 | F145: 134 | G145: 555.851 | H145: 16287.24106
A146: 135 | B146: 3419051.887 | C146: 700456.1286 | D146: 555.482 | F146: 135 | G146: 555.482 | H146: 16307.88845
A147: 136 | B147: 3419047.509 | C147: 700469.3942 | D147: 555.197 | F147: 136 | G147: 555.197 | H147: 16321.85777
A148: PI-3 | B148: 3419047.326 | C148: 700469.9473 | D148: 555.2813 | F148: PI-3 | G148: 555.2813 | H148: 16322.44016
A149: 137 | B149: 3419046.776 | C149: 700470.6563 | D149: 555.17 | F149: 137 | G149: 555.17 | H149: 16323.33736
A150: 138 | B150: 3419023.123 | C150: 700501.1533 | D150: 554.802 | F150: 138 | G150: 554.802 | H150: 16361.93168
A151: 139 | B151: 3419007.608 | C151: 700521.158 | D151: 555.473 | F151: 139 | G151: 555.473 | H151: 16387.24778
A152: 140 | B152: 3418993.328 | C152: 700539.5701 | D152: 555.141 | F152: 140 | G152: 555.141 | H152: 16410.54842
A153: 141 | B153: 3418984.187 | C153: 700551.3549 | D153: 556.299 | F153: 141 | G153: 556.299 | H153: 16425.46225
A154: 142 | B154: 3418963.114 | C154: 700578.5252 | D154: 556.233 | F154: 142 | G154: 556.233 | H154: 16459.84645
A155: 143 | B155: 3418938.171 | C155: 700610.6854 | D155: 556.695 | F155: 143 | G155: 556.695 | H155: 16500.54542
A156: 144 | B156: 3418915.195 | C156: 700640.31 | D156: 556.816 | F156: 144 | G156: 556.816 | H156: 16538.03561
A157: 145 | B157: 3418890.941 | C157: 700671.582 | D157: 557.279 | F157: 145 | G157: 557.279 | H157: 16577.61063
A158: 146 | B158: 3418866.319 | C158: 700703.3279 | D158: 557.893 | F158: 146 | G158: 557.893 | H158: 16617.78537
A159: 147 | B159: 3418841.825 | C159: 700734.909 | D159: 558.492 | F159: 147 | G159: 558.492 | H159: 16657.75147
A160: 148 | B160: 3418816.284 | C160: 700767.8396 | D160: 559.123 | F160: 148 | G160: 559.123 | H160: 16699.42535
A161: 149 | B161: 3418805.057 | C161: 700782.3155 | D161: 559.009 | F161: 149 | G161: 559.009 | H161: 16717.74476
A162: POL-6 | B162: 3418804.723 | C162: 700782.7467 | D162: 559.1246 | F162: POL-6 | G162: 559.1246 | H162: =IF(D162="","",Chainage(B161, C161, B162, C162, D161, D162, H161)) -> 16718.29038
A163: 150 | B163: 3418804.23 | C163: 700783.3811 | D163: 559.042 | F163: 150 | G163: 559.042 | H163: 16719.09332
A164: 151 | B164: 3418800.294 | C164: 700788.4566 | D164: 559.115 | F164: 151 | G164: 559.115 | H164: 16725.51631
A165: 152 | B165: 3418787.019 | C165: 700805.5721 | D165: 558.728 | F165: 152 | G165: 558.728 | H165: 16747.17614
A166: 153 | B166: 3418763.212 | C166: 700836.2685 | D166: 557.735 | F166: 153 | G166: 557.735 | H166: 16786.02266
A167: 154 | B167: 3418736.652 | C167: 700870.513 | D167: 556.491 | F167: 154 | G167: 556.491 | H167: 16829.35931
A168: 155 | B168: 3418707.527 | C168: 700908.0652 | D168: 555.093 | F168: 155 | G168: 555.093 | H168: 16876.88185
A169: 156 | B169: 3418677.248 | C169: 700947.1047 | D169: 554.297 | F169: 156 | G169: 554.297 | H169: 16926.2866
A170: 157 | B170: 3418645.62 | C170: 700987.8839 | D170: 553.659 | F170: 157 | G170: 553.659 | H170: 16977.893
A171: 158 | B171: 3418609.665 | C171: 701034.2426 | D171: 553.368 | F171: 158 | G171: 553.368 | H171: 17036.56007
A172: 159 | B172: 3418571.846 | C172: 701083.0046 | D172: 553.083 | F172: 159 | G172: 553.083 | H172: 17098.26864
A173: 160 | B173: 3418531.617 | C173: 701134.8731 | D173: 553.489 | F173: 160 | G173: 553.489 | H173: 17163.90848
A174: 161 | B174: 3418497.925 | C174: 701178.3135 | D174: 554.406 | F174: 161 | G174: 554.406 | H174: 17218.88252
A175: 162 | B175: 3418463.813 | C175: 701222.2955 | D175: 554.397 | F175: 162 | G175: 554.397 | H175: 17274.54196
A176: 163 | B176: 3418427.527 | C176: 701269.0805 | D176: 554.796 | F176: 163 | G176: 554.796 | H176: 17333.74862
A177: 164 | B177: 3418390.482 | C177: 701316.8451 | D177: 555.067 | F177: 164 | G177: 555.067 | H177: 17394.1948
A178: 165 | B178: 3418347.992 | C178: 701371.6293 | D178: 554.992 | F178: 165 | G178: 554.992 | H178: 17463.5245
A179: 166 | B179: 3418312.757 | C179: 701417.0595 | D179: 554.921 | F179: 166 | G179: 554.921 | H179: 17521.01657
A180: 167 | B180: 3418290.52 | C180: 701445.7306 | D180: 554.691 | F180: 167 | G180: 554.691 | H180: 17557.29986
A181: 168 | B181: 3418262.594 | C181: 701481.7362 | D181: 555.718 | F181: 168 | G181: 555.718 | H181: 17602.86512
A182: 169 | B182: 3418225.154 | C182: 701530.0097 | D182: 556.081 | F182: 169 | G182: 556.081 | H182: 17663.95534
A183: 170 | B183: 3418189.106 | C183: 701576.4879 | D183: 555.905 | F183: 170 | G183: 555.905 | H183: 17722.77356
A184: 171 | B184: 3418107.806 | C184: 701681.3114 | D184: 555.67 | F184: 171 | G184: 555.67 | H184: 17855.42794
A185: 172 | B185: 3418078.298 | C185: 701719.3569 | D185: 555.688 | F185: 172 | G185: 555.688 | H185: 17903.57456
A186: 173 | B186: 3418039.821 | C186: 701768.9664 | D186: 556.636 | F186: 173 | G186: 556.636 | H186: 17966.35549
A187: 174 | B187: 3418011.582 | C187: 701805.3762 | D187: 556.322 | F187: 174 | G187: 556.322 | H187: 18012.43218
A188: 175 | B188: 3417981.162 | C188: 701844.5982 | D188: 556.811 | F188: 175 | G188: 556.811 | H188: 18062.06756
A189: 176 | B189: 3417947.922 | C189: 701887.4566 | D189: 556.329 | F189: 176 | G189: 556.329 | H189: 18116.30497
A190: 177 | B190: 3417913.908 | C190: 701931.3119 | D190: 555.849 | F190: 177 | G190: 555.849 | H190: 18171.80382
A191: 178 | B191: 3417882.993 | C191: 701971.1727 | D191: 555.791 | F191: 178 | G191: 555.791 | H191: 18222.2477
A192: 179 | B192: 3417857.982 | C192: 702003.4196 | D192: 556.386 | F192: 179 | G192: 556.386 | H192: 18263.05614
A193: 180 | B193: 3417840.676 | C193: 702025.7334 | D193: 557.033 | F193: 180 | G193: 557.033 | H193: 18291.2942
A194: 181 | B194: 3417813.091 | C194: 702061.3002 | D194: 556.546 | F194: 181 | G194: 556.546 | H194: 18336.304
A195: 182 | B195: 3417779.816 | C195: 702104.203 | D195: 555.963 | F195: 182 | G195: 555.963 | H195: 18390.59739
A196: 183 | B196: 3417737.874 | C196: 702158.2809 | D196: 555.545 | F196: 183 | G196: 555.545 | H196: 18459.03292
A197: 184 | B197: 3417698.72 | C197: 702208.7629 | D197: 555.886 | F197: =IF(A197="","",A197) -> 184 | G197: =IF(D197="","",D197) -> 555.886 | H197: 18522.91786
A198: 185 | B198: 3417668.517 | C198: 702247.7051 | D198: 556.144 | F198: 185 | G198: 556.144 | H198: 18572.19909
A199: 186 | B199: 3417633.057 | C199: 702293.425 | D199: 556.824 | F199: 186 | G199: 556.824 | H199: 18630.05761
A200: 187 | B200: 3417603.341 | C200: 702331.7396 | D200: 557.82 | F200: 187 | G200: 557.82 | H200: 18678.54457
A201: 188 | B201: 3417574.493 | C201: 702368.9348 | D201: 557.965 | F201: 188 | G201: 557.965 | H201: 18725.6151
... 211 more rows

Sheet diff angle conversion
A1: Back to Introduction | R1: User's Input | AD1: only working if DD-MM-SS format
AD2: degrees and minutes must two digits
B4: DD°MM'SS" to Degrees | J4: Degrees to DD°MM'SS" | R4: Degrees to Deg.MinSec | X4: Deg.MinSec to Degrees | AD4: D-M-S to Degrees | AJ4: Degrees to D-M-S
B5: pt no. | C5: Deg | D5: Min | E5: Sec | G5: pt no. | H5: DD.ddddd | J5: pt no. | K5: DD.ddddd | M5: pt no. | N5: Deg | O5: Min | P5: Sec | R5: pt no. | S5: DD.ddddd | U5: pt no. | V5: DD.MMSSss | X5: pt no. | Y5: DD.MMSSss | AA5: pt no. | AB5: DD.ddddd | AD5: pt no. | AE5: Deg | AG5: pt no. | AH5: DD.ddddd | AJ5: pt no. | AK5: DD.ddddd | AM5: pt no. | AN5: Deg
B6: 1 | C6: 100 | D6: 0 | E6: 1 | G6: =IF(B6="","",B6) -> 1 | H6: =IF(E6="","",ABS(C6)+(ABS(D6)/60)+ABS(E6)/3600) -> 100.0002778 | J6: 1 | K6: 100.00028 | M6: =IF(J6="","",J6) -> 1 | N6: =IF(K6="","",TRUNC(K6)) -> 100 | O6: =IF(K6="","",TRUNC((K6-(N6))*60)) -> 0 | P6: =IF(K6="","",(K6-(N6)-(O6/60))*3600) -> 1.008 | R6: 1 | S6: =ABS(N6)+(ABS(O6)/60)+ABS(P6)/3600 -> 100.00028 | U6: =IF(R6="","",R6) -> 1 | V6: =IF(S6="","",d2dms(S6)) -> 100.0001008 | X6: 1 | Y6: 100.0001 | AA6: =IF(X6="","",X6) -> 1 | AB6: =IF(Y6="","",dms2d(Y6)) -> 100.0002778 | AD6: 1 | AE6: 10-00-01.01 | AG6: =IF(AD6="","",AD6) -> 1 | AH6: =IF(AE6="","",DD_MM_SS_to_DDdddd(AE6)) -> 10.00028056 | AJ6: 1 | AK6: 100.00028 | AM6: =IF(AJ6="","",AJ6) -> 1 | AN6: =IF(AK6="","",DDdddd_to_DD_MM_SS(AK6)) -> 100-0-1.008
B7: 2 | C7: 185 | D7: 12 | E7: 57 | G7: 2 | H7: =IF(E7="","",ABS(C7)+(ABS(D7)/60)+ABS(E7)/3600) -> 185.2158333 | J7: 2 | K7: 185.21583 | M7: =IF(J7="","",J7) -> 2 | N7: =IF(K7="","",TRUNC(K7)) -> 185 | O7: =IF(K7="","",TRUNC((K7-(N7))*60)) -> 12 | P7: =IF(K7="","",(K7-(N7)-(O7/60))*3600) -> 56.988 | R7: 2 | S7: 185.21583 | U7: =IF(R7="","",R7) -> 2 | V7: =IF(S7="","",d2dms(S7)) -> 185.1256988 | X7: 2 | Y7: 185.1257 | AA7: =IF(X7="","",X7) -> 2 | AB7: =IF(Y7="","",dms2d(Y7)) -> 185.2158333 | AD7: 2 | AE7: 18-12-56.99 | AG7: 2 | AH7: =IF(AE7="","",DD_MM_SS_to_DDdddd(AE7)) -> 18.21583056 | AJ7: 2 | AK7: 185.21583 | AM7: =IF(AJ7="","",AJ7) -> 2 | AN7: =IF(AK7="","",DDdddd_to_DD_MM_SS(AK7)) -> 185-12-56.988

Sheet UTM projection map
A1: Back to Introduction

Sheet Datum transformation parameters
A1: Back to Introduction
A2: Reference Ellipsoids
A3: and
A4: Geodetic Datum Transformation Parameters (Local to WGS-84)
A5: From
A6: NIMA 8350.2 4 July 1977
A7: and
A8: MADTRAN 1 October 1996
A9: Reference Ellipsoids
A10: Ellipsoid | B10: Semi-major axis (a) | C10: Semi-minor axis (b) | D10: 1/flattening
A11: Airy 1830, | B11: 6377563.396 | C11: 6356256.909 | D11: 299.3249646
A12: Modified Airy | B12: 6377340.189 | C12: 6356034.448 | D12: 299.3249646
A13: Australian National | B13: 6378160 | C13: 6356774.719 | D13: 298.25
A14: Bessel 1841 (Namibia) | B14: 6377483.865 | C14: 6356165.383 | D14: 299.1528128
A15: Bessel 1841 | B15: 6377397.155 | C15: 6356078.963 | D15: 299.1528128
A16: Clarke 1866, | B16: 6378206.4 | C16: 6356583.8 | D16: 294.9786982
A17: Clarke 1880, | B17: 6378249.145 | C17: 6356514.87 | D17: 293.465
A18: Everest (India 1830)" | B18: 6377276.345 | C18: 6356075.413 | D18: 300.8017
A19: Everest (Sabah Sarawak) | B19: 6377298.556 | C19: 6356097.55 | D19: 300.8017
A20: Everest (India 1956) | B20: 6377301.243 | C20: 6356100.228 | D20: 300.8017
A21: Everest (Malaysia 1969) | B21: 6377295.664 | C21: 6356094.668 | D21: 300.8017
A22: Everest (Malay. & Sing) | B22: 6377304.063 | C22: 6356103.039 | D22: 300.8017
A23: Everest (Pakistan) | B23: 6377309.613 | C23: 6356108.571 | D23: 300.8017
A24: Modified Fischer 1960 | B24: 6378155 | C24: 6356773.32 | D24: 298.3
A25: Helmert 1906 | B25: 6378200 | C25: 6356818.17 | D25: 298.3
A26: Hough 1960 | B26: 6378270 | C26: 6356794.343 | D26: 297
A27: Indonesian 1974 | B27: 6378160 | C27: 6356774.504 | D27: 298.247
A28: International 1924 | B28: 6378388 | C28: 6356911.946 | D28: 297
A29: Krassovsky 1940 | B29: 6378245 | C29: 6356863.019 | D29: 298.3
A30: GRS 80 | B30: 6378137 | C30: 6356752.314 | D30: 298.2572221
A31: South American 1969 | B31: 6378160 | C31: 6356774.719 | D31: 298.25
A32: WGS 72 | B32: 6378135 | C32: 6356750.52 | D32: 298.26
A33: WGS 84 | B33: 6378137 | C33: 6356752.314 | D33: 298.2572236
A36: Geodetic Datum Transformation Parameters (Local to WGS-84)
A37: d = delta in meters; e = error estimate in meters; #S = number of satellite measurement stations
A39: Datum | B39: Ellipsoid | C39: dX | D39: dY | E39: dZ | F39: Region of use | G39: eX | H39: eY | I39: eZ | J39: #S
A40: Adindan | B40: Clarke 1880 | C40: -118 | D40: -14 | E40: 218 | F40: Burkina Faso | G40: 25 | H40: 25 | I40: 25 | J40: 1
A41: Adindan | B41: Clarke 1880 | C41: -134 | D41: -2 | E41: 210 | F41: Cameroon | G41: 25 | H41: 25 | I41: 25 | J41: 1
A42: Adindan | B42: Clarke 1880 | C42: -165 | D42: -11 | E42: 206 | F42: Ethiopia | G42: 3 | H42: 3 | I42: 3 | J42: 8
A43: Adindan | B43: Clarke 1880 | C43: -123 | D43: -20 | E43: 220 | F43: Mali | G43: 25 | H43: 25 | I43: 25 | J43: 1
A44: Adindan | B44: Clarke 1880 | C44: -166 | D44: -15 | E44: 204 | F44: MEAN FOR Ethiopia; Sudan | G44: 5 | H44: 5 | I44: 3 | J44: 22
A45: Adindan | B45: Clarke 1880 | C45: -128 | D45: -18 | E45: 224 | F45: Senegal | G45: 25 | H45: 25 | I45: 25 | J45: 2
A46: Adindan | B46: Clarke 1880 | C46: -161 | D46: -14 | E46: 205 | F46: Sudan | G46: 3 | H46: 5 | I46: 3 | J46: 14
A47: Afgooye | B47: Krassovsky 1940 | C47: -43 | D47: -163 | E47: 45 | F47: Somalia | G47: 25 | H47: 25 | I47: 25 | J47: 1
A48: Ain el Abd 1970 | B48: International 1924 | C48: -150 | D48: -250 | E48: -1 | F48: Bahrain | G48: 25 | H48: 25 | I48: 25 | J48: 2
A49: Ain el Abd 1970 | B49: International 1924 | C49: -143 | D49: -236 | E49: 7 | F49: Saudi Arabia | G49: 10 | H49: 10 | I49: 10 | J49: 9
A50: American Samoa 1962 | B50: Clarke 1866 | C50: -115 | D50: 118 | E50: 426 | F50: American Samoa Islands | G50: 25 | H50: 25 | I50: 25 | J50: 2
A51: Anna 1 Astro 1965 | B51: Australian National | C51: -491 | D51: -22 | E51: 435 | F51: Cocos Islands | G51: 25 | H51: 25 | I51: 25 | J51: 1
A52: Antigua Island Astro 1943 | B52: Clarke 1880 | C52: -270 | D52: 13 | E52: 62 | F52: Antigua (Leeward Islands) | G52: 25 | H52: 25 | I52: 25 | J52: 1
A53: Arc 1950 | B53: Clarke 1880 | C53: -138 | D53: -105 | E53: -289 | F53: Botswana | G53: 3 | H53: 5 | I53: 3 | J53: 9
A54: Arc 1950 | B54: Clarke 1880 | C54: -153 | D54: -5 | E54: -292 | F54: Burundi | G54: 20 | H54: 20 | I54: 20 | J54: 3
A55: Arc 1950 | B55: Clarke 1880 | C55: -125 | D55: -108 | E55: -295 | F55: Lesotho | G55: 3 | H55: 3 | I55: 8 | J55: 5
A56: Arc 1950 | B56: Clarke 1880 | C56: -161 | D56: -73 | E56: -317 | F56: Malawi | G56: 9 | H56: 24 | I56: 8 | J56: 6
A57: Arc 1950 | B57: Clarke 1880 | C57: -143 | D57: -90 | E57: -294 | F57: MEAN FOR Botswana; Lesotho; Malawi; Swaziland; Zaire; Zambia; Zimbabwe | G57: 20 | H57: 33 | I57: 20 | J57: 41
A58: Arc 1950 | B58: Clarke 1880 | C58: -134 | D58: -105 | E58: -295 | F58: Swaziland | G58: 15 | H58: 15 | I58: 15 | J58: 4
A59: Arc 1950 | B59: Clarke 1880 | C59: -169 | D59: -19 | E59: -278 | F59: Zaire | G59: 25 | H59: 25 | I59: 25 | J59: 2
A60: Arc 1950 | B60: Clarke 1880 | C60: -147 | D60: -74 | E60: -283 | F60: Zambia | G60: 21 | H60: 21 | I60: 27 | J60: 5
A61: Arc 1950 | B61: Clarke 1880 | C61: -142 | D61: -96 | E61: -293 | F61: Zimbabwe | G61: 5 | H61: 8 | I61: 11 | J61: 10
A62: Arc 1960 | B62: Clarke 1880 | C62: -160 | D62: -6 | E62: -302 | F62: MEAN FOR Kenya; Tanzania | G62: 20 | H62: 20 | I62: 20 | J62: 25
A63: Arc 1960 | B63: Clarke 1880 | C63: -157 | D63: -2 | E63: -299 | F63: Kenya | G63: 4 | H63: 3 | I63: 3 | J63: 24
A64: Arc 1960 | B64: Clarke 1880 | C64: -175 | D64: -23 | E64: -303 | F64: Taanzania | G64: 6 | H64: 9 | I64: 10 | J64: 12
A65: Ascension Island 1958 | B65: International 1924 | C65: -205 | D65: 107 | E65: 53 | F65: Ascension Island | G65: 25 | H65: 25 | I65: 25 | J65: 2
A66: Astro Beacon E 1945 | B66: International 1924 | C66: 145 | D66: 75 | E66: -272 | F66: Iwo Jima | G66: 25 | H66: 25 | I66: 25 | J66: 1
A67: Astro DOS 71/4 | B67: International 1924 | C67: -320 | D67: 550 | E67: -494 | F67: St Helena Island | G67: 25 | H67: 25 | I67: 25 | J67: 1
A68: Astro Tern Island (FRIG) 1961 | B68: International 1924 | C68: 114 | D68: -116 | E68: -333 | F68: Tern Island | G68: 25 | H68: 25 | I68: 25 | J68: 1
A69: Astronomical Station 1952 | B69: International 1924 | C69: 124 | D69: -234 | E69: -25 | F69: Marcus Island | G69: 25 | H69: 25 | I69: 25 | J69: 1
A70: Australian Geodetic 1966 | B70: Australian National | C70: -133 | D70: -48 | E70: 148 | F70: Australia; Tasmania | G70: 3 | H70: 3 | I70: 3 | J70: 105
A71: Australian Geodetic 1984 | B71: Australian National | C71: -134 | D71: -48 | E71: 149 | F71: Australia; Tasmania | G71: 2 | H71: 2 | I71: 2 | J71: 90
A72: Ayabelle Lighthouse | B72: Clarke 1880 | C72: -79 | D72: -129 | E72: 145 | F72: Djibouti | G72: 25 | H72: 25 | I72: 25 | J72: 1
A73: Bellevue (IGN) | B73: International 1924 | C73: -127 | D73: -769 | E73: 472 | F73: Efate & Erromango Islands | G73: 20 | H73: 20 | I73: 20 | J73: 3
A74: Bermuda 1957 | B74: Clarke 1866 | C74: -73 | D74: 213 | E74: 296 | F74: Bermuda | G74: 20 | H74: 20 | I74: 20 | J74: 3
A75: Bissau | B75: International 1924 | C75: -173 | D75: 253 | E75: 27 | F75: Guinea-Bissau | G75: 25 | H75: 25 | I75: 25 | J75: 2
A76: Bogota Observatory | B76: International 1924 | C76: 307 | D76: 304 | E76: -318 | F76: Colombia | G76: 6 | H76: 5 | I76: 6 | J76: 7
A77: Bukit Rimpah | B77: Bessel 1841 | C77: -384 | D77: 664 | E77: -48 | F77: Indonesia (Bangka & Belitung Ids) | G77: -1 | H77: -1 | I77: -1 | J77: 0
A78: Camp Area Astro | B78: International 1924 | C78: -104 | D78: -129 | E78: 239 | F78: Antarctica (McMurdo Camp Area) | G78: -1 | H78: -1 | I78: -1 | J78: 0
A79: Campo Inchauspe | B79: International 1924 | C79: -148 | D79: 136 | E79: 90 | F79: Argentina | G79: 5 | H79: 5 | I79: 5 | J79: 20
A80: Canton Astro 1966 | B80: International 1924 | C80: 298 | D80: -304 | E80: -375 | F80: Phoenix Islands | G80: 15 | H80: 15 | I80: 15 | J80: 4
A81: Cape | B81: Clarke 1880 | C81: -136 | D81: -108 | E81: -292 | F81: South Africa | G81: 3 | H81: 6 | I81: 6 | J81: 5
A82: Cape Canaveral | B82: Clarke 1866 | C82: -2 | D82: 151 | E82: 181 | F82: Bahamas; Florida | G82: 3 | H82: 3 | I82: 3 | J82: 19
A83: Carthage | B83: Clarke 1880 | C83: -263 | D83: 6 | E83: 431 | F83: Tunisia | G83: 6 | H83: 9 | I83: 8 | J83: 5
A84: Chatham Island Astro 1971 | B84: International 1924 | C84: 175 | D84: -38 | E84: 113 | F84: New Zealand (Chatham Island) | G84: 15 | H84: 15 | I84: 15 | J84: 4
A85: Chua Astro | B85: International 1924 | C85: -134 | D85: 229 | E85: -29 | F85: Paraguay | G85: 6 | H85: 9 | I85: 5 | J85: 6
A86: Corrego Alegre | B86: International 1924 | C86: -206 | D86: 172 | E86: -6 | F86: Brazil | G86: 5 | H86: 3 | I86: 5 | J86: 17
A87: Dabola | B87: Clarke 1880 | C87: -83 | D87: 37 | E87: 124 | F87: Guinea | G87: 15 | H87: 15 | I87: 15 | J87: 4
A88: Deception Island | B88: Clarke 1880 | C88: 260 | D88: 12 | E88: -147 | F88: Deception Island; Antarctia | G88: 20 | H88: 20 | I88: 20 | J88: 3
A89: Djakarta (Batavia) | B89: Bessel 1841 | C89: -377 | D89: 681 | E89: -50 | F89: Indonesia (Sumatra) | G89: 3 | H89: 3 | I89: 3 | J89: 5
A90: DOS 1968 | B90: International 1924 | C90: 230 | D90: -199 | E90: -752 | F90: New Georgia Islands (Gizo Island) | G90: 25 | H90: 25 | I90: 25 | J90: 1
A91: Easter Island 1967 | B91: International 1924 | C91: 211 | D91: 147 | E91: 111 | F91: Easter Island | G91: 25 | H91: 25 | I91: 25 | J91: 1
A92: Estonia; Coordinate System 1937 | B92: Bessel 1841 | C92: 374 | D92: 150 | E92: 588 | F92: Estonia | G92: 2 | H92: 3 | I92: 3 | J92: 19
A93: European 1950 | B93: International 1924 | C93: -104 | D93: -101 | E93: -140 | F93: Cyprus | G93: 15 | H93: 15 | I93: 15 | J93: 4
A94: European 1950 | B94: International 1924 | C94: -130 | D94: -117 | E94: -151 | F94: Egypt | G94: 6 | H94: 8 | I94: 8 | J94: 14
A95: European 1950 | B95: International 1924 | C95: -86 | D95: -96 | E95: -120 | F95: England; Channel Islands; Scotland; Shetland Islands | G95: 3 | H95: 3 | I95: 3 | J95: 40
A96: European 1950 | B96: International 1924 | C96: -86 | D96: -96 | E96: -120 | F96: England; Ireland; Scotland; Shetland Islands | G96: 3 | H96: 3 | I96: 3 | J96: 47
A97: European 1950 | B97: International 1924 | C97: -87 | D97: -95 | E97: -120 | F97: Finland; Norway | G97: 3 | H97: 5 | I97: 3 | J97: 20
A98: European 1950 | B98: International 1924 | C98: -84 | D98: -95 | E98: -130 | F98: Greece | G98: 25 | H98: 25 | I98: 25 | J98: 2
A99: European 1950 | B99: International 1924 | C99: -117 | D99: -132 | E99: -164 | F99: Iran | G99: 9 | H99: 12 | I99: 11 | J99: 27
A100: European 1950 | B100: International 1924 | C100: -97 | D100: -103 | E100: -120 | F100: Italy (Sardinia) | G100: 25 | H100: 25 | I100: 25 | J100: 2
A101: European 1950 | B101: International 1924 | C101: -97 | D101: -88 | E101: -135 | F101: Italy (Sicily) | G101: 20 | H101: 20 | I101: 20 | J101: 3
A102: European 1950 | B102: International 1924 | C102: -107 | D102: -88 | E102: -149 | F102: Malta | G102: 25 | H102: 25 | I102: 25 | J102: 1
A103: European 1950 | B103: International 1924 | C103: -87 | D103: -98 | E103: -121 | F103: MEAN FOR Austria; Belgium; Denmark; Finland; France; W Germany; Gibraltar; Greece; Italy; Luxembourg; Netherlands; Norway; Portugal; Spain; Sweden; Switzerland | G103: 3 | H103: 8 | I103: 5 | J103: 85
A104: European 1950 | B104: International 1924 | C104: -87 | D104: -96 | E104: -120 | F104: MEAN FOR Austria; Denmark; France; W Germany; Netherlands; Switzerland | G104: 3 | H104: 3 | I104: 3 | J104: 52
A105: European 1950 | B105: International 1924 | C105: -103 | D105: -106 | E105: -141 | F105: MEAN FOR Iraq; Israel; Jordan; Lebanon; Kuwait; Saudi Arabia; Syria | G105: -1 | H105: -1 | I105: -1 | J105: 0
A106: European 1950 | B106: International 1924 | C106: -84 | D106: -107 | E106: -120 | F106: Portugal; Spain | G106: 5 | H106: 6 | I106: 3 | J106: 18
A107: European 1950 | B107: International 1924 | C107: -112 | D107: -77 | E107: -145 | F107: Tunisia | G107: 25 | H107: 25 | I107: 25 | J107: 4
A108: European 1979 | B108: International 1924 | C108: -86 | D108: -98 | E108: -119 | F108: MEAN FOR Austria; Finland; Netherlands; Norway; Spain; Sweden; Switzerland | G108: 3 | H108: 3 | I108: 3 | J108: 22
A109: Fort Thomas 1955 | B109: Clarke 1880 | C109: -7 | D109: 215 | E109: 225 | F109: Nevis; St. Kitts (Leeward Islands) | G109: 25 | H109: 25 | I109: 25 | J109: 2
A110: Gan 1970 | B110: International 1924 | C110: -133 | D110: -321 | E110: 50 | F110: Republic of Maldives | G110: 25 | H110: 25 | I110: 25 | J110: 1
A111: Geodetic Datum 1949 | B111: International 1924 | C111: 84 | D111: -22 | E111: 209 | F111: New Zealand | G111: 5 | H111: 3 | I111: 5 | J111: 14
A112: Graciosa Base SW 1948 | B112: International 1924 | C112: -104 | D112: 167 | E112: -38 | F112: Azores (Faial; Graciosa; Pico; Sao Jorge; Terceira) | G112: 3 | H112: 3 | I112: 3 | J112: 5
A113: Guam 1963 | B113: Clarke 1866 | C113: -100 | D113: -248 | E113: 259 | F113: Guam | G113: 3 | H113: 3 | I113: 3 | J113: 5
A114: Gunung Segara | B114: Bessel 1841 | C114: -403 | D114: 684 | E114: 41 | F114: Indonesia (Kalimantan) | G114: -1 | H114: -1 | I114: -1 | J114: 0
A115: GUX 1 Astro | B115: International 1924 | C115: 252 | D115: -209 | E115: -751 | F115: Guadalcanal Island | G115: 25 | H115: 25 | I115: 25 | J115: 1
A116: Herat North | B116: International 1924 | C116: -333 | D116: -222 | E116: 114 | F116: Afghanistan | G116: -1 | H116: -1 | I116: -1 | J116: 0
A117: Hermannskogel Datum | B117: Bessel 1841 (Namibia) | C117: 653 | D117: -212 | E117: 449 | F117: Croatia -Serbia, Bosnia-Herzegovina | G117: -1 | H117: -1 | I117: -1 | J117: 0
A118: Hjorsey 1955 | B118: International 1924 | C118: -73 | D118: 46 | E118: -86 | F118: Iceland | G118: 3 | H118: 3 | I118: 6 | J118: 6
A119: Hong Kong 1963 | B119: International 1924 | C119: -156 | D119: -271 | E119: -189 | F119: Hong Kong | G119: 25 | H119: 25 | I119: 25 | J119: 2
A120: Hu-Tzu-Shan | B120: International 1924 | C120: -637 | D120: -549 | E120: -203 | F120: Taiwan | G120: 15 | H120: 15 | I120: 15 | J120: 4
A121: Indian | B121: Everest (India 1830) | C121: 282 | D121: 726 | E121: 254 | F121: Bangladesh | G121: 10 | H121: 8 | I121: 12 | J121: 6
A122: Indian | B122: Everest (India 1956) | C122: 295 | D122: 736 | E122: 257 | F122: India; Nepal | G122: 12 | H122: 10 | I122: 15 | J122: 7
A123: Indian | B123: Everest (Pakistan) | C123: 283 | D123: 682 | E123: 231 | F123: Pakistan | G123: -1 | H123: -1 | I123: -1 | J123: 0
A124: Indian 1954 | B124: Everest (India 1830) | C124: 217 | D124: 823 | E124: 299 | F124: Thailand | G124: 15 | H124: 6 | I124: 12 | J124: 11
A125: Indian 1960 | B125: Everest (India 1830) | C125: 182 | D125: 915 | E125: 344 | F125: Vietnam (Con Son Island) | G125: 25 | H125: 25 | I125: 25 | J125: 1
A126: Indian 1960 | B126: Everest (India 1830) | C126: 198 | D126: 881 | E126: 317 | F126: Vietnam (Near 16øN) | G126: 25 | H126: 25 | I126: 25 | J126: 2
A127: Indian 1975 | B127: Everest (India 1830) | C127: 210 | D127: 814 | E127: 289 | F127: Thailand | G127: 3 | H127: 2 | I127: 3 | J127: 62
A128: Indonesian 1974 | B128: Indonesian 1974 | C128: -24 | D128: -15 | E128: 5 | F128: Indonesia | G128: 25 | H128: 25 | I128: 25 | J128: 1
A129: Ireland 1965 | B129: Modified Airy | C129: 506 | D129: -122 | E129: 611 | F129: Ireland | G129: 3 | H129: 3 | I129: 3 | J129: 7
A130: ISTS 061 Astro 1968 | B130: International 1924 | C130: -794 | D130: 119 | E130: -298 | F130: South Georgia Islands | G130: 25 | H130: 25 | I130: 25 | J130: 1
A131: ISTS 073 Astro 1969 | B131: International 1924 | C131: 208 | D131: -435 | E131: -229 | F131: Diego Garcia | G131: 25 | H131: 25 | I131: 25 | J131: 2
A132: Johnston Island 1961 | B132: International 1924 | C132: 189 | D132: -79 | E132: -202 | F132: Johnston Island | G132: 25 | H132: 25 | I132: 25 | J132: 1
A133: Kandawala | B133: Everest (India 1830) | C133: -97 | D133: 787 | E133: 86 | F133: Sri Lanka | G133: 20 | H133: 20 | I133: 20 | J133: 3
A134: Kerguelen Island 1949 | B134: International 1924 | C134: 145 | D134: -187 | E134: 103 | F134: Kerguelen Island | G134: 25 | H134: 25 | I134: 25 | J134: 1
A135: Kertau 1948 | B135: Everest (Malay. & Sing) | C135: -11 | D135: 851 | E135: 5 | F135: West Malaysia & Singapore | G135: 10 | H135: 8 | I135: 6 | J135: 6
A136: Kusaie Astro 1951 | B136: International 1924 | C136: 647 | D136: 1777 | E136: -1124 | F136: Caroline Islands | G136: 25 | H136: 25 | I136: 25 | J136: 1
A137: Korean Geodetic System | B137: GRS 80 | C137: 0 | D137: 0 | E137: 0 | F137: South Korea | G137: 2 | H137: 2 | I137: 2 | J137: 12
A138: L. C. 5 Astro 1961 | B138: Clarke 1866 | C138: 42 | D138: 124 | E138: 147 | F138: Cayman Brac Island | G138: 25 | H138: 25 | I138: 25 | J138: 1
A139: Leigon | B139: Clarke 1880 | C139: -130 | D139: 29 | E139: 364 | F139: Ghana | G139: 2 | H139: 3 | I139: 2 | J139: 8
A140: Liberia 1964 | B140: Clarke 1880 | C140: -90 | D140: 40 | E140: 88 | F140: Liberia | G140: 15 | H140: 15 | I140: 15 | J140: 4
A141: Luzon | B141: Clarke 1866 | C141: -133 | D141: -77 | E141: -51 | F141: Philippines (Excluding Mindanao) | G141: 8 | H141: 11 | I141: 9 | J141: 6
A142: Luzon | B142: Clarke 1866 | C142: -133 | D142: -79 | E142: -72 | F142: Philippines (Mindanao) | G142: 25 | H142: 25 | I142: 25 | J142: 1
A143: M'Poraloko | B143: Clarke 1880 | C143: -74 | D143: -130 | E143: 42 | F143: Gabon | G143: 25 | H143: 25 | I143: 25 | J143: 1
A144: Mahe 1971 | B144: Clarke 1880 | C144: 41 | D144: -220 | E144: -134 | F144: Mahe Island | G144: 25 | H144: 25 | I144: 25 | J144: 1
A145: Massawa | B145: Bessel 1841 | C145: 639 | D145: 405 | E145: 60 | F145: Ethiopia (Eritrea) | G145: 25 | H145: 25 | I145: 25 | J145: 1
A146: Merchich | B146: Clarke 1880 | C146: 31 | D146: 146 | E146: 47 | F146: Morocco | G146: 5 | H146: 3 | I146: 3 | J146: 9
A147: Midway Astro 1961 | B147: International 1924 | C147: 912 | D147: -58 | E147: 1227 | F147: Midway Islands | G147: 25 | H147: 25 | I147: 25 | J147: 1
A148: Minna | B148: Clarke 1880 | C148: -81 | D148: -84 | E148: 115 | F148: Cameroon | G148: 25 | H148: 25 | I148: 25 | J148: 2
A149: Minna | B149: Clarke 1880 | C149: -92 | D149: -93 | E149: 122 | F149: Nigeria | G149: 3 | H149: 6 | I149: 5 | J149: 6
A150: Montserrat Island Astro 1958 | B150: Clarke 1880 | C150: 174 | D150: 359 | E150: 365 | F150: Montserrat (Leeward Islands) | G150: 25 | H150: 25 | I150: 25 | J150: 1
A151: Nahrwan | B151: Clarke 1880 | C151: -247 | D151: -148 | E151: 369 | F151: Oman (Masirah Island) | G151: 25 | H151: 25 | I151: 25 | J151: 2
A152: Nahrwan | B152: Clarke 1880 | C152: -243 | D152: -192 | E152: 477 | F152: Saudi Arabia | G152: 20 | H152: 20 | I152: 20 | J152: 3
A153: Nahrwan | B153: Clarke 1880 | C153: -249 | D153: -156 | E153: 381 | F153: United Arab Emirates | G153: 25 | H153: 25 | I153: 25 | J153: 2
A154: Naparima BWI | B154: International 1924 | C154: -10 | D154: 375 | E154: 165 | F154: Trinidad & Tobago | G154: 15 | H154: 15 | I154: 15 | J154: 4
A155: North American 1927 | B155: Clarke 1866 | C155: -5 | D155: 135 | E155: 172 | F155: Alaska (Excluding Aleutian Ids) | G155: 5 | H155: 9 | I155: 5 | J155: 47
A156: North American 1927 | B156: Clarke 1866 | C156: -2 | D156: 152 | E156: 149 | F156: Alaska (Aleutian Ids East of 180øW) | G156: 6 | H156: 8 | I156: 10 | J156: 6
A157: North American 1927 | B157: Clarke 1866 | C157: 2 | D157: 204 | E157: 105 | F157: Alaska (Aleutian Ids West of 180øW) | G157: 10 | H157: 10 | I157: 10 | J157: 5
A158: North American 1927 | B158: Clarke 1866 | C158: -4 | D158: 154 | E158: 178 | F158: Bahamas (Except San Salvador Id) | G158: 5 | H158: 3 | I158: 5 | J158: 11
A159: North American 1927 | B159: Clarke 1866 | C159: 1 | D159: 140 | E159: 165 | F159: Bahamas (San Salvador Island) | G159: 25 | H159: 25 | I159: 25 | J159: 1
A160: North American 1927 | B160: Clarke 1866 | C160: -7 | D160: 162 | E160: 188 | F160: Canada (Alberta; British Columbia) | G160: 8 | H160: 8 | I160: 6 | J160: 25
A161: North American 1927 | B161: Clarke 1866 | C161: -9 | D161: 157 | E161: 184 | F161: Canada (Manitoba; Ontario) | G161: 9 | H161: 5 | I161: 5 | J161: 25
A162: North American 1927 | B162: Clarke 1866 | C162: -22 | D162: 160 | E162: 190 | F162: Canada (New Brunswick; Newfoundland; Nova Scotia; Quebec) | G162: 6 | H162: 6 | I162: 3 | J162: 37
A163: North American 1927 | B163: Clarke 1866 | C163: 4 | D163: 159 | E163: 188 | F163: Canada (Northwest Territories; Saskatchewan) | G163: 5 | H163: 5 | I163: 3 | J163: 17
A164: North American 1927 | B164: Clarke 1866 | C164: -7 | D164: 139 | E164: 181 | F164: Canada (Yukon) | G164: 5 | H164: 8 | I164: 3 | J164: 8
A165: North American 1927 | B165: Clarke 1866 | C165: 0 | D165: 125 | E165: 201 | F165: Canal Zone | G165: 20 | H165: 20 | I165: 20 | J165: 3
A166: North American 1927 | B166: Clarke 1866 | C166: -9 | D166: 152 | E166: 178 | F166: Cuba | G166: 25 | H166: 25 | I166: 25 | J166: 1
A167: North American 1927 | B167: Clarke 1866 | C167: 11 | D167: 114 | E167: 195 | F167: Greenland (Hayes Peninsula) | G167: 25 | H167: 25 | I167: 25 | J167: 2
A168: North American 1927 | B168: Clarke 1866 | C168: -3 | D168: 142 | E168: 183 | F168: MEAN FOR Antigua; Barbados; Barbuda; Caicos Islands; Cuba; Dominican Republic; Grand Cayman; Jamaica; Turks Islands | G168: 3 | H168: 9 | I168: 12 | J168: 15
A169: North American 1927 | B169: Clarke 1866 | C169: 0 | D169: 125 | E169: 194 | F169: MEAN FOR Belize; Costa Rica; El Salvador; Guatemala; Honduras; Nicaragua | G169: 8 | H169: 3 | I169: 5 | J169: 19
A170: North American 1927 | B170: Clarke 1866 | C170: -10 | D170: 158 | E170: 187 | F170: MEAN FOR Canada | G170: 15 | H170: 11 | I170: 6 | J170: 112
A171: North American 1927 | B171: Clarke 1866 | C171: -8 | D171: 160 | E171: 176 | F171: MEAN FOR CONUS | G171: 5 | H171: 5 | I171: 6 | J171: 405
A172: North American 1927 | B172: Clarke 1866 | C172: -9 | D172: 161 | E172: 179 | F172: MEAN FOR CONUS (East of Mississippi; River Including Louisiana; Missouri; Minnesota) | G172: 5 | H172: 5 | I172: 8 | J172: 129
A173: North American 1927 | B173: Clarke 1866 | C173: -8 | D173: 159 | E173: 175 | F173: MEAN FOR CONUS (West of Mississippi; River Excluding Louisiana; Minnesota; Missouri) | G173: 5 | H173: 3 | I173: 3 | J173: 276
A174: North American 1927 | B174: Clarke 1866 | C174: -12 | D174: 130 | E174: 190 | F174: Mexico | G174: 8 | H174: 6 | I174: 6 | J174: 22
A175: North American 1983 | B175: GRS 80 | C175: 0 | D175: 0 | E175: 0 | F175: Alaska (Excluding Aleutian Ids) | G175: 2 | H175: 2 | I175: 2 | J175: 42
A176: North American 1983 | B176: GRS 80 | C176: -2 | D176: 0 | E176: 4 | F176: Aleutian Ids | G176: 5 | H176: 2 | I176: 5 | J176: 4
A177: North American 1983 | B177: GRS 80 | C177: 0 | D177: 0 | E177: 0 | F177: Canada | G177: 2 | H177: 2 | I177: 2 | J177: 96
A178: North American 1983 | B178: GRS 80 | C178: 0 | D178: 0 | E178: 0 | F178: CONUS | G178: 2 | H178: 2 | I178: 2 | J178: 216
A179: North American 1983 | B179: GRS 80 | C179: 1 | D179: 1 | E179: -1 | F179: Hawaii | G179: 2 | H179: 2 | I179: 2 | J179: 6
A180: North American 1983 | B180: GRS 80 | C180: 0 | D180: 0 | E180: 0 | F180: Mexico; Central America | G180: 2 | H180: 2 | I180: 2 | J180: 25
A181: North Sahara 1959 | B181: Clarke 1880 | C181: -186 | D181: -93 | E181: 310 | F181: Algeria | G181: 25 | H181: 25 | I181: 25 | J181: 3
A182: Observatorio Meteorologico 1939 | B182: International 1924 | C182: -425 | D182: -169 | E182: 81 | F182: Azores (Corvo & Flores Islands) | G182: 20 | H182: 20 | I182: 20 | J182: 3
A183: Old Egyptian 1907 | B183: Helmert 1906 | C183: -130 | D183: 110 | E183: -13 | F183: Egypt | G183: 3 | H183: 6 | I183: 8 | J183: 14
A184: Old Hawaiian | B184: Clarke 1866 | C184: 89 | D184: -279 | E184: -183 | F184: Hawaii | G184: 25 | H184: 25 | I184: 25 | J184: 2
A185: Old Hawaiian | B185: Clarke 1866 | C185: 45 | D185: -290 | E185: -172 | F185: Kauai | G185: 20 | H185: 20 | I185: 20 | J185: 3
A186: Old Hawaiian | B186: Clarke 1866 | C186: 65 | D186: -290 | E186: -190 | F186: Maui | G186: 25 | H186: 25 | I186: 25 | J186: 2
A187: Old Hawaiian | B187: Clarke 1866 | C187: 61 | D187: -285 | E187: -181 | F187: MEAN FOR Hawaii; Kauai; Maui; Oahu | G187: 25 | H187: 20 | I187: 20 | J187: 15
A188: Old Hawaiian | B188: Clarke 1866 | C188: 58 | D188: -283 | E188: -182 | F188: Oahu | G188: 10 | H188: 6 | I188: 6 | J188: 8
A189: Oman | B189: Clarke 1880 | C189: -346 | D189: -1 | E189: 224 | F189: Oman | G189: 3 | H189: 3 | I189: 9 | J189: 7
A190: Ordnance Survey Great Britain 1936 | B190: Airy 1830 | C190: 371 | D190: -112 | E190: 434 | F190: England | G190: 5 | H190: 5 | I190: 6 | J190: 21
A191: Ordnance Survey Great Britain 1936 | B191: Airy 1830 | C191: 371 | D191: -111 | E191: 434 | F191: England; Isle of Man; Wales | G191: 10 | H191: 10 | I191: 15 | J191: 25
A192: Ordnance Survey Great Britain 1936 | B192: Airy 1830 | C192: 375 | D192: -111 | E192: 431 | F192: MEAN FOR England; Isle of Man; Scotland; Shetland Islands; Wales | G192: 10 | H192: 10 | I192: 15 | J192: 38
A193: Ordnance Survey Great Britain 1936 | B193: Airy 1830 | C193: 384 | D193: -111 | E193: 425 | F193: Scotland; Shetland Islands | G193: 10 | H193: 10 | I193: 10 | J193: 13
A194: Ordnance Survey Great Britain 1936 | B194: Airy 1830 | C194: 370 | D194: -108 | E194: 434 | F194: Wales | G194: 20 | H194: 20 | I194: 20 | J194: 3
A195: Pico de las Nieves | B195: International 1924 | C195: -307 | D195: -92 | E195: 127 | F195: Canary Islands | G195: 25 | H195: 25 | I195: 25 | J195: 1
A196: Pitcairn Astro 1967 | B196: International 1924 | C196: 185 | D196: 165 | E196: 42 | F196: Pitcairn Island | G196: 25 | H196: 25 | I196: 25 | J196: 1
A197: Point 58 | B197: Clarke 1880 | C197: -106 | D197: -129 | E197: 165 | F197: MEAN FOR Burkina Faso & Niger | G197: 25 | H197: 25 | I197: 25 | J197: 1
A198: Pointe Noire 1948 | B198: Clarke 1880 | C198: -148 | D198: 51 | E198: -291 | F198: Congo | G198: 25 | H198: 25 | I198: 25 | J198: 1
A199: Porto Santo 1936 | B199: International 1924 | C199: -499 | D199: -249 | E199: 314 | F199: Porto Santo; Madeira Islands | G199: 25 | H199: 25 | I199: 25 | J199: 2
A200: Provisional South American 1956 | B200: International 1924 | C200: -270 | D200: 188 | E200: -388 | F200: Bolivia | G200: 5 | H200: 11 | I200: 14 | J200: 5
A201: Provisional South American 1956 | B201: International 1924 | C201: -270 | D201: 183 | E201: -390 | F201: Chile (Northern; Near 19øS) | G201: 25 | H201: 25 | I201: 25 | J201: 1
A202: Provisional South American 1956 | B202: International 1924 | C202: -305 | D202: 243 | E202: -442 | F202: Chile (Southern; Near 43øS) | G202: 20 | H202: 20 | I202: 20 | J202: 3
A203: Provisional South American 1956 | B203: International 1924 | C203: -282 | D203: 169 | E203: -371 | F203: Colombia | G203: 15 | H203: 15 | I203: 15 | J203: 4
... 55 more rows

Sheet Formulas
A1: Back to Introduction
A2: Geographic to Grid Coordinates conversion (Ain El Abd)
A4: Given:
A5: φ = geographic latitude
A6: λ = geographic longitude
A7: λ0 = longitude of the central meridian of the zone
A9: Constant:
A10: a = semi major axis (International 1924 Ellipsoid) = 6,378,388.0
A11: 1/f = inverse flattening (International 1924 Ellipsoid) = 297
A12: False Northing = 0
A13: False Easting = 500,000 in every central meridian
A14: K0 = scale factor in central meridian = 0.9996
A15: f = 1/297
A16: e2 = 2f - f2 square of first eccentricity
A18: Meridian Distance
A19: A0 = 1-(e2/4)-(3e4/64)-(5e6/256)
A20: A2 = (3/8)(e2+e4/4+15e6/128)
A21: A4 = (15/256)(e4+3e6/4)
A22: A6 = 35e6/3072
A23: m = a{A0φ -A2Sin2φ+A4Sin4φ -A6Sin6φ}
A25: The radii of curvature for a given Latitude
A26: ρ = a(1-e 2)/(1-e2Sin2φ)3/2 radius of curvature in the meridian
A27: ν = a /(1-e 2Sin2φ)1/2 radius of curvature in the prime vertical
A28: Ψ = ν / ρ ratio of the ellipsoidal radii of curvature
A29: t = Tanφ
A30: ω = λ-λ0 Geodetic longitude difference measured from the central meridian.
A32: Northing
A33: Term1 = (ω2/2) ν Sinφ Cosφ
A34: Term2 = (ω4/24) ν Sinφ Cos3φ (4Ψ2+ Ψ -t2)
A35: Term3 = (ω6/720) ν Sinφ Cos5φ [8 Ψ4(11-24t2)-28 Ψ3(1-6t2)+ Ψ2(1-32t2)- Ψ (2t2)+t4]
A36: Term4 = (ω8/40320) ν Sin φ Cos7φ (1385-3111t2+543t4-t6)
A37: N' = K0{m + Term1 + Term2 + Term3 + Term4 }
A38: N = N' + False Northing
A40: Easting
A41: Term1 = (ω 2/6)Cos2φ (Ψ -t2)
A42: Term2 = (ω 4/120)Cos4φ [4 Ψ3(1-6t2)+ Ψ2(1+8t2) - Ψ 2t2+t4]
A43: Term3 = (ω 6/5040)Cos6φ (61-479t2+179t4-t6)
A44: E' = (K0 ν ω Cosφ){1 + Term1 + Term2 + Term3}
A45: E = E ' + False Easting
A49: Grid to Geographic Coordinates conversion (Ain El Abd)
A51: Given:
A52: E = Easting
A53: N = Northing
A54: λ0 = longitude of the central meridian of the zone
A56: Constant:
A57: a = semi major axis (International 1924 Ellipsoid) = 6,378,388.0
A58: 1/f = inverse flattening (International 1924 Ellipsoid) = 297
A59: f = 1/297
A60: False Northing = zero for northern hemisphere (N') = 0
A61: False Easting = 500,000 in central meridian
A62: K0 = scale factor in central meridians = 0.9996
A63: e2 = 2f - f2
A65: Foot-point Latitude (φ')
A66: The foot-point latitude (φ') is the latitude for which the meridian distance equals the true northing divided by the central scale factor (m= N/k0)
A67: π = 3.14159265358979
A68: m = N/k0
A69: n = f/(2-f)
A70: G = a(1-n)(1-n2)(1+(9/4)n2+(225/64)n4)(π/180)
A71: σ = (mπ)/(180G)
A72: The foot point latitude (in radians) is then calculated by:
A73: φ' = σ+((3n/2)-(27n3/32))Sin2σ +((21n2/16)-(55n4/32))Sin4σ+(151n3/96)
A74: Sin6σ+(1097n4/512)Sin8σ
A75: Radius of Curvature
A76: In the following formulae t, ρ, ν and Ψ are all evaluated for the foot point latitude.
A77: ρ' = a(1-e 2)/(1-e2Sin2φ')3/2
A78: ν' = a /(1-e 2Sin2φ')1/2
A79: Ψ’ = ν' / ρ'
A80: t' = Tanφ'
A82: Latitude
A83: E’ = E - False Easting
A84: x = E' /(K0ν')
A85: Term1 = (t'/(K0ρ'))(xE'/2)
A86: Term2 = (t'/(K0ρ'))(E'x3/24)[-4 Ψ’2+9 Ψ' (1-t'2)+12t'2]
A87: Term3 = (t'/(K0ρ'))((E'x5)/720)[8 Ψ'4(11-24t'2)-12 Ψ’3(21-71t'2)+15 Ψ'2(15-98t'2+15t'4) +180 Ψ' (5t'2-3t'4)+360t'4]
A88: Term4 = (t'/(K0ρ'))(E' x7/40320)(1385+3633t'2+4095t'4+1575t'6)
A89: φ = φ ' - Term1 + Term2 - Term3 + Term4
A91: Longitude
A92: Term1 = x Sec φ'
A93: Term2 = (x3/6)Secφ' (Ψ' +2t'2)
A94: Term3 = (x5/120)Secφ' [-4Ψ'3(1-6t'2)+ Ψ'2(9-68t'2)+72 Ψ' t'2+24t'4]
A95: Term4 = (x7/5040)Secφ' (61+662t'2+1320t'4+720t'6)
A96: ω = Term1 - Term2 + Term3 - Term4
A97: λ = λ 0 + ω
A98: Geographic to Grid Coordinates conversion (WGS 84)
A100: Given:
A101: φ = geographic latitude
A102: λ = geographic longitude
A103: λ0 = longitude of the central meridian of the zone
A105: Constant:
A106: a = semi major axis (WGS-84 Ellipsoid) = 6,378,137.0
A107: 1/f = inverse flattening (WGS-84 Ellipsoid) = 298.257223563
A108: False Northing = 0
A109: False Easting = 500,000 in every central meridian
A110: K0 = scale factor in central meridian = 0.9996
A111: f = 1/298.257223563
A112: e2 = 2f - f2 square of first eccentricity
A114: Meridian Distance
A115: A0 = 1-(e2/4)-(3e4/64)-(5e6/256)
A116: A2 = (3/8)(e2+e4/4+15e6/128)
A117: A4 = (15/256)(e4+3e6/4)
A118: A6 = 35e6/3072
A119: m = a{A0φ -A2Sin2φ+A4Sin4φ -A6Sin6φ}
A121: The radii of curvature for a given Latitude
A122: ρ = a(1-e 2)/(1-e2Sin2φ)3/2 radius of curvature in the meridian
A123: ν = a /(1-e 2Sin2φ)1/2 radius of curvature in the prime vertical
A124: Ψ = ν / ρ ratio of the ellipsoidal radii of curvature
A125: t = Tanφ
A126: ω = λ-λ0 Geodetic longitude difference measured from the central meridian.
A128: Northing
A129: Term1 = (ω2/2) ν Sinφ Cosφ
A130: Term2 = (ω4/24) ν Sinφ Cos3φ (4Ψ2+ Ψ -t2)
A131: Term3 = (ω6/720) ν Sinφ Cos5φ [8 Ψ4(11-24t2)-28 Ψ3(1-6t2)+ Ψ2(1-32t2)- Ψ (2t2)+t4]
A132: Term4 = (ω8/40320) ν Sin φ Cos7φ (1385-3111t2+543t4-t6)
A133: N' = K0{m + Term1 + Term2 + Term3 + Term4 }
A134: N = N' + False Northing
A136: Easting
A137: Term1 = (ω 2/6)Cos2φ (Ψ -t2)
A138: Term2 = (ω 4/120)Cos4φ [4 Ψ3(1-6t2)+ Ψ2(1+8t2) - Ψ 2t2+t4]
A139: Term3 = (ω 6/5040)Cos6φ (61-479t2+179t4-t6)
A140: E' = (K0 ν ω Cosφ){1 + Term1 + Term2 + Term3}
A141: E = E ' + False Easting
A147: Grid to Geographic Coordinates conversion (WGS 84)
A149: Given:
A150: E = Easting
A151: N = Northing
A152: λ0 = longitude of the central meridian of the zone
A154: Constant:
A155: a = semi major axis (WGS-84 Ellipsoid) = 6,378,137.0
A156: 1/f = inverse flattening (WGS-84 Ellipsoid) = 298.257223563
A157: f = 1/298.257223563
A158: False Northing = zero for northern hemisphere (N') = 0
A159: False Easting = 500,000 in central meridian
A160: K0 = scale factor in central meridians = 0.9996
A161: e2 = 2f - f2
A163: Foot-point Latitude (φ')
A164: The foot-point latitude (φ') is the latitude for which the meridian distance equals the true northing divided by the central scale factor (m= N/k0)
A165: π = 3.14159265358979
A166: m = N/k0
A167: n = f/(2-f)
A168: G = a(1-n)(1-n2)(1+(9/4)n2+(225/64)n4)(π/180)
A169: σ = (mπ)/(180G)
A170: The foot point latitude (in radians) is then calculated by:
A171: φ' = σ+((3n/2)-(27n3/32))Sin2σ +((21n2/16)-(55n4/32))Sin4σ+(151n3/96)
A172: Sin6σ+(1097n4/512)Sin8σ
A173: Radius of Curvature
A174: In the following formulae t, ρ, ν and Ψ are all evaluated for the foot point latitude.
A175: ρ' = a(1-e 2)/(1-e2Sin2φ')3/2
A176: ν' = a /(1-e 2Sin2φ')1/2
A177: Ψ’ = ν' / ρ'
A178: t' = Tanφ'
A180: Latitude
A181: E’ = E - False Easting
A182: x = E' /(K0ν')
A183: Term1 = (t'/(K0ρ'))(xE'/2)
A184: Term2 = (t'/(K0ρ'))(E'x3/24)[-4 Ψ’2+9 Ψ' (1-t'2)+12t'2]
A185: Term3 = (t'/(K0ρ'))((E'x5)/720)[8 Ψ'4(11-24t'2)-12 Ψ’3(21-71t'2)+15 Ψ'2(15-98t'2+15t'4) +180 Ψ' (5t'2-3t'4)+360t'4]
A186: Term4 = (t'/(K0ρ'))(E' x7/40320)(1385+3633t'2+4095t'4+1575t'6)
A187: φ = φ ' - Term1 + Term2 - Term3 + Term4
A189: Longitude
A190: Term1 = x Sec φ'
A191: Term2 = (x3/6)Secφ' (Ψ' +2t'2)
A192: Term3 = (x5/120)Secφ' [-4Ψ'3(1-6t'2)+ Ψ'2(9-68t'2)+72 Ψ' t'2+24t'4]
A193: Term4 = (x7/5040)Secφ' (61+662t'2+1320t'4+720t'6)
A194: ω = Term1 - Term2 + Term3 - Term4
A195: λ = λ 0 + ω
A197: Geographic to Grid Coordinates conversion (ITRF)
A199: Given:
A200: φ = geographic latitude
A201: λ = geographic longitude
A202: λ0 = longitude of the central meridian of the zone
A204: Constant:
A205: a = semi major axis (GRS 80 Ellipsoid) = 6,378,137.000
A206: 1/f = inverse flattening (GRS 80 Ellipsoid) = 298.257222101
A207: False Northing = 0
A208: False Easting = 500,000 in every central meridian
A209: K0 = scale factor in central meridian = 0.9996
A210: f = 1/298.257222101
A211: e2 = 2f - f2 square of first eccentricity
A213: Meridian Distance
A214: A0 = 1-(e2/4)-(3e4/64)-(5e6/256)
A215: A2 = (3/8)(e2+e4/4+15e6/128)
A216: A4 = (15/256)(e4+3e6/4)
A217: A6 = 35e6/3072
A218: m = a{A0φ -A2Sin2φ+A4Sin4φ -A6Sin6φ}
A220: The radii of curvature for a given Latitude
A221: ρ = a(1-e 2)/(1-e2Sin2φ)3/2 radius of curvature in the meridian
A222: ν = a / (1-e 2Sin2φ)1/2 radius of curvature in the prime vertical
A223: Ψ = ν / ρ ratio of the ellipsoidal radii of curvature
A224: t = Tanφ
A225: ω = λ-λ0 Geodetic longitude difference measured from the central meridian.
A227: Northing
A228: Term1 = (ω2/2) ν Sinφ Cosφ
A229: Term2 = (ω4/24) ν Sinφ Cos3φ (4Ψ2+ Ψ -t2)
A230: Term3 = (ω6/720) ν Sinφ Cos5φ [8 Ψ4(11-24t2)-28 Ψ3(1-6t2)+ Ψ2(1-32t2)- Ψ (2t2)+t4]
A231: Term4 = (ω8/40320) ν Sin φ Cos7φ (1385-3111t2+543t4-t6)
A232: N' = K0{m + Term1 + Term2 + Term3 + Term4 }
A233: N = N' + False Northing
A235: Easting
A236: Term1 = (ω 2/6)Cos2φ (Ψ -t2)
A237: Term2 = (ω 4/120)Cos4φ [4 Ψ3(1-6t2)+ Ψ2(1+8t2) - Ψ 2t2+t4]
... 268 more rows

Sheet Cart_ITRF to Cart_Ain el Abd
A1: Back to Introduction
B3: Note: This 7-Parameters Transformation is need a recent data. | I3: User's Input
B4: Just highlight the last row and drag it downward for multi-data.
B6: Dx= | C6: -43.8 | D6: (meters) | F6: Rx= | G6: -1.455 | H6: (seconds)
B7: Dy= | C7: 108.8 | D7: (meters) | F7: Ry= | G7: 0.761 | H7: (seconds)
B8: Dz= | C8: 119.6 | D8: (meters) | F8: Rz= | G8: -0.737 | H8: (seconds)
B9: Sc= | C9: -0.549 | D9: (ppm)
M10: Rx | N10: =((G6/3600)/180)*PI() -> -7.05403906e-06 | O10: (radians)
B11: Cartesian or Geocentric (ITRF) | G11: Cartesian or Geocentric (Ain El Abd KSA) | M11: Ry | N11: =((G7/3600)/180)*PI() -> 3.689432113e-06 | O11: (radians)
B12: pt.no | C12: X (m) | D12: Y (m) | E12: Z (m) | G12: pt.no | H12: X (m) | I12: Y (m) | J12: Z (m) | M12: Rz | N12: =((G8/3600)/180)*PI() -> -3.57307683e-06 | O12: (radians)
B13: 1 | C13: 2827122.53 | D13: 3369233.432 | E13: 4603736.241 | G13: =IF(B13="","",B13) -> 1 | H13: =IF(E13="","",$C$6+($N$13)*((C13*1)+(D13*-$N$12)+(E13*$N$11))) -> 2827106.202 | I13: =IF(E13="","",$C$7+($N$13)*((C13*$N$12)+(D13*1)+(E13*-$N$10))) -> 3369362.756 | J13: =IF(E13="","",$C$8+($N$13)*((C13*-$N$11)+(D13*$N$10)+(E13*1))) -> 4603819.116 | M13: Scale factor | N13: =1+(C9/1000000) -> 0.999999451
B14: 2 | C14: 2827138.858 | D14: 3369104.108 | E14: 4603653.366 | G14: =IF(B14="","",B14) -> 2 | H14: =IF(E14="","",$C$6+($N$13)*((C14*1)+(D14*-$N$12)+(E14*$N$11))) -> 2827122.529 | I14: =IF(E14="","",$C$7+($N$13)*((C14*$N$12)+(D14*1)+(E14*-$N$10))) -> 3369233.431 | J14: =IF(E14="","",$C$8+($N$13)*((C14*-$N$11)+(D14*$N$10)+(E14*1))) -> 4603736.242
P24: NEED TO CONFIRM THE SIGN VALUE OF ROTATION
P25: General Formula:
P27: XITRF | R27: ΔX | U27: 1 | V27: Rz | W27: -Ry | X27: XAin El Abd
P28: YITRF | Q28: = | R28: ΔY | S28: + | T28: (1+Sc) | U28: -Rz | V28: 1 | W28: Rx | X28: YAin El Abd
P29: ZITRF | R29: ΔZ | U29: Ry | V29: -Rx | W29: 1 | X29: ZAin El Abd
P32: Note: before executing this formula, rotation Rx, Ry & Rz must converted into radians
P33: (1+Sc) = 1 + (Sc / 1,000,000) scale factor
P35: ITRF Geocentric:
P36: XITRF = ΔX + (1+Sc) * ((XAin El Abd * 1) + (YAin El Abd * Rz) + (ZAin El Abd * -Ry))
P37: YITRF = ΔY + (1+Sc) * ((XAin El Abd * -Rz) + (YAin El Abd * 1) + (ZAin El Abd * Rx))
P38: ZITRF = ΔZ + (1+Sc) * ((XAin El Abd * Ry) + (YAin El Abd * -Rx) + (ZAin El Abd * 1))

Sheet Cart_Ain el Abd to Cart_ITRF
A1: Back to Introduction
B3: Note: This 7-Parameters Transformation is need a recent data. | I3: User's Input
B4: Just highlight the last row and drag it downward for multi-data.
B6: Dx= | C6: 43.8 | D6: (meters) | F6: Rx= | G6: 1.455 | H6: (seconds)
B7: Dy= | C7: -108.8 | D7: (meters) | F7: Ry= | G7: -0.761 | H7: (seconds)
B8: Dz= | C8: -119.6 | D8: (meters) | F8: Rz= | G8: 0.737 | H8: (seconds)
B9: Sc= | C9: 0.549 | D9: (ppm)
M10: Rx | N10: =((G6/3600)/180)*PI() -> 7.05403906e-06 | O10: (radians)
B11: Cartesian or Geocentric (Ain El Abd KSA) | G11: Cartesian or Geocentric (ITRF) | M11: Ry | N11: =((G7/3600)/180)*PI() -> -3.689432113e-06 | O11: (radians)
B12: pt.no | C12: X (m) | D12: Y (m) | E12: Z (m) | G12: pt.no | H12: X (m) | I12: Y (m) | J12: Z (m) | M12: Rz | N12: =((G8/3600)/180)*PI() -> 3.57307683e-06 | O12: (radians)
B13: 1 | C13: 2827122.53 | D13: 3369233.432 | E13: 4603736.241 | G13: =IF(B13="","",B13) -> 1 | H13: =IF(E13="","",$C$6+($N$13)*((C13*1)+(D13*-$N$12)+(E13*$N$11))) -> 2827138.858 | I13: =IF(E13="","",$C$7+($N$13)*((C13*$N$12)+(D13*1)+(E13*-$N$10))) -> 3369104.108 | J13: =IF(E13="","",$C$8+($N$13)*((C13*-$N$11)+(D13*$N$10)+(E13*1))) -> 4603653.366 | M13: Scale factor | N13: =1+(C9/1000000) -> 1.000000549
B14: 2 | C14: 3305692.566 | D14: 500000 | G14: =IF(B14="","",B14) -> 2 | H14: =IF(D14="","",LNorth_to_WNorth(C14,D14,E14,$J$9)) -> 3305643.074 | I14: =IF(D14="","",LEast_to_WEast(C14,D14,E14,$J$9)) -> 499764.1045 | J14: =IF(E14="","",LH_to_WH(C14,D14,E14,$J$9)) -> 
N16: NEED TO CONFIRM THE SIGN VALUE OF ROTATION
N17: General Formula:
N19: XITRF | P19: ΔX | S19: 1 | T19: Rz | U19: -Ry | V19: XAin El Abd
N20: YITRF | O20: = | P20: ΔY | Q20: + | R20: (1+Sc) | S20: -Rz | T20: 1 | U20: Rx | V20: YAin El Abd
N21: ZITRF | P21: ΔZ | S21: Ry | T21: -Rx | U21: 1 | V21: ZAin El Abd
N24: Note: before executing this formula, rotation Rx, Ry & Rz must converted into radians
N25: (1+Sc) = 1 + (Sc / 1,000,000) scale factor
N27: ITRF Geocentric:
N28: XITRF = ΔX + (1+Sc) * ((XAin El Abd * 1) + (YAin El Abd * Rz) + (ZAin El Abd * -Ry))
N29: YITRF = ΔY + (1+Sc) * ((XAin El Abd * -Rz) + (YAin El Abd * 1) + (ZAin El Abd * Rx))
N30: ZITRF = ΔZ + (1+Sc) * ((XAin El Abd * Ry) + (YAin El Abd * -Rx) + (ZAin El Abd * 1))

Sheet Geoc_ITRF to Geog_ITRF
A1: Back to Introduction | AA1: Conversion of "Earth-centred" Cartesian Coordinates to Geodetic Coordinates
D2: User's Input
AA3: Ellipsoid (GRS80)
AA4: GRS80 (International Terrestrial Reference Frame - ITRF)
B5: Geocentric (ITRF) | G5: Geographic (ITRF) | AA5: Semi major axis (a) | AB5: 6378137
B6: pt.no | C6: X (m) | D6: Y (m) | E6: Z (m) | G6: pt.no | H6: latitude | K6: longitude | N6: Ellip H | AA6: Semi minor axis (b) | AB6: =AB5-AB5/AB7 -> 6356752.314
B7: 1 | C7: 2827138.859 | D7: 3369104.108 | E7: 4603653.366 | G7: =IF(B7="","",B7) -> 1 | H7: =IF(E7="","",TRUNC((ATAN((E7+$AB$10*$AB$6*(SIN(ATAN(E7*$AB$5/($AB$6*SQRT(C7^2+D7^2)))))^3)/(SQRT(C7^2+D7^2)-$AB$9*$AB$5*(COS(ATAN(E7*$AB$5/($AB$6*SQRT(C7^2+D7^2)))))^3)))*180/PI())) -> 46 | I7: =IF(E7="","",TRUNC((((ATAN((E7+$AB$10*$AB$6*(SIN(ATAN(E7*$AB$5/($AB$6*SQRT(C7^2+D7^2)))))^3)/(SQRT(C7^2+D7^2)-$AB$9*$AB$5*(COS(ATAN(E7*$AB$5/($AB$6*SQRT(C7^2+D7^2)))))^3)))*180/PI())-H7)*60)) -> 30 | J7: =IF(E7="","",(((ATAN((E7+$AB$10*$AB$6*(SIN(ATAN(E7*$AB$5/($AB$6*SQRT(C7^2+D7^2)))))^3)/(SQRT(C7^2+D7^2)-$AB$9*$AB$5*(COS(ATAN(E7*$AB$5/($AB$6*SQRT(C7^2+D7^2)))))^3)))*180/PI())-H7-(I7/60))*3600) -> 0.3206446449 | K7: =IF(E7="","",TRUNC((ATAN(D7/C7))*180/PI())) -> 49 | L7: =IF(E7="","",TRUNC((((ATAN(D7/C7))*180/PI())-K7)*60)) -> 59 | M7: =IF(E7="","",(((ATAN(D7/C7))*180/PI())-K7-(L7/60))*3600) -> 55.51484074 | N7: =IF(E7="","",SQRT(C7^2+D7^2)/COS(ATAN((E7+$AB$10*$AB$6*(SIN(ATAN(E7*$AB$5/($AB$6*SQRT(C7^2+D7^2)))))^3)/(SQRT(C7^2+D7^2)-$AB$9*$AB$5*(COS(ATAN(E7*$AB$5/($AB$6*SQRT(C7^2+D7^2)))))^3)))-($AB$5/SQRT(1-$AB$9*(SIN(ATAN((E7+$AB$10*$AB$6*(SIN(ATAN(E7*$AB$5/($AB$6*SQRT(C7^2+D7^2)))))^3)/(SQRT(C7^2+D7^2)-$AB$9*$AB$5*(COS(ATAN(E7*$AB$5/($AB$6*SQRT(C7^2+D7^2)))))^3))))^2))) -> -46.66328091 | AA7: Inverse flattening (1/f) | AB7: 298.2572236
B8: 2 | C8: 2827138.859 | D8: 3369104.108 | E8: 4603653.366 | G8: =IF(B8="","",B8) -> 2 | H8: =IF(E8="","",TRUNC((ATAN((E8+$AB$10*$AB$6*(SIN(ATAN(E8*$AB$5/($AB$6*SQRT(C8^2+D8^2)))))^3)/(SQRT(C8^2+D8^2)-$AB$9*$AB$5*(COS(ATAN(E8*$AB$5/($AB$6*SQRT(C8^2+D8^2)))))^3)))*180/PI())) -> 46 | I8: =IF(E8="","",TRUNC((((ATAN((E8+$AB$10*$AB$6*(SIN(ATAN(E8*$AB$5/($AB$6*SQRT(C8^2+D8^2)))))^3)/(SQRT(C8^2+D8^2)-$AB$9*$AB$5*(COS(ATAN(E8*$AB$5/($AB$6*SQRT(C8^2+D8^2)))))^3)))*180/PI())-H8)*60)) -> 30 | J8: =IF(E8="","",(((ATAN((E8+$AB$10*$AB$6*(SIN(ATAN(E8*$AB$5/($AB$6*SQRT(C8^2+D8^2)))))^3)/(SQRT(C8^2+D8^2)-$AB$9*$AB$5*(COS(ATAN(E8*$AB$5/($AB$6*SQRT(C8^2+D8^2)))))^3)))*180/PI())-H8-(I8/60))*3600) -> 0.3206446449 | K8: =IF(E8="","",TRUNC((ATAN(D8/C8))*180/PI())) -> 49 | L8: =IF(E8="","",TRUNC((((ATAN(D8/C8))*180/PI())-K8)*60)) -> 59 | M8: =IF(E8="","",(((ATAN(D8/C8))*180/PI())-K8-(L8/60))*3600) -> 55.51484074 | N8: =IF(E8="","",SQRT(C8^2+D8^2)/COS(ATAN((E8+$AB$10*$AB$6*(SIN(ATAN(E8*$AB$5/($AB$6*SQRT(C8^2+D8^2)))))^3)/(SQRT(C8^2+D8^2)-$AB$9*$AB$5*(COS(ATAN(E8*$AB$5/($AB$6*SQRT(C8^2+D8^2)))))^3)))-($AB$5/SQRT(1-$AB$9*(SIN(ATAN((E8+$AB$10*$AB$6*(SIN(ATAN(E8*$AB$5/($AB$6*SQRT(C8^2+D8^2)))))^3)/(SQRT(C8^2+D8^2)-$AB$9*$AB$5*(COS(ATAN(E8*$AB$5/($AB$6*SQRT(C8^2+D8^2)))))^3))))^2))) -> -46.66328091 | AA8: f | AB8: =1/AB7 -> 0.003352810664
B9: 3 | C9: 2827138.859 | D9: 3369104.108 | E9: 4603653.366 | G9: 3 | H9: 46 | I9: 30 | J9: 0.3206446449 | K9: 49 | L9: 59 | M9: 55.51484074 | N9: -46.66328091 | AA9: e2 | AB9: =2*AB8-AB8^2 -> 0.006694379989
B10: 4 | C10: 2827138.859 | D10: 3369104.108 | E10: 4603653.366 | G10: 4 | H10: 46 | I10: 30 | J10: 0.3206446449 | K10: 49 | L10: 59 | M10: 55.51484074 | N10: -46.66328091 | AA10: e'2 | AB10: =(AB5^2-AB6^2)/AB6^2 -> 0.006739496741
B11: 5 | C11: 2827138.859 | D11: 3369104.108 | E11: 4603653.366 | G11: 5 | H11: 46 | I11: 30 | J11: 0.3206446449 | K11: 49 | L11: 59 | M11: 55.51484074 | N11: -46.66328091
B12: 6 | C12: 2827138.859 | D12: 3369104.108 | E12: 4603653.366 | G12: 6 | H12: 46 | I12: 30 | J12: 0.3206446449 | K12: 49 | L12: 59 | M12: 55.51484074 | N12: -46.66328091
B13: 7 | C13: 2827138.859 | D13: 3369104.108 | E13: 4603653.366 | G13: 7 | H13: 46 | I13: 30 | J13: 0.3206446449 | K13: 49 | L13: 59 | M13: 55.51484074 | N13: -46.66328091
B14: 1 | C14: 2827138.844 | D14: 3369104.091 | E14: 4603653.341 | G14: 1 | H14: 46 | I14: 30 | J14: 0.3206447751 | K14: 49 | L14: 59 | M14: 55.51484074 | N14: -46.6965378

Sheet Geog_ITRF to Geoc_ITRF
A1: Back to Introduction
M2: User's Input
B5: Geographic (ITRF) | K5: Geocentric (ITRF)
B6: pt.no | C6: latitude | F6: longitude | I6: Ellip H | K6: pt.no | L6: X (m) | M6: Y (m) | N6: Z (m)
B7: 1 | C7: 46 | D7: 30 | E7: 0 | F7: 50 | G7: 0 | H7: 0 | I7: -35 | K7: =IF(B7="","",B7) -> 1 | L7: =IF(I7="","",($AD$14+I7)*COS((C7+D7/60+E7/3600)*PI()/180)*COS((F7+G7/60+H7/3600)*PI()/180)) -> 2827075.375 | M7: =IF(I7="","",($AD$14+I7)*COS((C7+D7/60+E7/3600)*PI()/180)*SIN((F7+G7/60+H7/3600)*PI()/180)) -> 3369177.235 | N7: =IF(I7="","",((1-$AD$13)*$AD$14+I7)*SIN((C7+D7/60+E7/3600)*PI()/180)) -> 4603655.01
B8: 1 | C8: 46 | D8: 30 | E8: 0.3206446449 | F8: 49 | G8: 59 | H8: 55.51484074 | I8: -46.66328091 | K8: =IF(B8="","",B8) -> 1 | L8: =IF(I8="","",($AD$14+I8)*COS((C8+D8/60+E8/3600)*PI()/180)*COS((F8+G8/60+H8/3600)*PI()/180)) -> 2827138.844 | M8: =IF(I8="","",($AD$14+I8)*COS((C8+D8/60+E8/3600)*PI()/180)*SIN((F8+G8/60+H8/3600)*PI()/180)) -> 3369104.091 | N8: =IF(I8="","",((1-$AD$13)*$AD$14+I8)*SIN((C8+D8/60+E8/3600)*PI()/180)) -> 4603653.341 | AC8: Ellipsoid (GRS 80)
AC9: GRS 80 (ITRF)
AC10: Semi major axis (a) | AD10: 6378137
AC11: Inverse flattening (1/f) | AD11: 298.2572221
AC12: f | AD12: =1/AD11 -> 0.003352810681
AC13: e2 | AD13: =2*AD12-AD12*AD12 -> 0.006694380023
AC14: n | AD14: =AD10/SQRT(1-AD13*SIN((C7+D7/60+E7/3600)*PI()/180)*SIN((C7+D7/60+E7/3600)*PI()/180)) -> 6389399.837

Sheet Geoc_AeA to Geog_AeA
A1: Back to Introduction | AA1: Conversion of "Earth-centred" Cartesian Coordinates to Geodetic Coordinates
D2: User's Input
AA3: Ellipsoid (International 1924)
AA4: International 1924 (Ain El Abd Saudi Arabia)
B5: Geocentric (Ain El Abd) | G5: Geographic (Ain El Abd) | AA5: Semi major axis (a) | AB5: 6378388
B6: pt.no | C6: X (m) | D6: Y (m) | E6: Z (m) | G6: pt.no | H6: latitude | K6: longitude | N6: Ellip H | AA6: Semi minor axis (b) | AB6: =AB5-AB5/AB7 -> 6356911.946
B7: 1 | C7: 2827138.859 | D7: 3369104.108 | E7: 4603653.366 | G7: =IF(B7="","",B7) -> 1 | H7: =IF(E7="","",TRUNC((ATAN((E7+$AB$10*$AB$6*(SIN(ATAN(E7*$AB$5/($AB$6*SQRT(C7^2+D7^2)))))^3)/(SQRT(C7^2+D7^2)-$AB$9*$AB$5*(COS(ATAN(E7*$AB$5/($AB$6*SQRT(C7^2+D7^2)))))^3)))*180/PI())) -> 46 | I7: =IF(E7="","",TRUNC((((ATAN((E7+$AB$10*$AB$6*(SIN(ATAN(E7*$AB$5/($AB$6*SQRT(C7^2+D7^2)))))^3)/(SQRT(C7^2+D7^2)-$AB$9*$AB$5*(COS(ATAN(E7*$AB$5/($AB$6*SQRT(C7^2+D7^2)))))^3)))*180/PI())-H7)*60)) -> 30 | J7: =IF(E7="","",(((ATAN((E7+$AB$10*$AB$6*(SIN(ATAN(E7*$AB$5/($AB$6*SQRT(C7^2+D7^2)))))^3)/(SQRT(C7^2+D7^2)-$AB$9*$AB$5*(COS(ATAN(E7*$AB$5/($AB$6*SQRT(C7^2+D7^2)))))^3)))*180/PI())-H7-(I7/60))*3600) -> 3.27610862 | K7: =IF(E7="","",TRUNC((ATAN(D7/C7))*180/PI())) -> 49 | L7: =IF(E7="","",TRUNC((((ATAN(D7/C7))*180/PI())-K7)*60)) -> 59 | M7: =IF(E7="","",(((ATAN(D7/C7))*180/PI())-K7-(L7/60))*3600) -> 55.51484074 | N7: =IF(E7="","",SQRT(C7^2+D7^2)/COS(ATAN((E7+$AB$10*$AB$6*(SIN(ATAN(E7*$AB$5/($AB$6*SQRT(C7^2+D7^2)))))^3)/(SQRT(C7^2+D7^2)-$AB$9*$AB$5*(COS(ATAN(E7*$AB$5/($AB$6*SQRT(C7^2+D7^2)))))^3)))-($AB$5/SQRT(1-$AB$9*(SIN(ATAN((E7+$AB$10*$AB$6*(SIN(ATAN(E7*$AB$5/($AB$6*SQRT(C7^2+D7^2)))))^3)/(SQRT(C7^2+D7^2)-$AB$9*$AB$5*(COS(ATAN(E7*$AB$5/($AB$6*SQRT(C7^2+D7^2)))))^3))))^2))) -> -249.6638921 | AA7: Inverse flattening (1/f) | AB7: 297
B8: 2 | C8: 2827138.859 | D8: 3369104.108 | E8: 4603653.366 | G8: =IF(B8="","",B8) -> 2 | H8: =IF(E8="","",TRUNC((ATAN((E8+$AB$10*$AB$6*(SIN(ATAN(E8*$AB$5/($AB$6*SQRT(C8^2+D8^2)))))^3)/(SQRT(C8^2+D8^2)-$AB$9*$AB$5*(COS(ATAN(E8*$AB$5/($AB$6*SQRT(C8^2+D8^2)))))^3)))*180/PI())) -> 46 | I8: =IF(E8="","",TRUNC((((ATAN((E8+$AB$10*$AB$6*(SIN(ATAN(E8*$AB$5/($AB$6*SQRT(C8^2+D8^2)))))^3)/(SQRT(C8^2+D8^2)-$AB$9*$AB$5*(COS(ATAN(E8*$AB$5/($AB$6*SQRT(C8^2+D8^2)))))^3)))*180/PI())-H8)*60)) -> 30 | J8: =IF(E8="","",(((ATAN((E8+$AB$10*$AB$6*(SIN(ATAN(E8*$AB$5/($AB$6*SQRT(C8^2+D8^2)))))^3)/(SQRT(C8^2+D8^2)-$AB$9*$AB$5*(COS(ATAN(E8*$AB$5/($AB$6*SQRT(C8^2+D8^2)))))^3)))*180/PI())-H8-(I8/60))*3600) -> 3.27610862 | K8: =IF(E8="","",TRUNC((ATAN(D8/C8))*180/PI())) -> 49 | L8: =IF(E8="","",TRUNC((((ATAN(D8/C8))*180/PI())-K8)*60)) -> 59 | M8: =IF(E8="","",(((ATAN(D8/C8))*180/PI())-K8-(L8/60))*3600) -> 55.51484074 | N8: =IF(E8="","",SQRT(C8^2+D8^2)/COS(ATAN((E8+$AB$10*$AB$6*(SIN(ATAN(E8*$AB$5/($AB$6*SQRT(C8^2+D8^2)))))^3)/(SQRT(C8^2+D8^2)-$AB$9*$AB$5*(COS(ATAN(E8*$AB$5/($AB$6*SQRT(C8^2+D8^2)))))^3)))-($AB$5/SQRT(1-$AB$9*(SIN(ATAN((E8+$AB$10*$AB$6*(SIN(ATAN(E8*$AB$5/($AB$6*SQRT(C8^2+D8^2)))))^3)/(SQRT(C8^2+D8^2)-$AB$9*$AB$5*(COS(ATAN(E8*$AB$5/($AB$6*SQRT(C8^2+D8^2)))))^3))))^2))) -> -249.6638921 | AA8: f | AB8: =1/AB7 -> 0.003367003367
B9: 3 | C9: 2827138.859 | D9: 3369104.108 | E9: 4603653.366 | G9: 3 | H9: 46 | I9: 30 | J9: 3.27610862 | K9: 49 | L9: 59 | M9: 55.51484074 | N9: -249.6638921 | AA9: e2 | AB9: =2*AB8-AB8^2 -> 0.006722670022
B10: 4 | C10: 2827138.859 | D10: 3369104.108 | E10: 4603653.366 | G10: 4 | H10: 46 | I10: 30 | J10: 3.27610862 | K10: 49 | L10: 59 | M10: 55.51484074 | N10: -249.6638921 | AA10: e'2 | AB10: =(AB5^2-AB6^2)/AB6^2 -> 0.006768170197
B11: 5 | C11: 2827138.859 | D11: 3369104.108 | E11: 4603653.366 | G11: 5 | H11: 46 | I11: 30 | J11: 3.27610862 | K11: 49 | L11: 59 | M11: 55.51484074 | N11: -249.6638921
B12: 6 | C12: 2827138.859 | D12: 3369104.108 | E12: 4603653.366 | G12: 6 | H12: 46 | I12: 30 | J12: 3.27610862 | K12: 49 | L12: 59 | M12: 55.51484074 | N12: -249.6638921
B13: 7 | C13: 2827138.859 | D13: 3369104.108 | E13: 4603653.366 | G13: 7 | H13: 46 | I13: 30 | J13: 3.27610862 | K13: 49 | L13: 59 | M13: 55.51484074 | N13: -249.6638921
B14: 1 | C14: 2827138.844 | D14: 3369104.091 | E14: 4603653.341 | G14: 1 | H14: 46 | I14: 30 | J14: 3.276108765 | K14: 49 | L14: 59 | M14: 55.51484074 | N14: -249.697149

Sheet Geog_A el A to Geoc_A el A
A1: Back to Introduction
M2: User's Input
B5: Geographic (Ain El Abd) | K5: Geocentric (Ain el Abd)
B6: pt.no | C6: latitude | F6: longitude | I6: Ellip H | K6: pt.no | L6: X (m) | M6: Y (m) | N6: Z (m)
B7: 1 | C7: 46 | D7: 30 | E7: 0 | F7: 50 | G7: 0 | H7: 0 | I7: -35 | K7: =IF(B7="","",B7) -> 1 | L7: =IF(I7="","",($AD$14+I7)*COS((C7+D7/60+E7/3600)*PI()/180)*COS((F7+G7/60+H7/3600)*PI()/180)) -> 2827207.746 | M7: =IF(I7="","",($AD$14+I7)*COS((C7+D7/60+E7/3600)*PI()/180)*SIN((F7+G7/60+H7/3600)*PI()/180)) -> 3369334.989 | N7: =IF(I7="","",((1-$AD$13)*$AD$14+I7)*SIN((C7+D7/60+E7/3600)*PI()/180)) -> 4603739.444
K8: =IF(B8="","",B8) ->  | L8: =IF(I8="","",($AD$14+I8)*COS((C8+D8/60+E8/3600)*PI()/180)*COS((F8+G8/60+H8/3600)*PI()/180)) ->  | M8: =IF(I8="","",($AD$14+I8)*COS((C8+D8/60+E8/3600)*PI()/180)*SIN((F8+G8/60+H8/3600)*PI()/180)) ->  | N8: =IF(I8="","",((1-$AD$13)*$AD$14+I8)*SIN((C8+D8/60+E8/3600)*PI()/180)) ->  | AC8: Ellipsoid (International 1924)
AC9: International 1924 (Ain El Abd)
AC10: Semi major axis (a) | AD10: 6378388
AC11: Inverse flattening (1/f) | AD11: 297
AC12: f | AD12: =1/AD11 -> 0.003367003367
AC13: e2 | AD13: =2*AD12-AD12*AD12 -> 0.006722670022
AC14: n | AD14: =AD10/SQRT(1-AD13*SIN((C7+D7/60+E7/3600)*PI()/180)*SIN((C7+D7/60+E7/3600)*PI()/180)) -> 6389699.005

Sheet gridITRF to geoITRF
A1: Back to Introduction
B3: Note: This worksheet can be expand as much as you want. | I3: User's Input
B4: Just highlight the last row and drag it downward.
B5: *Be sure to Fill-up the required zone. | G5: Geographic Latitude & Longitude Format = (Degrees-Minutes-Seconds)
B6: Zone = | C6: 37
B7: l0 = | C7: =-177+(6*(C6-1))-3 -> 36 | D7: to | E7: =-177+(6*(C6-1))+3 -> 42 | G7: Central Meridians of the zone = | J7: =-177+(6*(C6-1)) -> 39
B9: UTM-Grid (ITRF) | G9: Geographic (ITRF)
B10: pt.no | C10: northing (m) | D10: easting (m) | E10: elev. (m) | G10: pt.no | H10: latitude | I10: longitude | J10: Elev.
B11: 1 | C11: 3305692.566 | D11: 620723.944 | E11: 120 | G11: =IF(B11="","",B11) -> 1 | H11: =IF(D11="","",WNorth_to_WLat(C11, D11, $J$7)) -> 29-52-33.313898 | I11: =IF(D11="","",WEast_to_WLon(C11, D11, $J$7)) -> 40-15-0.364594 | J11: =IF(E11="","",E11) -> 120
B12: 2 | C12: 3305692.566 | D12: 500001 | E12: 0 | G12: =IF(B12="","",B12) -> 2 | H12: =IF(D12="","",WNorth_to_WLat(C12, D12, $J$7)) -> 29-52-54.629886 | I12: =IF(D12="","",WEast_to_WLon(C12, D12, $J$7)) -> 39-0-0.037282 | J12: =IF(E12="","",E12) -> 0
B14: 1 | C14: 3305692.566 | D14: 620723.944 | E14: 120 | G14: 1 | H14: 29-52-33.313898 | I14: 40-15-0.364594 | J14: 120

Sheet geoITRF to gridITRF
A1: Back to Introduction
B3: Note: This worksheet can be expand as much as you want. | I3: User's Input
B4: Just highlight the last row and drag it downward.
B5: *Be sure to Fill-up the required zone.
B6: Zone = | C6: 37
B7: l0 = | C7: =-177+(6*(C6-1))-3 -> 36 | D7: to | E7: =-177+(6*(C6-1))+3 -> 42 | G7: Central Meridians of the zone = | J7: =-177+(6*(C6-1)) -> 39
A8: Input this format dd-mm-ss (sample 29-01-00) or minutes must be 2-digits
B9: Geographic (ITRF) | G9: UTM-Grid (ITRF)
B10: pt.no | C10: latitude | D10: longitude | E10: Elev. | G10: pt.no | H10: northing (m) | I10: easting (m) | J10: elev. (m)
B11: 1 | C11: 29-52-31.756126 | D11: 40-15-0.152258 | E11: 120 | G11: =IF(B11="","",B11) -> 1 | H11: =IF(D11="","",WLat_to_WNorth(C11,D11,$J$7)) -> 3305644.551 | I11: =IF(D11="","",WLon_to_WEast(C11,D11,$J$7)) -> 620718.7688 | J11: =IF(E11="","",E11) -> 120
B12: 2 | C12: 29-52-53.070374 | D12: 39-00-00.93728 | E12: 0 | G12: =IF(B12="","",B12) -> 2 | H12: =IF(D12="","",WLat_to_WNorth(C12,D12,$J$7)) -> 3305644.565 | I12: =IF(D12="","",WLon_to_WEast(C12,D12,$J$7)) -> 500025.1405 | J12: =IF(E12="","",E12) -> 0

Sheet Intersection
A1: Target Intersection Calculations
F3: Station No: | L3: Station No:
D4: Easting (m) | J4: Easting (m) | O4: Job No: | U4: Rads | V4: Deg
D5: Northing (m) | J5: Northing (m) | O5: Job Title: | T5: LRO | U5: =ATAN((LSE-LRE)/(LSN-LRN)) ->  | V5: =LRO*180/PI() -> 
D6: Height (m) | J6: Height (m) | O6: File: | T6: RRO | U6: =ATAN((RSE-RRE)/(RSN-RRN)) ->  | V6: =RRO*180/PI() -> 
O7: Date:
F8: RO Stn No: | L8: RO Stn No: | O8: Observer:
D9: Easting (m) | J9: Easting (m) | O9: Assistant:
D10: Northing (m) | J10: Northing (m) | O10: Instrument:
F12: Observations From Station: | G12: =IF(G3<>"",G3,"") ->  | L12: Observations From Station: | M12: =IF(M3<>"",M3,"") ->  | O12: Intersected Co-ordinates | Q12: Skew
A13: Point | C13: Horizontal Angle | F13: Vertical Angle | I13: Horizontal Angle | L13: Vertical Angle | N13: Easting | O13: Northing | P13: Height | Q13: Error
A14: No. | B14: Deg | C14: Min | D14: Sec | E14: Deg | F14: Min | G14: Sec | H14: Deg | I14: Min | J14: Sec | K14: Deg | L14: Min | M14: Sec | N14: (m) | O14: (m) | P14: (m) | Q14: (mm) | T14: LAZ | U14: LVA | V14: RAZ | W14: RVA | X14: LDIST | Y14: RDIST | Z14: LZ | AA14: RZ | AB14: MZ | AC14: DZ
N15: =IF(A15<>"",((RSE*(1/TAN(V15)))-(LSE*(1/TAN(T15)))-RSN+LSN)/((1/TAN(V15))-(1/TAN(T15))),"") ->  | O15: =IF(A15<>"",((RSN*TAN(V15))-(LSN*TAN(T15))-RSE+LSE)/(TAN(V15)-(TAN(T15))),"") ->  | P15: =IF(A15<>"",AB15,"") ->  | Q15: =IF(A15<>"",AC15*1000,"") ->  | T15: =((B15+C15/60+D15/3600)*PI()/180)+LRO ->  | U15: =(E15+F15/60+G15/3600)*PI()/180 -> 0 | V15: =((H15+I15/60+J15/3600)*PI()/180)+RRO ->  | W15: =(K15+L15/60+M15/3600)*PI()/180 -> 0 | X15: =SQRT((LSE-N15)^2+(LSN-O15)^2) ->  | Y15: =SQRT((RSE-N15)^2+(RSN-O15)^2) ->  | Z15: =TAN((PI()/2-U15))*X15+LSH ->  | AA15: =TAN((PI()/2-W15))*Y15+RSH ->  | AB15: =(Z15+AA15)/2 ->  | AC15: =AA15-Z15 -> 
N16: =IF(A16<>"",((RSE*(1/TAN(V16)))-(LSE*(1/TAN(T16)))-RSN+LSN)/((1/TAN(V16))-(1/TAN(T16))),"") ->  | O16: =IF(A16<>"",((RSN*TAN(V16))-(LSN*TAN(T16))-RSE+LSE)/(TAN(V16)-(TAN(T16))),"") ->  | P16: =IF(A16<>"",AB16,"") ->  | Q16: =IF(A16<>"",AC16*1000,"") ->  | U16: 0 | W16: 0
U17: 0 | W17: 0
U18: 0 | W18: 0
U19: 0 | W19: 0
U20: 0 | W20: 0
U21: 0 | W21: 0
U22: 0 | W22: 0
U23: 0 | W23: 0
U24: 0 | W24: 0
U25: 0 | W25: 0
U26: 0 | W26: 0
U27: 0 | W27: 0
U28: 0 | W28: 0
U29: 0 | W29: 0
U30: 0 | W30: 0
U31: 0 | W31: 0
U32: 0 | W32: 0
U33: 0 | W33: 0

Sheet bearing
B2: Point 1 | D2: Point 2 | F2: Bearing | H2: Bearing
B3: Easting | C3: Northing | D3: Easting | E3: Northing | F3: Degrees | G3: Deg | H3: Min | I3: Sec
B4: 0 | C4: 0 | D4: 100 | E4: 0 | F4: =DEGREES(ATAN2(E4-C4,D4-B4))+IF(D4-B4<0,360) -> 90 | G4: =INT(F4) -> 90 | H4: =INT((F4-G4)*60) -> 0 | I4: =((F4-G4)-(H4/60))*3600 -> 0
B5: 0 | C5: 0 | D5: 0 | E5: -100 | F5: =DEGREES(ATAN2(E5-C5,D5-B5))+IF(D5-B5<0,360) -> 180 | G5: =INT(F5) -> 180 | H5: =INT((F5-G5)*60) -> 0 | I5: =((F5-G5)-(H5/60))*3600 -> 0
B6: 0 | C6: 0 | D6: -100 | E6: 0 | F6: =DEGREES(ATAN2(E6-C6,D6-B6))+IF(D6-B6<0,360) -> 270 | G6: =INT(F6) -> 270 | H6: =INT((F6-G6)*60) -> 0 | I6: =((F6-G6)-(H6/60))*3600 -> 0
B7: 0 | C7: 0 | D7: 0 | E7: 100 | F7: =DEGREES(ATAN2(E7-C7,D7-B7))+IF(D7-B7<0,360) -> 0 | G7: =INT(F7) -> 0 | H7: =INT((F7-G7)*60) -> 0 | I7: =((F7-G7)-(H7/60))*3600 -> 0

Sheet 3Pts resection
G4: USER INPUT
D5: Coordinates | H5: False Reading
D6: Northing | E6: Easting | H6: Instrument Azimuth
C7: Point A | D7: 2.847 | E7: 5.107 | G7: Occ to A | H7: 0 | I7: 0 | J7: 0 | K7: =ABS(H7)+(ABS(I7)/60)+ABS(J7)/3600 -> 0
C8: Point B | D8: 5.445 | E8: 6.607 | G8: Occ to B | H8: 120 | I8: 0 | J8: 0 | K8: =ABS(H8)+(ABS(I8)/60)+ABS(J8)/3600 -> 120
C9: Point C | D9: 2.847 | E9: 8.107 | G9: Occ to C | H9: 240 | I9: 0 | J9: 0 | K9: =ABS(H9)+(ABS(I9)/60)+ABS(J9)/3600 -> 240
D14: Northing | E14: Easting
C15: Coordinates Occ. | D15: =((C27*D7)+(C28*D8)+(C29*D9))/(C27+C28+C29) -> 3.720895109 | E15: =((C27*E7)+(C28*E8)+(C29*E9))/(C27+C28+C29) -> 6.607
B17: Line | C17: Azim Inverse | D17: Line | E17: Angle
B18: A-B | C18: =DEGREES(ATAN2(D8-D7,E8-E7))+IF(E8-E7<0,360) -> 30.00072778 | D18: C-A-B | E18: =C19-C18 -> 59.99927222
B19: A-C | C19: =DEGREES(ATAN2(D9-D7,E9-E7))+IF(E9-E7<0,360) -> 90 | D19: A-B-C | E19: =C23-C22 -> 60.00145556
B20: C-A | C20: =DEGREES(ATAN2(D7-D9,E7-E9))+IF(E7-E9<0,360) -> 270 | D20: B-C-A | E20: =C21-C20 -> 59.99927222
B21: C-B | C21: =DEGREES(ATAN2(D8-D9,E8-E9))+IF(E8-E9<0,360) -> 329.9992722 | D21: A-Occ-B | E21: =IF(K8-K7<0,360+K8-K7,K8-K7) -> 120
B22: B-C | C22: =DEGREES(ATAN2(D9-D8,E9-E8))+IF(E9-E8<0,360) -> 149.9992722 | D22: B-Occ-C | E22: =IF(K9-K8<0,360+K9-K8,K9-K8) -> 120
B23: B-A | C23: =DEGREES(ATAN2(D7-D8,E7-E8))+IF(E7-E8<0,360) -> 210.0007278 | D23: C-Occ-A | E23: =IF(K7-K9<0,360+K7-K9,K7-K9) -> 120
B27: K1= | C27: =1/(1/TAN(E18)-1/TAN(E22)) -> 0.5779765228
B28: K2= | C28: =1/(1/TAN(E19)-1/TAN(E23)) -> 0.5859166219
B29: K3= | C29: =1/(1/TAN(E20)-1/TAN(E21)) -> 0.5779765228

Sheet H-curve_bearing & station given
A1: Horizontal Curve Computations from Stationing
A3: Project: | B3: M-136 in St. Clair County
A4: Control Section: | B4: 77041, 77091
A5: Job number: | B5: 55662A | S5: =IF(AND(B11="N",I11="E"),1,IF(AND(B11="S",I11="E"),2,IF(AND(B11="S",I11="W"),3,IF(AND(B11="N",I11="W"),4,"NA")))) -> 3 | T5: <= Quadrant of Direction into the Curve
A6: Curve #: | B6: Survey Centerline w/ PC=Sta 401+71.85 | S6: =IF(AND(B12="N",I12="E"),1,IF(AND(B12="S",I12="E"),2,IF(AND(B12="S",I12="W"),3,IF(AND(B12="N",I12="W"),4,"NA")))) -> 4 | T6: <= Quadrant of Direction out of the Curve
A8: Known Variables: | K8: Calculated Variables:
A9: Curve Deflection and Stationing: | K9: Variable Calculations: | S9: =L13*TAN(RADIANS(S16)/2) -> 258.0059687 | T9: <= Calculated T Value
A11: Bearing into the Curve: | B11: S | C11: 60 | E11: 51 | F11: ' | G11: 45 | H11: " | I11: W | K11: ∆ = | L11: =INT(S11) -> 53 | M11: ° | N11: =INT((S11-L11)*60) -> 30 | O11: ' | P11: =(S11-L11-N11/60)*3600 -> 54 | Q11: " | R11: =IF(S6-S5=1,"Rt.",IF(S6-S5=-1,"Lt.",IF(S6-S5=3,"Lt.",IF(S6-S5=-3,"Rt.",IF(AND(0<S13-S12,S13-S12<180),"Rt.","Lt."))))) -> Rt. | S11: =IF(ABS(S5-S6)=1,ABS(S12-S13),IF(ABS(S5-S6)=3,360-ABS(S12-S13),IF(ABS(S12-S13)<180,ABS(S12-S13),360-ABS(S12-S13)))) -> 53.515 | T11: <= Delta (Deflection Angle of the Curve) | U11: =+C11+E11/60+G11/3600 -> 60.8625
A12: Bearing Out of the Curve: | B12: N | C12: 65 | D12: ° | E12: 37 | F12: ' | G12: 21 | H12: " | I12: W | K12: T = | L12: =+B14-B13 -> 258 | R12: =IF(ABS(L12-S9)<0.01,"","No Match") ->  | S12: =IF(S5=1,U11,IF(S5=2,180-U11,IF(S5=3,180+U11,360-U11))) -> 240.8625 | T12: <= Azmuth in Degrees into the Curve | U12: =+C12+E12/60+G12/3600 -> 65.6225
A13: P.C. = | B13: 40171.85 | K13: R = | L13: =+L12/TAN(RADIANS(S11)/2) -> 511.6959606 | S13: =IF(S6=1,U12,IF(S6=2,180-U12,IF(S6=3,180+U12,360-U12))) -> 294.3775 | T13: <= Azmuth in Degrees out of the Curve
A14: P.I. = | B14: =+B13+258 -> 40429.85 | K14: D = | L14: =INT(S14) -> 11 | M14: ° | N14: =INT((S14-L14)*60) -> 11 | O14: ' | P14: =(S14-L14-N14/60)*3600 -> 50.04656966 | Q14: " | S14: =5729.58/L13 -> 11.19723516 | T14: <= Degree of Curve
A15: P.T. = | B15: 40649.79 | K15: L = | L15: =+S11*L13/57.2958 -> 477.9304823 | R15: =IF(ABS(L15-S15)<0.01,"","No Match") ->  | S15: =+B15-B13 -> 477.94 | T15: <= Length of Curve from length from P.C. to P.T.
K16: E = | L16: =+L12*TAN(RADIANS(S11)/4) -> 61.36316035 | S16: =+S15/L13*57.2958 -> 53.51606572 | T16: <= Calculated Deflection Angle (Should match Delta calculated from bearings into and out of the curve.)
A17: Input known variables in shaded boxes.
A18: * If "No Match" appears beside the calculated length of curve, or the T Length, there is a bust in the data for this curve.
A19: Use this spreadsheet to check curve data, or to calculate curve variables based upon the Bearings into and out of the Curve, and the known P.C., P.I., and P.T. Stations.
A20: All units are English Units.
A21: =IF(OR(B11="N",B11="S"),"","Please make sure the bearing into the curve is either North or South") -> 
A22: =IF(OR(B12="N",B12="S"),"","Please make sure the bearing out of the curve is either North or South") -> 
A23: =IF(OR(I11="E",I11="W"),"","Please make sure the bearing into the curve is either East or West") -> 
A24: =IF(OR(I12="E",I12="W"),"","Please make sure the bearing out of the curve is either East or West") -> 

Sheet H-curve_delta,PC,Radius
A1: Horizontal Curve Computations from Curve Deflection Angle, and Radius
A4: Project: | F4: US-12 Lenawee & Washtenaw Co's.
A5: Control Section: | F5: 81031, 46101
A6: Job number: | F6: 60172B
A7: Curve #: | F7: Proposed Curve at Sta 287+55.23
A9: Known Variables: | K9: Calculated Variables:
A10: Curve Deflection; P.C., P.I., or P.T.; and Radius: | K10: Variable Calculations:
A12: ∆ = | B12: 2 | C12: ° | D12: 38 | E12: ' | F12: 48 | G12: " | K12: P.C. = | L12: =IF(A19="",IF(OR(A13="PC",A13="P.C."),B13,IF(OR(A13="PT",A13="P.T."),+L14-L17,L13-L16)),"NA") -> 28347.97 | R12: =+B12+D12/60+F12/3600 -> 2.646666667 | S12: <= Delta (Deflection Angle of the Curve)
A13: PC | B13: 28347.97 | K13: P.I. = | L13: =IF(A19="",IF(OR(A13="PI",A13="P.I."),B13,L12+L16),"NA") -> 28755.23413
A14: R = | B14: 17630 | K14: P.T. = | L14: =IF(A19="",IF(OR(A13="PT",A13="P.T."),B13,L12+L17),"NA") -> 29162.35314
K15: D = | L15: =INT(R15) -> 0 | M15: ° | N15: =INT((R15-L15)*60) -> 19 | O15: ' | P15: =(R15-L15-N15/60)*3600 -> 29.96528644 | Q15: " | R15: =5729.58/B14 -> 0.3249903573 | S15: <= Degree of Curvature
A16: Input known variables in shaded boxes. | K16: T = | L16: =B14*TAN(RADIANS(R12)/2) -> 407.2641349
A17: Input whether the station used is the P.C., the P.I., or the P.T. | K17: L = | L17: =R12*B14/57.2958 -> 814.3831369
K18: E = | L18: =+L16*TAN(RADIANS(R12)/4) -> 4.703401973
A19: =IF(OR(A13="PC",A13="P.C.",A13="PI",A13="P.I.",A13="PT",A13="P.T."),"","Please enter whether the Station used is the P.C., P.I., or the P.T.") -> 
A20: Use this spreadsheet to calculate curve variables based upon the Deflection Angle (∆), the Station of the P.C., P.I., or the P.T. and the Radius of the Curve.
A21: All units are English Units.

Sheet H-curve_coordinates & station
A1: Horizontal Curve Calculations from Coordinates
A3: Project: | D3: US-12 City of Wayne
A4: Control Section: | D4: 82061
A5: Job number: | D5: 60447B | Y5: =IF(AND(Q13="N",X13="E"),1,IF(AND(Q13="S",X13="E"),2,IF(AND(Q13="S",X13="W"),3,IF(AND(Q13="N",X13="W"),4,"NA")))) -> 1 | Z5: <= Quadrant of Direction into the Curve
A6: Curve #: | D6: Const Cntl. Curve @ Sta 40+96.36 | Y6: =IF(AND(Q14="N",X14="E"),1,IF(AND(Q14="S",X14="E"),2,IF(AND(Q14="S",X14="W"),3,IF(AND(Q14="N",X14="W"),4,"NA")))) -> 1 | Z6: <= Quadrant of Direction into the Curve
A8: Known Variables: | G8: Calculated Variables:
A9: Station of P.C., P.I., or P.T.; and P.C., P.I., and P.T. Coordinates: | G9: Curve Data: | P9: Distances:
A10: pc | B10: 10796 | G10: ∆ = | H10: =INT(Y10) -> 4 | I10: ° | J10: =INT((Y10-H10)*60) -> 21 | K10: ' | L10: =(Y10-H10-J10/60)*3600 -> 50.6442456 | M10: " | N10: =IF(Y6-Y5=1,"Rt.",IF(Y6-Y5=-1,"Lt.",IF(Y6-Y5=3,"Lt.",IF(Y6-Y5=-3,"Rt.",IF(AND(0<Y14-Y13,Y14-Y13<180),"Rt.","Lt."))))) -> Lt. | P10: P.C. to P.I. = | Q10: =SQRT((E13-E12)^2+(C13-C12)^2) -> 593.7876969 | Y10: =IF(ABS(Y5-Y6)=1,ABS(Y13-Y14),IF(ABS(Y5-Y6)=3,360-ABS(Y13-Y14),IF(ABS(Y13-Y14)<180,ABS(Y13-Y14),360-ABS(Y13-Y14)))) -> 4.364067846 | Z10: ° <= Delta Angle
A11: P.C., P.I., & P.T. Coordinates | G11: P.C. = | H11: =IF(A19="",IF(OR(A10="PC",A10="P.C."),B10,IF(OR(A10="PT",A10="P.T."),+H13-H17,H12-H14)),"NA") -> 10796 | P11: P.I. to P.T. = | Q11: =SQRT((E14-E13)^2+(C14-C13)^2) -> 593.7875103 | U11: =IF(ABS(Q10-Q11)<0.01,"", "No Match") -> 
A12: P.C. | B12: N = | C12: 203571.17 | D12: E = | E12: 13159021.55 | G12: P.I. = | H12: =IF(A19="",IF(OR(A10="PI",A10="P.I."),B10,H11+H14),"NA") -> 11389.7877 | P12: Bearings of Approaches to Curve:
A13: P.I. | B13: N = | C13: 203646.5 | D13: E = | E13: 13159610.54 | G13: P.T. = | H13: =IF(A19="",IF(OR(A10="PT",A10="P.T."),B10,H11+H17),"NA") -> 11983.0012 | P13: P.C. to P.I. = | Q13: =IF(C13>C12,"N","S") -> N | R13: =INT(AA13) -> 82 | S13: ° | T13: =INT((AA13-R13)*60) -> 42 | U13: ' | V13: =(AA13-R13-T13/60)*3600 -> 41.81498059 | W13: " | X13: =IF(E13>E12,"E","W") -> E | Y13: =IF(Y5=1,AA13,IF(Y5=2,180-AA13,IF(Y5=3,180+AA13,360-AA13))) -> 82.71161527 | Z13: <= Azmuth in Degrees into the Curve | AA13: =ABS(DEGREES(ATAN((E13-E12)/(C13-C12)))) -> 82.71161527
A14: P.T. | B14: N = | C14: 203766.43 | D14: E = | E14: 13160192.09 | G14: T = | H14: =+Q10 -> 593.7876969 | P14: P.I. to P.T. = | Q14: =IF(C14>C13,"N","S") -> N | R14: =INT(AA14) -> 78 | S14: ° | T14: =INT((AA14-R14)*60) -> 20 | U14: ' | V14: =(AA14-R14-T14/60)*3600 -> 51.17073499 | W14: " | X14: =IF(E14>E13,"E","W") -> E | Y14: =IF(Y6=1,AA14,IF(Y6=2,180-AA14,IF(Y6=3,180+AA14,360-AA14))) -> 78.34754743 | Z14: <= Azmuth in Degrees out of the Curve | AA14: =ABS(DEGREES(ATAN((E14-E13)/(C14-C13)))) -> 78.34754743
G15: R = | H15: =+H14/TAN(Y10*PI()/360) -> 15584.12045
A16: Input whether the station used is the P.C., the P.I., or the P.T. | G16: D = | H16: =INT(Y16) -> 0 | I16: ° | J16: =INT((Y16-H16)*60) -> 22 | K16: ' | L16: =(Y16-H16-J16/60)*3600 -> 3.558045548 | M16: " | Y16: =5729.58/H15 -> 0.3676550127 | Z16: ° <= Degree of Curve
G17: L = | H17: =PI()*Y10*H15/180 -> 1187.001198
G18: E = | H18: =+H14*TAN(RADIANS(Y10)/4) -> 11.30817602
A19: =IF(OR(A10="PC",A10="P.C.",A10="PI",A10="P.I.",A10="PT",A10="P.T."),"","Please enter whether the Station used is the P.C., P.I., or the P.T.") -> 
A20: If the Distances from the P.C. to the P.I. and from the P.I. to the P.T. do not match, you will receive a warning next to the Distance from P.I. to P.T. that states "No Match".
A21: Use this spreadsheet to check curve data, or to calculate curve variables based upon the Coordinates of the P.C., P.I., and P.T.

Sheet H-curve_delta,direction,PC & PT
A1: Horizontal Curve Calculations from P.C. & P.T. Coordinates and the Curve Deflection Angle
A3: Project:
A4: Control Section:
A5: Job number:
A6: Curve #:
A8: Known Variables: | K8: Calculated Variables:
A9: Curve Deflection Angle; Station of P.C., P.I., or P.T.; and P.C. & P.T. Coordinates | K9: Curve Data:
K10: P.C. = | L10: =IF(A21="",IF(OR(A13="PC",A13="P.C."),B13,IF(OR(A13="PT",A13="P.T."),+L12-L16,L11-L13)),"NA") -> 2444.34 | S10: =SQRT((C16-C15)^2+(I16-I15)^2) -> 64989.8894 | T10: <= Length of Chord
A11: ∆ = | B11: 6 | C11: ° | D11: 27 | E11: ' | F11: 9 | G11: " | K11: P.I. = | L11: =IF(A21="",IF(OR(A13="PI",A13="P.I."),B13,L10+L13),"NA") -> 34990.86819 | S11: =+B11+D11/60+F11/3600 -> 6.4525 | T11: ° <= Delta Angle
A12: Curve Direction (Lt. or Rt.?) | I12: Rt | K12: P.T. = | L12: =IF(A21="",IF(OR(A13="PT",A13="P.T."),B13,L10+L16),"NA") -> 67468.58567 | S12: =90-S11/2 -> 86.77375 | T12: ° <= Angle of inside Chord
A13: PC | B13: 2444.34 | K13: T = | L13: =+L14*TAN(RADIANS(S11)/2) -> 32546.52819 | S13: =+S11/2 -> 3.22625 | T13: ° <= Angle of outside Chord
A14: P.C., P.I., & P.T. Coordinates | K14: R = | L14: =+S10/SQRT((1-COS(RADIANS(S11)))*2) -> 577390.9094 | S14: =DEGREES(ATAN((I16-I15)/(C16-C15))) -> 89.96917889 | T14: ° <= Bearing Angle of the Arc Chord | U14: =ABS(S14) -> 89.96917889
A15: P.C. | B15: N = | C15: 286300 | H15: E = | I15: 13321260.45 | K15: D = | L15: =INT(S16) -> 0 | M15: ° | N15: =INT((S16-L15)*60) -> 0 | O15: ' | P15: =(S16-L15-N15/60)*3600 -> 35.72361058 | Q15: " | S15: =IF(OR(AND(OR(S17=1,S17=3),OR(I12="Lt.",I12="Lt")),AND(OR(S17=2,S17=4),OR(I12="Rt.",I12="Rt"))),S14+S13,S14-S13) -> 86.74292889 | T15: ° <= Bearing Angle from P.C. to P.I. | U15: =IF(ABS(S15)>90,180-ABS(S15),ABS(S15)) -> 86.74292889 | V15: =IF(U15=S15,1,0) -> 1
A16: P.T. | B16: N = | C16: 286334.96 | H16: E = | I16: 13386250.33 | K16: L = | L16: =PI()*S11*L14/180 -> 65024.24567 | S16: =5729.58/L14 -> 0.009923225161 | T16: ° <= Degree of Curve | V16: =IF(U15>90,0,1) -> 1
K17: E = | L17: =+L13*TAN(RADIANS(S11)/4) -> 916.5682923 | S17: =IF(AND(K19="N",R19="E"),1,IF(AND(K19="N",R19="W"),4,IF(AND(K19="S",R19="E"),2,3))) -> 1 | T17: <= Quadrant of the Curve Chord
A18: Input whether the station used is the P.C., the P.I., or the P.T. | K18: Bearing of Arc Chord:
K19: =IF(C16>C15,"N","S") -> N | L19: =INT(U14) -> 89 | M19: ° | N19: =INT((U14-L19)*60) -> 58 | O19: ' | P19: =(U14-L19-N19/60)*3600 -> 9.044002992 | Q19: " | R19: =IF(I16>I15,"E","W") -> E
A21: =IF(OR(A13="PC",A13="P.C.",A13="PI",A13="P.I.",A13="PT",A13="P.T."),"","Please enter whether the Station used is the P.C., P.I., or the P.T.") -> 
A22: =IF(OR(I12="Lt.",I12="Lt",I12="Rt.",I12="Rt"),"","Enter whether the curve is to the Right or to the Left.") -> 
A23: Use this spreadsheet to check curve data, or to calculate curve variables based upon the Curve Deflection Angle and the Coordinates of the P.C. & P.T.

Sheet spiral offset staking
B3: L.S. = | C3: 275
B4: Dc (dec.) = | C4: 10 | E4: NOTE: DO NOT EDIT HIGHLIGHTED BOLD ENTRIES
B5: Rc = | C5: =(5729.578/C4) -> 572.9578
B6: Theta s = | C6: =(C3*C4)/200 -> 13.75 | E6: Theta s (radians) = | G6: =(C6*(PI()/180)) -> 0.2399827721
B7: Xs = | C7: =(C3*(1-((G6^2)/10)+((G6^4)/216))) -> 273.4204502
B8: Ys= | C8: =(C3*((G6/3)-(G6^3)/42)) -> 21.90792599 | E8: Pavement Width (feet) = | G8: 25
B9: Long Ch.= | C9: =SQRT((C7*C7)+(C8*C8)) -> 274.2967368 | E9: Number of lanes = | G9: 2
B10: Short tan.= | C10: =(C8/SIN(G6)) -> 92.17175563 | E10: Individual lane width = | G10: =(G8/G9) -> 12.5
B11: Long tan.= | C11: =(C7-(C10*(COS(G6)))) -> 183.8901463 | E11: Offset from E.P. = | G11: 3
B12: Sta. T.S.= | C12: 500 | E12: Total Offset from C/L = | G12: =G10+G11 -> 15.5
B13: Sta. S.C.= | C13: =(C12+C3) -> 775
E14: The deflection (Phi) angle is from a line parallel with centerline tangent and at the same offset distance from centerline as the stakes to be set.
A18: STATION | B18: L | C18: Q | D18: Ø | E18: Phi, deg. | F18: min. | G18: sec. | H18: x | I18: y | J18: Chord Length | M18: Chord Length
C19: Decimal Deg. | D19: Decimal Deg. | J19: Centerline | K19: Curve Increment. | L19: Diff. Increment. | M19: Inside | N19: Outside
A20: =C12 -> 500 | B20: 0 | C20: =((B20/$C$3)*(B20/$C$3))*$C$6 -> 0 | D20: =C20/3 -> 0 | E20: =TRUNC(D20) -> 0 | F20: =TRUNC((D20-E20)*60) -> 0 | G20: =ROUND((((D20-E20)*60)-F20)*60,0) -> 0 | H20: =(B20*(1-((C20*(PI()/180)*(C20*PI()/180))/10))) -> 0 | I20: =(B20*(C20*(PI()/180)/3)) -> 0 | J20: =SQRT(((H20-H19)*(H20-H19))+((I20-I19)*(I20-I19))) -> 0 | K20: =PI()/180*(C20*$G$12*((B20/$C$3)^2)) -> 0
A21: 525 | B21: =A21-A20 -> 25 | C21: 0.1136363636 | D21: 0.03787878788 | E21: 0 | F21: 2 | G21: 16 | H21: 24.99999017 | I21: 0.01652773913 | J21: 24.99999563 | K21: =(PI()/180)*($C$6*$G$12*((B21/$C$3)^2)) -> 0.03074159478 | L21: =K21-K20 -> 0.03074159478 | M21: =J21-L21 -> 24.96925403 | N21: =J21+L21 -> 25.03073722
A22: =IF(A21+25<=$C$13,A21+25,$C$13) -> 550 | B22: =A22-A20 -> 50 | C22: 0.4545454545 | D22: 0.1515151515 | E22: 0 | F22: 9 | G22: 5 | H22: 49.99968531 | I22: 0.132221913 | J22: 24.99996285 | K22: 0.1229663791 | L22: 0.09222478434 | M22: 24.90773807 | N22: 25.09218764
A23: =IF(A22+25<=$C$13,A22+25,$C$13) -> 575 | B23: =B22+A23-A22 -> 75 | C23: 1.022727273 | D23: 0.3409090909 | E23: 0 | F23: 20 | G23: 27 | H23: 74.99761034 | I23: 0.4462489565 | J23: 24.99989738 | K23: 0.276674353 | L23: 0.1537079739 | M23: 24.8461894 | N23: 25.15360535
A24: 600 | B24: 100 | C24: 1.818181818 | D24: 0.6060606061 | E24: 0 | F24: 36 | G24: 22 | H24: 99.98993 | I24: 1.057775304 | J24: 24.99980013 | K24: 0.4918655165 | L24: 0.2151911635 | M24: 24.78460897 | N24: 25.21499129
A25: 625 | B25: 125 | C25: 2.840909091 | D25: 0.946969697 | E25: 0 | F25: 56 | G25: 49 | H25: 124.9692688 | I25: 2.065967391 | J25: 24.99967637 | K25: 0.7685398695 | L25: 0.276674353 | M25: 24.72300201 | N25: 25.27635072
A26: 650 | B26: 150 | C26: 4.090909091 | D26: 1.363636364 | E26: 1 | F26: 21 | G26: 49 | H26: 149.923531 | I26: 3.569991652 | J26: 24.99954577 | K26: 1.106697412 | L26: 0.3381575426 | M26: 24.66138822 | N26: 25.33770331
A27: 675 | B27: 175 | C27: 5.568181818 | D27: 1.856060606 | E27: 1 | F27: 51 | G27: 22 | H27: 174.8347203 | I27: 5.669014521 | J27: 24.99946499 | K27: 1.506338144 | L27: 0.3996407321 | M27: 24.59982426 | N27: 25.39910572
A28: 700 | B28: 200 | C28: 7.272727273 | D28: 2.424242424 | E28: 2 | F28: 25 | G28: 27 | H28: 199.6777601 | I28: 8.462202434 | J28: 24.99957052 | K28: 1.967462066 | L28: 0.4611239217 | M28: 24.5384466 | N28: 25.46069444
A29: 725 | B29: 225 | C29: 9.204545455 | D29: 3.068181818 | E29: 3 | F29: 4 | G29: 5 | H29: 224.4193132 | I29: 12.04872182 | J29: 25.00015145 | K29: 2.490069177 | L29: 0.5226071113 | M29: 24.47754434 | N29: 25.52275856
A30: 750 | B30: 250 | C30: 11.36363636 | D30: 3.787878788 | E30: 3 | F30: 47 | G30: 16 | H30: 249.0166018 | I30: 16.52773913 | J30: 25.001764 | K30: 3.074159478 | L30: 0.5840903008 | M30: 24.4176737 | N30: 25.5858543
A31: 775 | B31: 275 | C31: 13.75 | D31: 4.583333333 | E31: 4 | F31: 35 | G31: 0 | H31: 273.4162274 | I31: 21.99842078 | J31: 25.00540114 | K31: 3.719732968 | L31: 0.6455734904 | M31: 24.35982765 | N31: 25.65097463
A32: 775 | B32: 275 | C32: 13.75 | D32: 4.583333333 | E32: 4 | F32: 35 | G32: 0 | H32: 273.4162274 | I32: 21.99842078 | J32: 0 | K32: 3.719732968 | L32: 0 | M32: 0 | N32: 0
A33: 775 | B33: 275 | C33: 13.75 | D33: 4.583333333 | E33: 4 | F33: 35 | G33: 0 | H33: 273.4162274 | I33: 21.99842078 | J33: 0 | K33: 3.719732968 | L33: 0 | M33: 0 | N33: 0
A34: 775 | B34: 275 | C34: 13.75 | D34: 4.583333333 | E34: 4 | F34: 35 | G34: 0 | H34: 273.4162274 | I34: 21.99842078 | J34: 0 | K34: 3.719732968 | L34: 0 | M34: 0 | N34: 0
A35: 775 | B35: 275 | C35: 13.75 | D35: 4.583333333 | E35: 4 | F35: 35 | G35: 0 | H35: 273.4162274 | I35: 21.99842078 | J35: 0 | K35: 3.719732968 | L35: 0 | M35: 0 | N35: 0
A36: 775 | B36: 275 | C36: 13.75 | D36: 4.583333333 | E36: 4 | F36: 35 | G36: 0 | H36: 273.4162274 | I36: 21.99842078 | J36: 0 | K36: 3.719732968 | L36: 0 | M36: 0 | N36: 0
A37: 775 | B37: 275 | C37: 13.75 | D37: 4.583333333 | E37: 4 | F37: 35 | G37: 0 | H37: 273.4162274 | I37: 21.99842078 | J37: 0 | K37: 3.719732968 | L37: 0 | M37: 0 | N37: 0
A38: 775 | B38: 275 | C38: 13.75 | D38: 4.583333333 | E38: 4 | F38: 35 | G38: 0 | H38: 273.4162274 | I38: 21.99842078 | J38: 0 | K38: 3.719732968 | L38: 0 | M38: 0 | N38: 0
A39: 775 | B39: 275 | C39: 13.75 | D39: 4.583333333 | E39: 4 | F39: 35 | G39: 0 | H39: 273.4162274 | I39: 21.99842078 | J39: 0 | K39: 3.719732968 | L39: 0 | M39: 0 | N39: 0
